Workbook

Sheet Island Summary
A1: Island LOLE Benchmarking
B3: Run 1 | C3: Run 2 | D3: Run 3 | E3: Run 4 | F3: Run 5 | G3: Run 6 | H3: Run 7 | I3: Run 8 | J3: Run 9 | K3: Run 10 | L3: Run 11
A4: Model | B4: 2.19I | C4: 2.19I | D4: 2.19I | E4: 2.19I | F4: 2.19I | G4: 2.19I | H4: 2.19I | I4: 2.19I | J4: 2.19I | K4: 2.19I | L4: 2.19I
A5: Run # | B5: 12.06.37 | C5: 12.06.45 | D5: 12.06.54 | E5: 15.14.59 | F5: 15.15.08 | G5: 15.15.17 | H5: 18.16.12 | I5: 18.16.21 | J5: 11.03.07 | K5: 11.03.16 | L5: 11.03.25
A6: Runs | B6: 2400 | C6: 2400 | D6: 2400 | E6: 2400 | F6: 2400 | G6: 2400 | H6: 2400 | I6: 2400 | J6: 2400 | K6: 2400 | L6: 2400
A7: Escalator | B7: 0.9857276458 | C7: 0.9877801354 | D7: 0.9901480006 | E7: 0.989508216 | F7: 0.9916522318 | G7: 0.9937617654 | H7: 0.9958753937 | I7: 0.997932784 | J7: 0.9838171055 | K7: 0.9818364112 | L7: 0.979824282
A8: LOLE | B8: 0.0991669 | C8: 0.0954171 | D8: 0.1095837 | E8: 0.1000003 | F8: 0.1083333 | G8: 0.1275005 | H8: 0.14375 | I8: 0.1183334 | J8: 0.0825 | K8: 0.0941668 | L8: 0.0862501
A9: LOLH | B9: 0.290835 | C9: 0.315002 | D9: 0.3420857 | E9: 0.3320847 | F9: 0.3479175 | G9: 0.3808354 | H9: 0.394168 | I9: 0.400835 | J9: 0.2645841 | K9: 0.2745849 | L9: 0.2475007
A10: EUE | B10: 13.1182388 | C10: 14.5266232 | D10: 15.2777472 | E10: 15.2643572 | F10: 16.1437105 | G10: 17.5879223 | H10: 18.5696794 | I10: 17.9623629 | J10: 12.239795 | K10: 12.0122885 | L10: 11.289677
A11: Peak | B11: 1747.695116 | C11: 1751.33418 | D11: 1755.532405 | E11: 1754.398067 | F11: 1758.199408 | G11: 1761.93961 | H11: 1765.687073 | I11: 1769.334826 | J11: 1744.307728 | K11: 1740.795957 | L11: 1737.228452
A12: Loss @ Peak | B12: 47.6784758 | C12: 47.9307381 | D12: 48.0970512 | E12: 47.9383355 | F12: 48.2613641 | G12: 48.305248 | H12: 48.3987276 | I12: 48.3842351 | J12: 47.3957152 | K12: 47.4545015 | L12: 47.2089419
A13: Peak with Losses | B13: 1795.373592 | C13: 1799.264918 | D13: 1803.629456 | E13: 1802.336403 | F13: 1806.460772 | G13: 1810.244858 | H13: 1814.0858 | I13: 1817.719061 | J13: 1791.703444 | K13: 1788.250459 | L13: 1784.437394
A14: Peak Losses | B14: 47.6784758 | C14: 47.9307381 | D14: 48.0970512 | E14: 47.9383355 | F14: 48.2613641 | G14: 48.305248 | H14: 48.3987276 | I14: 48.3842351 | J14: 47.3957152 | K14: 47.4545015 | L14: 47.2089419
A15: Firm Capacity | B15: 2452.74 | C15: 2452.74 | D15: 2452.74 | E15: 2452.74 | F15: 2452.74 | G15: 2452.74 | H15: 2452.74 | I15: 2452.74 | J15: 2452.74 | K15: 2452.74 | L15: 2452.74
A16: Reserve Margin | B16: 705.044884 | C16: 701.4058201 | D16: 697.2075952 | E16: 698.3419326 | F16: 694.5405925 | G16: 690.8003902 | H16: 687.0529272 | I16: 683.4051739 | J16: 708.4322715 | K16: 711.944043 | L16: 715.5115482
A17: Reserve Margin % | B17: 0.4034141181 | C17: 0.4004979907 | D17: 0.3971488041 | E17: 0.3980521557 | F17: 0.3950294771 | G17: 0.3920681426 | H17: 0.3891136418 | I17: 0.3862497724 | J17: 0.4061395016 | K17: 0.4089761584 | L17: 0.4118695773
A18: Reserve Magin w/Loss | B18: 657.3664082 | C18: 653.475082 | D18: 649.110544 | E18: 650.4035971 | F18: 646.2792284 | G18: 642.4951422 | H18: 638.6541996 | I18: 635.0209388 | J18: 661.0365563 | K18: 664.4895415 | L18: 668.3026063
A19: Reserve Margin % w/ Loss | B19: 0.3661446349 | C19: 0.3631900314 | D19: 0.3598912969 | E19: 0.3608669259 | F19: 0.3577599019 | G19: 0.3549216778 | H19: 0.352052918 | I19: 0.3493504317 | J19: 0.3689430629 | K19: 0.3715863952 | L19: 0.3745172617

Sheet RM% Calculation - LOLE
A1: LOLE Equation
A2: y = ax+b
A3: a | B3: 2.7112
A4: b | B4: -2.5752
A5: y | B5: 0.1
A6: x | B6: =(B5-B4)/B3 -> 0.9867217468
A9: Island Peak (Unescalated) | B9: 1773
A10: Island Peak (Escalated) | B10: =B9*B6 -> 1749.457657
A11: Losses @ Peak | B11: 49.4
A12: Peak With Losses | B12: =B10+B11 -> 1798.857657
A13: Island Capacity | B13: 2452.74
A14: Reserve Margin | B14: =B13-B10 -> 703.2823429
A15: Reserve Margin % | B15: =B14/B10 -> 0.4020002085
A16: Reserve Magin w/Loss | B16: =B13-B12 -> 653.8823429
A17: Reserve Margin % w/ Loss | B17: =B16/B12 -> 0.3634986572

Sheet LOLH Calculation
A2: LOLH Calculation
A3: y = ax+b
A4: a | B4: 9.0559
A5: b | B5: -8.629
A6: y | B6: =B4*B7+B5 -> 0.3066534671
A7: x | B7: 0.9867217468
A9: LOLH @ LOLE = 0.1 | B9: =B6 -> 0.3066534671

Sheet Run 1
A3: Parent Name | B3: Collection | C3: Child Name | D3: Category | E3: Datetime | F3: Load (MW) | G3: Transmission Losses (MW) | H3: Unserved Energy Hours (h) | I3: Unserved Energy (MW) | K3: Daily Peak | L3: Daily Peak Load | M3: Average Unserved Energy Hours
A4: System | B4: Region | C4: Island | D4: - | E4: 2032-01-01 | F4: 1272.11663 | G4: 29.5522492 | H4: 0 | I4: 0 | K4: 2026-01-01T17:00:00 | L4: =MAX(OFFSET($F$4:$F$27,(ROW()-4)*24,0)) -> 1583.42469 | M4: =VLOOKUP(L4,OFFSET($F$4:$H$27,(ROW()-4)*24,0),3,FALSE) -> 0.0004167 | P4: LOLE | Q4: =SUM(M4:M368) -> 0.0991669
A5: System | B5: Region | C5: Island | D5: - | E5: 2032-01-01T01:00:00 | F5: 1225.898639 | G5: 28.4837234 | H5: 0 | I5: 0 | K5: 2026-01-02T17:00:00 | L5: =MAX(OFFSET($F$4:$F$27,(ROW()-4)*24,0)) -> 1333.214062 | M5: =VLOOKUP(L5,OFFSET($F$4:$H$27,(ROW()-4)*24,0),3,FALSE) -> 0 | P5: LOLH | Q5: =SUM(H4:H8763) -> 0.290835
A6: System | B6: Region | C6: Island | D6: - | E6: 2032-01-01T02:00:00 | F6: 1203.249096 | G6: 27.9771754 | H6: 0 | I6: 0 | K6: 2026-01-03T20:00:00 | L6: 1727.721902 | M6: 0.0079167 | P6: EUE | Q6: =SUM(I4:I8763) -> 13.1182388
A7: System | B7: Region | C7: Island | D7: - | E7: 2032-01-01T03:00:00 | F7: 1191.207976 | G7: 27.1326417 | H7: 0 | I7: 0 | K7: 2026-01-04T17:00:00 | L7: 1733.449115 | M7: 0.0095833 | P7: Peak | Q7: =MAX(F4:F8763) -> 1747.695116
A8: System | B8: Region | C8: Island | D8: - | E8: 2032-01-01T04:00:00 | F8: 1190.097181 | G8: 27.8756189 | H8: 0 | I8: 0 | K8: 2026-01-05T17:00:00 | L8: 1295.900402 | M8: 0 | P8: Loss @ Peak | Q8: =VLOOKUP(Q7,F4:G8763,2,FALSE) -> 47.6784758
A9: System | B9: Region | C9: Island | D9: - | E9: 2032-01-01T05:00:00 | F9: 1201.600418 | G9: 27.5972198 | H9: 0 | I9: 0 | K9: 2026-01-06T17:00:00 | L9: 1730.846622 | M9: 0.0091667 | P9: Peak with Losses | Q9: =Q7+Q8 -> 1795.373592
A10: System | B10: Region | C10: Island | D10: - | E10: 2032-01-01T06:00:00 | F10: 1230.670231 | G10: 28.7152276 | H10: 0 | I10: 0 | K10: 2026-01-07T17:00:00 | L10: 1648.347337 | M10: 0.0025 | P10: Peak Losses | Q10: =MAX(G4:G8763) -> 47.6784758
A11: System | B11: Region | C11: Island | D11: - | E11: 2032-01-01T07:00:00 | F11: 1292.604295 | G11: 36.1936842 | H11: 0 | I11: 0 | K11: 2026-01-08T17:00:00 | L11: 1698.508124 | M11: 0.0066667 | P11: Firm Capacity | Q11: 2452.74
A12: System | B12: Region | C12: Island | D12: - | E12: 2032-01-01T08:00:00 | F12: 1355.519375 | G12: 37.1487078 | H12: 0 | I12: 0 | K12: 2026-01-09T08:00:00 | L12: 1731.831548 | M12: 0.00875 | P12: Reserve Margin | Q12: =Q11-Q7 -> 705.044884
A13: System | B13: Region | C13: Island | D13: - | E13: 2032-01-01T09:00:00 | F13: 1376.678919 | G13: 37.7789074 | H13: 0 | I13: 0 | K13: 2026-01-10T17:00:00 | L13: 1445.529532 | M13: 0.0004167 | P13: Reserve Margin % | Q13: =Q12/Q7 -> 0.4034141181
A14: System | B14: Region | C14: Island | D14: - | E14: 2032-01-01T10:00:00 | F14: 1397.589825 | G14: 38.3224388 | H14: 0 | I14: 0 | K14: 2026-01-11T20:00:00 | L14: 1631.094528 | M14: 0.0029167 | P14: Reserve Magin w/Loss | Q14: =Q11-Q9 -> 657.3664082
A15: System | B15: Region | C15: Island | D15: - | E15: 2032-01-01T11:00:00 | F15: 1425.543188 | G15: 39.2235254 | H15: 0.0008333 | I15: 0.004673 | K15: 2026-01-12T08:00:00 | L15: 1686.342547 | M15: 0.0041667 | P15: Reserve Margin % w/ Loss | Q15: =Q14/Q9 -> 0.3661446349
A16: System | B16: Region | C16: Island | D16: - | E16: 2032-01-01T12:00:00 | F16: 1440.202522 | G16: 38.8719438 | H16: 0 | I16: 0 | K16: 2026-01-13T18:00:00 | L16: 1663.070045 | M16: 0.0016667
A17: System | B17: Region | C17: Island | D17: - | E17: 2032-01-01T13:00:00 | F17: 1439.797201 | G17: 39.3571557 | H17: 0 | I17: 0 | K17: 2026-01-14T08:00:00 | L17: 1747.695116 | M17: 0.0125 | P17: Checks
A18: System | B18: Region | C18: Island | D18: - | E18: 2032-01-01T14:00:00 | F18: 1441.276481 | G18: 39.3915301 | H18: 0 | I18: 0 | K18: 2026-01-15T08:00:00 | L18: 1518.127251 | M18: 0 | P18: Island Energy (Original) | Q18: 8410
A19: System | B19: Region | C19: Island | D19: - | E19: 2032-01-01T15:00:00 | F19: 1454.426359 | G19: 39.1816672 | H19: 0 | I19: 0 | K19: 2026-01-16T17:00:00 | L19: 1353.563996 | M19: 0 | P19: Island Energy (Escalated) | Q19: =SUM(F4:F8787)/1000 -> 8292.224455
A20: System | B20: Region | C20: Island | D20: - | E20: 2032-01-01T16:00:00 | F20: 1480.852087 | G20: 39.0831657 | H20: 0 | I20: 0 | K20: 2026-01-17T20:00:00 | L20: 1373.170112 | M20: 0 | P20: Escalation Factor Check | Q20: =Q19/Q18 -> 0.9859957734
A21: System | B21: Region | C21: Island | D21: - | E21: 2032-01-01T17:00:00 | F21: 1583.42469 | G21: 39.2032147 | H21: 0.0004167 | I21: 0.0421747 | K21: 2026-01-18T18:00:00 | L21: 1527.886309 | M21: 0
A22: System | B22: Region | C22: Island | D22: - | E22: 2032-01-01T18:00:00 | F22: 1529.659765 | G22: 38.7633464 | H22: 0.0008333 | I22: 0.0213681 | K22: 2026-01-19T08:00:00 | L22: 1398.740964 | M22: 0 | P22: Island Peak (Original) | Q22: 1773
A23: System | B23: Region | C23: Island | D23: - | E23: 2032-01-01T19:00:00 | F23: 1483.146568 | G23: 38.8598377 | H23: 0 | I23: 0 | K23: 2026-01-20T18:00:00 | L23: 1235.474519 | M23: 0 | P23: Island Peak (Escalated) | Q23: =MAX(F4:F8763) -> 1747.695116
A24: System | B24: Region | C24: Island | D24: - | E24: 2032-01-01T20:00:00 | F24: 1452.575801 | G24: 38.8563272 | H24: 0 | I24: 0 | K24: 2026-01-21T18:00:00 | L24: 1350.503599 | M24: 0 | P24: Escalation Factor Check | Q24: =Q23/Q22 -> 0.9857276458
A25: System | B25: Region | C25: Island | D25: - | E25: 2032-01-01T21:00:00 | F25: 1401.393885 | G25: 38.2859037 | H25: 0 | I25: 0 | K25: 2026-01-22T08:00:00 | L25: 1380.409556 | M25: 0
A26: System | B26: Region | C26: Island | D26: - | E26: 2032-01-01T22:00:00 | F26: 1318.193073 | G26: 36.595428 | H26: 0 | I26: 0 | K26: 2026-01-23T18:00:00 | L26: 1434.259207 | M26: 0
A27: System | B27: Region | C27: Island | D27: - | E27: 2032-01-01T23:00:00 | F27: 1205.373363 | G27: 27.4110437 | H27: 0 | I27: 0 | K27: 2026-01-24T10:00:00 | L27: 1447.765789 | M27: 0
A28: System | B28: Region | C28: Island | D28: - | E28: 2032-01-02 | F28: 1148.575836 | G28: 25.2094087 | H28: 0 | I28: 0 | K28: 2026-01-25T18:00:00 | L28: 1270.401838 | M28: 0
A29: System | B29: Region | C29: Island | D29: - | E29: 2032-01-02T01:00:00 | F29: 1112.47106 | G29: 24.5529799 | H29: 0 | I29: 0 | K29: 2026-01-26T18:00:00 | L29: 1591.94569 | M29: 0.0008333
A30: System | B30: Region | C30: Island | D30: - | E30: 2032-01-02T02:00:00 | F30: 1101.726862 | G30: 24.1853224 | H30: 0 | I30: 0 | K30: 2026-01-27T17:00:00 | L30: 1738.080935 | M30: 0.0083333
A31: System | B31: Region | C31: Island | D31: - | E31: 2032-01-02T03:00:00 | F31: 1100.11455 | G31: 23.9768229 | H31: 0 | I31: 0 | K31: 2026-01-28T08:00:00 | L31: 1223.856627 | M31: 0
A32: System | B32: Region | C32: Island | D32: - | E32: 2032-01-02T04:00:00 | F32: 1105.980631 | G32: 24.0294122 | H32: 0 | I32: 0 | K32: 2026-01-29T18:00:00 | L32: 1199.646524 | M32: 0
A33: System | B33: Region | C33: Island | D33: - | E33: 2032-01-02T05:00:00 | F33: 1115.010231 | G33: 24.6257902 | H33: 0 | I33: 0 | K33: 2026-01-30T12:00:00 | L33: 1365.286398 | M33: 0
A34: System | B34: Region | C34: Island | D34: - | E34: 2032-01-02T06:00:00 | F34: 1139.383083 | G34: 25.0911626 | H34: 0 | I34: 0 | K34: 2026-01-31T18:00:00 | L34: 1274.469092 | M34: 0
A35: System | B35: Region | C35: Island | D35: - | E35: 2032-01-02T07:00:00 | F35: 1185.074296 | G35: 32.2698413 | H35: 0 | I35: 0 | K35: 2026-02-01T10:00:00 | L35: 1158.948416 | M35: 0
A36: System | B36: Region | C36: Island | D36: - | E36: 2032-01-02T08:00:00 | F36: 1216.732616 | G36: 33.4522417 | H36: 0 | I36: 0 | K36: 2026-02-02T17:00:00 | L36: 1564.308201 | M36: 0.0016667
A37: System | B37: Region | C37: Island | D37: - | E37: 2032-01-02T09:00:00 | F37: 1269.636748 | G37: 35.0855747 | H37: 0 | I37: 0 | K37: 2026-02-03T18:00:00 | L37: 1420.760218 | M37: 0
A38: System | B38: Region | C38: Island | D38: - | E38: 2032-01-02T10:00:00 | F38: 1267.963379 | G38: 35.3048633 | H38: 0 | I38: 0 | K38: 2026-02-04T08:00:00 | L38: 1539.424128 | M38: 0
A39: System | B39: Region | C39: Island | D39: - | E39: 2032-01-02T11:00:00 | F39: 1280.848302 | G39: 35.599124 | H39: 0 | I39: 0 | K39: 2026-02-05T08:00:00 | L39: 1595.289436 | M39: 0.0008333
A40: System | B40: Region | C40: Island | D40: - | E40: 2032-01-02T12:00:00 | F40: 1265.768351 | G40: 34.8048204 | H40: 0 | I40: 0 | K40: 2026-02-06T12:00:00 | L40: 1274.533505 | M40: 0
A41: System | B41: Region | C41: Island | D41: - | E41: 2032-01-02T13:00:00 | F41: 1235.097959 | G41: 34.0565197 | H41: 0 | I41: 0 | K41: 2026-02-07T18:00:00 | L41: 1473.721461 | M41: 0
A42: System | B42: Region | C42: Island | D42: - | E42: 2032-01-02T14:00:00 | F42: 1192.517559 | G42: 32.2124477 | H42: 0 | I42: 0 | K42: 2026-02-08T19:00:00 | L42: 1514.538058 | M42: 0
A43: System | B43: Region | C43: Island | D43: - | E43: 2032-01-02T15:00:00 | F43: 1176.652053 | G43: 31.9327428 | H43: 0 | I43: 0 | K43: 2026-02-09T08:00:00 | L43: 1686.690187 | M43: 0.0070833
A44: System | B44: Region | C44: Island | D44: - | E44: 2032-01-02T16:00:00 | F44: 1191.624529 | G44: 32.0561977 | H44: 0 | I44: 0 | K44: 2026-02-10T08:00:00 | L44: 1639.548123 | M44: 0.0025
A45: System | B45: Region | C45: Island | D45: - | E45: 2032-01-02T17:00:00 | F45: 1333.214062 | G45: 36.8826565 | H45: 0 | I45: 0 | K45: 2026-02-11T18:00:00 | L45: 1465.162106 | M45: 0
A46: System | B46: Region | C46: Island | D46: - | E46: 2032-01-02T18:00:00 | F46: 1301.844286 | G46: 36.0080564 | H46: 0 | I46: 0 | K46: 2026-02-12T12:00:00 | L46: 1636.758525 | M46: 0.0016667
A47: System | B47: Region | C47: Island | D47: - | E47: 2032-01-02T19:00:00 | F47: 1239.54693 | G47: 34.064861 | H47: 0 | I47: 0 | K47: 2026-02-13T08:00:00 | L47: 1468.015526 | M47: 0
A48: System | B48: Region | C48: Island | D48: - | E48: 2032-01-02T20:00:00 | F48: 1227.444594 | G48: 33.5339992 | H48: 0 | I48: 0 | K48: 2026-02-14T18:00:00 | L48: 1388.274793 | M48: 0
A49: System | B49: Region | C49: Island | D49: - | E49: 2032-01-02T21:00:00 | F49: 1204.500349 | G49: 32.6889011 | H49: 0 | I49: 0 | K49: 2026-02-15T18:00:00 | L49: 1359.918028 | M49: 0
A50: System | B50: Region | C50: Island | D50: - | E50: 2032-01-02T22:00:00 | F50: 1174.39212 | G50: 31.8882477 | H50: 0 | I50: 0 | K50: 2026-02-16T18:00:00 | L50: 1383.249911 | M50: 0
A51: System | B51: Region | C51: Island | D51: - | E51: 2032-01-02T23:00:00 | F51: 1139.921309 | G51: 25.1263244 | H51: 0 | I51: 0 | K51: 2026-02-17T18:00:00 | L51: 1499.550563 | M51: 0
A52: System | B52: Region | C52: Island | D52: - | E52: 2032-01-03 | F52: 1097.388072 | G52: 24.0238296 | H52: 0 | I52: 0 | K52: 2026-02-18T08:00:00 | L52: 1465.936641 | M52: 0
A53: System | B53: Region | C53: Island | D53: - | E53: 2032-01-03T01:00:00 | F53: 1073.492923 | G53: 22.9330274 | H53: 0 | I53: 0 | K53: 2026-02-19T18:00:00 | L53: 1330.198148 | M53: 0
A54: System | B54: Region | C54: Island | D54: - | E54: 2032-01-03T02:00:00 | F54: 1076.098049 | G54: 23.2000533 | H54: 0 | I54: 0 | K54: 2026-02-20T08:00:00 | L54: 1193.57341 | M54: 0
A55: System | B55: Region | C55: Island | D55: - | E55: 2032-01-03T03:00:00 | F55: 1077.846524 | G55: 23.1504616 | H55: 0 | I55: 0 | K55: 2026-02-21T19:00:00 | L55: 1443.573462 | M55: 0
A56: System | B56: Region | C56: Island | D56: - | E56: 2032-01-03T04:00:00 | F56: 1088.004848 | G56: 23.6772593 | H56: 0 | I56: 0 | K56: 2026-02-22T10:00:00 | L56: 1371.051433 | M56: 0
A57: System | B57: Region | C57: Island | D57: - | E57: 2032-01-03T05:00:00 | F57: 1095.825477 | G57: 23.8242431 | H57: 0 | I57: 0 | K57: 2026-02-23T18:00:00 | L57: 1214.136078 | M57: 0
A58: System | B58: Region | C58: Island | D58: - | E58: 2032-01-03T06:00:00 | F58: 1115.079763 | G58: 24.5251311 | H58: 0 | I58: 0 | K58: 2026-02-24T19:00:00 | L58: 1600.894421 | M58: 0.0004167
A59: System | B59: Region | C59: Island | D59: - | E59: 2032-01-03T07:00:00 | F59: 1153.569973 | G59: 31.3335385 | H59: 0 | I59: 0 | K59: 2026-02-25T08:00:00 | L59: 1601.681008 | M59: 0.0008333
A60: System | B60: Region | C60: Island | D60: - | E60: 2032-01-03T08:00:00 | F60: 1192.638678 | G60: 32.5827879 | H60: 0 | I60: 0 | K60: 2026-02-26T08:00:00 | L60: 1333.50959 | M60: 0
A61: System | B61: Region | C61: Island | D61: - | E61: 2032-01-03T09:00:00 | F61: 1286.70073 | G61: 35.6627152 | H61: 0 | I61: 0 | K61: 2026-02-27T08:00:00 | L61: 1355.808904 | M61: 0
A62: System | B62: Region | C62: Island | D62: - | E62: 2032-01-03T10:00:00 | F62: 1298.681461 | G62: 36.2319266 | H62: 0 | I62: 0 | K62: 2026-02-28T19:00:00 | L62: 1509.675321 | M62: 0
A63: System | B63: Region | C63: Island | D63: - | E63: 2032-01-03T11:00:00 | F63: 1281.554407 | G63: 35.5276121 | H63: 0 | I63: 0 | K63: 2026-03-01T10:00:00 | L63: 1267.045793 | M63: 0
A64: System | B64: Region | C64: Island | D64: - | E64: 2032-01-03T12:00:00 | F64: 1300.711687 | G64: 35.777933 | H64: 0 | I64: 0 | K64: 2026-03-02T09:00:00 | L64: 1493.665915 | M64: 0
A65: System | B65: Region | C65: Island | D65: - | E65: 2032-01-03T13:00:00 | F65: 1302.480075 | G65: 35.8160201 | H65: 0 | I65: 0 | K65: 2026-03-03T19:00:00 | L65: 1534.184233 | M65: 0
A66: System | B66: Region | C66: Island | D66: - | E66: 2032-01-03T14:00:00 | F66: 1349.755925 | G66: 37.1605125 | H66: 0 | I66: 0 | K66: 2026-03-04T07:00:00 | L66: 1474.005156 | M66: 0
A67: System | B67: Region | C67: Island | D67: - | E67: 2032-01-03T15:00:00 | F67: 1360.51887 | G67: 38.0570236 | H67: 0 | I67: 0 | K67: 2026-03-05T20:00:00 | L67: 1424.679204 | M67: 0
A68: System | B68: Region | C68: Island | D68: - | E68: 2032-01-03T16:00:00 | F68: 1450.790436 | G68: 39.1898607 | H68: 0 | I68: 0 | K68: 2026-03-06T08:00:00 | L68: 1577.446003 | M68: 0.0016667
A69: System | B69: Region | C69: Island | D69: - | E69: 2032-01-03T17:00:00 | F69: 1707.254494 | G69: 45.8840432 | H69: 0.0083333 | I69: 0.3601319 | K69: 2026-03-07T08:00:00 | L69: =MAX(OFFSET($F$4:$F$27,(ROW()-4)*24,0)) -> 1458.44361 | M69: =VLOOKUP(L69,OFFSET($F$4:$H$27,(ROW()-4)*24,0),3,FALSE) -> 0
A70: System | B70: Region | C70: Island | D70: - | E70: 2032-01-03T18:00:00 | F70: 1680.631067 | G70: 44.6647361 | H70: 0.005 | I70: 0.301606 | K70: 2026-03-08T08:00:00 | L70: 1322.155631 | M70: 0
A71: System | B71: Region | C71: Island | D71: - | E71: 2032-01-03T19:00:00 | F71: 1688.597465 | G71: 44.85488 | H71: 0.0033333 | I71: 0.1033475 | K71: 2026-03-09T07:00:00 | L71: 1455.577418 | M71: 0
A72: System | B72: Region | C72: Island | D72: - | E72: 2032-01-03T20:00:00 | F72: 1727.721902 | G72: 46.9788787 | H72: 0.0079167 | I72: 0.4466406 | K72: 2026-03-10T07:00:00 | L72: 1616.818347 | M72: 0.0008333
A73: System | B73: Region | C73: Island | D73: - | E73: 2032-01-03T21:00:00 | F73: 1706.428925 | G73: 45.8744836 | H73: 0.0095833 | I73: 0.4436164 | K73: 2026-03-11T07:00:00 | L73: 1504.393229 | M73: 0
A74: System | B74: Region | C74: Island | D74: - | E74: 2032-01-03T22:00:00 | F74: 1663.750947 | G74: 43.5676171 | H74: 0.0025 | I74: 0.1027046 | K74: 2026-03-12T19:00:00 | L74: 1428.217961 | M74: 0
A75: System | B75: Region | C75: Island | D75: - | E75: 2032-01-03T23:00:00 | F75: 1526.513395 | G75: 37.3002965 | H75: 0 | I75: 0 | K75: 2026-03-13T08:00:00 | L75: 1599.222903 | M75: 0.0008333
A76: System | B76: Region | C76: Island | D76: - | E76: 2032-01-04 | F76: 1412.26889 | G76: 35.1054429 | H76: 0 | I76: 0 | K76: 2026-03-14T10:00:00 | L76: 1532.618858 | M76: 0
A77: System | B77: Region | C77: Island | D77: - | E77: 2032-01-04T01:00:00 | F77: 1253.251188 | G77: 32.157477 | H77: 0 | I77: 0 | K77: 2026-03-15T09:00:00 | L77: 1477.132131 | M77: 0
A78: System | B78: Region | C78: Island | D78: - | E78: 2032-01-04T02:00:00 | F78: 1230.40833 | G78: 31.3007583 | H78: 0 | I78: 0 | K78: 2026-03-16T10:00:00 | L78: 1524.975623 | M78: 0
A79: System | B79: Region | C79: Island | D79: - | E79: 2032-01-04T03:00:00 | F79: 1281.940635 | G79: 32.5203424 | H79: 0 | I79: 0 | K79: 2026-03-17T07:00:00 | L79: 1306.19821 | M79: 0
A80: System | B80: Region | C80: Island | D80: - | E80: 2032-01-04T04:00:00 | F80: 1319.637465 | G80: 33.8360597 | H80: 0 | I80: 0 | K80: 2026-03-18T16:00:00 | L80: 1293.075789 | M80: 0
A81: System | B81: Region | C81: Island | D81: - | E81: 2032-01-04T05:00:00 | F81: 1309.773907 | G81: 33.3772809 | H81: 0 | I81: 0 | K81: 2026-03-19T07:00:00 | L81: 1254.272407 | M81: 0
A82: System | B82: Region | C82: Island | D82: - | E82: 2032-01-04T06:00:00 | F82: 1384.292385 | G82: 34.6527159 | H82: 0 | I82: 0 | K82: 2026-03-20T07:00:00 | L82: 1367.117722 | M82: 0
A83: System | B83: Region | C83: Island | D83: - | E83: 2032-01-04T07:00:00 | F83: 1443.722939 | G83: 38.1438342 | H83: 0 | I83: 0 | K83: 2026-03-21T08:00:00 | L83: 1265.27107 | M83: 0
A84: System | B84: Region | C84: Island | D84: - | E84: 2032-01-04T08:00:00 | F84: 1495.531941 | G84: 38.3384279 | H84: 0.0008333 | I84: 0.0225378 | K84: 2026-03-22T10:00:00 | L84: 1361.41911 | M84: 0
A85: System | B85: Region | C85: Island | D85: - | E85: 2032-01-04T09:00:00 | F85: 1657.912118 | G85: 43.3306369 | H85: 0.0033333 | I85: 0.0950459 | K85: 2026-03-23T19:00:00 | L85: 1454.949862 | M85: 0
A86: System | B86: Region | C86: Island | D86: - | E86: 2032-01-04T10:00:00 | F86: 1678.216217 | G86: 44.4014062 | H86: 0.0020833 | I86: 0.0807921 | K86: 2026-03-24T07:00:00 | L86: 1411.519939 | M86: 0
A87: System | B87: Region | C87: Island | D87: - | E87: 2032-01-04T11:00:00 | F87: 1651.705037 | G87: 42.8931961 | H87: 0.0029167 | I87: 0.1166626 | K87: 2026-03-25T07:00:00 | L87: 1382.628632 | M87: 0
A88: System | B88: Region | C88: Island | D88: - | E88: 2032-01-04T12:00:00 | F88: 1603.090939 | G88: 40.1456734 | H88: 0 | I88: 0 | K88: 2026-03-26T07:00:00 | L88: 1351.28773 | M88: 0
A89: System | B89: Region | C89: Island | D89: - | E89: 2032-01-04T13:00:00 | F89: 1568.347858 | G89: 38.9881961 | H89: 0 | I89: 0 | K89: 2026-03-27T07:00:00 | L89: 1164.121702 | M89: 0
A90: System | B90: Region | C90: Island | D90: - | E90: 2032-01-04T14:00:00 | F90: 1560.202895 | G90: 38.6160933 | H90: 0.0004167 | I90: 0.0188141 | K90: 2026-03-28T19:00:00 | L90: 1145.414013 | M90: 0
A91: System | B91: Region | C91: Island | D91: - | E91: 2032-01-04T15:00:00 | F91: 1588.682469 | G91: 39.4226625 | H91: 0 | I91: 0 | K91: 2026-03-29T20:00:00 | L91: 1196.467908 | M91: 0
A92: System | B92: Region | C92: Island | D92: - | E92: 2032-01-04T16:00:00 | F92: 1650.656428 | G92: 42.4485009 | H92: 0.00125 | I92: 0.0419387 | K92: 2026-03-30T07:00:00 | L92: 1321.303992 | M92: 0
A93: System | B93: Region | C93: Island | D93: - | E93: 2032-01-04T17:00:00 | F93: 1733.449115 | G93: 47.0578462 | H93: 0.0095833 | I93: 0.5794012 | K93: 2026-03-31T07:00:00 | L93: 1288.829121 | M93: 0
A94: System | B94: Region | C94: Island | D94: - | E94: 2032-01-04T18:00:00 | F94: 1703.763457 | G94: 45.5545905 | H94: 0.0070833 | I94: 0.2453101 | K94: 2026-04-01T07:00:00 | L94: 1210.995547 | M94: 0
A95: System | B95: Region | C95: Island | D95: - | E95: 2032-01-04T19:00:00 | F95: 1675.112195 | G95: 44.0287057 | H95: 0.0029167 | I95: 0.1596158 | K95: 2026-04-02T20:00:00 | L95: 1275.003666 | M95: 0
A96: System | B96: Region | C96: Island | D96: - | E96: 2032-01-04T20:00:00 | F96: 1671.537579 | G96: 43.852559 | H96: 0.0025 | I96: 0.113248 | K96: 2026-04-03T08:00:00 | L96: 1217.241087 | M96: 0
A97: System | B97: Region | C97: Island | D97: - | E97: 2032-01-04T21:00:00 | F97: 1619.390662 | G97: 41.0062029 | H97: 0.0004167 | I97: 0.010779 | K97: 2026-04-04T09:00:00 | L97: 1134.902247 | M97: 0
A98: System | B98: Region | C98: Island | D98: - | E98: 2032-01-04T22:00:00 | F98: 1474.587196 | G98: 38.4384408 | H98: 0 | I98: 0 | K98: 2026-04-05T20:00:00 | L98: 1310.846309 | M98: 0
A99: System | B99: Region | C99: Island | D99: - | E99: 2032-01-04T23:00:00 | F99: 1300.122202 | G99: 33.3956607 | H99: 0 | I99: 0 | K99: 2026-04-06T20:00:00 | L99: 1356.850474 | M99: 0
A100: System | B100: Region | C100: Island | D100: - | E100: 2032-01-05 | F100: 1188.30609 | G100: 26.3249342 | H100: 0 | I100: 0 | K100: 2026-04-07T07:00:00 | L100: 1405.385386 | M100: 0
A101: System | B101: Region | C101: Island | D101: - | E101: 2032-01-05T01:00:00 | F101: 1154.597133 | G101: 25.4750084 | H101: 0 | I101: 0 | K101: 2026-04-08T07:00:00 | L101: 1360.025005 | M101: 0
A102: System | B102: Region | C102: Island | D102: - | E102: 2032-01-05T02:00:00 | F102: 1138.661221 | G102: 24.9335978 | H102: 0 | I102: 0 | K102: 2026-04-09T07:00:00 | L102: 1414.428579 | M102: 0
A103: System | B103: Region | C103: Island | D103: - | E103: 2032-01-05T03:00:00 | F103: 1128.519186 | G103: 24.9994779 | H103: 0 | I103: 0 | K103: 2026-04-10T07:00:00 | L103: 1373.725647 | M103: 0
A104: System | B104: Region | C104: Island | D104: - | E104: 2032-01-05T04:00:00 | F104: 1125.356006 | G104: 24.6170543 | H104: 0 | I104: 0 | K104: 2026-04-11T09:00:00 | L104: 1290.557202 | M104: 0
A105: System | B105: Region | C105: Island | D105: - | E105: 2032-01-05T05:00:00 | F105: 1125.76878 | G105: 24.8305203 | H105: 0 | I105: 0 | K105: 2026-04-12T09:00:00 | L105: 1121.84799 | M105: 0
A106: System | B106: Region | C106: Island | D106: - | E106: 2032-01-05T06:00:00 | F106: 1145.135793 | G106: 25.4306776 | H106: 0 | I106: 0 | K106: 2026-04-13T07:00:00 | L106: 1218.195345 | M106: 0
A107: System | B107: Region | C107: Island | D107: - | E107: 2032-01-05T07:00:00 | F107: 1215.514717 | G107: 33.2150849 | H107: 0 | I107: 0 | K107: 2026-04-14T07:00:00 | L107: 1120.874078 | M107: 0
A108: System | B108: Region | C108: Island | D108: - | E108: 2032-01-05T08:00:00 | F108: 1268.11747 | G108: 34.6692892 | H108: 0 | I108: 0 | K108: 2026-04-15T07:00:00 | L108: 1039.86551 | M108: 0
A109: System | B109: Region | C109: Island | D109: - | E109: 2032-01-05T09:00:00 | F109: 1247.248237 | G109: 34.4250194 | H109: 0 | I109: 0 | K109: 2026-04-16T20:00:00 | L109: 1392.408492 | M109: 0
A110: System | B110: Region | C110: Island | D110: - | E110: 2032-01-05T10:00:00 | F110: 1243.420857 | G110: 34.21686 | H110: 0 | I110: 0 | K110: 2026-04-17T07:00:00 | L110: 1403.658224 | M110: 0
A111: System | B111: Region | C111: Island | D111: - | E111: 2032-01-05T11:00:00 | F111: 1229.569674 | G111: 33.3873793 | H111: 0 | I111: 0 | K111: 2026-04-18T20:00:00 | L111: 1070.941191 | M111: 0
A112: System | B112: Region | C112: Island | D112: - | E112: 2032-01-05T12:00:00 | F112: 1210.818794 | G112: 33.5129136 | H112: 0 | I112: 0 | K112: 2026-04-19T09:00:00 | L112: 1207.270439 | M112: 0
A113: System | B113: Region | C113: Island | D113: - | E113: 2032-01-05T13:00:00 | F113: 1185.057259 | G113: 32.3607355 | H113: 0 | I113: 0 | K113: 2026-04-20T07:00:00 | L113: 1297.34792 | M113: 0
A114: System | B114: Region | C114: Island | D114: - | E114: 2032-01-05T14:00:00 | F114: 1165.128552 | G114: 31.1666357 | H114: 0 | I114: 0 | K114: 2026-04-21T07:00:00 | L114: 1281.32732 | M114: 0
A115: System | B115: Region | C115: Island | D115: - | E115: 2032-01-05T15:00:00 | F115: 1163.669166 | G115: 31.7240375 | H115: 0 | I115: 0 | K115: 2026-04-22T07:00:00 | L115: 1260.952235 | M115: 0
A116: System | B116: Region | C116: Island | D116: - | E116: 2032-01-05T16:00:00 | F116: 1187.653676 | G116: 32.2079316 | H116: 0 | I116: 0 | K116: 2026-04-23T07:00:00 | L116: 1132.445691 | M116: 0
A117: System | B117: Region | C117: Island | D117: - | E117: 2032-01-05T17:00:00 | F117: 1295.900402 | G117: 35.807214 | H117: 0 | I117: 0 | K117: 2026-04-24T07:00:00 | L117: 1103.040285 | M117: 0
A118: System | B118: Region | C118: Island | D118: - | E118: 2032-01-05T18:00:00 | F118: 1285.671481 | G118: 35.33878 | H118: 0 | I118: 0 | K118: 2026-04-25T11:00:00 | L118: 1144.094084 | M118: 0
A119: System | B119: Region | C119: Island | D119: - | E119: 2032-01-05T19:00:00 | F119: 1277.441926 | G119: 35.1198934 | H119: 0 | I119: 0 | K119: 2026-04-26T11:00:00 | L119: 1112.665248 | M119: 0
A120: System | B120: Region | C120: Island | D120: - | E120: 2032-01-05T20:00:00 | F120: 1266.355471 | G120: 34.8957694 | H120: 0 | I120: 0 | K120: 2026-04-27T20:00:00 | L120: 1064.75435 | M120: 0
A121: System | B121: Region | C121: Island | D121: - | E121: 2032-01-05T21:00:00 | F121: 1242.922508 | G121: 34.152299 | H121: 0 | I121: 0 | K121: 2026-04-28T07:00:00 | L121: 1152.862146 | M121: 0
A122: System | B122: Region | C122: Island | D122: - | E122: 2032-01-05T22:00:00 | F122: 1199.87767 | G122: 33.0646636 | H122: 0 | I122: 0 | K122: 2026-04-29T07:00:00 | L122: 1115.531714 | M122: 0
A123: System | B123: Region | C123: Island | D123: - | E123: 2032-01-05T23:00:00 | F123: 1145.063042 | G123: 26.0725234 | H123: 0 | I123: 0 | K123: 2026-04-30T08:00:00 | L123: 1195.174876 | M123: 0
A124: System | B124: Region | C124: Island | D124: - | E124: 2032-01-06 | F124: 1098.184433 | G124: 24.1190973 | H124: 0 | I124: 0 | K124: 2026-05-01T07:00:00 | L124: 1239.800823 | M124: 0
A125: System | B125: Region | C125: Island | D125: - | E125: 2032-01-06T01:00:00 | F125: 1075.997645 | G125: 22.9805157 | H125: 0 | I125: 0 | K125: 2026-05-02T09:00:00 | L125: 1132.645583 | M125: 0
A126: System | B126: Region | C126: Island | D126: - | E126: 2032-01-06T02:00:00 | F126: 1085.060899 | G126: 23.4460262 | H126: 0 | I126: 0 | K126: 2026-05-03T09:00:00 | L126: 1082.868806 | M126: 0
A127: System | B127: Region | C127: Island | D127: - | E127: 2032-01-06T03:00:00 | F127: 1093.70076 | G127: 23.9243482 | H127: 0 | I127: 0 | K127: 2026-05-04T07:00:00 | L127: 1071.850844 | M127: 0
A128: System | B128: Region | C128: Island | D128: - | E128: 2032-01-06T04:00:00 | F128: 1105.978214 | G128: 24.4478203 | H128: 0 | I128: 0 | K128: 2026-05-05T07:00:00 | L128: 1032.958958 | M128: 0
A129: System | B129: Region | C129: Island | D129: - | E129: 2032-01-06T05:00:00 | F129: 1138.414382 | G129: 25.1853067 | H129: 0 | I129: 0 | K129: 2026-05-06T07:00:00 | L129: 1017.161676 | M129: 0
A130: System | B130: Region | C130: Island | D130: - | E130: 2032-01-06T06:00:00 | F130: 1183.474357 | G130: 27.1765796 | H130: 0 | I130: 0 | K130: 2026-05-07T07:00:00 | L130: 1069.199134 | M130: 0
A131: System | B131: Region | C131: Island | D131: - | E131: 2032-01-06T07:00:00 | F131: 1342.816042 | G131: 37.164275 | H131: 0 | I131: 0 | K131: 2026-05-08T09:00:00 | L131: 1236.091712 | M131: 0
A132: System | B132: Region | C132: Island | D132: - | E132: 2032-01-06T08:00:00 | F132: 1511.04558 | G132: 38.665724 | H132: 0 | I132: 0 | K132: 2026-05-09T09:00:00 | L132: 1159.1143 | M132: 0
A133: System | B133: Region | C133: Island | D133: - | E133: 2032-01-06T09:00:00 | F133: 1548.079672 | G133: 38.2971707 | H133: 0 | I133: 0 | K133: 2026-05-10T09:00:00 | L133: =MAX(OFFSET($F$4:$F$27,(ROW()-4)*24,0)) -> 1183.780461 | M133: =VLOOKUP(L133,OFFSET($F$4:$H$27,(ROW()-4)*24,0),3,FALSE) -> 0
A134: System | B134: Region | C134: Island | D134: - | E134: 2032-01-06T10:00:00 | F134: 1535.408474 | G134: 38.290422 | H134: 0.0008333 | I134: 0.0060094 | K134: 2026-05-11T08:00:00 | L134: 1076.825369 | M134: 0
A135: System | B135: Region | C135: Island | D135: - | E135: 2032-01-06T11:00:00 | F135: 1525.025703 | G135: 38.4964156 | H135: 0 | I135: 0 | K135: 2026-05-12T07:00:00 | L135: 1161.029159 | M135: 0
A136: System | B136: Region | C136: Island | D136: - | E136: 2032-01-06T12:00:00 | F136: 1505.010442 | G136: 38.2649778 | H136: 0.0004167 | I136: 0.0114377 | K136: 2026-05-13T20:00:00 | L136: 1115.872744 | M136: 0
A137: System | B137: Region | C137: Island | D137: - | E137: 2032-01-06T13:00:00 | F137: 1471.544744 | G137: 38.5811726 | H137: 0 | I137: 0 | K137: 2026-05-14T07:00:00 | L137: 1119.886278 | M137: 0
A138: System | B138: Region | C138: Island | D138: - | E138: 2032-01-06T14:00:00 | F138: 1478.108647 | G138: 38.3462313 | H138: 0 | I138: 0 | K138: 2026-05-15T07:00:00 | L138: 1028.497083 | M138: 0
A139: System | B139: Region | C139: Island | D139: - | E139: 2032-01-06T15:00:00 | F139: 1506.864275 | G139: 38.5059739 | H139: 0 | I139: 0 | K139: 2026-05-16T09:00:00 | L139: 837.5751915 | M139: 0
A140: System | B140: Region | C140: Island | D140: - | E140: 2032-01-06T16:00:00 | F140: 1612.813144 | G140: 40.9031299 | H140: 0.0008333 | I140: 0.1078519 | K140: 2026-05-17T09:00:00 | L140: 913.9160791 | M140: 0
A141: System | B141: Region | C141: Island | D141: - | E141: 2032-01-06T17:00:00 | F141: 1730.846622 | G141: 46.9820388 | H141: 0.0091667 | I141: 0.5154708 | K141: 2026-05-18T11:00:00 | L141: 1014.845326 | M141: 0
A142: System | B142: Region | C142: Island | D142: - | E142: 2032-01-06T18:00:00 | F142: 1720.373196 | G142: 46.4650579 | H142: 0.0091667 | I142: 0.3656938 | K142: 2026-05-19T07:00:00 | L142: 979.5565431 | M142: 0
A143: System | B143: Region | C143: Island | D143: - | E143: 2032-01-06T19:00:00 | F143: 1693.828256 | G143: 45.0445232 | H143: 0.0041667 | I143: 0.2349407 | K143: 2026-05-20T20:00:00 | L143: 850.713072 | M143: 0
A144: System | B144: Region | C144: Island | D144: - | E144: 2032-01-06T20:00:00 | F144: 1672.089544 | G144: 43.8473661 | H144: 0.005 | I144: 0.2535822 | K144: 2026-05-21T07:00:00 | L144: 906.0837516 | M144: 0
A145: System | B145: Region | C145: Island | D145: - | E145: 2032-01-06T21:00:00 | F145: 1616.510006 | G145: 40.8719606 | H145: 0.0008333 | I145: 0.0097145 | K145: 2026-05-22T07:00:00 | L145: 915.85223 | M145: 0
A146: System | B146: Region | C146: Island | D146: - | E146: 2032-01-06T22:00:00 | F146: 1499.730945 | G146: 38.4676352 | H146: 0 | I146: 0 | K146: 2026-05-23T11:00:00 | L146: 932.4826103 | M146: 0
A147: System | B147: Region | C147: Island | D147: - | E147: 2032-01-06T23:00:00 | F147: 1317.641751 | G147: 31.2560116 | H147: 0 | I147: 0 | K147: 2026-05-24T09:00:00 | L147: 980.7045761 | M147: 0
A148: System | B148: Region | C148: Island | D148: - | E148: 2032-01-07 | F148: 1191.259174 | G148: 27.3565005 | H148: 0 | I148: 0 | K148: 2026-05-25T07:00:00 | L148: 917.090253 | M148: 0
A149: System | B149: Region | C149: Island | D149: - | E149: 2032-01-07T01:00:00 | F149: 1176.43356 | G149: 27.4789031 | H149: 0 | I149: 0 | K149: 2026-05-26T07:00:00 | L149: 824.4309869 | M149: 0
A150: System | B150: Region | C150: Island | D150: - | E150: 2032-01-07T02:00:00 | F150: 1165.936039 | G150: 27.0091184 | H150: 0 | I150: 0 | K150: 2026-05-27T09:00:00 | L150: 839.6880855 | M150: 0
A151: System | B151: Region | C151: Island | D151: - | E151: 2032-01-07T03:00:00 | F151: 1165.907093 | G151: 26.9932459 | H151: 0 | I151: 0 | K151: 2026-05-28T09:00:00 | L151: 852.0827868 | M151: 0
A152: System | B152: Region | C152: Island | D152: - | E152: 2032-01-07T04:00:00 | F152: 1173.593611 | G152: 26.9249034 | H152: 0 | I152: 0 | K152: 2026-05-29T11:00:00 | L152: 910.4634677 | M152: 0
A153: System | B153: Region | C153: Island | D153: - | E153: 2032-01-07T05:00:00 | F153: 1185.900744 | G153: 27.1269424 | H153: 0 | I153: 0 | K153: 2026-05-30T09:00:00 | L153: 857.3021039 | M153: 0
A154: System | B154: Region | C154: Island | D154: - | E154: 2032-01-07T06:00:00 | F154: 1232.80643 | G154: 28.6548311 | H154: 0 | I154: 0 | K154: 2026-05-31T11:00:00 | L154: 799.4486882 | M154: 0
A155: System | B155: Region | C155: Island | D155: - | E155: 2032-01-07T07:00:00 | F155: 1433.452962 | G155: 38.9479955 | H155: 0 | I155: 0 | K155: 2026-06-01T07:00:00 | L155: 938.1442211 | M155: 0
A156: System | B156: Region | C156: Island | D156: - | E156: 2032-01-07T08:00:00 | F156: 1554.47977 | G156: 38.4451551 | H156: 0 | I156: 0 | K156: 2026-06-02T07:00:00 | L156: 1062.711709 | M156: 0
A157: System | B157: Region | C157: Island | D157: - | E157: 2032-01-07T09:00:00 | F157: 1572.134623 | G157: 38.9143988 | H157: 0.0004167 | I157: 0.0165051 | K157: 2026-06-03T07:00:00 | L157: 993.6768595 | M157: 0
A158: System | B158: Region | C158: Island | D158: - | E158: 2032-01-07T10:00:00 | F158: 1548.663567 | G158: 38.6621893 | H158: 0 | I158: 0 | K158: 2026-06-04T07:00:00 | L158: 1012.024012 | M158: 0
A159: System | B159: Region | C159: Island | D159: - | E159: 2032-01-07T11:00:00 | F159: 1513.987658 | G159: 38.4790381 | H159: 0 | I159: 0 | K159: 2026-06-05T07:00:00 | L159: 1010.753787 | M159: 0
A160: System | B160: Region | C160: Island | D160: - | E160: 2032-01-07T12:00:00 | F160: 1502.864477 | G160: 38.7502071 | H160: 0 | I160: 0 | K160: 2026-06-06T10:00:00 | L160: 932.2603494 | M160: 0
A161: System | B161: Region | C161: Island | D161: - | E161: 2032-01-07T13:00:00 | F161: 1453.125082 | G161: 38.8746812 | H161: 0 | I161: 0 | K161: 2026-06-07T11:00:00 | L161: 969.2438086 | M161: 0
A162: System | B162: Region | C162: Island | D162: - | E162: 2032-01-07T14:00:00 | F162: 1419.799207 | G162: 38.9280321 | H162: 0 | I162: 0 | K162: 2026-06-08T07:00:00 | L162: 1053.195864 | M162: 0
A163: System | B163: Region | C163: Island | D163: - | E163: 2032-01-07T15:00:00 | F163: 1429.256681 | G163: 39.0291514 | H163: 0 | I163: 0 | K163: 2026-06-09T07:00:00 | L163: 951.5754048 | M163: 0
A164: System | B164: Region | C164: Island | D164: - | E164: 2032-01-07T16:00:00 | F164: 1498.679505 | G164: 38.5255812 | H164: 0 | I164: 0 | K164: 2026-06-10T07:00:00 | L164: 842.6093891 | M164: 0
A165: System | B165: Region | C165: Island | D165: - | E165: 2032-01-07T17:00:00 | F165: 1648.347337 | G165: 42.4207091 | H165: 0.0025 | I165: 0.20288 | K165: 2026-06-11T07:00:00 | L165: 817.9256427 | M165: 0
A166: System | B166: Region | C166: Island | D166: - | E166: 2032-01-07T18:00:00 | F166: 1621.710936 | G166: 41.2202749 | H166: 0.00125 | I166: 0.0466756 | K166: 2026-06-12T11:00:00 | L166: 822.4389173 | M166: 0
A167: System | B167: Region | C167: Island | D167: - | E167: 2032-01-07T19:00:00 | F167: 1579.647558 | G167: 39.086759 | H167: 0.0004167 | I167: 0.0162896 | K167: 2026-06-13T16:00:00 | L167: 901.9355553 | M167: 0
A168: System | B168: Region | C168: Island | D168: - | E168: 2032-01-07T20:00:00 | F168: 1545.228022 | G168: 38.3956796 | H168: 0 | I168: 0 | K168: 2026-06-14T10:00:00 | L168: 1047.486131 | M168: 0
A169: System | B169: Region | C169: Island | D169: - | E169: 2032-01-07T21:00:00 | F169: 1484.471512 | G169: 38.6207497 | H169: 0 | I169: 0 | K169: 2026-06-15T08:00:00 | L169: 1048.994856 | M169: 0
A170: System | B170: Region | C170: Island | D170: - | E170: 2032-01-07T22:00:00 | F170: 1392.79913 | G170: 38.005449 | H170: 0 | I170: 0 | K170: 2026-06-16T07:00:00 | L170: 911.8059516 | M170: 0
A171: System | B171: Region | C171: Island | D171: - | E171: 2032-01-07T23:00:00 | F171: 1250.72741 | G171: 29.6501918 | H171: 0 | I171: 0 | K171: 2026-06-17T11:00:00 | L171: 996.603835 | M171: 0
A172: System | B172: Region | C172: Island | D172: - | E172: 2032-01-08 | F172: 1183.600362 | G172: 28.0972688 | H172: 0 | I172: 0 | K172: 2026-06-18T07:00:00 | L172: 879.19474 | M172: 0
A173: System | B173: Region | C173: Island | D173: - | E173: 2032-01-08T01:00:00 | F173: 1154.83381 | G173: 26.337356 | H173: 0 | I173: 0 | K173: 2026-06-19T08:00:00 | L173: 749.348519 | M173: 0
A174: System | B174: Region | C174: Island | D174: - | E174: 2032-01-08T02:00:00 | F174: 1153.291057 | G174: 26.0838983 | H174: 0 | I174: 0 | K174: 2026-06-20T11:00:00 | L174: 746.2986206 | M174: 0
A175: System | B175: Region | C175: Island | D175: - | E175: 2032-01-08T03:00:00 | F175: 1153.4186 | G175: 26.2184417 | H175: 0 | I175: 0 | K175: 2026-06-21T10:00:00 | L175: 735.853161 | M175: 0
A176: System | B176: Region | C176: Island | D176: - | E176: 2032-01-08T04:00:00 | F176: 1165.50324 | G176: 27.0476108 | H176: 0 | I176: 0 | K176: 2026-06-22T11:00:00 | L176: 780.9127019 | M176: 0
A177: System | B177: Region | C177: Island | D177: - | E177: 2032-01-08T05:00:00 | F177: 1179.889399 | G177: 27.4244201 | H177: 0 | I177: 0 | K177: 2026-06-23T21:00:00 | L177: 849.3725484 | M177: 0
A178: System | B178: Region | C178: Island | D178: - | E178: 2032-01-08T06:00:00 | F178: 1226.074874 | G178: 28.3659593 | H178: 0 | I178: 0 | K178: 2026-06-24T09:00:00 | L178: 978.0160666 | M178: 0
A179: System | B179: Region | C179: Island | D179: - | E179: 2032-01-08T07:00:00 | F179: 1395.475725 | G179: 38.6061078 | H179: 0 | I179: 0 | K179: 2026-06-25T10:00:00 | L179: 1007.190942 | M179: 0
A180: System | B180: Region | C180: Island | D180: - | E180: 2032-01-08T08:00:00 | F180: 1537.130377 | G180: 38.4483029 | H180: 0.0008333 | I180: 0.0322044 | K180: 2026-06-26T09:00:00 | L180: 993.4115444 | M180: 0
A181: System | B181: Region | C181: Island | D181: - | E181: 2032-01-08T09:00:00 | F181: 1574.680756 | G181: 38.8531164 | H181: 0.0004167 | I181: 0.0019199 | K181: 2026-06-27T10:00:00 | L181: 918.5112243 | M181: 0
A182: System | B182: Region | C182: Island | D182: - | E182: 2032-01-08T10:00:00 | F182: 1578.494482 | G182: 39.3760883 | H182: 0.0004167 | I182: 0.0183075 | K182: 2026-06-28T11:00:00 | L182: 760.376136 | M182: 0
A183: System | B183: Region | C183: Island | D183: - | E183: 2032-01-08T11:00:00 | F183: 1600.07856 | G183: 39.8802305 | H183: 0.0004167 | I183: 0.0006524 | K183: 2026-06-29T11:00:00 | L183: 829.9114739 | M183: 0
A184: System | B184: Region | C184: Island | D184: - | E184: 2032-01-08T12:00:00 | F184: 1594.987155 | G184: 39.8235495 | H184: 0 | I184: 0 | K184: 2026-06-30T09:00:00 | L184: 812.1796731 | M184: 0
A185: System | B185: Region | C185: Island | D185: - | E185: 2032-01-08T13:00:00 | F185: 1540.791029 | G185: 38.5543151 | H185: 0.0004167 | I185: 0.0156159 | K185: 2026-07-01T11:00:00 | L185: 721.1951811 | M185: 0
A186: System | B186: Region | C186: Island | D186: - | E186: 2032-01-08T14:00:00 | F186: 1496.408647 | G186: 38.1179665 | H186: 0 | I186: 0 | K186: 2026-07-02T16:00:00 | L186: 745.6707948 | M186: 0
A187: System | B187: Region | C187: Island | D187: - | E187: 2032-01-08T15:00:00 | F187: 1506.095367 | G187: 38.0827418 | H187: 0 | I187: 0 | K187: 2026-07-03T11:00:00 | L187: 763.5423204 | M187: 0
A188: System | B188: Region | C188: Island | D188: - | E188: 2032-01-08T16:00:00 | F188: 1541.729559 | G188: 38.4210901 | H188: 0 | I188: 0 | K188: 2026-07-04T11:00:00 | L188: 676.1058109 | M188: 0
A189: System | B189: Region | C189: Island | D189: - | E189: 2032-01-08T17:00:00 | F189: 1698.508124 | G189: 45.4101539 | H189: 0.0066667 | I189: 0.2634613 | K189: 2026-07-05T11:00:00 | L189: 709.8069654 | M189: 0
A190: System | B190: Region | C190: Island | D190: - | E190: 2032-01-08T18:00:00 | F190: 1683.882587 | G190: 44.4088777 | H190: 0.0054167 | I190: 0.2151797 | K190: 2026-07-06T11:00:00 | L190: 858.5845416 | M190: 0
A191: System | B191: Region | C191: Island | D191: - | E191: 2032-01-08T19:00:00 | F191: 1641.450689 | G191: 42.1403521 | H191: 0.0016667 | I191: 0.022624 | K191: 2026-07-07T10:00:00 | L191: 834.4841273 | M191: 0
A192: System | B192: Region | C192: Island | D192: - | E192: 2032-01-08T20:00:00 | F192: 1615.651532 | G192: 40.9274418 | H192: 0.0008333 | I192: 0.0104307 | K192: 2026-07-08T11:00:00 | L192: 769.0837476 | M192: 0
A193: System | B193: Region | C193: Island | D193: - | E193: 2032-01-08T21:00:00 | F193: 1562.064097 | G193: 38.6798699 | H193: 0 | I193: 0 | K193: 2026-07-09T11:00:00 | L193: 698.7965726 | M193: 0
A194: System | B194: Region | C194: Island | D194: - | E194: 2032-01-08T22:00:00 | F194: 1469.72167 | G194: 38.2551267 | H194: 0 | I194: 0 | K194: 2026-07-10T10:00:00 | L194: 726.981984 | M194: 0
A195: System | B195: Region | C195: Island | D195: - | E195: 2032-01-08T23:00:00 | F195: 1312.220305 | G195: 31.1576711 | H195: 0 | I195: 0 | K195: 2026-07-11T11:00:00 | L195: 769.2676759 | M195: 0
A196: System | B196: Region | C196: Island | D196: - | E196: 2032-01-09 | F196: 1232.789261 | G196: 29.7674873 | H196: 0 | I196: 0 | K196: 2026-07-12T09:00:00 | L196: 740.4010446 | M196: 0
A197: System | B197: Region | C197: Island | D197: - | E197: 2032-01-09T01:00:00 | F197: 1213.416516 | G197: 28.7238489 | H197: 0 | I197: 0 | K197: 2026-07-13T11:00:00 | L197: =MAX(OFFSET($F$4:$F$27,(ROW()-4)*24,0)) -> 828.0558083 | M197: =VLOOKUP(L197,OFFSET($F$4:$H$27,(ROW()-4)*24,0),3,FALSE) -> 0
A198: System | B198: Region | C198: Island | D198: - | E198: 2032-01-09T02:00:00 | F198: 1215.698159 | G198: 28.5752716 | H198: 0 | I198: 0 | K198: 2026-07-14T11:00:00 | L198: 731.4789622 | M198: 0
A199: System | B199: Region | C199: Island | D199: - | E199: 2032-01-09T03:00:00 | F199: 1225.887098 | G199: 29.1230557 | H199: 0 | I199: 0 | K199: 2026-07-15T12:00:00 | L199: 668.9987916 | M199: 0
A200: System | B200: Region | C200: Island | D200: - | E200: 2032-01-09T04:00:00 | F200: 1245.141122 | G200: 29.4527803 | H200: 0 | I200: 0 | K200: 2026-07-16T11:00:00 | L200: 760.1318014 | M200: 0
A201: System | B201: Region | C201: Island | D201: - | E201: 2032-01-09T05:00:00 | F201: 1281.901826 | G201: 31.1733294 | H201: 0 | I201: 0 | K201: 2026-07-17T10:00:00 | L201: 733.7208995 | M201: 0
A202: System | B202: Region | C202: Island | D202: - | E202: 2032-01-09T06:00:00 | F202: 1395.081712 | G202: 33.5326409 | H202: 0 | I202: 0 | K202: 2026-07-18T11:00:00 | L202: 732.613815 | M202: 0
... 8585 more rows

Sheet Run 2
A3: Parent Name | B3: Collection | C3: Child Name | D3: Category | E3: Datetime | F3: Load (MW) | G3: Transmission Losses (MW) | H3: Unserved Energy Hours (h) | I3: Unserved Energy (MW) | K3: Daily Peak | L3: Daily Peak Load | M3: Average Unserved Energy Hours
A4: System | B4: Region | C4: Island | D4: - | E4: 2032-01-01 | F4: 1273.294353 | G4: 29.6871109 | H4: 0 | I4: 0 | K4: 2026-01-01T17:00:00 | L4: =MAX(OFFSET($F$4:$F$27,(ROW()-4)*24,0)) -> 1586.689963 | M4: =VLOOKUP(L4,OFFSET($F$4:$H$27,(ROW()-4)*24,0),3,FALSE) -> 0.0004167 | P4: LOLE | Q4: =SUM(M4:M368) -> 0.0954171
A5: System | B5: Region | C5: Island | D5: - | E5: 2032-01-01T01:00:00 | F5: 1227.605747 | G5: 28.7065872 | H5: 0 | I5: 0 | K5: 2026-01-02T17:00:00 | L5: =MAX(OFFSET($F$4:$F$27,(ROW()-4)*24,0)) -> 1334.969459 | M5: =VLOOKUP(L5,OFFSET($F$4:$H$27,(ROW()-4)*24,0),3,FALSE) -> 0 | P5: LOLH | Q5: =SUM(H4:H8763) -> 0.315002
A6: System | B6: Region | C6: Island | D6: - | E6: 2032-01-01T02:00:00 | F6: 1205.060417 | G6: 28.1763539 | H6: 0 | I6: 0 | K6: 2026-01-03T20:00:00 | L6: 1731.25098 | M6: 0.0054167 | P6: EUE | Q6: =SUM(I4:I8763) -> 14.5266232
A7: System | B7: Region | C7: Island | D7: - | E7: 2032-01-01T03:00:00 | F7: 1193.554601 | G7: 27.7098163 | H7: 0 | I7: 0 | K7: 2026-01-04T17:00:00 | L7: 1736.395678 | M7: 0.0116667 | P7: Peak | Q7: =MAX(F4:F8763) -> 1751.33418
A8: System | B8: Region | C8: Island | D8: - | E8: 2032-01-01T04:00:00 | F8: 1192.817087 | G8: 28.1379259 | H8: 0 | I8: 0 | K8: 2026-01-05T17:00:00 | L8: 1298.053358 | M8: 0 | P8: Loss @ Peak | Q8: =VLOOKUP(Q7,F4:G8763,2,FALSE) -> 47.9307381
A9: System | B9: Region | C9: Island | D9: - | E9: 2032-01-01T05:00:00 | F9: 1204.750789 | G9: 27.5374125 | H9: 0 | I9: 0 | K9: 2026-01-06T17:00:00 | L9: 1734.237263 | M9: 0.00875 | P9: Peak with Losses | Q9: =Q7+Q8 -> 1799.264918
A10: System | B10: Region | C10: Island | D10: - | E10: 2032-01-01T06:00:00 | F10: 1233.953833 | G10: 28.646238 | H10: 0 | I10: 0 | K10: 2026-01-07T17:00:00 | L10: 1652.574008 | M10: 0.00125 | P10: Peak Losses | Q10: =MAX(G4:G8763) -> 47.9307381
A11: System | B11: Region | C11: Island | D11: - | E11: 2032-01-01T07:00:00 | F11: 1295.803735 | G11: 35.9959428 | H11: 0 | I11: 0 | K11: 2026-01-08T17:00:00 | L11: 1701.790681 | M11: 0.0079167 | P11: Firm Capacity | Q11: 2452.74
A12: System | B12: Region | C12: Island | D12: - | E12: 2032-01-01T08:00:00 | F12: 1358.566763 | G12: 37.6373172 | H12: 0 | I12: 0 | K12: 2026-01-09T08:00:00 | L12: 1735.257672 | M12: 0.0116667 | P12: Reserve Margin | Q12: =Q11-Q7 -> 701.4058201
A13: System | B13: Region | C13: Island | D13: - | E13: 2032-01-01T09:00:00 | F13: 1379.293852 | G13: 38.1868578 | H13: 0 | I13: 0 | K13: 2026-01-10T17:00:00 | L13: 1448.583808 | M13: 0 | P13: Reserve Margin % | Q13: =Q12/Q7 -> 0.4004979907
A14: System | B14: Region | C14: Island | D14: - | E14: 2032-01-01T10:00:00 | F14: 1400.26067 | G14: 38.2297744 | H14: 0 | I14: 0 | K14: 2026-01-11T20:00:00 | L14: 1634.844567 | M14: 0.00125 | P14: Reserve Magin w/Loss | Q14: =Q11-Q9 -> 653.475082
A15: System | B15: Region | C15: Island | D15: - | E15: 2032-01-01T11:00:00 | F15: 1428.798117 | G15: 39.0040762 | H15: 0 | I15: 0 | K15: 2026-01-12T08:00:00 | L15: 1689.931263 | M15: 0.005 | P15: Reserve Margin % w/ Loss | Q15: =Q14/Q9 -> 0.3631900314
A16: System | B16: Region | C16: Island | D16: - | E16: 2032-01-01T12:00:00 | F16: 1443.405564 | G16: 39.1257184 | H16: 0 | I16: 0 | K16: 2026-01-13T18:00:00 | L16: 1666.000625 | M16: 0.0025
A17: System | B17: Region | C17: Island | D17: - | E17: 2032-01-01T13:00:00 | F17: 1442.622713 | G17: 39.2078136 | H17: 0 | I17: 0 | K17: 2026-01-14T08:00:00 | L17: 1751.33418 | M17: 0.0104167 | P17: Checks
A18: System | B18: Region | C18: Island | D18: - | E18: 2032-01-01T14:00:00 | F18: 1444.013666 | G18: 39.1831406 | H18: 0 | I18: 0 | K18: 2026-01-15T08:00:00 | L18: 1521.040101 | M18: 0.0004167 | P18: Island Energy (Original) | Q18: 8410
A19: System | B19: Region | C19: Island | D19: - | E19: 2032-01-01T15:00:00 | F19: 1457.634415 | G19: 39.2762951 | H19: 0.0004167 | I19: 0.0093283 | K19: 2026-01-16T17:00:00 | L19: 1355.661405 | M19: 0 | P19: Island Energy (Escalated) | Q19: =SUM(F4:F8787)/1000 -> 8309.062654
A20: System | B20: Region | C20: Island | D20: - | E20: 2032-01-01T16:00:00 | F20: 1484.105122 | G20: 39.0834809 | H20: 0.0004167 | I20: 0.0225237 | K20: 2026-01-17T20:00:00 | L20: 1376.052176 | M20: 0 | P20: Escalation Factor Check | Q20: =Q19/Q18 -> 0.9879979375
A21: System | B21: Region | C21: Island | D21: - | E21: 2032-01-01T17:00:00 | F21: 1586.689963 | G21: 39.2169337 | H21: 0.0004167 | I21: 0.0377031 | K21: 2026-01-18T18:00:00 | L21: 1530.967081 | M21: 0.0004167
A22: System | B22: Region | C22: Island | D22: - | E22: 2032-01-01T18:00:00 | F22: 1533.764615 | G22: 38.6279987 | H22: 0.0004167 | I22: 0.0092712 | K22: 2026-01-19T08:00:00 | L22: 1400.677633 | M22: 0 | P22: Island Peak (Original) | Q22: 1773
A23: System | B23: Region | C23: Island | D23: - | E23: 2032-01-01T19:00:00 | F23: 1486.841274 | G23: 38.7756747 | H23: 0.0004167 | I23: 0.0278585 | K23: 2026-01-20T18:00:00 | L23: 1237.214954 | M23: 0 | P23: Island Peak (Escalated) | Q23: =MAX(F4:F8763) -> 1751.33418
A24: System | B24: Region | C24: Island | D24: - | E24: 2032-01-01T20:00:00 | F24: 1455.773716 | G24: 39.0810902 | H24: 0 | I24: 0 | K24: 2026-01-21T18:00:00 | L24: 1352.844046 | M24: 0 | P24: Escalation Factor Check | Q24: =Q23/Q22 -> 0.9877801353
A25: System | B25: Region | C25: Island | D25: - | E25: 2032-01-01T21:00:00 | F25: 1404.644124 | G25: 38.5407909 | H25: 0 | I25: 0 | K25: 2026-01-22T08:00:00 | L25: 1383.680572 | M25: 0
A26: System | B26: Region | C26: Island | D26: - | E26: 2032-01-01T22:00:00 | F26: 1321.118395 | G26: 36.6021175 | H26: 0 | I26: 0 | K26: 2026-01-23T18:00:00 | L26: 1437.004038 | M26: 0
A27: System | B27: Region | C27: Island | D27: - | E27: 2032-01-01T23:00:00 | F27: 1207.933075 | G27: 28.2464258 | H27: 0 | I27: 0 | K27: 2026-01-24T10:00:00 | L27: 1450.251609 | M27: 0
A28: System | B28: Region | C28: Island | D28: - | E28: 2032-01-02 | F28: 1150.883306 | G28: 25.7235901 | H28: 0 | I28: 0 | K28: 2026-01-25T18:00:00 | L28: 1273.873108 | M28: 0
A29: System | B29: Region | C29: Island | D29: - | E29: 2032-01-02T01:00:00 | F29: 1114.703701 | G29: 23.9447999 | H29: 0 | I29: 0 | K29: 2026-01-26T18:00:00 | L29: 1594.798816 | M29: 0.00125
A30: System | B30: Region | C30: Island | D30: - | E30: 2032-01-02T02:00:00 | F30: 1103.799632 | G30: 24.2292099 | H30: 0 | I30: 0 | K30: 2026-01-27T17:00:00 | L30: 1741.21954 | M30: 0.00625
A31: System | B31: Region | C31: Island | D31: - | E31: 2032-01-02T03:00:00 | F31: 1101.904559 | G31: 24.0175208 | H31: 0 | I31: 0 | K31: 2026-01-28T08:00:00 | L31: 1226.300099 | M31: 0
A32: System | B32: Region | C32: Island | D32: - | E32: 2032-01-02T04:00:00 | F32: 1108.048769 | G32: 24.0511735 | H32: 0 | I32: 0 | K32: 2026-01-29T18:00:00 | L32: 1202.561269 | M32: 0
A33: System | B33: Region | C33: Island | D33: - | E33: 2032-01-02T05:00:00 | F33: 1117.127703 | G33: 24.779519 | H33: 0 | I33: 0 | K33: 2026-01-30T12:00:00 | L33: 1368.969375 | M33: 0
A34: System | B34: Region | C34: Island | D34: - | E34: 2032-01-02T06:00:00 | F34: 1141.730929 | G34: 24.9876552 | H34: 0 | I34: 0 | K34: 2026-01-31T18:00:00 | L34: 1276.886606 | M34: 0
A35: System | B35: Region | C35: Island | D35: - | E35: 2032-01-02T07:00:00 | F35: 1187.401624 | G35: 32.2756135 | H35: 0 | I35: 0 | K35: 2026-02-01T10:00:00 | L35: 1161.069851 | M35: 0
A36: System | B36: Region | C36: Island | D36: - | E36: 2032-01-02T08:00:00 | F36: 1219.122446 | G36: 32.8767695 | H36: 0 | I36: 0 | K36: 2026-02-02T17:00:00 | L36: 1567.326973 | M36: 0
A37: System | B37: Region | C37: Island | D37: - | E37: 2032-01-02T09:00:00 | F37: 1272.086323 | G37: 35.2157629 | H37: 0 | I37: 0 | K37: 2026-02-03T18:00:00 | L37: 1423.353919 | M37: 0
A38: System | B38: Region | C38: Island | D38: - | E38: 2032-01-02T10:00:00 | F38: 1270.358658 | G38: 35.0720599 | H38: 0 | I38: 0 | K38: 2026-02-04T08:00:00 | L38: 1542.248522 | M38: 0.0004167
A39: System | B39: Region | C39: Island | D39: - | E39: 2032-01-02T11:00:00 | F39: 1283.156895 | G39: 35.7010717 | H39: 0 | I39: 0 | K39: 2026-02-05T08:00:00 | L39: 1598.718882 | M39: 0.0016667
A40: System | B40: Region | C40: Island | D40: - | E40: 2032-01-02T12:00:00 | F40: 1267.808694 | G40: 34.9646751 | H40: 0 | I40: 0 | K40: 2026-02-06T12:00:00 | L40: 1277.830275 | M40: 0
A41: System | B41: Region | C41: Island | D41: - | E41: 2032-01-02T13:00:00 | F41: 1237.076057 | G41: 34.3251462 | H41: 0 | I41: 0 | K41: 2026-02-07T18:00:00 | L41: 1477.201335 | M41: 0
A42: System | B42: Region | C42: Island | D42: - | E42: 2032-01-02T14:00:00 | F42: 1194.055043 | G42: 32.4772746 | H42: 0 | I42: 0 | K42: 2026-02-08T19:00:00 | L42: 1517.890906 | M42: 0
A43: System | B43: Region | C43: Island | D43: - | E43: 2032-01-02T15:00:00 | F43: 1178.302773 | G43: 32.1144092 | H43: 0 | I43: 0 | K43: 2026-02-09T08:00:00 | L43: 1689.531543 | M43: 0.00375
A44: System | B44: Region | C44: Island | D44: - | E44: 2032-01-02T16:00:00 | F44: 1193.260396 | G44: 32.2154673 | H44: 0 | I44: 0 | K44: 2026-02-10T08:00:00 | L44: 1642.792187 | M44: 0.00125
A45: System | B45: Region | C45: Island | D45: - | E45: 2032-01-02T17:00:00 | F45: 1334.969459 | G45: 36.8965536 | H45: 0 | I45: 0 | K45: 2026-02-11T18:00:00 | L45: 1467.776449 | M45: 0
A46: System | B46: Region | C46: Island | D46: - | E46: 2032-01-02T18:00:00 | F46: 1303.858972 | G46: 36.3229006 | H46: 0 | I46: 0 | K46: 2026-02-12T12:00:00 | L46: 1640.116919 | M46: 0.0029167
A47: System | B47: Region | C47: Island | D47: - | E47: 2032-01-02T19:00:00 | F47: 1241.578582 | G47: 33.9240511 | H47: 0 | I47: 0 | K47: 2026-02-13T08:00:00 | L47: 1470.97344 | M47: 0
A48: System | B48: Region | C48: Island | D48: - | E48: 2032-01-02T20:00:00 | F48: 1229.693312 | G48: 33.6523797 | H48: 0 | I48: 0 | K48: 2026-02-14T18:00:00 | L48: 1390.858402 | M48: 0
A49: System | B49: Region | C49: Island | D49: - | E49: 2032-01-02T21:00:00 | F49: 1206.559431 | G49: 32.5174617 | H49: 0 | I49: 0 | K49: 2026-02-15T18:00:00 | L49: 1362.876284 | M49: 0
A50: System | B50: Region | C50: Island | D50: - | E50: 2032-01-02T22:00:00 | F50: 1176.297935 | G50: 31.6015613 | H50: 0 | I50: 0 | K50: 2026-02-16T18:00:00 | L50: 1386.277462 | M50: 0
A51: System | B51: Region | C51: Island | D51: - | E51: 2032-01-02T23:00:00 | F51: 1141.738562 | G51: 25.2604887 | H51: 0 | I51: 0 | K51: 2026-02-17T18:00:00 | L51: 1502.554964 | M51: 0.0004167
A52: System | B52: Region | C52: Island | D52: - | E52: 2032-01-03 | F52: 1098.90247 | G52: 23.9619319 | H52: 0 | I52: 0 | K52: 2026-02-18T08:00:00 | L52: 1469.168128 | M52: 0.0004167
A53: System | B53: Region | C53: Island | D53: - | E53: 2032-01-03T01:00:00 | F53: 1075.584948 | G53: 23.2481374 | H53: 0 | I53: 0 | K53: 2026-02-19T18:00:00 | L53: 1332.446166 | M53: 0
A54: System | B54: Region | C54: Island | D54: - | E54: 2032-01-03T02:00:00 | F54: 1078.14511 | G54: 23.3706041 | H54: 0 | I54: 0 | K54: 2026-02-20T08:00:00 | L54: 1195.853118 | M54: 0
A55: System | B55: Region | C55: Island | D55: - | E55: 2032-01-03T03:00:00 | F55: 1079.897487 | G55: 22.8835738 | H55: 0 | I55: 0 | K55: 2026-02-21T19:00:00 | L55: 1446.854774 | M55: 0
A56: System | B56: Region | C56: Island | D56: - | E56: 2032-01-03T04:00:00 | F56: 1090.113487 | G56: 23.5511171 | H56: 0 | I56: 0 | K56: 2026-02-22T10:00:00 | L56: 1374.358714 | M56: 0
A57: System | B57: Region | C57: Island | D57: - | E57: 2032-01-03T05:00:00 | F57: 1097.910466 | G57: 23.6909642 | H57: 0 | I57: 0 | K57: 2026-02-23T18:00:00 | L57: 1216.454179 | M57: 0
A58: System | B58: Region | C58: Island | D58: - | E58: 2032-01-03T06:00:00 | F58: 1117.175518 | G58: 24.5389009 | H58: 0 | I58: 0 | K58: 2026-02-24T19:00:00 | L58: 1603.826221 | M58: 0
A59: System | B59: Region | C59: Island | D59: - | E59: 2032-01-03T07:00:00 | F59: 1155.754197 | G59: 31.5058864 | H59: 0 | I59: 0 | K59: 2026-02-25T08:00:00 | L59: 1605.023342 | M59: 0.0008333
A60: System | B60: Region | C60: Island | D60: - | E60: 2032-01-03T08:00:00 | F60: 1194.717186 | G60: 32.846754 | H60: 0 | I60: 0 | K60: 2026-02-26T08:00:00 | L60: 1336.342548 | M60: 0
A61: System | B61: Region | C61: Island | D61: - | E61: 2032-01-03T09:00:00 | F61: 1289.262761 | G61: 35.5321466 | H61: 0 | I61: 0 | K61: 2026-02-27T08:00:00 | L61: 1357.984202 | M61: 0
A62: System | B62: Region | C62: Island | D62: - | E62: 2032-01-03T10:00:00 | F62: 1301.301858 | G62: 36.7446551 | H62: 0 | I62: 0 | K62: 2026-02-28T19:00:00 | L62: 1512.739506 | M62: 0
A63: System | B63: Region | C63: Island | D63: - | E63: 2032-01-03T11:00:00 | F63: 1284.251798 | G63: 35.5254702 | H63: 0 | I63: 0 | K63: 2026-03-01T10:00:00 | L63: 1269.615374 | M63: 0
A64: System | B64: Region | C64: Island | D64: - | E64: 2032-01-03T12:00:00 | F64: 1303.361187 | G64: 36.2295706 | H64: 0 | I64: 0 | K64: 2026-03-02T09:00:00 | L64: 1496.2273 | M64: 0
A65: System | B65: Region | C65: Island | D65: - | E65: 2032-01-03T13:00:00 | F65: 1304.789141 | G65: 36.1449268 | H65: 0 | I65: 0 | K65: 2026-03-03T19:00:00 | L65: 1537.957635 | M65: 0
A66: System | B66: Region | C66: Island | D66: - | E66: 2032-01-03T14:00:00 | F66: 1352.675156 | G66: 36.9312662 | H66: 0 | I66: 0 | K66: 2026-03-04T07:00:00 | L66: 1476.168042 | M66: 0
A67: System | B67: Region | C67: Island | D67: - | E67: 2032-01-03T15:00:00 | F67: 1363.351885 | G67: 37.9074827 | H67: 0 | I67: 0 | K67: 2026-03-05T20:00:00 | L67: 1427.674627 | M67: 0
A68: System | B68: Region | C68: Island | D68: - | E68: 2032-01-03T16:00:00 | F68: 1453.722084 | G68: 39.0166411 | H68: 0 | I68: 0 | K68: 2026-03-06T08:00:00 | L68: 1580.969693 | M68: 0.0008333
A69: System | B69: Region | C69: Island | D69: - | E69: 2032-01-03T17:00:00 | F69: 1710.947518 | G69: 46.2688143 | H69: 0.0075 | I69: 0.2298968 | K69: 2026-03-07T08:00:00 | L69: =MAX(OFFSET($F$4:$F$27,(ROW()-4)*24,0)) -> 1461.629151 | M69: =VLOOKUP(L69,OFFSET($F$4:$H$27,(ROW()-4)*24,0),3,FALSE) -> 0
A70: System | B70: Region | C70: Island | D70: - | E70: 2032-01-03T18:00:00 | F70: 1683.869094 | G70: 44.6265164 | H70: 0.0041667 | I70: 0.11965 | K70: 2026-03-08T08:00:00 | L70: 1325.133489 | M70: 0
A71: System | B71: Region | C71: Island | D71: - | E71: 2032-01-03T19:00:00 | F71: 1692.594533 | G71: 45.321441 | H71: 0.0041667 | I71: 0.1764118 | K71: 2026-03-09T07:00:00 | L71: 1458.753883 | M71: 0
A72: System | B72: Region | C72: Island | D72: - | E72: 2032-01-03T20:00:00 | F72: 1731.25098 | G72: 47.0695827 | H72: 0.0054167 | I72: 0.2953735 | K72: 2026-03-10T07:00:00 | L72: 1620.160445 | M72: 0.0016667
A73: System | B73: Region | C73: Island | D73: - | E73: 2032-01-03T21:00:00 | F73: 1709.639142 | G73: 46.112654 | H73: 0.0066667 | I73: 0.4101396 | K73: 2026-03-11T07:00:00 | L73: 1507.651515 | M73: 0.0004167
A74: System | B74: Region | C74: Island | D74: - | E74: 2032-01-03T22:00:00 | F74: 1667.050326 | G74: 43.6743221 | H74: 0.0016667 | I74: 0.0567605 | K74: 2026-03-12T19:00:00 | L74: 1430.967128 | M74: 0
A75: System | B75: Region | C75: Island | D75: - | E75: 2032-01-03T23:00:00 | F75: 1530.106781 | G75: 37.6562432 | H75: 0 | I75: 0 | K75: 2026-03-13T08:00:00 | L75: 1601.682182 | M75: 0
A76: System | B76: Region | C76: Island | D76: - | E76: 2032-01-04 | F76: 1416.478265 | G76: 35.7214241 | H76: 0 | I76: 0 | K76: 2026-03-14T10:00:00 | L76: 1535.6176 | M76: 0
A77: System | B77: Region | C77: Island | D77: - | E77: 2032-01-04T01:00:00 | F77: 1256.656839 | G77: 31.8646739 | H77: 0 | I77: 0 | K77: 2026-03-15T09:00:00 | L77: 1480.335106 | M77: 0
A78: System | B78: Region | C78: Island | D78: - | E78: 2032-01-04T02:00:00 | F78: 1233.360278 | G78: 31.6749976 | H78: 0 | I78: 0 | K78: 2026-03-16T10:00:00 | L78: 1527.841889 | M78: 0
A79: System | B79: Region | C79: Island | D79: - | E79: 2032-01-04T03:00:00 | F79: 1285.035743 | G79: 32.2845029 | H79: 0 | I79: 0 | K79: 2026-03-17T07:00:00 | L79: 1308.90853 | M79: 0
A80: System | B80: Region | C80: Island | D80: - | E80: 2032-01-04T04:00:00 | F80: 1322.601085 | G80: 33.8211932 | H80: 0 | I80: 0 | K80: 2026-03-18T16:00:00 | L80: 1295.230356 | M80: 0
A81: System | B81: Region | C81: Island | D81: - | E81: 2032-01-04T05:00:00 | F81: 1312.40747 | G81: 33.7035594 | H81: 0 | I81: 0 | K81: 2026-03-19T07:00:00 | L81: 1256.47964 | M81: 0
A82: System | B82: Region | C82: Island | D82: - | E82: 2032-01-04T06:00:00 | F82: 1387.112812 | G82: 34.7204868 | H82: 0 | I82: 0 | K82: 2026-03-20T07:00:00 | L82: 1369.77188 | M82: 0
A83: System | B83: Region | C83: Island | D83: - | E83: 2032-01-04T07:00:00 | F83: 1446.584861 | G83: 38.126411 | H83: 0 | I83: 0 | K83: 2026-03-21T08:00:00 | L83: 1267.563911 | M83: 0
A84: System | B84: Region | C84: Island | D84: - | E84: 2032-01-04T08:00:00 | F84: 1498.178141 | G84: 38.1930045 | H84: 0 | I84: 0 | K84: 2026-03-22T10:00:00 | L84: 1364.074333 | M84: 0
A85: System | B85: Region | C85: Island | D85: - | E85: 2032-01-04T09:00:00 | F85: 1660.666676 | G85: 43.3727554 | H85: 0.0029167 | I85: 0.1149541 | K85: 2026-03-23T19:00:00 | L85: 1457.558755 | M85: 0
A86: System | B86: Region | C86: Island | D86: - | E86: 2032-01-04T10:00:00 | F86: 1681.208374 | G86: 44.5264184 | H86: 0.0029167 | I86: 0.1460755 | K86: 2026-03-24T07:00:00 | L86: 1414.206824 | M86: 0
A87: System | B87: Region | C87: Island | D87: - | E87: 2032-01-04T11:00:00 | F87: 1654.882086 | G87: 42.9483727 | H87: 0.0029167 | I87: 0.1401426 | K87: 2026-03-25T07:00:00 | L87: 1385.695536 | M87: 0
A88: System | B88: Region | C88: Island | D88: - | E88: 2032-01-04T12:00:00 | F88: 1605.710448 | G88: 40.397973 | H88: 0 | I88: 0 | K88: 2026-03-26T07:00:00 | L88: 1353.587309 | M88: 0
A89: System | B89: Region | C89: Island | D89: - | E89: 2032-01-04T13:00:00 | F89: 1571.039494 | G89: 38.8026333 | H89: 0 | I89: 0 | K89: 2026-03-27T07:00:00 | L89: 1166.48105 | M89: 0
A90: System | B90: Region | C90: Island | D90: - | E90: 2032-01-04T14:00:00 | F90: 1563.151709 | G90: 38.45797 | H90: 0.0004167 | I90: 0.0082434 | K90: 2026-03-28T19:00:00 | L90: 1147.920743 | M90: 0
A91: System | B91: Region | C91: Island | D91: - | E91: 2032-01-04T15:00:00 | F91: 1591.57026 | G91: 39.8606811 | H91: 0.0004167 | I91: 0.0131979 | K91: 2026-03-29T20:00:00 | L91: 1198.743363 | M91: 0
A92: System | B92: Region | C92: Island | D92: - | E92: 2032-01-04T16:00:00 | F92: 1653.31857 | G92: 42.8087783 | H92: 0.00125 | I92: 0.122715 | K92: 2026-03-30T07:00:00 | L92: 1323.742786 | M92: 0
A93: System | B93: Region | C93: Island | D93: - | E93: 2032-01-04T17:00:00 | F93: 1736.395678 | G93: 47.2147707 | H93: 0.0116667 | I93: 0.4822593 | K93: 2026-03-31T07:00:00 | L93: 1291.826857 | M93: 0
A94: System | B94: Region | C94: Island | D94: - | E94: 2032-01-04T18:00:00 | F94: 1706.233646 | G94: 45.790157 | H94: 0.0054167 | I94: 0.2540261 | K94: 2026-04-01T07:00:00 | L94: 1213.527804 | M94: 0
A95: System | B95: Region | C95: Island | D95: - | E95: 2032-01-04T19:00:00 | F95: 1677.735652 | G95: 44.0889768 | H95: 0.00375 | I95: 0.1506566 | K95: 2026-04-02T20:00:00 | L95: 1277.355067 | M95: 0
A96: System | B96: Region | C96: Island | D96: - | E96: 2032-01-04T20:00:00 | F96: 1674.371601 | G96: 43.9551816 | H96: 0.00375 | I96: 0.0962911 | K96: 2026-04-03T08:00:00 | L96: 1219.397797 | M96: 0
A97: System | B97: Region | C97: Island | D97: - | E97: 2032-01-04T21:00:00 | F97: 1621.834644 | G97: 41.3020874 | H97: 0.0016667 | I97: 0.0626744 | K97: 2026-04-04T09:00:00 | L97: 1136.894404 | M97: 0
A98: System | B98: Region | C98: Island | D98: - | E98: 2032-01-04T22:00:00 | F98: 1476.815134 | G98: 38.0303062 | H98: 0 | I98: 0 | K98: 2026-04-05T20:00:00 | L98: 1313.927945 | M98: 0
A99: System | B99: Region | C99: Island | D99: - | E99: 2032-01-04T23:00:00 | F99: 1302.32608 | G99: 33.3724096 | H99: 0 | I99: 0 | K99: 2026-04-06T20:00:00 | L99: 1359.665615 | M99: 0
A100: System | B100: Region | C100: Island | D100: - | E100: 2032-01-05 | F100: 1190.529164 | G100: 26.5564114 | H100: 0 | I100: 0 | K100: 2026-04-07T07:00:00 | L100: 1408.905622 | M100: 0
A101: System | B101: Region | C101: Island | D101: - | E101: 2032-01-05T01:00:00 | F101: 1157.13364 | G101: 25.6683829 | H101: 0 | I101: 0 | K101: 2026-04-08T07:00:00 | L101: 1364.044909 | M101: 0
A102: System | B102: Region | C102: Island | D102: - | E102: 2032-01-05T02:00:00 | F102: 1140.958543 | G102: 25.5433154 | H102: 0 | I102: 0 | K102: 2026-04-09T07:00:00 | L102: 1418.237854 | M102: 0
A103: System | B103: Region | C103: Island | D103: - | E103: 2032-01-05T03:00:00 | F103: 1130.876246 | G103: 25.0386271 | H103: 0 | I103: 0 | K103: 2026-04-10T07:00:00 | L103: 1376.893065 | M103: 0
A104: System | B104: Region | C104: Island | D104: - | E104: 2032-01-05T04:00:00 | F104: 1127.496055 | G104: 25.3363568 | H104: 0 | I104: 0 | K104: 2026-04-11T09:00:00 | L104: 1293.263557 | M104: 0
A105: System | B105: Region | C105: Island | D105: - | E105: 2032-01-05T05:00:00 | F105: 1127.589054 | G105: 24.6628669 | H105: 0 | I105: 0 | K105: 2026-04-12T09:00:00 | L105: 1124.368076 | M105: 0
A106: System | B106: Region | C106: Island | D106: - | E106: 2032-01-05T06:00:00 | F106: 1147.343976 | G106: 25.2226706 | H106: 0 | I106: 0 | K106: 2026-04-13T07:00:00 | L106: 1221.384326 | M106: 0
A107: System | B107: Region | C107: Island | D107: - | E107: 2032-01-05T07:00:00 | F107: 1218.240915 | G107: 33.3824527 | H107: 0 | I107: 0 | K107: 2026-04-14T07:00:00 | L107: 1123.399134 | M107: 0
A108: System | B108: Region | C108: Island | D108: - | E108: 2032-01-05T08:00:00 | F108: 1270.902466 | G108: 34.7878173 | H108: 0 | I108: 0 | K108: 2026-04-15T07:00:00 | L108: 1042.037919 | M108: 0
A109: System | B109: Region | C109: Island | D109: - | E109: 2032-01-05T09:00:00 | F109: 1249.736624 | G109: 34.6189938 | H109: 0 | I109: 0 | K109: 2026-04-16T20:00:00 | L109: 1395.436164 | M109: 0
A110: System | B110: Region | C110: Island | D110: - | E110: 2032-01-05T10:00:00 | F110: 1245.872394 | G110: 34.9805247 | H110: 0 | I110: 0 | K110: 2026-04-17T07:00:00 | L110: 1406.652893 | M110: 0
A111: System | B111: Region | C111: Island | D111: - | E111: 2032-01-05T11:00:00 | F111: 1231.932779 | G111: 34.4247291 | H111: 0 | I111: 0 | K111: 2026-04-18T20:00:00 | L111: 1073.389238 | M111: 0
A112: System | B112: Region | C112: Island | D112: - | E112: 2032-01-05T12:00:00 | F112: 1213.18502 | G112: 33.1023626 | H112: 0 | I112: 0 | K112: 2026-04-19T09:00:00 | L112: 1210.137973 | M112: 0
A113: System | B113: Region | C113: Island | D113: - | E113: 2032-01-05T13:00:00 | F113: 1187.42274 | G113: 32.1527819 | H113: 0 | I113: 0 | K113: 2026-04-20T07:00:00 | L113: 1300.42051 | M113: 0
A114: System | B114: Region | C114: Island | D114: - | E114: 2032-01-05T14:00:00 | F114: 1167.436433 | G114: 31.8948383 | H114: 0 | I114: 0 | K114: 2026-04-21T07:00:00 | L114: 1283.850035 | M114: 0
A115: System | B115: Region | C115: Island | D115: - | E115: 2032-01-05T15:00:00 | F115: 1165.589833 | G115: 31.4684069 | H115: 0 | I115: 0 | K115: 2026-04-22T07:00:00 | L115: 1263.27615 | M115: 0
A116: System | B116: Region | C116: Island | D116: - | E116: 2032-01-05T16:00:00 | F116: 1189.518741 | G116: 31.8775143 | H116: 0 | I116: 0 | K116: 2026-04-23T07:00:00 | L116: 1134.664958 | M116: 0
A117: System | B117: Region | C117: Island | D117: - | E117: 2032-01-05T17:00:00 | F117: 1298.053358 | G117: 35.9033253 | H117: 0 | I117: 0 | K117: 2026-04-24T07:00:00 | L117: 1105.875401 | M117: 0
A118: System | B118: Region | C118: Island | D118: - | E118: 2032-01-05T18:00:00 | F118: 1287.991453 | G118: 35.4746633 | H118: 0 | I118: 0 | K118: 2026-04-25T11:00:00 | L118: 1145.934508 | M118: 0
A119: System | B119: Region | C119: Island | D119: - | E119: 2032-01-05T19:00:00 | F119: 1279.869956 | G119: 35.2283027 | H119: 0 | I119: 0 | K119: 2026-04-26T11:00:00 | L119: 1114.896885 | M119: 0
A120: System | B120: Region | C120: Island | D120: - | E120: 2032-01-05T20:00:00 | F120: 1269.26727 | G120: 34.6760679 | H120: 0 | I120: 0 | K120: 2026-04-27T20:00:00 | L120: 1066.698386 | M120: 0
A121: System | B121: Region | C121: Island | D121: - | E121: 2032-01-05T21:00:00 | F121: 1245.810223 | G121: 34.4273133 | H121: 0 | I121: 0 | K121: 2026-04-28T07:00:00 | L121: 1154.907062 | M121: 0
A122: System | B122: Region | C122: Island | D122: - | E122: 2032-01-05T22:00:00 | F122: 1202.360823 | G122: 32.3430769 | H122: 0 | I122: 0 | K122: 2026-04-29T07:00:00 | L122: 1117.88275 | M122: 0
A123: System | B123: Region | C123: Island | D123: - | E123: 2032-01-05T23:00:00 | F123: 1147.264675 | G123: 25.6442537 | H123: 0 | I123: 0 | K123: 2026-04-30T08:00:00 | L123: 1197.370709 | M123: 0
A124: System | B124: Region | C124: Island | D124: - | E124: 2032-01-06 | F124: 1100.403677 | G124: 24.4084271 | H124: 0 | I124: 0 | K124: 2026-05-01T07:00:00 | L124: 1242.984166 | M124: 0
A125: System | B125: Region | C125: Island | D125: - | E125: 2032-01-06T01:00:00 | F125: 1078.267604 | G125: 23.4925874 | H125: 0 | I125: 0 | K125: 2026-05-02T09:00:00 | L125: 1135.217057 | M125: 0
A126: System | B126: Region | C126: Island | D126: - | E126: 2032-01-06T02:00:00 | F126: 1087.176713 | G126: 23.7051419 | H126: 0 | I126: 0 | K126: 2026-05-03T09:00:00 | L126: 1085.03465 | M126: 0
A127: System | B127: Region | C127: Island | D127: - | E127: 2032-01-06T03:00:00 | F127: 1095.856023 | G127: 24.2720864 | H127: 0 | I127: 0 | K127: 2026-05-04T07:00:00 | L127: 1073.991185 | M127: 0
A128: System | B128: Region | C128: Island | D128: - | E128: 2032-01-06T04:00:00 | F128: 1107.977846 | G128: 24.4158099 | H128: 0 | I128: 0 | K128: 2026-05-05T07:00:00 | L128: 1035.30308 | M128: 0
A129: System | B129: Region | C129: Island | D129: - | E129: 2032-01-06T05:00:00 | F129: 1140.447903 | G129: 25.486724 | H129: 0 | I129: 0 | K129: 2026-05-06T07:00:00 | L129: 1019.122372 | M129: 0
A130: System | B130: Region | C130: Island | D130: - | E130: 2032-01-06T06:00:00 | F130: 1185.439369 | G130: 26.6926511 | H130: 0 | I130: 0 | K130: 2026-05-07T07:00:00 | L130: 1071.497787 | M130: 0
A131: System | B131: Region | C131: Island | D131: - | E131: 2032-01-06T07:00:00 | F131: 1344.850601 | G131: 37.206762 | H131: 0 | I131: 0 | K131: 2026-05-08T09:00:00 | L131: 1238.311048 | M131: 0
A132: System | B132: Region | C132: Island | D132: - | E132: 2032-01-06T08:00:00 | F132: 1513.444079 | G132: 38.1981463 | H132: 0 | I132: 0 | K132: 2026-05-09T09:00:00 | L132: 1162.111784 | M132: 0
A133: System | B133: Region | C133: Island | D133: - | E133: 2032-01-06T09:00:00 | F133: 1550.602703 | G133: 38.7622916 | H133: 0.0008333 | I133: 0.0270642 | K133: 2026-05-10T09:00:00 | L133: =MAX(OFFSET($F$4:$F$27,(ROW()-4)*24,0)) -> 1186.0408 | M133: =VLOOKUP(L133,OFFSET($F$4:$H$27,(ROW()-4)*24,0),3,FALSE) -> 0
A134: System | B134: Region | C134: Island | D134: - | E134: 2032-01-06T10:00:00 | F134: 1538.523283 | G134: 38.7357028 | H134: 0 | I134: 0 | K134: 2026-05-11T08:00:00 | L134: 1078.689072 | M134: 0
A135: System | B135: Region | C135: Island | D135: - | E135: 2032-01-06T11:00:00 | F135: 1527.883433 | G135: 38.5196762 | H135: 0 | I135: 0 | K135: 2026-05-12T07:00:00 | L135: 1163.408091 | M135: 0
A136: System | B136: Region | C136: Island | D136: - | E136: 2032-01-06T12:00:00 | F136: 1508.11128 | G136: 38.5806596 | H136: 0 | I136: 0 | K136: 2026-05-13T20:00:00 | L136: 1118.42153 | M136: 0
A137: System | B137: Region | C137: Island | D137: - | E137: 2032-01-06T13:00:00 | F137: 1474.869758 | G137: 38.1884794 | H137: 0 | I137: 0 | K137: 2026-05-14T07:00:00 | L137: 1122.505169 | M137: 0
A138: System | B138: Region | C138: Island | D138: - | E138: 2032-01-06T14:00:00 | F138: 1481.2524 | G138: 38.7046258 | H138: 0 | I138: 0 | K138: 2026-05-15T07:00:00 | L138: 1030.745174 | M138: 0
A139: System | B139: Region | C139: Island | D139: - | E139: 2032-01-06T15:00:00 | F139: 1510.173862 | G139: 38.4382092 | H139: 0.0004167 | I139: 0.0070968 | K139: 2026-05-16T09:00:00 | L139: 838.7218821 | M139: 0
A140: System | B140: Region | C140: Island | D140: - | E140: 2032-01-06T16:00:00 | F140: 1616.374517 | G140: 40.7701454 | H140: 0.00125 | I140: 0.0494972 | K140: 2026-05-17T09:00:00 | L140: 915.689513 | M140: 0
A141: System | B141: Region | C141: Island | D141: - | E141: 2032-01-06T17:00:00 | F141: 1734.237263 | G141: 47.1793462 | H141: 0.00875 | I141: 0.3961937 | K141: 2026-05-18T11:00:00 | L141: 1016.681842 | M141: 0
A142: System | B142: Region | C142: Island | D142: - | E142: 2032-01-06T18:00:00 | F142: 1724.37363 | G142: 46.7033688 | H142: 0.01125 | I142: 0.6584507 | K142: 2026-05-19T07:00:00 | L142: 981.5260924 | M142: 0
A143: System | B143: Region | C143: Island | D143: - | E143: 2032-01-06T19:00:00 | F143: 1698.16431 | G143: 45.2956561 | H143: 0.0070833 | I143: 0.3550102 | K143: 2026-05-20T20:00:00 | L143: 852.4087241 | M143: 0
A144: System | B144: Region | C144: Island | D144: - | E144: 2032-01-06T20:00:00 | F144: 1676.123344 | G144: 44.066501 | H144: 0.0083333 | I144: 0.3149191 | K144: 2026-05-21T07:00:00 | L144: 908.048605 | M144: 0
A145: System | B145: Region | C145: Island | D145: - | E145: 2032-01-06T21:00:00 | F145: 1620.436342 | G145: 41.0313597 | H145: 0.0025 | I145: 0.1239217 | K145: 2026-05-22T07:00:00 | L145: 918.0309045 | M145: 0
A146: System | B146: Region | C146: Island | D146: - | E146: 2032-01-06T22:00:00 | F146: 1503.202076 | G146: 38.6967398 | H146: 0 | I146: 0 | K146: 2026-05-23T11:00:00 | L146: 934.376547 | M146: 0
A147: System | B147: Region | C147: Island | D147: - | E147: 2032-01-06T23:00:00 | F147: 1320.849591 | G147: 31.310461 | H147: 0 | I147: 0 | K147: 2026-05-24T09:00:00 | L147: 982.4026175 | M147: 0
A148: System | B148: Region | C148: Island | D148: - | E148: 2032-01-07 | F148: 1194.015724 | G148: 27.631585 | H148: 0 | I148: 0 | K148: 2026-05-25T07:00:00 | L148: 918.9391988 | M148: 0
A149: System | B149: Region | C149: Island | D149: - | E149: 2032-01-07T01:00:00 | F149: 1178.991469 | G149: 26.8910182 | H149: 0 | I149: 0 | K149: 2026-05-26T07:00:00 | L149: 826.1453819 | M149: 0
A150: System | B150: Region | C150: Island | D150: - | E150: 2032-01-07T02:00:00 | F150: 1168.269712 | G150: 26.5659438 | H150: 0 | I150: 0 | K150: 2026-05-27T09:00:00 | L150: 841.5278676 | M150: 0
A151: System | B151: Region | C151: Island | D151: - | E151: 2032-01-07T03:00:00 | F151: 1168.268594 | G151: 26.8126808 | H151: 0 | I151: 0 | K151: 2026-05-28T09:00:00 | L151: 853.5525848 | M151: 0
A152: System | B152: Region | C152: Island | D152: - | E152: 2032-01-07T04:00:00 | F152: 1176.323925 | G152: 27.2095095 | H152: 0 | I152: 0 | K152: 2026-05-29T11:00:00 | L152: 912.365348 | M152: 0
A153: System | B153: Region | C153: Island | D153: - | E153: 2032-01-07T05:00:00 | F153: 1188.330082 | G153: 27.2562066 | H153: 0 | I153: 0 | K153: 2026-05-30T09:00:00 | L153: 859.1030189 | M153: 0
A154: System | B154: Region | C154: Island | D154: - | E154: 2032-01-07T06:00:00 | F154: 1235.355758 | G154: 28.7454826 | H154: 0 | I154: 0 | K154: 2026-05-31T11:00:00 | L154: 801.0933556 | M154: 0
A155: System | B155: Region | C155: Island | D155: - | E155: 2032-01-07T07:00:00 | F155: 1436.454347 | G155: 38.8977558 | H155: 0.0004167 | I155: 0.0132194 | K155: 2026-06-01T07:00:00 | L155: 940.6724075 | M155: 0
A156: System | B156: Region | C156: Island | D156: - | E156: 2032-01-07T08:00:00 | F156: 1557.792128 | G156: 38.7810495 | H156: 0 | I156: 0 | K156: 2026-06-02T07:00:00 | L156: 1065.147523 | M156: 0
A157: System | B157: Region | C157: Island | D157: - | E157: 2032-01-07T09:00:00 | F157: 1575.155598 | G157: 39.1316383 | H157: 0.0004167 | I157: 0.0633015 | K157: 2026-06-03T07:00:00 | L157: 995.928219 | M157: 0
A158: System | B158: Region | C158: Island | D158: - | E158: 2032-01-07T10:00:00 | F158: 1551.602033 | G158: 38.6546236 | H158: 0 | I158: 0 | K158: 2026-06-04T07:00:00 | L158: 1014.233773 | M158: 0
A159: System | B159: Region | C159: Island | D159: - | E159: 2032-01-07T11:00:00 | F159: 1517.176877 | G159: 38.6605817 | H159: 0 | I159: 0 | K159: 2026-06-05T07:00:00 | L159: 1012.665449 | M159: 0
A160: System | B160: Region | C160: Island | D160: - | E160: 2032-01-07T12:00:00 | F160: 1505.652474 | G160: 38.520563 | H160: 0 | I160: 0 | K160: 2026-06-06T10:00:00 | L160: 934.284017 | M160: 0
A161: System | B161: Region | C161: Island | D161: - | E161: 2032-01-07T13:00:00 | F161: 1456.385313 | G161: 39.0615226 | H161: 0 | I161: 0 | K161: 2026-06-07T11:00:00 | L161: 971.6441257 | M161: 0
A162: System | B162: Region | C162: Island | D162: - | E162: 2032-01-07T14:00:00 | F162: 1422.940799 | G162: 39.1212337 | H162: 0 | I162: 0 | K162: 2026-06-08T07:00:00 | L162: 1055.338929 | M162: 0
A163: System | B163: Region | C163: Island | D163: - | E163: 2032-01-07T15:00:00 | F163: 1432.829471 | G163: 38.8343167 | H163: 0 | I163: 0 | K163: 2026-06-09T07:00:00 | L163: 953.1702254 | M163: 0
A164: System | B164: Region | C164: Island | D164: - | E164: 2032-01-07T16:00:00 | F164: 1502.201015 | G164: 38.4401263 | H164: 0 | I164: 0 | K164: 2026-06-10T07:00:00 | L164: 843.7431147 | M164: 0
A165: System | B165: Region | C165: Island | D165: - | E165: 2032-01-07T17:00:00 | F165: 1652.574008 | G165: 42.8543048 | H165: 0.00125 | I165: 0.1139107 | K165: 2026-06-11T07:00:00 | L165: 819.7197742 | M165: 0
A166: System | B166: Region | C166: Island | D166: - | E166: 2032-01-07T18:00:00 | F166: 1625.689096 | G166: 41.3214639 | H166: 0.0008333 | I166: 0.0342921 | K166: 2026-06-12T11:00:00 | L166: 824.3338007 | M166: 0
A167: System | B167: Region | C167: Island | D167: - | E167: 2032-01-07T19:00:00 | F167: 1584.076974 | G167: 39.2890758 | H167: 0.0008333 | I167: 0.0060023 | K167: 2026-06-13T16:00:00 | L167: 904.069566 | M167: 0
A168: System | B168: Region | C168: Island | D168: - | E168: 2032-01-07T20:00:00 | F168: 1548.776406 | G168: 38.6523734 | H168: 0.0016667 | I168: 0.0561911 | K168: 2026-06-14T10:00:00 | L168: 1049.231214 | M168: 0
A169: System | B169: Region | C169: Island | D169: - | E169: 2032-01-07T21:00:00 | F169: 1487.437887 | G169: 38.4956269 | H169: 0 | I169: 0 | K169: 2026-06-15T08:00:00 | L169: 1050.749732 | M169: 0
A170: System | B170: Region | C170: Island | D170: - | E170: 2032-01-07T22:00:00 | F170: 1395.525331 | G170: 38.3848138 | H170: 0 | I170: 0 | K170: 2026-06-16T07:00:00 | L170: 913.6342243 | M170: 0
A171: System | B171: Region | C171: Island | D171: - | E171: 2032-01-07T23:00:00 | F171: 1252.963257 | G171: 28.4829759 | H171: 0 | I171: 0 | K171: 2026-06-17T11:00:00 | L171: 998.1919883 | M171: 0
A172: System | B172: Region | C172: Island | D172: - | E172: 2032-01-08 | F172: 1185.518991 | G172: 27.2890848 | H172: 0 | I172: 0 | K172: 2026-06-18T07:00:00 | L172: 881.0905186 | M172: 0
A173: System | B173: Region | C173: Island | D173: - | E173: 2032-01-08T01:00:00 | F173: 1156.837458 | G173: 27.112986 | H173: 0 | I173: 0 | K173: 2026-06-19T08:00:00 | L173: 750.5721055 | M173: 0
A174: System | B174: Region | C174: Island | D174: - | E174: 2032-01-08T02:00:00 | F174: 1155.507142 | G174: 27.1974603 | H174: 0 | I174: 0 | K174: 2026-06-20T11:00:00 | L174: 747.8936232 | M174: 0
A175: System | B175: Region | C175: Island | D175: - | E175: 2032-01-08T03:00:00 | F175: 1155.651699 | G175: 26.2178166 | H175: 0 | I175: 0 | K175: 2026-06-21T10:00:00 | L175: 737.6603211 | M175: 0
A176: System | B176: Region | C176: Island | D176: - | E176: 2032-01-08T04:00:00 | F176: 1167.751821 | G176: 27.1005325 | H176: 0 | I176: 0 | K176: 2026-06-22T11:00:00 | L176: 782.4906532 | M176: 0
A177: System | B177: Region | C177: Island | D177: - | E177: 2032-01-08T05:00:00 | F177: 1182.177336 | G177: 27.4559888 | H177: 0 | I177: 0 | K177: 2026-06-23T21:00:00 | L177: 851.1760937 | M177: 0
A178: System | B178: Region | C178: Island | D178: - | E178: 2032-01-08T06:00:00 | F178: 1228.603666 | G178: 28.1641227 | H178: 0 | I178: 0 | K178: 2026-06-24T09:00:00 | L178: 979.9661191 | M178: 0
A179: System | B179: Region | C179: Island | D179: - | E179: 2032-01-08T07:00:00 | F179: 1398.851972 | G179: 38.6939232 | H179: 0 | I179: 0 | K179: 2026-06-25T10:00:00 | L179: 1008.771 | M179: 0
A180: System | B180: Region | C180: Island | D180: - | E180: 2032-01-08T08:00:00 | F180: 1540.632838 | G180: 38.5965433 | H180: 0.0004167 | I180: 0.0250511 | K180: 2026-06-26T09:00:00 | L180: 995.4265728 | M180: 0
A181: System | B181: Region | C181: Island | D181: - | E181: 2032-01-08T09:00:00 | F181: 1577.631852 | G181: 39.0215482 | H181: 0.0004167 | I181: 0.0075203 | K181: 2026-06-27T10:00:00 | L181: 920.6033037 | M181: 0
A182: System | B182: Region | C182: Island | D182: - | E182: 2032-01-08T10:00:00 | F182: 1581.838061 | G182: 39.0883679 | H182: 0.00125 | I182: 0.1007187 | K182: 2026-06-28T11:00:00 | L182: 761.8404125 | M182: 0
A183: System | B183: Region | C183: Island | D183: - | E183: 2032-01-08T11:00:00 | F183: 1603.438639 | G183: 40.0711654 | H183: 0.0008333 | I183: 0.0123191 | K183: 2026-06-29T11:00:00 | L183: 831.3509404 | M183: 0
A184: System | B184: Region | C184: Island | D184: - | E184: 2032-01-08T12:00:00 | F184: 1598.269149 | G184: 40.0328861 | H184: 0.0008333 | I184: 0.0409167 | K184: 2026-06-30T09:00:00 | L184: 813.8519608 | M184: 0
A185: System | B185: Region | C185: Island | D185: - | E185: 2032-01-08T13:00:00 | F185: 1543.882919 | G185: 38.5043074 | H185: 0 | I185: 0 | K185: 2026-07-01T11:00:00 | L185: 722.7562756 | M185: 0
A186: System | B186: Region | C186: Island | D186: - | E186: 2032-01-08T14:00:00 | F186: 1499.821095 | G186: 38.3439917 | H186: 0 | I186: 0 | K186: 2026-07-02T16:00:00 | L186: 747.1865667 | M186: 0
A187: System | B187: Region | C187: Island | D187: - | E187: 2032-01-08T15:00:00 | F187: 1509.219091 | G187: 38.3298581 | H187: 0 | I187: 0 | K187: 2026-07-03T11:00:00 | L187: 765.0305755 | M187: 0
A188: System | B188: Region | C188: Island | D188: - | E188: 2032-01-08T16:00:00 | F188: 1544.791387 | G188: 38.3695482 | H188: 0 | I188: 0 | K188: 2026-07-04T11:00:00 | L188: 677.4644948 | M188: 0
A189: System | B189: Region | C189: Island | D189: - | E189: 2032-01-08T17:00:00 | F189: 1701.790681 | G189: 45.4128722 | H189: 0.0079167 | I189: 0.3840991 | K189: 2026-07-05T11:00:00 | L189: 710.8817529 | M189: 0
A190: System | B190: Region | C190: Island | D190: - | E190: 2032-01-08T18:00:00 | F190: 1687.206663 | G190: 44.7792347 | H190: 0.0066667 | I190: 0.2636395 | K190: 2026-07-06T11:00:00 | L190: 860.3672247 | M190: 0
A191: System | B191: Region | C191: Island | D191: - | E191: 2032-01-08T19:00:00 | F191: 1645.038834 | G191: 42.2833327 | H191: 0.00375 | I191: 0.1669319 | K191: 2026-07-07T10:00:00 | L191: 836.4381701 | M191: 0
A192: System | B192: Region | C192: Island | D192: - | E192: 2032-01-08T20:00:00 | F192: 1618.892842 | G192: 40.9545159 | H192: 0.0016667 | I192: 0.0514827 | K192: 2026-07-08T11:00:00 | L192: 770.6453106 | M192: 0
A193: System | B193: Region | C193: Island | D193: - | E193: 2032-01-08T21:00:00 | F193: 1565.117937 | G193: 38.6169572 | H193: 0.0004167 | I193: 0.0039704 | K193: 2026-07-09T11:00:00 | L193: 700.5619334 | M193: 0
A194: System | B194: Region | C194: Island | D194: - | E194: 2032-01-08T22:00:00 | F194: 1472.630548 | G194: 38.4907799 | H194: 0 | I194: 0 | K194: 2026-07-10T10:00:00 | L194: 728.513579 | M194: 0
A195: System | B195: Region | C195: Island | D195: - | E195: 2032-01-08T23:00:00 | F195: 1314.714005 | G195: 31.2098833 | H195: 0 | I195: 0 | K195: 2026-07-11T11:00:00 | L195: 770.5277581 | M195: 0
A196: System | B196: Region | C196: Island | D196: - | E196: 2032-01-09 | F196: 1234.847588 | G196: 29.4369429 | H196: 0 | I196: 0 | K196: 2026-07-12T09:00:00 | L196: 741.7155098 | M196: 0
A197: System | B197: Region | C197: Island | D197: - | E197: 2032-01-09T01:00:00 | F197: 1215.601296 | G197: 28.5018603 | H197: 0 | I197: 0 | K197: 2026-07-13T11:00:00 | L197: =MAX(OFFSET($F$4:$F$27,(ROW()-4)*24,0)) -> 829.6598887 | M197: =VLOOKUP(L197,OFFSET($F$4:$H$27,(ROW()-4)*24,0),3,FALSE) -> 0
A198: System | B198: Region | C198: Island | D198: - | E198: 2032-01-09T02:00:00 | F198: 1218.038911 | G198: 29.4420401 | H198: 0 | I198: 0 | K198: 2026-07-14T11:00:00 | L198: 733.123667 | M198: 0
A199: System | B199: Region | C199: Island | D199: - | E199: 2032-01-09T03:00:00 | F199: 1228.403811 | G199: 29.3934159 | H199: 0 | I199: 0 | K199: 2026-07-15T12:00:00 | L199: 670.6089006 | M199: 0
A200: System | B200: Region | C200: Island | D200: - | E200: 2032-01-09T04:00:00 | F200: 1247.785482 | G200: 29.3272747 | H200: 0 | I200: 0 | K200: 2026-07-16T11:00:00 | L200: 761.9202094 | M200: 0
A201: System | B201: Region | C201: Island | D201: - | E201: 2032-01-09T05:00:00 | F201: 1284.521859 | G201: 30.6572345 | H201: 0 | I201: 0 | K201: 2026-07-17T10:00:00 | L201: 735.0766833 | M201: 0
A202: System | B202: Region | C202: Island | D202: - | E202: 2032-01-09T06:00:00 | F202: 1397.698601 | G202: 33.4358465 | H202: 0 | I202: 0 | K202: 2026-07-18T11:00:00 | L202: 733.9736412 | M202: 0
... 8585 more rows

Sheet Run 3
A3: Parent Name | B3: Collection | C3: Child Name | D3: Category | E3: Datetime | F3: Load (MW) | G3: Transmission Losses (MW) | H3: Unserved Energy Hours (h) | I3: Unserved Energy (MW) | K3: Daily Peak | L3: Daily Peak Load | M3: Average Unserved Energy Hours
A4: System | B4: Region | C4: Island | D4: - | E4: 2032-01-01 | F4: 1276.728765 | G4: 29.5469063 | H4: 0 | I4: 0 | K4: 2026-01-01T17:00:00 | L4: =MAX(OFFSET($F$4:$F$27,(ROW()-4)*24,0)) -> 1589.891953 | M4: =VLOOKUP(L4,OFFSET($F$4:$H$27,(ROW()-4)*24,0),3,FALSE) -> 0.0016667 | P4: LOLE | Q4: =SUM(M4:M368) -> 0.1095837
A5: System | B5: Region | C5: Island | D5: - | E5: 2032-01-01T01:00:00 | F5: 1230.434137 | G5: 28.4675266 | H5: 0 | I5: 0 | K5: 2026-01-02T17:00:00 | L5: =MAX(OFFSET($F$4:$F$27,(ROW()-4)*24,0)) -> 1337.816154 | M5: =VLOOKUP(L5,OFFSET($F$4:$H$27,(ROW()-4)*24,0),3,FALSE) -> 0 | P5: LOLH | Q5: =SUM(H4:H8763) -> 0.3420857
A6: System | B6: Region | C6: Island | D6: - | E6: 2032-01-01T02:00:00 | F6: 1208.230237 | G6: 27.8675686 | H6: 0 | I6: 0 | K6: 2026-01-03T20:00:00 | L6: 1735.124634 | M6: 0.0066667 | P6: EUE | Q6: =SUM(I4:I8763) -> 15.2777472
A7: System | B7: Region | C7: Island | D7: - | E7: 2032-01-01T03:00:00 | F7: 1196.30625 | G7: 27.2061401 | H7: 0 | I7: 0 | K7: 2026-01-04T17:00:00 | L7: 1740.466003 | M7: 0.0166667 | P7: Peak | Q7: =MAX(F4:F8763) -> 1755.532405
A8: System | B8: Region | C8: Island | D8: - | E8: 2032-01-01T04:00:00 | F8: 1195.521313 | G8: 27.3293046 | H8: 0 | I8: 0 | K8: 2026-01-05T17:00:00 | L8: 1300.375001 | M8: 0 | P8: Loss @ Peak | Q8: =VLOOKUP(Q7,F4:G8763,2,FALSE) -> 48.0970512
A9: System | B9: Region | C9: Island | D9: - | E9: 2032-01-01T05:00:00 | F9: 1207.265239 | G9: 28.0492277 | H9: 0 | I9: 0 | K9: 2026-01-06T17:00:00 | L9: 1737.668012 | M9: 0.0079167 | P9: Peak with Losses | Q9: =Q7+Q8 -> 1803.629456
A10: System | B10: Region | C10: Island | D10: - | E10: 2032-01-01T06:00:00 | F10: 1236.321409 | G10: 28.6813882 | H10: 0 | I10: 0 | K10: 2026-01-07T17:00:00 | L10: 1655.581981 | M10: 0.0025 | P10: Peak Losses | Q10: =MAX(G4:G8763) -> 48.0970512
A11: System | B11: Region | C11: Island | D11: - | E11: 2032-01-01T07:00:00 | F11: 1298.219763 | G11: 36.0013931 | H11: 0 | I11: 0 | K11: 2026-01-08T17:00:00 | L11: 1705.316121 | M11: 0.0041667 | P11: Firm Capacity | Q11: 2452.74
A12: System | B12: Region | C12: Island | D12: - | E12: 2032-01-01T08:00:00 | F12: 1361.380476 | G12: 37.4145006 | H12: 0 | I12: 0 | K12: 2026-01-09T08:00:00 | L12: 1738.977643 | M12: 0.0104167 | P12: Reserve Margin | Q12: =Q11-Q7 -> 697.2075952
A13: System | B13: Region | C13: Island | D13: - | E13: 2032-01-01T09:00:00 | F13: 1382.369458 | G13: 38.2905353 | H13: 0 | I13: 0 | K13: 2026-01-10T17:00:00 | L13: 1451.442023 | M13: 0 | P13: Reserve Margin % | Q13: =Q12/Q7 -> 0.3971488041
A14: System | B14: Region | C14: Island | D14: - | E14: 2032-01-01T10:00:00 | F14: 1402.769592 | G14: 38.3286772 | H14: 0 | I14: 0 | K14: 2026-01-11T20:00:00 | L14: 1637.903409 | M14: 0.0029167 | P14: Reserve Magin w/Loss | Q14: =Q11-Q9 -> 649.110544
A15: System | B15: Region | C15: Island | D15: - | E15: 2032-01-01T11:00:00 | F15: 1431.184662 | G15: 39.0993725 | H15: 0 | I15: 0 | K15: 2026-01-12T08:00:00 | L15: 1693.996331 | M15: 0.0058333 | P15: Reserve Margin % w/ Loss | Q15: =Q14/Q9 -> 0.3598912969
A16: System | B16: Region | C16: Island | D16: - | E16: 2032-01-01T12:00:00 | F16: 1446.513339 | G16: 39.1709717 | H16: 0 | I16: 0 | K16: 2026-01-13T18:00:00 | L16: 1669.815778 | M16: 0.0041667
A17: System | B17: Region | C17: Island | D17: - | E17: 2032-01-01T13:00:00 | F17: 1445.352974 | G17: 39.4166798 | H17: 0.0004167 | I17: 0.0034167 | K17: 2026-01-14T08:00:00 | L17: 1755.532405 | M17: 0.0141667 | P17: Checks
A18: System | B18: Region | C18: Island | D18: - | E18: 2032-01-01T14:00:00 | F18: 1446.894469 | G18: 39.2234294 | H18: 0 | I18: 0 | K18: 2026-01-15T08:00:00 | L18: 1524.024042 | M18: 0 | P18: Island Energy (Original) | Q18: 8410
A19: System | B19: Region | C19: Island | D19: - | E19: 2032-01-01T15:00:00 | F19: 1460.118414 | G19: 39.4015292 | H19: 0 | I19: 0 | K19: 2026-01-16T17:00:00 | L19: 1358.950666 | M19: 0 | P19: Island Energy (Escalated) | Q19: =SUM(F4:F8787)/1000 -> 8325.822104
A20: System | B20: Region | C20: Island | D20: - | E20: 2032-01-01T16:00:00 | F20: 1486.901987 | G20: 38.7460845 | H20: 0 | I20: 0 | K20: 2026-01-17T20:00:00 | L20: 1378.773345 | M20: 0 | P20: Escalation Factor Check | Q20: =Q19/Q18 -> 0.9899907377
A21: System | B21: Region | C21: Island | D21: - | E21: 2032-01-01T17:00:00 | F21: 1589.891953 | G21: 39.4346204 | H21: 0.0016667 | I21: 0.0622807 | K21: 2026-01-18T18:00:00 | L21: 1534.241549 | M21: 0.0004167
A22: System | B22: Region | C22: Island | D22: - | E22: 2032-01-01T18:00:00 | F22: 1536.15543 | G22: 38.3865537 | H22: 0 | I22: 0 | K22: 2026-01-19T08:00:00 | L22: 1403.788414 | M22: 0 | P22: Island Peak (Original) | Q22: 1773
A23: System | B23: Region | C23: Island | D23: - | E23: 2032-01-01T19:00:00 | F23: 1489.668057 | G23: 38.7132886 | H23: 0 | I23: 0 | K23: 2026-01-20T18:00:00 | L23: 1240.095516 | M23: 0 | P23: Island Peak (Escalated) | Q23: =MAX(F4:F8763) -> 1755.532405
A24: System | B24: Region | C24: Island | D24: - | E24: 2032-01-01T20:00:00 | F24: 1458.745078 | G24: 39.2980354 | H24: 0 | I24: 0 | K24: 2026-01-21T18:00:00 | L24: 1355.125013 | M24: 0 | P24: Escalation Factor Check | Q24: =Q23/Q22 -> 0.9901480005
A25: System | B25: Region | C25: Island | D25: - | E25: 2032-01-01T21:00:00 | F25: 1407.630744 | G25: 38.9577794 | H25: 0 | I25: 0 | K25: 2026-01-22T08:00:00 | L25: 1385.731761 | M25: 0
A26: System | B26: Region | C26: Island | D26: - | E26: 2032-01-01T22:00:00 | F26: 1323.842792 | G26: 36.5162923 | H26: 0 | I26: 0 | K26: 2026-01-23T18:00:00 | L26: 1440.312535 | M26: 0
A27: System | B27: Region | C27: Island | D27: - | E27: 2032-01-01T23:00:00 | F27: 1210.200855 | G27: 28.3846882 | H27: 0 | I27: 0 | K27: 2026-01-24T10:00:00 | L27: 1453.212258 | M27: 0
A28: System | B28: Region | C28: Island | D28: - | E28: 2032-01-02 | F28: 1153.026888 | G28: 25.5070608 | H28: 0 | I28: 0 | K28: 2026-01-25T18:00:00 | L28: 1276.133991 | M28: 0
A29: System | B29: Region | C29: Island | D29: - | E29: 2032-01-02T01:00:00 | F29: 1116.670957 | G29: 25.0396024 | H29: 0 | I29: 0 | K29: 2026-01-26T18:00:00 | L29: 1598.22347 | M29: 0.0004167
A30: System | B30: Region | C30: Island | D30: - | E30: 2032-01-02T02:00:00 | F30: 1105.573533 | G30: 23.9908341 | H30: 0 | I30: 0 | K30: 2026-01-27T17:00:00 | L30: 1744.774505 | M30: 0.00875
A31: System | B31: Region | C31: Island | D31: - | E31: 2032-01-02T03:00:00 | F31: 1103.700194 | G31: 24.460416 | H31: 0 | I31: 0 | K31: 2026-01-28T08:00:00 | L31: 1228.393523 | M31: 0
A32: System | B32: Region | C32: Island | D32: - | E32: 2032-01-02T04:00:00 | F32: 1110.131636 | G32: 23.961947 | H32: 0 | I32: 0 | K32: 2026-01-29T18:00:00 | L32: 1204.806095 | M32: 0
A33: System | B33: Region | C33: Island | D33: - | E33: 2032-01-02T05:00:00 | F33: 1119.477393 | G33: 24.3739368 | H33: 0 | I33: 0 | K33: 2026-01-30T12:00:00 | L33: 1371.751403 | M33: 0
A34: System | B34: Region | C34: Island | D34: - | E34: 2032-01-02T06:00:00 | F34: 1144.402683 | G34: 25.1384912 | H34: 0 | I34: 0 | K34: 2026-01-31T18:00:00 | L34: 1279.458016 | M34: 0
A35: System | B35: Region | C35: Island | D35: - | E35: 2032-01-02T07:00:00 | F35: 1190.01138 | G35: 32.5943894 | H35: 0 | I35: 0 | K35: 2026-02-01T10:00:00 | L35: 1163.790669 | M35: 0
A36: System | B36: Region | C36: Island | D36: - | E36: 2032-01-02T08:00:00 | F36: 1221.603411 | G36: 33.1990046 | H36: 0 | I36: 0 | K36: 2026-02-02T17:00:00 | L36: 1569.805308 | M36: 0.0004167
A37: System | B37: Region | C37: Island | D37: - | E37: 2032-01-02T09:00:00 | F37: 1274.621256 | G37: 35.5892436 | H37: 0 | I37: 0 | K37: 2026-02-03T18:00:00 | L37: 1426.838957 | M37: 0
A38: System | B38: Region | C38: Island | D38: - | E38: 2032-01-02T10:00:00 | F38: 1273.062813 | G38: 35.1501013 | H38: 0 | I38: 0 | K38: 2026-02-04T08:00:00 | L38: 1545.348371 | M38: 0.0008333
A39: System | B39: Region | C39: Island | D39: - | E39: 2032-01-02T11:00:00 | F39: 1285.997371 | G39: 35.6985838 | H39: 0 | I39: 0 | K39: 2026-02-05T08:00:00 | L39: 1601.672004 | M39: 0.0008333
A40: System | B40: Region | C40: Island | D40: - | E40: 2032-01-02T12:00:00 | F40: 1270.383553 | G40: 34.8549499 | H40: 0 | I40: 0 | K40: 2026-02-06T12:00:00 | L40: 1280.406637 | M40: 0
A41: System | B41: Region | C41: Island | D41: - | E41: 2032-01-02T13:00:00 | F41: 1239.580021 | G41: 33.5689158 | H41: 0 | I41: 0 | K41: 2026-02-07T18:00:00 | L41: 1479.922985 | M41: 0
A42: System | B42: Region | C42: Island | D42: - | E42: 2032-01-02T14:00:00 | F42: 1196.816016 | G42: 32.1599449 | H42: 0 | I42: 0 | K42: 2026-02-08T19:00:00 | L42: 1521.757711 | M42: 0
A43: System | B43: Region | C43: Island | D43: - | E43: 2032-01-02T15:00:00 | F43: 1181.369742 | G43: 32.2679451 | H43: 0 | I43: 0 | K43: 2026-02-09T08:00:00 | L43: 1693.022495 | M43: 0.0033333
A44: System | B44: Region | C44: Island | D44: - | E44: 2032-01-02T16:00:00 | F44: 1195.990046 | G44: 32.6970926 | H44: 0 | I44: 0 | K44: 2026-02-10T08:00:00 | L44: 1645.838373 | M44: 0.0025
A45: System | B45: Region | C45: Island | D45: - | E45: 2032-01-02T17:00:00 | F45: 1337.816154 | G45: 37.0048742 | H45: 0 | I45: 0 | K45: 2026-02-11T18:00:00 | L45: 1470.925873 | M45: 0
A46: System | B46: Region | C46: Island | D46: - | E46: 2032-01-02T18:00:00 | F46: 1306.183153 | G46: 36.0071946 | H46: 0 | I46: 0 | K46: 2026-02-12T12:00:00 | L46: 1643.395673 | M46: 0.0016667
A47: System | B47: Region | C47: Island | D47: - | E47: 2032-01-02T19:00:00 | F47: 1244.163084 | G47: 34.5089002 | H47: 0 | I47: 0 | K47: 2026-02-13T08:00:00 | L47: 1473.375127 | M47: 0
A48: System | B48: Region | C48: Island | D48: - | E48: 2032-01-02T20:00:00 | F48: 1232.044391 | G48: 34.3934721 | H48: 0 | I48: 0 | K48: 2026-02-14T18:00:00 | L48: 1393.836282 | M48: 0
A49: System | B49: Region | C49: Island | D49: - | E49: 2032-01-02T21:00:00 | F49: 1209.1113 | G49: 32.8722057 | H49: 0 | I49: 0 | K49: 2026-02-15T18:00:00 | L49: 1365.397329 | M49: 0
A50: System | B50: Region | C50: Island | D50: - | E50: 2032-01-02T22:00:00 | F50: 1178.470843 | G50: 31.9430072 | H50: 0 | I50: 0 | K50: 2026-02-16T18:00:00 | L50: 1388.96895 | M50: 0
A51: System | B51: Region | C51: Island | D51: - | E51: 2032-01-02T23:00:00 | F51: 1143.934497 | G51: 25.2991343 | H51: 0 | I51: 0 | K51: 2026-02-17T18:00:00 | L51: 1505.596332 | M51: 0.0004167
A52: System | B52: Region | C52: Island | D52: - | E52: 2032-01-03 | F52: 1101.335001 | G52: 24.0262795 | H52: 0 | I52: 0 | K52: 2026-02-18T08:00:00 | L52: 1472.169676 | M52: 0
A53: System | B53: Region | C53: Island | D53: - | E53: 2032-01-03T01:00:00 | F53: 1077.702737 | G53: 22.9353266 | H53: 0 | I53: 0 | K53: 2026-02-19T18:00:00 | L53: 1335.72555 | M53: 0
A54: System | B54: Region | C54: Island | D54: - | E54: 2032-01-03T02:00:00 | F54: 1080.380258 | G54: 23.5210305 | H54: 0 | I54: 0 | K54: 2026-02-20T08:00:00 | L54: 1198.204219 | M54: 0
A55: System | B55: Region | C55: Island | D55: - | E55: 2032-01-03T03:00:00 | F55: 1082.302076 | G55: 23.1039289 | H55: 0 | I55: 0 | K55: 2026-02-21T19:00:00 | L55: 1450.064465 | M55: 0
A56: System | B56: Region | C56: Island | D56: - | E56: 2032-01-03T04:00:00 | F56: 1092.592482 | G56: 23.6718271 | H56: 0 | I56: 0 | K56: 2026-02-22T10:00:00 | L56: 1376.809079 | M56: 0
A57: System | B57: Region | C57: Island | D57: - | E57: 2032-01-03T05:00:00 | F57: 1100.172787 | G57: 23.8921126 | H57: 0 | I57: 0 | K57: 2026-02-23T18:00:00 | L57: 1218.805024 | M57: 0
A58: System | B58: Region | C58: Island | D58: - | E58: 2032-01-03T06:00:00 | F58: 1119.400842 | G58: 24.4246948 | H58: 0 | I58: 0 | K58: 2026-02-24T19:00:00 | L58: 1607.083037 | M58: 0.0004167
A59: System | B59: Region | C59: Island | D59: - | E59: 2032-01-03T07:00:00 | F59: 1157.694794 | G59: 31.5438127 | H59: 0 | I59: 0 | K59: 2026-02-25T08:00:00 | L59: 1608.02941 | M59: 0.0008333
A60: System | B60: Region | C60: Island | D60: - | E60: 2032-01-03T08:00:00 | F60: 1197.126133 | G60: 32.5729269 | H60: 0 | I60: 0 | K60: 2026-02-26T08:00:00 | L60: 1338.802019 | M60: 0
A61: System | B61: Region | C61: Island | D61: - | E61: 2032-01-03T09:00:00 | F61: 1291.611864 | G61: 36.3392853 | H61: 0 | I61: 0 | K61: 2026-02-27T08:00:00 | L61: 1360.8445 | M61: 0
A62: System | B62: Region | C62: Island | D62: - | E62: 2032-01-03T10:00:00 | F62: 1303.723953 | G62: 36.2155468 | H62: 0 | I62: 0 | K62: 2026-02-28T19:00:00 | L62: 1516.051269 | M62: 0
A63: System | B63: Region | C63: Island | D63: - | E63: 2032-01-03T11:00:00 | F63: 1286.441659 | G63: 35.7508594 | H63: 0 | I63: 0 | K63: 2026-03-01T10:00:00 | L63: 1272.537579 | M63: 0
A64: System | B64: Region | C64: Island | D64: - | E64: 2032-01-03T12:00:00 | F64: 1306.299235 | G64: 35.9848267 | H64: 0 | I64: 0 | K64: 2026-03-02T09:00:00 | L64: 1499.583346 | M64: 0
A65: System | B65: Region | C65: Island | D65: - | E65: 2032-01-03T13:00:00 | F65: 1307.760008 | G65: 36.41516 | H65: 0 | I65: 0 | K65: 2026-03-03T19:00:00 | L65: 1540.542056 | M65: 0
A66: System | B66: Region | C66: Island | D66: - | E66: 2032-01-03T14:00:00 | F66: 1355.430702 | G66: 37.612428 | H66: 0 | I66: 0 | K66: 2026-03-04T07:00:00 | L66: 1479.907477 | M66: 0
A67: System | B67: Region | C67: Island | D67: - | E67: 2032-01-03T15:00:00 | F67: 1366.185781 | G67: 37.8376605 | H67: 0 | I67: 0 | K67: 2026-03-05T20:00:00 | L67: 1430.573832 | M67: 0
A68: System | B68: Region | C68: Island | D68: - | E68: 2032-01-03T16:00:00 | F68: 1456.607832 | G68: 38.7461322 | H68: 0 | I68: 0 | K68: 2026-03-06T08:00:00 | L68: 1584.15507 | M68: 0.0004167
A69: System | B69: Region | C69: Island | D69: - | E69: 2032-01-03T17:00:00 | F69: 1714.079106 | G69: 46.2766125 | H69: 0.0058333 | I69: 0.2211794 | K69: 2026-03-07T08:00:00 | L69: =MAX(OFFSET($F$4:$F$27,(ROW()-4)*24,0)) -> 1464.862681 | M69: =VLOOKUP(L69,OFFSET($F$4:$H$27,(ROW()-4)*24,0),3,FALSE) -> 0
A70: System | B70: Region | C70: Island | D70: - | E70: 2032-01-03T18:00:00 | F70: 1687.163956 | G70: 44.9956193 | H70: 0.0054167 | I70: 0.2328731 | K70: 2026-03-08T08:00:00 | L70: 1327.555603 | M70: 0
A71: System | B71: Region | C71: Island | D71: - | E71: 2032-01-03T19:00:00 | F71: 1696.000391 | G71: 45.2470518 | H71: 0.0075 | I71: 0.3330338 | K71: 2026-03-09T07:00:00 | L71: 1461.506712 | M71: 0
A72: System | B72: Region | C72: Island | D72: - | E72: 2032-01-03T20:00:00 | F72: 1735.124634 | G72: 47.0899779 | H72: 0.0066667 | I72: 0.4575829 | K72: 2026-03-10T07:00:00 | L72: 1623.461329 | M72: 0.0025
A73: System | B73: Region | C73: Island | D73: - | E73: 2032-01-03T21:00:00 | F73: 1713.283343 | G73: 46.2031483 | H73: 0.005 | I73: 0.2019622 | K73: 2026-03-11T07:00:00 | L73: 1510.865856 | M73: 0
A74: System | B74: Region | C74: Island | D74: - | E74: 2032-01-03T22:00:00 | F74: 1670.444975 | G74: 44.0627532 | H74: 0.0016667 | I74: 0.0301871 | K74: 2026-03-12T19:00:00 | L74: 1433.515076 | M74: 0
A75: System | B75: Region | C75: Island | D75: - | E75: 2032-01-03T23:00:00 | F75: 1533.412637 | G75: 37.6333208 | H75: 0 | I75: 0 | K75: 2026-03-13T08:00:00 | L75: 1606.195992 | M75: 0.0008333
A76: System | B76: Region | C76: Island | D76: - | E76: 2032-01-04 | F76: 1419.223097 | G76: 35.3625655 | H76: 0 | I76: 0 | K76: 2026-03-14T10:00:00 | L76: 1538.784907 | M76: 0
A77: System | B77: Region | C77: Island | D77: - | E77: 2032-01-04T01:00:00 | F77: 1258.993464 | G77: 32.1805188 | H77: 0 | I77: 0 | K77: 2026-03-15T09:00:00 | L77: 1483.175466 | M77: 0
A78: System | B78: Region | C78: Island | D78: - | E78: 2032-01-04T02:00:00 | F78: 1235.921379 | G78: 31.5153355 | H78: 0 | I78: 0 | K78: 2026-03-16T10:00:00 | L78: 1531.141082 | M78: 0
A79: System | B79: Region | C79: Island | D79: - | E79: 2032-01-04T03:00:00 | F79: 1287.381158 | G79: 33.3623217 | H79: 0 | I79: 0 | K79: 2026-03-17T07:00:00 | L79: 1311.907841 | M79: 0
A80: System | B80: Region | C80: Island | D80: - | E80: 2032-01-04T04:00:00 | F80: 1325.41915 | G80: 34.0867657 | H80: 0 | I80: 0 | K80: 2026-03-18T16:00:00 | L80: 1298.26476 | M80: 0
A81: System | B81: Region | C81: Island | D81: - | E81: 2032-01-04T05:00:00 | F81: 1315.495798 | G81: 33.6678696 | H81: 0 | I81: 0 | K81: 2026-03-19T07:00:00 | L81: 1258.844404 | M81: 0
A82: System | B82: Region | C82: Island | D82: - | E82: 2032-01-04T06:00:00 | F82: 1390.055618 | G82: 35.0152986 | H82: 0 | I82: 0 | K82: 2026-03-20T07:00:00 | L82: 1372.624708 | M82: 0
A83: System | B83: Region | C83: Island | D83: - | E83: 2032-01-04T07:00:00 | F83: 1449.541221 | G83: 37.9473594 | H83: 0 | I83: 0 | K83: 2026-03-21T08:00:00 | L83: 1270.152396 | M83: 0
A84: System | B84: Region | C84: Island | D84: - | E84: 2032-01-04T08:00:00 | F84: 1501.572083 | G84: 38.285031 | H84: 0 | I84: 0 | K84: 2026-03-22T10:00:00 | L84: 1367.052969 | M84: 0
A85: System | B85: Region | C85: Island | D85: - | E85: 2032-01-04T09:00:00 | F85: 1663.750854 | G85: 43.6947037 | H85: 0.0029167 | I85: 0.1599196 | K85: 2026-03-23T19:00:00 | L85: 1460.172689 | M85: 0
A86: System | B86: Region | C86: Island | D86: - | E86: 2032-01-04T10:00:00 | F86: 1684.25425 | G86: 44.7296379 | H86: 0.0058333 | I86: 0.2955222 | K86: 2026-03-24T07:00:00 | L86: 1417.899583 | M86: 0
A87: System | B87: Region | C87: Island | D87: - | E87: 2032-01-04T11:00:00 | F87: 1657.61229 | G87: 43.1577798 | H87: 0.00375 | I87: 0.1587948 | K87: 2026-03-25T07:00:00 | L87: 1388.702574 | M87: 0
A88: System | B88: Region | C88: Island | D88: - | E88: 2032-01-04T12:00:00 | F88: 1608.806436 | G88: 40.28506 | H88: 0.0004167 | I88: 0.0096366 | K88: 2026-03-26T07:00:00 | L88: 1356.342259 | M88: 0
A89: System | B89: Region | C89: Island | D89: - | E89: 2032-01-04T13:00:00 | F89: 1574.11441 | G89: 39.0725169 | H89: 0.0004167 | I89: 0.002953 | K89: 2026-03-27T07:00:00 | L89: 1168.841084 | M89: 0
A90: System | B90: Region | C90: Island | D90: - | E90: 2032-01-04T14:00:00 | F90: 1566.176663 | G90: 38.7130319 | H90: 0.0004167 | I90: 0.0060781 | K90: 2026-03-28T19:00:00 | L90: 1150.383096 | M90: 0
A91: System | B91: Region | C91: Island | D91: - | E91: 2032-01-04T15:00:00 | F91: 1594.710339 | G91: 40.202773 | H91: 0 | I91: 0 | K91: 2026-03-29T20:00:00 | L91: 1200.977273 | M91: 0
A92: System | B92: Region | C92: Island | D92: - | E92: 2032-01-04T16:00:00 | F92: 1656.633061 | G92: 43.0133416 | H92: 0.0016667 | I92: 0.0943005 | K92: 2026-03-30T07:00:00 | L92: 1326.672122 | M92: 0
A93: System | B93: Region | C93: Island | D93: - | E93: 2032-01-04T17:00:00 | F93: 1740.466003 | G93: 47.4996152 | H93: 0.0166667 | I93: 0.9334126 | K93: 2026-03-31T07:00:00 | L93: 1293.901232 | M93: 0
A94: System | B94: Region | C94: Island | D94: - | E94: 2032-01-04T18:00:00 | F94: 1710.151345 | G94: 45.9792853 | H94: 0.00625 | I94: 0.2706568 | K94: 2026-04-01T07:00:00 | L94: 1216.212716 | M94: 0
A95: System | B95: Region | C95: Island | D95: - | E95: 2032-01-04T19:00:00 | F95: 1681.223597 | G95: 44.4059445 | H95: 0.0033333 | I95: 0.1726749 | K95: 2026-04-02T20:00:00 | L95: 1280.389742 | M95: 0
A96: System | B96: Region | C96: Island | D96: - | E96: 2032-01-04T20:00:00 | F96: 1677.81439 | G96: 44.1487804 | H96: 0.0033333 | I96: 0.1096784 | K96: 2026-04-03T08:00:00 | L96: 1221.85108 | M96: 0
A97: System | B97: Region | C97: Island | D97: - | E97: 2032-01-04T21:00:00 | F97: 1625.63427 | G97: 41.3603113 | H97: 0.00125 | I97: 0.012451 | K97: 2026-04-04T09:00:00 | L97: 1139.345446 | M97: 0
A98: System | B98: Region | C98: Island | D98: - | E98: 2032-01-04T22:00:00 | F98: 1480.348296 | G98: 38.0282272 | H98: 0 | I98: 0 | K98: 2026-04-05T20:00:00 | L98: 1316.395143 | M98: 0
A99: System | B99: Region | C99: Island | D99: - | E99: 2032-01-04T23:00:00 | F99: 1305.584071 | G99: 33.4546834 | H99: 0 | I99: 0 | K99: 2026-04-06T20:00:00 | L99: 1362.214189 | M99: 0
A100: System | B100: Region | C100: Island | D100: - | E100: 2032-01-05 | F100: 1193.501994 | G100: 26.2968995 | H100: 0 | I100: 0 | K100: 2026-04-07T07:00:00 | L100: 1411.217367 | M100: 0
A101: System | B101: Region | C101: Island | D101: - | E101: 2032-01-05T01:00:00 | F101: 1159.465043 | G101: 25.5454458 | H101: 0 | I101: 0 | K101: 2026-04-08T07:00:00 | L101: 1366.223878 | M101: 0
A102: System | B102: Region | C102: Island | D102: - | E102: 2032-01-05T02:00:00 | F102: 1143.503927 | G102: 25.1376662 | H102: 0 | I102: 0 | K102: 2026-04-09T07:00:00 | L102: 1420.783321 | M102: 0
A103: System | B103: Region | C103: Island | D103: - | E103: 2032-01-05T03:00:00 | F103: 1133.158288 | G103: 25.0720176 | H103: 0 | I103: 0 | K103: 2026-04-10T07:00:00 | L103: 1379.395387 | M103: 0
A104: System | B104: Region | C104: Island | D104: - | E104: 2032-01-05T04:00:00 | F104: 1129.989249 | G104: 24.929507 | H104: 0 | I104: 0 | K104: 2026-04-11T09:00:00 | L104: 1295.540745 | M104: 0
A105: System | B105: Region | C105: Island | D105: - | E105: 2032-01-05T05:00:00 | F105: 1130.003141 | G105: 25.3437454 | H105: 0 | I105: 0 | K105: 2026-04-12T09:00:00 | L105: 1126.263693 | M105: 0
A106: System | B106: Region | C106: Island | D106: - | E106: 2032-01-05T06:00:00 | F106: 1149.575834 | G106: 25.5836095 | H106: 0 | I106: 0 | K106: 2026-04-13T07:00:00 | L106: 1222.766964 | M106: 0
A107: System | B107: Region | C107: Island | D107: - | E107: 2032-01-05T07:00:00 | F107: 1220.699435 | G107: 33.6845249 | H107: 0 | I107: 0 | K107: 2026-04-14T07:00:00 | L107: 1125.390834 | M107: 0
A108: System | B108: Region | C108: Island | D108: - | E108: 2032-01-05T08:00:00 | F108: 1273.700054 | G108: 34.8041138 | H108: 0 | I108: 0 | K108: 2026-04-15T07:00:00 | L108: 1044.28677 | M108: 0
A109: System | B109: Region | C109: Island | D109: - | E109: 2032-01-05T09:00:00 | F109: 1252.617136 | G109: 34.2674343 | H109: 0 | I109: 0 | K109: 2026-04-16T20:00:00 | L109: 1399.116593 | M109: 0
A110: System | B110: Region | C110: Island | D110: - | E110: 2032-01-05T10:00:00 | F110: 1248.207077 | G110: 34.3463147 | H110: 0 | I110: 0 | K110: 2026-04-17T07:00:00 | L110: 1409.875352 | M110: 0
A111: System | B111: Region | C111: Island | D111: - | E111: 2032-01-05T11:00:00 | F111: 1234.341462 | G111: 34.3307023 | H111: 0 | I111: 0 | K111: 2026-04-18T20:00:00 | L111: 1075.323484 | M111: 0
A112: System | B112: Region | C112: Island | D112: - | E112: 2032-01-05T12:00:00 | F112: 1215.783554 | G112: 33.5383815 | H112: 0 | I112: 0 | K112: 2026-04-19T09:00:00 | L112: 1212.576237 | M112: 0
A113: System | B113: Region | C113: Island | D113: - | E113: 2032-01-05T13:00:00 | F113: 1189.825425 | G113: 32.411762 | H113: 0 | I113: 0 | K113: 2026-04-20T07:00:00 | L113: 1303.142815 | M113: 0
A114: System | B114: Region | C114: Island | D114: - | E114: 2032-01-05T14:00:00 | F114: 1170.238403 | G114: 31.8465869 | H114: 0 | I114: 0 | K114: 2026-04-21T07:00:00 | L114: 1286.263534 | M114: 0
A115: System | B115: Region | C115: Island | D115: - | E115: 2032-01-05T15:00:00 | F115: 1168.484798 | G115: 31.9072142 | H115: 0 | I115: 0 | K115: 2026-04-22T07:00:00 | L115: 1265.849271 | M115: 0
A116: System | B116: Region | C116: Island | D116: - | E116: 2032-01-05T16:00:00 | F116: 1192.396902 | G116: 32.2617128 | H116: 0 | I116: 0 | K116: 2026-04-23T07:00:00 | L116: 1137.44443 | M116: 0
A117: System | B117: Region | C117: Island | D117: - | E117: 2032-01-05T17:00:00 | F117: 1300.375001 | G117: 36.3437796 | H117: 0 | I117: 0 | K117: 2026-04-24T07:00:00 | L117: 1107.817152 | M117: 0
A118: System | B118: Region | C118: Island | D118: - | E118: 2032-01-05T18:00:00 | F118: 1290.736464 | G118: 35.881336 | H118: 0 | I118: 0 | K118: 2026-04-25T11:00:00 | L118: 1148.651648 | M118: 0
A119: System | B119: Region | C119: Island | D119: - | E119: 2032-01-05T19:00:00 | F119: 1282.647295 | G119: 35.678142 | H119: 0 | I119: 0 | K119: 2026-04-26T11:00:00 | L119: 1117.253575 | M119: 0
A120: System | B120: Region | C120: Island | D120: - | E120: 2032-01-05T20:00:00 | F120: 1271.748239 | G120: 34.8193814 | H120: 0 | I120: 0 | K120: 2026-04-27T20:00:00 | L120: 1068.868278 | M120: 0
A121: System | B121: Region | C121: Island | D121: - | E121: 2032-01-05T21:00:00 | F121: 1248.226157 | G121: 34.6253485 | H121: 0 | I121: 0 | K121: 2026-04-28T07:00:00 | L121: 1156.905 | M121: 0
A122: System | B122: Region | C122: Island | D122: - | E122: 2032-01-05T22:00:00 | F122: 1204.825457 | G122: 32.4548753 | H122: 0 | I122: 0 | K122: 2026-04-29T07:00:00 | L122: 1120.46702 | M122: 0
A123: System | B123: Region | C123: Island | D123: - | E123: 2032-01-05T23:00:00 | F123: 1150.024566 | G123: 25.2294767 | H123: 0 | I123: 0 | K123: 2026-04-30T08:00:00 | L123: 1200.014004 | M123: 0
A124: System | B124: Region | C124: Island | D124: - | E124: 2032-01-06 | F124: 1102.635945 | G124: 24.3443822 | H124: 0 | I124: 0 | K124: 2026-05-01T07:00:00 | L124: 1245.147957 | M124: 0
A125: System | B125: Region | C125: Island | D125: - | E125: 2032-01-06T01:00:00 | F125: 1080.441687 | G125: 23.1186574 | H125: 0 | I125: 0 | K125: 2026-05-02T09:00:00 | L125: 1137.482308 | M125: 0
A126: System | B126: Region | C126: Island | D126: - | E126: 2032-01-06T02:00:00 | F126: 1089.298457 | G126: 24.3722528 | H126: 0 | I126: 0 | K126: 2026-05-03T09:00:00 | L126: 1087.511581 | M126: 0
A127: System | B127: Region | C127: Island | D127: - | E127: 2032-01-06T03:00:00 | F127: 1098.106728 | G127: 24.5145732 | H127: 0 | I127: 0 | K127: 2026-05-04T07:00:00 | L127: 1076.346535 | M127: 0
A128: System | B128: Region | C128: Island | D128: - | E128: 2032-01-06T04:00:00 | F128: 1109.697868 | G128: 24.5231621 | H128: 0 | I128: 0 | K128: 2026-05-05T07:00:00 | L128: 1037.304412 | M128: 0
A129: System | B129: Region | C129: Island | D129: - | E129: 2032-01-06T05:00:00 | F129: 1142.60474 | G129: 25.6139089 | H129: 0 | I129: 0 | K129: 2026-05-06T07:00:00 | L129: 1020.948673 | M129: 0
A130: System | B130: Region | C130: Island | D130: - | E130: 2032-01-06T06:00:00 | F130: 1188.088816 | G130: 26.849664 | H130: 0 | I130: 0 | K130: 2026-05-07T07:00:00 | L130: 1073.860472 | M130: 0
A131: System | B131: Region | C131: Island | D131: - | E131: 2032-01-06T07:00:00 | F131: 1347.700439 | G131: 37.1030079 | H131: 0 | I131: 0 | K131: 2026-05-08T09:00:00 | L131: 1240.733408 | M131: 0
A132: System | B132: Region | C132: Island | D132: - | E132: 2032-01-06T08:00:00 | F132: 1516.947388 | G132: 38.1906623 | H132: 0 | I132: 0 | K132: 2026-05-09T09:00:00 | L132: 1163.909619 | M132: 0
A133: System | B133: Region | C133: Island | D133: - | E133: 2032-01-06T09:00:00 | F133: 1553.931156 | G133: 38.5677595 | H133: 0 | I133: 0 | K133: 2026-05-10T09:00:00 | L133: =MAX(OFFSET($F$4:$F$27,(ROW()-4)*24,0)) -> 1188.646117 | M133: =VLOOKUP(L133,OFFSET($F$4:$H$27,(ROW()-4)*24,0),3,FALSE) -> 0
A134: System | B134: Region | C134: Island | D134: - | E134: 2032-01-06T10:00:00 | F134: 1541.516405 | G134: 38.3870595 | H134: 0.0004167 | I134: 0.0269466 | K134: 2026-05-11T08:00:00 | L134: 1080.807585 | M134: 0
A135: System | B135: Region | C135: Island | D135: - | E135: 2032-01-06T11:00:00 | F135: 1530.828609 | G135: 39.0846871 | H135: 0.0004167 | I135: 0.0274982 | K135: 2026-05-12T07:00:00 | L135: 1165.321619 | M135: 0
A136: System | B136: Region | C136: Island | D136: - | E136: 2032-01-06T12:00:00 | F136: 1510.793701 | G136: 38.2511457 | H136: 0.0004167 | I136: 0.0021027 | K136: 2026-05-13T20:00:00 | L136: 1119.966043 | M136: 0
A137: System | B137: Region | C137: Island | D137: - | E137: 2032-01-06T13:00:00 | F137: 1477.490147 | G137: 38.4808885 | H137: 0 | I137: 0 | K137: 2026-05-14T07:00:00 | L137: 1124.536822 | M137: 0
A138: System | B138: Region | C138: Island | D138: - | E138: 2032-01-06T14:00:00 | F138: 1484.007328 | G138: 38.0959524 | H138: 0 | I138: 0 | K138: 2026-05-15T07:00:00 | L138: 1032.58288 | M138: 0
A139: System | B139: Region | C139: Island | D139: - | E139: 2032-01-06T15:00:00 | F139: 1513.038526 | G139: 38.4730094 | H139: 0 | I139: 0 | K139: 2026-05-16T09:00:00 | L139: 840.8826592 | M139: 0
A140: System | B140: Region | C140: Island | D140: - | E140: 2032-01-06T16:00:00 | F140: 1619.19086 | G140: 40.8950074 | H140: 0 | I140: 0 | K140: 2026-05-17T09:00:00 | L140: 917.3246341 | M140: 0
A141: System | B141: Region | C141: Island | D141: - | E141: 2032-01-06T17:00:00 | F141: 1737.668012 | G141: 47.3766534 | H141: 0.0079167 | I141: 0.3688478 | K141: 2026-05-18T11:00:00 | L141: 1018.804803 | M141: 0
A142: System | B142: Region | C142: Island | D142: - | E142: 2032-01-06T18:00:00 | F142: 1727.476629 | G142: 46.7216901 | H142: 0.0116667 | I142: 0.5803542 | K142: 2026-05-19T07:00:00 | L142: 983.0163495 | M142: 0
A143: System | B143: Region | C143: Island | D143: - | E143: 2032-01-06T19:00:00 | F143: 1701.143248 | G143: 45.4822064 | H143: 0.0075 | I143: 0.3716571 | K143: 2026-05-20T20:00:00 | L143: 854.4494957 | M143: 0
A144: System | B144: Region | C144: Island | D144: - | E144: 2032-01-06T20:00:00 | F144: 1679.139569 | G144: 44.4056481 | H144: 0.0016667 | I144: 0.0623519 | K144: 2026-05-21T07:00:00 | L144: 909.7098528 | M144: 0
A145: System | B145: Region | C145: Island | D145: - | E145: 2032-01-06T21:00:00 | F145: 1623.209203 | G145: 41.3838472 | H145: 0.00125 | I145: 0.0613176 | K145: 2026-05-22T07:00:00 | L145: 919.8488176 | M145: 0
A146: System | B146: Region | C146: Island | D146: - | E146: 2032-01-06T22:00:00 | F146: 1505.565075 | G146: 38.3544773 | H146: 0.0004167 | I146: 0.0172065 | K146: 2026-05-23T11:00:00 | L146: 936.4029925 | M146: 0
A147: System | B147: Region | C147: Island | D147: - | E147: 2032-01-06T23:00:00 | F147: 1322.802752 | G147: 31.2396168 | H147: 0 | I147: 0 | K147: 2026-05-24T09:00:00 | L147: 984.5474099 | M147: 0
A148: System | B148: Region | C148: Island | D148: - | E148: 2032-01-07 | F148: 1196.325808 | G148: 27.8350559 | H148: 0 | I148: 0 | K148: 2026-05-25T07:00:00 | L148: 920.8823735 | M148: 0
A149: System | B149: Region | C149: Island | D149: - | E149: 2032-01-07T01:00:00 | F149: 1181.266631 | G149: 27.0791811 | H149: 0 | I149: 0 | K149: 2026-05-26T07:00:00 | L149: 828.1243448 | M149: 0
A150: System | B150: Region | C150: Island | D150: - | E150: 2032-01-07T02:00:00 | F150: 1170.877572 | G150: 26.6944944 | H150: 0 | I150: 0 | K150: 2026-05-27T09:00:00 | L150: 843.0690891 | M150: 0
A151: System | B151: Region | C151: Island | D151: - | E151: 2032-01-07T03:00:00 | F151: 1170.97564 | G151: 26.7995764 | H151: 0 | I151: 0 | K151: 2026-05-28T09:00:00 | L151: 855.3323966 | M151: 0
A152: System | B152: Region | C152: Island | D152: - | E152: 2032-01-07T04:00:00 | F152: 1178.549458 | G152: 27.5386064 | H152: 0 | I152: 0 | K152: 2026-05-29T11:00:00 | L152: 913.8657997 | M152: 0
A153: System | B153: Region | C153: Island | D153: - | E153: 2032-01-07T05:00:00 | F153: 1190.821779 | G153: 27.5185581 | H153: 0 | I153: 0 | K153: 2026-05-30T09:00:00 | L153: 860.9330734 | M153: 0
A154: System | B154: Region | C154: Island | D154: - | E154: 2032-01-07T06:00:00 | F154: 1237.690786 | G154: 28.8056835 | H154: 0 | I154: 0 | K154: 2026-05-31T11:00:00 | L154: 802.5450289 | M154: 0
A155: System | B155: Region | C155: Island | D155: - | E155: 2032-01-07T07:00:00 | F155: 1439.406691 | G155: 39.2691196 | H155: 0 | I155: 0 | K155: 2026-06-01T07:00:00 | L155: 942.0970073 | M155: 0
A156: System | B156: Region | C156: Island | D156: - | E156: 2032-01-07T08:00:00 | F156: 1560.563695 | G156: 38.7753425 | H156: 0 | I156: 0 | K156: 2026-06-02T07:00:00 | L156: 1066.970703 | M156: 0
A157: System | B157: Region | C157: Island | D157: - | E157: 2032-01-07T09:00:00 | F157: 1578.752859 | G157: 39.2492628 | H157: 0.0004167 | I157: 0.003717 | K157: 2026-06-03T07:00:00 | L157: 997.7950286 | M157: 0
A158: System | B158: Region | C158: Island | D158: - | E158: 2032-01-07T10:00:00 | F158: 1554.563137 | G158: 38.8128906 | H158: 0.0004167 | I158: 0.0175815 | K158: 2026-06-04T07:00:00 | L158: 1016.499184 | M158: 0
A159: System | B159: Region | C159: Island | D159: - | E159: 2032-01-07T11:00:00 | F159: 1520.310512 | G159: 38.7436549 | H159: 0 | I159: 0 | K159: 2026-06-05T07:00:00 | L159: 1014.772147 | M159: 0
A160: System | B160: Region | C160: Island | D160: - | E160: 2032-01-07T12:00:00 | F160: 1509.197858 | G160: 38.9022759 | H160: 0.0004167 | I160: 0.0482511 | K160: 2026-06-06T10:00:00 | L160: 936.5515907 | M160: 0
A161: System | B161: Region | C161: Island | D161: - | E161: 2032-01-07T13:00:00 | F161: 1459.602248 | G161: 39.2842831 | H161: 0 | I161: 0 | K161: 2026-06-07T11:00:00 | L161: 973.1703822 | M161: 0
A162: System | B162: Region | C162: Island | D162: - | E162: 2032-01-07T14:00:00 | F162: 1426.342854 | G162: 38.6839728 | H162: 0 | I162: 0 | K162: 2026-06-08T07:00:00 | L162: 1057.777907 | M162: 0
A163: System | B163: Region | C163: Island | D163: - | E163: 2032-01-07T15:00:00 | F163: 1435.756671 | G163: 38.6603542 | H163: 0 | I163: 0 | K163: 2026-06-09T07:00:00 | L163: 955.4040553 | M163: 0
A164: System | B164: Region | C164: Island | D164: - | E164: 2032-01-07T16:00:00 | F164: 1505.660567 | G164: 38.4750917 | H164: 0 | I164: 0 | K164: 2026-06-10T07:00:00 | L164: 845.4416133 | M164: 0
A165: System | B165: Region | C165: Island | D165: - | E165: 2032-01-07T17:00:00 | F165: 1655.581981 | G165: 43.1375545 | H165: 0.0025 | I165: 0.0837114 | K165: 2026-06-11T07:00:00 | L165: 820.84422 | M165: 0
A166: System | B166: Region | C166: Island | D166: - | E166: 2032-01-07T18:00:00 | F166: 1628.339019 | G166: 41.52732 | H166: 0.0016667 | I166: 0.0300561 | K166: 2026-06-12T11:00:00 | L166: 825.8993794 | M166: 0
A167: System | B167: Region | C167: Island | D167: - | E167: 2032-01-07T19:00:00 | F167: 1586.874909 | G167: 39.1971027 | H167: 0.00125 | I167: 0.0352646 | K167: 2026-06-13T16:00:00 | L167: 905.9500605 | M167: 0
A168: System | B168: Region | C168: Island | D168: - | E168: 2032-01-07T20:00:00 | F168: 1552.471961 | G168: 38.4111267 | H168: 0 | I168: 0 | K168: 2026-06-14T10:00:00 | L168: 1051.312805 | M168: 0
A169: System | B169: Region | C169: Island | D169: - | E169: 2032-01-07T21:00:00 | F169: 1491.180765 | G169: 38.889002 | H169: 0.0008333 | I169: 0.0267441 | K169: 2026-06-15T08:00:00 | L169: 1053.102937 | M169: 0
A170: System | B170: Region | C170: Island | D170: - | E170: 2032-01-07T22:00:00 | F170: 1398.762673 | G170: 38.2649481 | H170: 0 | I170: 0 | K170: 2026-06-16T07:00:00 | L170: 915.6479467 | M170: 0
A171: System | B171: Region | C171: Island | D171: - | E171: 2032-01-07T23:00:00 | F171: 1256.282345 | G171: 29.16052 | H171: 0 | I171: 0 | K171: 2026-06-17T11:00:00 | L171: 1000.70669 | M171: 0
A172: System | B172: Region | C172: Island | D172: - | E172: 2032-01-08 | F172: 1188.540123 | G172: 27.5276541 | H172: 0 | I172: 0 | K172: 2026-06-18T07:00:00 | L172: 882.8867998 | M172: 0
A173: System | B173: Region | C173: Island | D173: - | E173: 2032-01-08T01:00:00 | F173: 1159.689061 | G173: 27.0780475 | H173: 0 | I173: 0 | K173: 2026-06-19T08:00:00 | L173: 752.0506959 | M173: 0
A174: System | B174: Region | C174: Island | D174: - | E174: 2032-01-08T02:00:00 | F174: 1158.255675 | G174: 26.7376438 | H174: 0 | I174: 0 | K174: 2026-06-20T11:00:00 | L174: 749.2188371 | M174: 0
A175: System | B175: Region | C175: Island | D175: - | E175: 2032-01-08T03:00:00 | F175: 1157.893529 | G175: 26.6622162 | H175: 0 | I175: 0 | K175: 2026-06-21T10:00:00 | L175: 739.0476519 | M175: 0
A176: System | B176: Region | C176: Island | D176: - | E176: 2032-01-08T04:00:00 | F176: 1169.9256 | G176: 27.3128544 | H176: 0 | I176: 0 | K176: 2026-06-22T11:00:00 | L176: 784.0569251 | M176: 0
A177: System | B177: Region | C177: Island | D177: - | E177: 2032-01-08T05:00:00 | F177: 1184.220079 | G177: 26.9906625 | H177: 0 | I177: 0 | K177: 2026-06-23T21:00:00 | L177: 852.9306563 | M177: 0
A178: System | B178: Region | C178: Island | D178: - | E178: 2032-01-08T06:00:00 | F178: 1230.661092 | G178: 28.4434583 | H178: 0 | I178: 0 | K178: 2026-06-24T09:00:00 | L178: 981.5311271 | M178: 0
A179: System | B179: Region | C179: Island | D179: - | E179: 2032-01-08T07:00:00 | F179: 1401.311419 | G179: 38.3025602 | H179: 0 | I179: 0 | K179: 2026-06-25T10:00:00 | L179: 1011.297039 | M179: 0
A180: System | B180: Region | C180: Island | D180: - | E180: 2032-01-08T08:00:00 | F180: 1543.301261 | G180: 38.5271814 | H180: 0 | I180: 0 | K180: 2026-06-26T09:00:00 | L180: 997.4989725 | M180: 0
A181: System | B181: Region | C181: Island | D181: - | E181: 2032-01-08T09:00:00 | F181: 1580.627167 | G181: 39.0972853 | H181: 0.0008333 | I181: 0.0187345 | K181: 2026-06-27T10:00:00 | L181: 922.2159134 | M181: 0
A182: System | B182: Region | C182: Island | D182: - | E182: 2032-01-08T10:00:00 | F182: 1584.276438 | G182: 39.3439429 | H182: 0 | I182: 0 | K182: 2026-06-28T11:00:00 | L182: 763.6326117 | M182: 0
A183: System | B183: Region | C183: Island | D183: - | E183: 2032-01-08T11:00:00 | F183: 1606.015211 | G183: 40.3410669 | H183: 0.0008333 | I183: 0.0285075 | K183: 2026-06-29T11:00:00 | L183: 833.1919981 | M183: 0
A184: System | B184: Region | C184: Island | D184: - | E184: 2032-01-08T12:00:00 | F184: 1601.004001 | G184: 40.2038289 | H184: 0.0008333 | I184: 0.0161347 | K184: 2026-06-30T09:00:00 | L184: 815.2662105 | M184: 0
A185: System | B185: Region | C185: Island | D185: - | E185: 2032-01-08T13:00:00 | F185: 1546.885914 | G185: 38.41045 | H185: 0 | I185: 0 | K185: 2026-07-01T11:00:00 | L185: 724.1004063 | M185: 0
A186: System | B186: Region | C186: Island | D186: - | E186: 2032-01-08T14:00:00 | F186: 1502.577973 | G186: 38.0810571 | H186: 0 | I186: 0 | K186: 2026-07-02T16:00:00 | L186: 748.5940292 | M186: 0
A187: System | B187: Region | C187: Island | D187: - | E187: 2032-01-08T15:00:00 | F187: 1511.827808 | G187: 38.3613419 | H187: 0.0004167 | I187: 0.0055942 | K187: 2026-07-03T11:00:00 | L187: 766.6349143 | M187: 0
A188: System | B188: Region | C188: Island | D188: - | E188: 2032-01-08T16:00:00 | F188: 1547.602809 | G188: 38.6928991 | H188: 0 | I188: 0 | K188: 2026-07-04T11:00:00 | L188: 678.9194572 | M188: 0
A189: System | B189: Region | C189: Island | D189: - | E189: 2032-01-08T17:00:00 | F189: 1705.316121 | G189: 45.8327795 | H189: 0.0041667 | I189: 0.2109194 | K189: 2026-07-05T11:00:00 | L189: 712.6101634 | M189: 0
A190: System | B190: Region | C190: Island | D190: - | E190: 2032-01-08T18:00:00 | F190: 1690.641463 | G190: 45.0398268 | H190: 0.00875 | I190: 0.4616704 | K190: 2026-07-06T11:00:00 | L190: 862.1212475 | M190: 0
A191: System | B191: Region | C191: Island | D191: - | E191: 2032-01-08T19:00:00 | F191: 1647.900138 | G191: 42.3356497 | H191: 0.0016667 | I191: 0.0299875 | K191: 2026-07-07T10:00:00 | L191: 837.8847466 | M191: 0
A192: System | B192: Region | C192: Island | D192: - | E192: 2032-01-08T20:00:00 | F192: 1622.37174 | G192: 41.0658814 | H192: 0.0004167 | I192: 0.0362194 | K192: 2026-07-08T11:00:00 | L192: 772.0697795 | M192: 0
A193: System | B193: Region | C193: Island | D193: - | E193: 2032-01-08T21:00:00 | F193: 1568.998738 | G193: 38.7351698 | H193: 0.0004167 | I193: 0.0224847 | K193: 2026-07-09T11:00:00 | L193: 702.0867234 | M193: 0
A194: System | B194: Region | C194: Island | D194: - | E194: 2032-01-08T22:00:00 | F194: 1475.623004 | G194: 38.0102068 | H194: 0 | I194: 0 | K194: 2026-07-10T10:00:00 | L194: 729.9185134 | M194: 0
A195: System | B195: Region | C195: Island | D195: - | E195: 2032-01-08T23:00:00 | F195: 1317.413722 | G195: 31.4475144 | H195: 0 | I195: 0 | K195: 2026-07-11T11:00:00 | L195: 772.0637603 | M195: 0
A196: System | B196: Region | C196: Island | D196: - | E196: 2032-01-09 | F196: 1237.668919 | G196: 29.7104615 | H196: 0 | I196: 0 | K196: 2026-07-12T09:00:00 | L196: 743.5387189 | M196: 0
A197: System | B197: Region | C197: Island | D197: - | E197: 2032-01-09T01:00:00 | F197: 1218.35754 | G197: 28.6424474 | H197: 0 | I197: 0 | K197: 2026-07-13T11:00:00 | L197: =MAX(OFFSET($F$4:$F$27,(ROW()-4)*24,0)) -> 831.2057828 | M197: =VLOOKUP(L197,OFFSET($F$4:$H$27,(ROW()-4)*24,0),3,FALSE) -> 0
A198: System | B198: Region | C198: Island | D198: - | E198: 2032-01-09T02:00:00 | F198: 1220.62552 | G198: 29.390078 | H198: 0 | I198: 0 | K198: 2026-07-14T11:00:00 | L198: 734.6640298 | M198: 0
A199: System | B199: Region | C199: Island | D199: - | E199: 2032-01-09T03:00:00 | F199: 1230.861607 | G199: 29.5248641 | H199: 0 | I199: 0 | K199: 2026-07-15T12:00:00 | L199: 671.7287861 | M199: 0
A200: System | B200: Region | C200: Island | D200: - | E200: 2032-01-09T04:00:00 | F200: 1250.114337 | G200: 29.8836028 | H200: 0 | I200: 0 | K200: 2026-07-16T11:00:00 | L200: 763.4905431 | M200: 0
A201: System | B201: Region | C201: Island | D201: - | E201: 2032-01-09T05:00:00 | F201: 1287.07612 | G201: 30.8993278 | H201: 0 | I201: 0 | K201: 2026-07-17T10:00:00 | L201: 736.6179735 | M201: 0
A202: System | B202: Region | C202: Island | D202: - | E202: 2032-01-09T06:00:00 | F202: 1400.837662 | G202: 33.677852 | H202: 0 | I202: 0 | K202: 2026-07-18T11:00:00 | L202: 735.3840264 | M202: 0
... 8585 more rows

Sheet Run 4
A3: Parent Name | B3: Collection | C3: Child Name | D3: Category | E3: Datetime | F3: Load (MW) | G3: Transmission Losses (MW) | H3: Unserved Energy Hours (h) | I3: Unserved Energy (MW) | K3: Daily Peak | L3: Daily Peak Load | M3: Average Unserved Energy Hours
A4: System | B4: Region | C4: Island | D4: - | E4: 2032-01-01 | F4: 1276.538914 | G4: 29.7854602 | H4: 0 | I4: 0 | K4: 2026-01-01T17:00:00 | L4: =MAX(OFFSET($F$4:$F$27,(ROW()-4)*24,0)) -> 1590.457246 | M4: =VLOOKUP(L4,OFFSET($F$4:$H$27,(ROW()-4)*24,0),3,FALSE) -> 0.0008333 | P4: LOLE | Q4: =SUM(M4:M368) -> 0.1000003
A5: System | B5: Region | C5: Island | D5: - | E5: 2032-01-01T01:00:00 | F5: 1230.260796 | G5: 29.1597777 | H5: 0 | I5: 0 | K5: 2026-01-02T17:00:00 | L5: =MAX(OFFSET($F$4:$F$27,(ROW()-4)*24,0)) -> 1337.441401 | M5: =VLOOKUP(L5,OFFSET($F$4:$H$27,(ROW()-4)*24,0),3,FALSE) -> 0 | P5: LOLH | Q5: =SUM(H4:H8763) -> 0.3320847
A6: System | B6: Region | C6: Island | D6: - | E6: 2032-01-01T02:00:00 | F6: 1207.749741 | G6: 27.7782701 | H6: 0 | I6: 0 | K6: 2026-01-03T20:00:00 | L6: 1734.69902 | M6: 0.01 | P6: EUE | Q6: =SUM(I4:I8763) -> 15.2643572
A7: System | B7: Region | C7: Island | D7: - | E7: 2032-01-01T03:00:00 | F7: 1196.028719 | G7: 27.3539871 | H7: 0 | I7: 0 | K7: 2026-01-04T17:00:00 | L7: 1740.366569 | M7: 0.01375 | P7: Peak | Q7: =MAX(F4:F8763) -> 1754.398067
A8: System | B8: Region | C8: Island | D8: - | E8: 2032-01-01T04:00:00 | F8: 1195.457877 | G8: 27.7659084 | H8: 0 | I8: 0 | K8: 2026-01-05T17:00:00 | L8: 1300.641445 | M8: 0 | P8: Loss @ Peak | Q8: =VLOOKUP(Q7,F4:G8763,2,FALSE) -> 47.9383355
A9: System | B9: Region | C9: Island | D9: - | E9: 2032-01-01T05:00:00 | F9: 1206.871326 | G9: 28.5829446 | H9: 0 | I9: 0 | K9: 2026-01-06T17:00:00 | L9: 1737.945451 | M9: 0.0083333 | P9: Peak with Losses | Q9: =Q7+Q8 -> 1802.336403
A10: System | B10: Region | C10: Island | D10: - | E10: 2032-01-01T06:00:00 | F10: 1236.161907 | G10: 28.996527 | H10: 0 | I10: 0 | K10: 2026-01-07T17:00:00 | L10: 1655.601053 | M10: 0.0025 | P10: Peak Losses | Q10: =MAX(G4:G8763) -> 47.9383355
A11: System | B11: Region | C11: Island | D11: - | E11: 2032-01-01T07:00:00 | F11: 1298.168003 | G11: 35.5978035 | H11: 0 | I11: 0 | K11: 2026-01-08T17:00:00 | L11: 1704.913813 | M11: 0.0045833 | P11: Firm Capacity | Q11: 2452.74
A12: System | B12: Region | C12: Island | D12: - | E12: 2032-01-01T08:00:00 | F12: 1361.333466 | G12: 37.4884997 | H12: 0 | I12: 0 | K12: 2026-01-09T08:00:00 | L12: 1739.598702 | M12: 0.01125 | P12: Reserve Margin | Q12: =Q11-Q7 -> 698.3419326
A13: System | B13: Region | C13: Island | D13: - | E13: 2032-01-01T09:00:00 | F13: 1382.480496 | G13: 38.1049917 | H13: 0 | I13: 0 | K13: 2026-01-10T17:00:00 | L13: 1451.51727 | M13: 0 | P13: Reserve Margin % | Q13: =Q12/Q7 -> 0.3980521557
A14: System | B14: Region | C14: Island | D14: - | E14: 2032-01-01T10:00:00 | F14: 1403.481166 | G14: 38.7218316 | H14: 0.0004167 | I14: 0.027806 | K14: 2026-01-11T20:00:00 | L14: 1637.973819 | M14: 0.0016667 | P14: Reserve Magin w/Loss | Q14: =Q11-Q9 -> 650.4035971
A15: System | B15: Region | C15: Island | D15: - | E15: 2032-01-01T11:00:00 | F15: 1431.682111 | G15: 38.8896702 | H15: 0 | I15: 0 | K15: 2026-01-12T08:00:00 | L15: 1693.976997 | M15: 0.0020833 | P15: Reserve Margin % w/ Loss | Q15: =Q14/Q9 -> 0.3608669259
A16: System | B16: Region | C16: Island | D16: - | E16: 2032-01-01T12:00:00 | F16: 1446.527612 | G16: 38.8321767 | H16: 0.0004167 | I16: 0.0236841 | K16: 2026-01-13T18:00:00 | L16: 1669.673871 | M16: 0.0025
A17: System | B17: Region | C17: Island | D17: - | E17: 2032-01-01T13:00:00 | F17: 1445.27126 | G17: 39.2495985 | H17: 0 | I17: 0 | K17: 2026-01-14T08:00:00 | L17: 1754.398067 | M17: 0.0129167 | P17: Checks
A18: System | B18: Region | C18: Island | D18: - | E18: 2032-01-01T14:00:00 | F18: 1447.118251 | G18: 39.2590022 | H18: 0 | I18: 0 | K18: 2026-01-15T08:00:00 | L18: 1524.045363 | M18: 0 | P18: Island Energy (Original) | Q18: 8410
A19: System | B19: Region | C19: Island | D19: - | E19: 2032-01-01T15:00:00 | F19: 1460.465389 | G19: 39.2385608 | H19: 0 | I19: 0 | K19: 2026-01-16T17:00:00 | L19: 1358.33738 | M19: 0 | P19: Island Energy (Escalated) | Q19: =SUM(F4:F8787)/1000 -> 8325.864322
A20: System | B20: Region | C20: Island | D20: - | E20: 2032-01-01T16:00:00 | F20: 1486.95862 | G20: 38.7825686 | H20: 0 | I20: 0 | K20: 2026-01-17T20:00:00 | L20: 1379.06964 | M20: 0 | P20: Escalation Factor Check | Q20: =Q19/Q18 -> 0.9899957577
A21: System | B21: Region | C21: Island | D21: - | E21: 2032-01-01T17:00:00 | F21: 1590.457246 | G21: 39.4995857 | H21: 0.0008333 | I21: 0.0361284 | K21: 2026-01-18T18:00:00 | L21: 1534.179962 | M21: 0
A22: System | B22: Region | C22: Island | D22: - | E22: 2032-01-01T18:00:00 | F22: 1536.236071 | G22: 38.8790568 | H22: 0.0004167 | I22: 0.010398 | K22: 2026-01-19T08:00:00 | L22: 1403.791299 | M22: 0 | P22: Island Peak (Original) | Q22: 1773
A23: System | B23: Region | C23: Island | D23: - | E23: 2032-01-01T19:00:00 | F23: 1489.756596 | G23: 38.9492238 | H23: 0 | I23: 0 | K23: 2026-01-20T18:00:00 | L23: 1240.404207 | M23: 0 | P23: Island Peak (Escalated) | Q23: =MAX(F4:F8763) -> 1754.398067
A24: System | B24: Region | C24: Island | D24: - | E24: 2032-01-01T20:00:00 | F24: 1458.92365 | G24: 38.8663631 | H24: 0 | I24: 0 | K24: 2026-01-21T18:00:00 | L24: 1355.716562 | M24: 0 | P24: Escalation Factor Check | Q24: =Q23/Q22 -> 0.9895082162
A25: System | B25: Region | C25: Island | D25: - | E25: 2032-01-01T21:00:00 | F25: 1407.634 | G25: 38.4959832 | H25: 0 | I25: 0 | K25: 2026-01-22T08:00:00 | L25: 1385.784379 | M25: 0
A26: System | B26: Region | C26: Island | D26: - | E26: 2032-01-01T22:00:00 | F26: 1323.882372 | G26: 36.5800356 | H26: 0 | I26: 0 | K26: 2026-01-23T18:00:00 | L26: 1440.293698 | M26: 0
A27: System | B27: Region | C27: Island | D27: - | E27: 2032-01-01T23:00:00 | F27: 1210.629735 | G27: 28.7327088 | H27: 0 | I27: 0 | K27: 2026-01-24T10:00:00 | L27: 1453.697372 | M27: 0
A28: System | B28: Region | C28: Island | D28: - | E28: 2032-01-02 | F28: 1153.279237 | G28: 25.6584371 | H28: 0 | I28: 0 | K28: 2026-01-25T18:00:00 | L28: 1276.360312 | M28: 0
A29: System | B29: Region | C29: Island | D29: - | E29: 2032-01-02T01:00:00 | F29: 1117.202422 | G29: 24.2443555 | H29: 0 | I29: 0 | K29: 2026-01-26T18:00:00 | L29: 1598.144589 | M29: 0.0008333
A30: System | B30: Region | C30: Island | D30: - | E30: 2032-01-02T02:00:00 | F30: 1106.229332 | G30: 24.4880167 | H30: 0 | I30: 0 | K30: 2026-01-27T17:00:00 | L30: 1745.200273 | M30: 0.0116667
A31: System | B31: Region | C31: Island | D31: - | E31: 2032-01-02T03:00:00 | F31: 1104.206745 | G31: 24.5943231 | H31: 0 | I31: 0 | K31: 2026-01-28T08:00:00 | L31: 1229.039041 | M31: 0
A32: System | B32: Region | C32: Island | D32: - | E32: 2032-01-02T04:00:00 | F32: 1110.243278 | G32: 24.3861587 | H32: 0 | I32: 0 | K32: 2026-01-29T18:00:00 | L32: 1204.682185 | M32: 0
A33: System | B33: Region | C33: Island | D33: - | E33: 2032-01-02T05:00:00 | F33: 1119.350124 | G33: 24.5053467 | H33: 0 | I33: 0 | K33: 2026-01-30T12:00:00 | L33: 1371.595392 | M33: 0
A34: System | B34: Region | C34: Island | D34: - | E34: 2032-01-02T06:00:00 | F34: 1144.209005 | G34: 24.5677214 | H34: 0 | I34: 0 | K34: 2026-01-31T18:00:00 | L34: 1279.579795 | M34: 0
A35: System | B35: Region | C35: Island | D35: - | E35: 2032-01-02T07:00:00 | F35: 1190.095241 | G35: 32.1353663 | H35: 0 | I35: 0 | K35: 2026-02-01T10:00:00 | L35: 1163.499386 | M35: 0
A36: System | B36: Region | C36: Island | D36: - | E36: 2032-01-02T08:00:00 | F36: 1221.924728 | G36: 33.4170686 | H36: 0 | I36: 0 | K36: 2026-02-02T17:00:00 | L36: 1570.641176 | M36: 0.0004167
A37: System | B37: Region | C37: Island | D37: - | E37: 2032-01-02T09:00:00 | F37: 1275.124175 | G37: 35.5534611 | H37: 0 | I37: 0 | K37: 2026-02-03T18:00:00 | L37: 1426.507782 | M37: 0
A38: System | B38: Region | C38: Island | D38: - | E38: 2032-01-02T10:00:00 | F38: 1273.440617 | G38: 35.353246 | H38: 0 | I38: 0 | K38: 2026-02-04T08:00:00 | L38: 1544.732532 | M38: 0
A39: System | B39: Region | C39: Island | D39: - | E39: 2032-01-02T11:00:00 | F39: 1286.376107 | G39: 35.3562845 | H39: 0 | I39: 0 | K39: 2026-02-05T08:00:00 | L39: 1602.106785 | M39: 0.0004167
A40: System | B40: Region | C40: Island | D40: - | E40: 2032-01-02T12:00:00 | F40: 1270.443834 | G40: 34.8014037 | H40: 0 | I40: 0 | K40: 2026-02-06T12:00:00 | L40: 1280.460859 | M40: 0
A41: System | B41: Region | C41: Island | D41: - | E41: 2032-01-02T13:00:00 | F41: 1239.383061 | G41: 34.3143571 | H41: 0 | I41: 0 | K41: 2026-02-07T18:00:00 | L41: 1479.859164 | M41: 0
A42: System | B42: Region | C42: Island | D42: - | E42: 2032-01-02T14:00:00 | F42: 1196.721556 | G42: 32.47208 | H42: 0 | I42: 0 | K42: 2026-02-08T19:00:00 | L42: 1520.817776 | M42: 0.0004167
A43: System | B43: Region | C43: Island | D43: - | E43: 2032-01-02T15:00:00 | F43: 1180.876421 | G43: 31.7845076 | H43: 0 | I43: 0 | K43: 2026-02-09T08:00:00 | L43: 1693.375658 | M43: 0.00375
A44: System | B44: Region | C44: Island | D44: - | E44: 2032-01-02T16:00:00 | F44: 1195.588973 | G44: 32.3308801 | H44: 0 | I44: 0 | K44: 2026-02-10T08:00:00 | L44: 1646.039977 | M44: 0.0008333
A45: System | B45: Region | C45: Island | D45: - | E45: 2032-01-02T17:00:00 | F45: 1337.441401 | G45: 36.750498 | H45: 0 | I45: 0 | K45: 2026-02-11T18:00:00 | L45: 1470.296312 | M45: 0
A46: System | B46: Region | C46: Island | D46: - | E46: 2032-01-02T18:00:00 | F46: 1305.993545 | G46: 36.723225 | H46: 0 | I46: 0 | K46: 2026-02-12T12:00:00 | L46: 1643.363234 | M46: 0.0016667
A47: System | B47: Region | C47: Island | D47: - | E47: 2032-01-02T19:00:00 | F47: 1243.874617 | G47: 33.8630424 | H47: 0 | I47: 0 | K47: 2026-02-13T08:00:00 | L47: 1474.099699 | M47: 0
A48: System | B48: Region | C48: Island | D48: - | E48: 2032-01-02T20:00:00 | F48: 1231.906214 | G48: 33.8780329 | H48: 0 | I48: 0 | K48: 2026-02-14T18:00:00 | L48: 1393.620255 | M48: 0
A49: System | B49: Region | C49: Island | D49: - | E49: 2032-01-02T21:00:00 | F49: 1208.539246 | G49: 33.3225494 | H49: 0 | I49: 0 | K49: 2026-02-15T18:00:00 | L49: 1365.570927 | M49: 0
A50: System | B50: Region | C50: Island | D50: - | E50: 2032-01-02T22:00:00 | F50: 1178.315173 | G50: 32.2135253 | H50: 0 | I50: 0 | K50: 2026-02-16T18:00:00 | L50: 1388.621718 | M50: 0
A51: System | B51: Region | C51: Island | D51: - | E51: 2032-01-02T23:00:00 | F51: 1143.576614 | G51: 25.3716979 | H51: 0 | I51: 0 | K51: 2026-02-17T18:00:00 | L51: 1505.610084 | M51: 0
A52: System | B52: Region | C52: Island | D52: - | E52: 2032-01-03 | F52: 1101.116428 | G52: 24.1854527 | H52: 0 | I52: 0 | K52: 2026-02-18T08:00:00 | L52: 1472.304309 | M52: 0
A53: System | B53: Region | C53: Island | D53: - | E53: 2032-01-03T01:00:00 | F53: 1077.785009 | G53: 23.3652626 | H53: 0 | I53: 0 | K53: 2026-02-19T18:00:00 | L53: 1335.091692 | M53: 0
A54: System | B54: Region | C54: Island | D54: - | E54: 2032-01-03T02:00:00 | F54: 1080.529529 | G54: 23.6248203 | H54: 0 | I54: 0 | K54: 2026-02-20T08:00:00 | L54: 1198.524871 | M54: 0
A55: System | B55: Region | C55: Island | D55: - | E55: 2032-01-03T03:00:00 | F55: 1082.697635 | G55: 23.330425 | H55: 0 | I55: 0 | K55: 2026-02-21T19:00:00 | L55: 1449.775522 | M55: 0
A56: System | B56: Region | C56: Island | D56: - | E56: 2032-01-03T04:00:00 | F56: 1092.983753 | G56: 23.7050403 | H56: 0 | I56: 0 | K56: 2026-02-22T10:00:00 | L56: 1376.721646 | M56: 0
A57: System | B57: Region | C57: Island | D57: - | E57: 2032-01-03T05:00:00 | F57: 1100.721162 | G57: 23.8121547 | H57: 0 | I57: 0 | K57: 2026-02-23T18:00:00 | L57: 1219.166279 | M57: 0
A58: System | B58: Region | C58: Island | D58: - | E58: 2032-01-03T06:00:00 | F58: 1119.804781 | G58: 24.4037076 | H58: 0 | I58: 0 | K58: 2026-02-24T19:00:00 | L58: 1607.226768 | M58: 0.0004167
A59: System | B59: Region | C59: Island | D59: - | E59: 2032-01-03T07:00:00 | F59: 1158.411665 | G59: 31.219999 | H59: 0 | I59: 0 | K59: 2026-02-25T08:00:00 | L59: 1608.402649 | M59: 0.0008333
A60: System | B60: Region | C60: Island | D60: - | E60: 2032-01-03T08:00:00 | F60: 1197.467801 | G60: 32.3642927 | H60: 0 | I60: 0 | K60: 2026-02-26T08:00:00 | L60: 1339.152508 | M60: 0
A61: System | B61: Region | C61: Island | D61: - | E61: 2032-01-03T09:00:00 | F61: 1291.440246 | G61: 36.3121096 | H61: 0 | I61: 0 | K61: 2026-02-27T08:00:00 | L61: 1360.545109 | M61: 0
A62: System | B62: Region | C62: Island | D62: - | E62: 2032-01-03T10:00:00 | F62: 1303.485651 | G62: 36.1281576 | H62: 0 | I62: 0 | K62: 2026-02-28T19:00:00 | L62: 1516.089745 | M62: 0.0004167
A63: System | B63: Region | C63: Island | D63: - | E63: 2032-01-03T11:00:00 | F63: 1286.756318 | G63: 35.4390346 | H63: 0 | I63: 0 | K63: 2026-03-01T10:00:00 | L63: 1272.279446 | M63: 0
A64: System | B64: Region | C64: Island | D64: - | E64: 2032-01-03T12:00:00 | F64: 1306.493587 | G64: 36.1483349 | H64: 0 | I64: 0 | K64: 2026-03-02T09:00:00 | L64: 1499.641719 | M64: 0
A65: System | B65: Region | C65: Island | D65: - | E65: 2032-01-03T13:00:00 | F65: 1307.797111 | G65: 36.4807013 | H65: 0 | I65: 0 | K65: 2026-03-03T19:00:00 | L65: 1540.801688 | M65: 0
A66: System | B66: Region | C66: Island | D66: - | E66: 2032-01-03T14:00:00 | F66: 1355.419793 | G66: 37.8024064 | H66: 0 | I66: 0 | K66: 2026-03-04T07:00:00 | L66: 1479.722971 | M66: 0
A67: System | B67: Region | C67: Island | D67: - | E67: 2032-01-03T15:00:00 | F67: 1366.423657 | G67: 37.8733134 | H67: 0 | I67: 0 | K67: 2026-03-05T20:00:00 | L67: 1430.749781 | M67: 0
A68: System | B68: Region | C68: Island | D68: - | E68: 2032-01-03T16:00:00 | F68: 1456.857824 | G68: 39.000549 | H68: 0 | I68: 0 | K68: 2026-03-06T08:00:00 | L68: 1584.630744 | M68: 0
A69: System | B69: Region | C69: Island | D69: - | E69: 2032-01-03T17:00:00 | F69: 1714.533862 | G69: 46.4766462 | H69: 0.0083333 | I69: 0.4628723 | K69: 2026-03-07T08:00:00 | L69: =MAX(OFFSET($F$4:$F$27,(ROW()-4)*24,0)) -> 1464.515969 | M69: =VLOOKUP(L69,OFFSET($F$4:$H$27,(ROW()-4)*24,0),3,FALSE) -> 0
A70: System | B70: Region | C70: Island | D70: - | E70: 2032-01-03T18:00:00 | F70: 1687.536634 | G70: 44.9426419 | H70: 0.0079167 | I70: 0.3900669 | K70: 2026-03-08T08:00:00 | L70: 1327.966862 | M70: 0
A71: System | B71: Region | C71: Island | D71: - | E71: 2032-01-03T19:00:00 | F71: 1695.803259 | G71: 45.2453175 | H71: 0.00625 | I71: 0.1224106 | K71: 2026-03-09T07:00:00 | L71: 1461.224536 | M71: 0
A72: System | B72: Region | C72: Island | D72: - | E72: 2032-01-03T20:00:00 | F72: 1734.69902 | G72: 47.2794436 | H72: 0.01 | I72: 0.5891007 | K72: 2026-03-10T07:00:00 | L72: 1623.709504 | M72: 0.0004167
A73: System | B73: Region | C73: Island | D73: - | E73: 2032-01-03T21:00:00 | F73: 1713.357891 | G73: 46.0421424 | H73: 0.0070833 | I73: 0.3500915 | K73: 2026-03-11T07:00:00 | L73: 1510.715227 | M73: 0
A74: System | B74: Region | C74: Island | D74: - | E74: 2032-01-03T22:00:00 | F74: 1670.24589 | G74: 43.7996265 | H74: 0.0041667 | I74: 0.1669223 | K74: 2026-03-12T19:00:00 | L74: 1433.798773 | M74: 0
A75: System | B75: Region | C75: Island | D75: - | E75: 2032-01-03T23:00:00 | F75: 1533.129543 | G75: 37.6402699 | H75: 0.0004167 | I75: 0.0093118 | K75: 2026-03-13T08:00:00 | L75: 1605.295754 | M75: 0.0016667
A76: System | B76: Region | C76: Island | D76: - | E76: 2032-01-04 | F76: 1418.870709 | G76: 35.4067491 | H76: 0 | I76: 0 | K76: 2026-03-14T10:00:00 | L76: 1538.693383 | M76: 0.0004167
A77: System | B77: Region | C77: Island | D77: - | E77: 2032-01-04T01:00:00 | F77: 1258.906035 | G77: 32.1993982 | H77: 0 | I77: 0 | K77: 2026-03-15T09:00:00 | L77: 1483.006391 | M77: 0
A78: System | B78: Region | C78: Island | D78: - | E78: 2032-01-04T02:00:00 | F78: 1235.805243 | G78: 31.3054034 | H78: 0 | I78: 0 | K78: 2026-03-16T10:00:00 | L78: 1530.682843 | M78: 0.0004167
A79: System | B79: Region | C79: Island | D79: - | E79: 2032-01-04T03:00:00 | F79: 1287.42625 | G79: 32.8061659 | H79: 0 | I79: 0 | K79: 2026-03-17T07:00:00 | L79: 1311.320541 | M79: 0
A80: System | B80: Region | C80: Island | D80: - | E80: 2032-01-04T04:00:00 | F80: 1325.316288 | G80: 33.6703958 | H80: 0 | I80: 0 | K80: 2026-03-18T16:00:00 | L80: 1298.797462 | M80: 0
A81: System | B81: Region | C81: Island | D81: - | E81: 2032-01-04T05:00:00 | F81: 1315.863421 | G81: 33.4069818 | H81: 0 | I81: 0 | K81: 2026-03-19T07:00:00 | L81: 1259.430094 | M81: 0
A82: System | B82: Region | C82: Island | D82: - | E82: 2032-01-04T06:00:00 | F82: 1390.625357 | G82: 35.2998729 | H82: 0 | I82: 0 | K82: 2026-03-20T07:00:00 | L82: 1373.061324 | M82: 0
A83: System | B83: Region | C83: Island | D83: - | E83: 2032-01-04T07:00:00 | F83: 1450.13891 | G83: 38.429147 | H83: 0 | I83: 0 | K83: 2026-03-21T08:00:00 | L83: 1269.94889 | M83: 0
A84: System | B84: Region | C84: Island | D84: - | E84: 2032-01-04T08:00:00 | F84: 1501.943792 | G84: 38.5254336 | H84: 0 | I84: 0 | K84: 2026-03-22T10:00:00 | L84: 1366.615196 | M84: 0
A85: System | B85: Region | C85: Island | D85: - | E85: 2032-01-04T09:00:00 | F85: 1664.082233 | G85: 43.551173 | H85: 0.00125 | I85: 0.0836522 | K85: 2026-03-23T19:00:00 | L85: 1460.299293 | M85: 0
A86: System | B86: Region | C86: Island | D86: - | E86: 2032-01-04T10:00:00 | F86: 1684.747389 | G86: 44.6992097 | H86: 0.00625 | I86: 0.196789 | K86: 2026-03-24T07:00:00 | L86: 1416.89573 | M86: 0
A87: System | B87: Region | C87: Island | D87: - | E87: 2032-01-04T11:00:00 | F87: 1657.977175 | G87: 43.0784085 | H87: 0.0008333 | I87: 0.0321226 | K87: 2026-03-25T07:00:00 | L87: 1388.069439 | M87: 0
A88: System | B88: Region | C88: Island | D88: - | E88: 2032-01-04T12:00:00 | F88: 1609.219791 | G88: 40.3289754 | H88: 0.00125 | I88: 0.0225384 | K88: 2026-03-26T07:00:00 | L88: 1356.958489 | M88: 0
A89: System | B89: Region | C89: Island | D89: - | E89: 2032-01-04T13:00:00 | F89: 1574.863641 | G89: 39.0280073 | H89: 0.0004167 | I89: 0.0008756 | K89: 2026-03-27T07:00:00 | L89: 1168.741037 | M89: 0
A90: System | B90: Region | C90: Island | D90: - | E90: 2032-01-04T14:00:00 | F90: 1566.664098 | G90: 38.8910333 | H90: 0.0004167 | I90: 0.0121439 | K90: 2026-03-28T19:00:00 | L90: 1150.275125 | M90: 0
A91: System | B91: Region | C91: Island | D91: - | E91: 2032-01-04T15:00:00 | F91: 1595.091631 | G91: 39.7780405 | H91: 0.0016667 | I91: 0.0550249 | K91: 2026-03-29T20:00:00 | L91: 1201.638025 | M91: 0
A92: System | B92: Region | C92: Island | D92: - | E92: 2032-01-04T16:00:00 | F92: 1656.672469 | G92: 43.0581086 | H92: 0.0041667 | I92: 0.11841 | K92: 2026-03-30T07:00:00 | L92: 1326.624052 | M92: 0
A93: System | B93: Region | C93: Island | D93: - | E93: 2032-01-04T17:00:00 | F93: 1740.366569 | G93: 47.2994058 | H93: 0.01375 | I93: 0.6319119 | K93: 2026-03-31T07:00:00 | L93: 1294.685793 | M93: 0
A94: System | B94: Region | C94: Island | D94: - | E94: 2032-01-04T18:00:00 | F94: 1710.248469 | G94: 45.7593949 | H94: 0.0070833 | I94: 0.4160392 | K94: 2026-04-01T07:00:00 | L94: 1215.671626 | M94: 0
A95: System | B95: Region | C95: Island | D95: - | E95: 2032-01-04T19:00:00 | F95: 1681.87364 | G95: 44.4851382 | H95: 0.0058333 | I95: 0.3135065 | K95: 2026-04-02T20:00:00 | L95: 1279.988293 | M95: 0
A96: System | B96: Region | C96: Island | D96: - | E96: 2032-01-04T20:00:00 | F96: 1678.518974 | G96: 44.1970823 | H96: 0.0045833 | I96: 0.1800111 | K96: 2026-04-03T08:00:00 | L96: 1221.900238 | M96: 0
A97: System | B97: Region | C97: Island | D97: - | E97: 2032-01-04T21:00:00 | F97: 1626.073027 | G97: 41.5454953 | H97: 0.0008333 | I97: 0.0113595 | K97: 2026-04-04T09:00:00 | L97: 1139.732879 | M97: 0
A98: System | B98: Region | C98: Island | D98: - | E98: 2032-01-04T22:00:00 | F98: 1480.820525 | G98: 38.0133919 | H98: 0 | I98: 0 | K98: 2026-04-05T20:00:00 | L98: 1316.841427 | M98: 0
A99: System | B99: Region | C99: Island | D99: - | E99: 2032-01-04T23:00:00 | F99: 1305.937855 | G99: 33.7080769 | H99: 0 | I99: 0 | K99: 2026-04-06T20:00:00 | L99: 1361.892201 | M99: 0
A100: System | B100: Region | C100: Island | D100: - | E100: 2032-01-05 | F100: 1194.032769 | G100: 26.4184774 | H100: 0 | I100: 0 | K100: 2026-04-07T07:00:00 | L100: 1410.924356 | M100: 0
A101: System | B101: Region | C101: Island | D101: - | E101: 2032-01-05T01:00:00 | F101: 1159.933144 | G101: 25.6841174 | H101: 0 | I101: 0 | K101: 2026-04-08T07:00:00 | L101: 1366.408987 | M101: 0
A102: System | B102: Region | C102: Island | D102: - | E102: 2032-01-05T02:00:00 | F102: 1143.423398 | G102: 24.7965238 | H102: 0 | I102: 0 | K102: 2026-04-09T07:00:00 | L102: 1420.465865 | M102: 0
A103: System | B103: Region | C103: Island | D103: - | E103: 2032-01-05T03:00:00 | F103: 1132.892321 | G103: 25.1961792 | H103: 0 | I103: 0 | K103: 2026-04-10T07:00:00 | L103: 1378.899023 | M103: 0
A104: System | B104: Region | C104: Island | D104: - | E104: 2032-01-05T04:00:00 | F104: 1130.14509 | G104: 25.2978516 | H104: 0 | I104: 0 | K104: 2026-04-11T09:00:00 | L104: 1295.803012 | M104: 0
A105: System | B105: Region | C105: Island | D105: - | E105: 2032-01-05T05:00:00 | F105: 1130.076703 | G105: 25.0625335 | H105: 0 | I105: 0 | K105: 2026-04-12T09:00:00 | L105: 1126.972627 | M105: 0
A106: System | B106: Region | C106: Island | D106: - | E106: 2032-01-05T06:00:00 | F106: 1149.731807 | G106: 25.0809742 | H106: 0 | I106: 0 | K106: 2026-04-13T07:00:00 | L106: 1222.638184 | M106: 0
A107: System | B107: Region | C107: Island | D107: - | E107: 2032-01-05T07:00:00 | F107: 1220.513064 | G107: 33.5690772 | H107: 0 | I107: 0 | K107: 2026-04-14T07:00:00 | L107: 1125.340596 | M107: 0
A108: System | B108: Region | C108: Island | D108: - | E108: 2032-01-05T08:00:00 | F108: 1273.178712 | G108: 34.7907774 | H108: 0 | I108: 0 | K108: 2026-04-15T07:00:00 | L108: 1044.234614 | M108: 0
A109: System | B109: Region | C109: Island | D109: - | E109: 2032-01-05T09:00:00 | F109: 1252.263921 | G109: 34.2784331 | H109: 0 | I109: 0 | K109: 2026-04-16T20:00:00 | L109: 1397.806445 | M109: 0
A110: System | B110: Region | C110: Island | D110: - | E110: 2032-01-05T10:00:00 | F110: 1247.963517 | G110: 34.9005827 | H110: 0 | I110: 0 | K110: 2026-04-17T07:00:00 | L110: 1409.280216 | M110: 0
A111: System | B111: Region | C111: Island | D111: - | E111: 2032-01-05T11:00:00 | F111: 1234.176245 | G111: 34.3031485 | H111: 0 | I111: 0 | K111: 2026-04-18T20:00:00 | L111: 1075.139661 | M111: 0
A112: System | B112: Region | C112: Island | D112: - | E112: 2032-01-05T12:00:00 | F112: 1215.421443 | G112: 33.4027543 | H112: 0 | I112: 0 | K112: 2026-04-19T09:00:00 | L112: 1212.288456 | M112: 0
A113: System | B113: Region | C113: Island | D113: - | E113: 2032-01-05T13:00:00 | F113: 1190.132849 | G113: 32.1676703 | H113: 0 | I113: 0 | K113: 2026-04-20T07:00:00 | L113: 1303.373089 | M113: 0
A114: System | B114: Region | C114: Island | D114: - | E114: 2032-01-05T14:00:00 | F114: 1170.098758 | G114: 31.4499589 | H114: 0 | I114: 0 | K114: 2026-04-21T07:00:00 | L114: 1286.569264 | M114: 0
A115: System | B115: Region | C115: Island | D115: - | E115: 2032-01-05T15:00:00 | F115: 1168.524031 | G115: 31.5678396 | H115: 0 | I115: 0 | K115: 2026-04-22T07:00:00 | L115: 1265.888301 | M115: 0
A116: System | B116: Region | C116: Island | D116: - | E116: 2032-01-05T16:00:00 | F116: 1192.338821 | G116: 32.5268893 | H116: 0 | I116: 0 | K116: 2026-04-23T07:00:00 | L116: 1137.254126 | M116: 0
A117: System | B117: Region | C117: Island | D117: - | E117: 2032-01-05T17:00:00 | F117: 1300.641445 | G117: 36.1730552 | H117: 0 | I117: 0 | K117: 2026-04-24T07:00:00 | L117: 1107.567287 | M117: 0
A118: System | B118: Region | C118: Island | D118: - | E118: 2032-01-05T18:00:00 | F118: 1290.631009 | G118: 35.9218536 | H118: 0 | I118: 0 | K118: 2026-04-25T11:00:00 | L118: 1148.787557 | M118: 0
A119: System | B119: Region | C119: Island | D119: - | E119: 2032-01-05T19:00:00 | F119: 1282.859523 | G119: 35.6747447 | H119: 0 | I119: 0 | K119: 2026-04-26T11:00:00 | L119: 1117.151198 | M119: 0
A120: System | B120: Region | C120: Island | D120: - | E120: 2032-01-05T20:00:00 | F120: 1271.984066 | G120: 34.8163917 | H120: 0 | I120: 0 | K120: 2026-04-27T20:00:00 | L120: 1069.22815 | M120: 0
A121: System | B121: Region | C121: Island | D121: - | E121: 2032-01-05T21:00:00 | F121: 1248.199325 | G121: 34.4403318 | H121: 0 | I121: 0 | K121: 2026-04-28T07:00:00 | L121: 1157.86888 | M121: 0
A122: System | B122: Region | C122: Island | D122: - | E122: 2032-01-05T22:00:00 | F122: 1204.603581 | G122: 32.7102565 | H122: 0 | I122: 0 | K122: 2026-04-29T07:00:00 | L122: 1120.214587 | M122: 0
A123: System | B123: Region | C123: Island | D123: - | E123: 2032-01-05T23:00:00 | F123: 1149.69732 | G123: 25.5029336 | H123: 0 | I123: 0 | K123: 2026-04-30T08:00:00 | L123: 1199.601917 | M123: 0
A124: System | B124: Region | C124: Island | D124: - | E124: 2032-01-06 | F124: 1102.768162 | G124: 24.4595903 | H124: 0 | I124: 0 | K124: 2026-05-01T07:00:00 | L124: 1245.375717 | M124: 0
A125: System | B125: Region | C125: Island | D125: - | E125: 2032-01-06T01:00:00 | F125: 1080.065762 | G125: 23.1639095 | H125: 0 | I125: 0 | K125: 2026-05-02T09:00:00 | L125: 1137.649428 | M125: 0
A126: System | B126: Region | C126: Island | D126: - | E126: 2032-01-06T02:00:00 | F126: 1089.154285 | G126: 24.1116198 | H126: 0 | I126: 0 | K126: 2026-05-03T09:00:00 | L126: 1087.342309 | M126: 0
A127: System | B127: Region | C127: Island | D127: - | E127: 2032-01-06T03:00:00 | F127: 1097.910318 | G127: 24.2960829 | H127: 0 | I127: 0 | K127: 2026-05-04T07:00:00 | L127: 1076.15346 | M127: 0
A128: System | B128: Region | C128: Island | D128: - | E128: 2032-01-06T04:00:00 | F128: 1110.012853 | G128: 24.1363614 | H128: 0 | I128: 0 | K128: 2026-05-05T07:00:00 | L128: 1036.778886 | M128: 0
A129: System | B129: Region | C129: Island | D129: - | E129: 2032-01-06T05:00:00 | F129: 1142.869691 | G129: 25.6760815 | H129: 0 | I129: 0 | K129: 2026-05-06T07:00:00 | L129: 1021.448476 | M129: 0
A130: System | B130: Region | C130: Island | D130: - | E130: 2032-01-06T06:00:00 | F130: 1188.384626 | G130: 26.9317966 | H130: 0 | I130: 0 | K130: 2026-05-07T07:00:00 | L130: 1073.49656 | M130: 0
A131: System | B131: Region | C131: Island | D131: - | E131: 2032-01-06T07:00:00 | F131: 1347.85367 | G131: 37.4248614 | H131: 0 | I131: 0 | K131: 2026-05-08T09:00:00 | L131: 1240.713767 | M131: 0
A132: System | B132: Region | C132: Island | D132: - | E132: 2032-01-06T08:00:00 | F132: 1516.576965 | G132: 38.644402 | H132: 0 | I132: 0 | K132: 2026-05-09T09:00:00 | L132: 1164.495408 | M132: 0
A133: System | B133: Region | C133: Island | D133: - | E133: 2032-01-06T09:00:00 | F133: 1553.56694 | G133: 38.6097979 | H133: 0.0004167 | I133: 0.0262696 | K133: 2026-05-10T09:00:00 | L133: =MAX(OFFSET($F$4:$F$27,(ROW()-4)*24,0)) -> 1188.433684 | M133: =VLOOKUP(L133,OFFSET($F$4:$H$27,(ROW()-4)*24,0),3,FALSE) -> 0
A134: System | B134: Region | C134: Island | D134: - | E134: 2032-01-06T10:00:00 | F134: 1541.397994 | G134: 38.5929258 | H134: 0 | I134: 0 | K134: 2026-05-11T08:00:00 | L134: 1080.767711 | M134: 0
A135: System | B135: Region | C135: Island | D135: - | E135: 2032-01-06T11:00:00 | F135: 1530.628496 | G135: 38.5143709 | H135: 0 | I135: 0 | K135: 2026-05-12T07:00:00 | L135: 1165.490207 | M135: 0
A136: System | B136: Region | C136: Island | D136: - | E136: 2032-01-06T12:00:00 | F136: 1510.924614 | G136: 38.3500453 | H136: 0 | I136: 0 | K136: 2026-05-13T20:00:00 | L136: 1119.693783 | M136: 0
A137: System | B137: Region | C137: Island | D137: - | E137: 2032-01-06T13:00:00 | F137: 1477.5795 | G137: 38.6586185 | H137: 0 | I137: 0 | K137: 2026-05-14T07:00:00 | L137: 1124.753815 | M137: 0
A138: System | B138: Region | C138: Island | D138: - | E138: 2032-01-06T14:00:00 | F138: 1483.979435 | G138: 38.4427548 | H138: 0 | I138: 0 | K138: 2026-05-15T07:00:00 | L138: 1032.571866 | M138: 0
A139: System | B139: Region | C139: Island | D139: - | E139: 2032-01-06T15:00:00 | F139: 1512.857673 | G139: 38.6497715 | H139: 0.0004167 | I139: 0.0061402 | K139: 2026-05-16T09:00:00 | L139: 840.8945922 | M139: 0
A140: System | B140: Region | C140: Island | D140: - | E140: 2032-01-06T16:00:00 | F140: 1619.308162 | G140: 40.7809915 | H140: 0.0016667 | I140: 0.073724 | K140: 2026-05-17T09:00:00 | L140: 917.4981528 | M140: 0
A141: System | B141: Region | C141: Island | D141: - | E141: 2032-01-06T17:00:00 | F141: 1737.945451 | G141: 47.2770321 | H141: 0.0083333 | I141: 0.3925486 | K141: 2026-05-18T11:00:00 | L141: 1018.783919 | M141: 0
A142: System | B142: Region | C142: Island | D142: - | E142: 2032-01-06T18:00:00 | F142: 1727.874204 | G142: 46.8725553 | H142: 0.0104167 | I142: 0.5929876 | K142: 2026-05-19T07:00:00 | L142: 983.1235471 | M142: 0
A143: System | B143: Region | C143: Island | D143: - | E143: 2032-01-06T19:00:00 | F143: 1701.765208 | G143: 45.453768 | H143: 0.0054167 | I143: 0.2042408 | K143: 2026-05-20T20:00:00 | L143: 854.125354 | M143: 0
A144: System | B144: Region | C144: Island | D144: - | E144: 2032-01-06T20:00:00 | F144: 1679.714762 | G144: 44.3394776 | H144: 0.00375 | I144: 0.1099058 | K144: 2026-05-21T07:00:00 | L144: 909.573884 | M144: 0
A145: System | B145: Region | C145: Island | D145: - | E145: 2032-01-06T21:00:00 | F145: 1624.18374 | G145: 41.2869217 | H145: 0.00125 | I145: 0.0245486 | K145: 2026-05-22T07:00:00 | L145: 919.9082047 | M145: 0
A146: System | B146: Region | C146: Island | D146: - | E146: 2032-01-06T22:00:00 | F146: 1506.833373 | G146: 38.6625739 | H146: 0 | I146: 0 | K146: 2026-05-23T11:00:00 | L146: 936.6278295 | M146: 0
A147: System | B147: Region | C147: Island | D147: - | E147: 2032-01-06T23:00:00 | F147: 1323.586672 | G147: 30.8603881 | H147: 0 | I147: 0 | K147: 2026-05-24T09:00:00 | L147: 984.656531 | M147: 0
A148: System | B148: Region | C148: Island | D148: - | E148: 2032-01-07 | F148: 1196.355324 | G148: 27.662742 | H148: 0 | I148: 0 | K148: 2026-05-25T07:00:00 | L148: 921.0572914 | M148: 0
A149: System | B149: Region | C149: Island | D149: - | E149: 2032-01-07T01:00:00 | F149: 1181.17895 | G149: 27.5349105 | H149: 0 | I149: 0 | K149: 2026-05-26T07:00:00 | L149: 827.7837939 | M149: 0
A150: System | B150: Region | C150: Island | D150: - | E150: 2032-01-07T02:00:00 | F150: 1170.698047 | G150: 26.6259618 | H150: 0 | I150: 0 | K150: 2026-05-27T09:00:00 | L150: 842.8472933 | M150: 0
A151: System | B151: Region | C151: Island | D151: - | E151: 2032-01-07T03:00:00 | F151: 1170.626137 | G151: 27.2423036 | H151: 0 | I151: 0 | K151: 2026-05-28T09:00:00 | L151: 855.2375404 | M151: 0
A152: System | B152: Region | C152: Island | D152: - | E152: 2032-01-07T04:00:00 | F152: 1178.271467 | G152: 27.5941732 | H152: 0 | I152: 0 | K152: 2026-05-29T11:00:00 | L152: 914.2905444 | M152: 0
A153: System | B153: Region | C153: Island | D153: - | E153: 2032-01-07T05:00:00 | F153: 1190.57064 | G153: 27.6626797 | H153: 0 | I153: 0 | K153: 2026-05-30T09:00:00 | L153: 860.8463072 | M153: 0
A154: System | B154: Region | C154: Island | D154: - | E154: 2032-01-07T06:00:00 | F154: 1237.803306 | G154: 28.8811143 | H154: 0 | I154: 0 | K154: 2026-05-31T11:00:00 | L154: 802.4931244 | M154: 0
A155: System | B155: Region | C155: Island | D155: - | E155: 2032-01-07T07:00:00 | F155: 1439.274369 | G155: 39.1396075 | H155: 0 | I155: 0 | K155: 2026-06-01T07:00:00 | L155: 942.7092058 | M155: 0
A156: System | B156: Region | C156: Island | D156: - | E156: 2032-01-07T08:00:00 | F156: 1561.309012 | G156: 38.8989616 | H156: 0 | I156: 0 | K156: 2026-06-02T07:00:00 | L156: 1067.486898 | M156: 0
A157: System | B157: Region | C157: Island | D157: - | E157: 2032-01-07T09:00:00 | F157: 1579.178487 | G157: 39.0335317 | H157: 0 | I157: 0 | K157: 2026-06-03T07:00:00 | L157: 997.7906757 | M157: 0
A158: System | B158: Region | C158: Island | D158: - | E158: 2032-01-07T10:00:00 | F158: 1555.383245 | G158: 38.6753743 | H158: 0.00125 | I158: 0.1121284 | K158: 2026-06-04T07:00:00 | L158: 1016.547104 | M158: 0
A159: System | B159: Region | C159: Island | D159: - | E159: 2032-01-07T11:00:00 | F159: 1520.969768 | G159: 38.3560705 | H159: 0 | I159: 0 | K159: 2026-06-05T07:00:00 | L159: 1014.804446 | M159: 0
A160: System | B160: Region | C160: Island | D160: - | E160: 2032-01-07T12:00:00 | F160: 1508.868508 | G160: 38.749569 | H160: 0 | I160: 0 | K160: 2026-06-06T10:00:00 | L160: 936.4375658 | M160: 0
A161: System | B161: Region | C161: Island | D161: - | E161: 2032-01-07T13:00:00 | F161: 1458.897129 | G161: 38.8297848 | H161: 0 | I161: 0 | K161: 2026-06-07T11:00:00 | L161: 973.3684855 | M161: 0
A162: System | B162: Region | C162: Island | D162: - | E162: 2032-01-07T14:00:00 | F162: 1426.039376 | G162: 38.8678626 | H162: 0 | I162: 0 | K162: 2026-06-08T07:00:00 | L162: 1057.36165 | M162: 0
A163: System | B163: Region | C163: Island | D163: - | E163: 2032-01-07T15:00:00 | F163: 1435.380399 | G163: 38.9337954 | H163: 0 | I163: 0 | K163: 2026-06-09T07:00:00 | L163: 955.3168298 | M163: 0
A164: System | B164: Region | C164: Island | D164: - | E164: 2032-01-07T16:00:00 | F164: 1505.344404 | G164: 38.7498782 | H164: 0 | I164: 0 | K164: 2026-06-10T07:00:00 | L164: 845.5563673 | M164: 0
A165: System | B165: Region | C165: Island | D165: - | E165: 2032-01-07T17:00:00 | F165: 1655.601053 | G165: 42.867366 | H165: 0.0025 | I165: 0.1159559 | K165: 2026-06-11T07:00:00 | L165: 820.9697486 | M165: 0
A166: System | B166: Region | C166: Island | D166: - | E166: 2032-01-07T18:00:00 | F166: 1628.234628 | G166: 41.3348396 | H166: 0.0029167 | I166: 0.143527 | K166: 2026-06-12T11:00:00 | L166: 825.7978113 | M166: 0
A167: System | B167: Region | C167: Island | D167: - | E167: 2032-01-07T19:00:00 | F167: 1586.330409 | G167: 39.4427975 | H167: 0.00125 | I167: 0.073003 | K167: 2026-06-13T16:00:00 | L167: 905.6548582 | M167: 0
A168: System | B168: Region | C168: Island | D168: - | E168: 2032-01-07T20:00:00 | F168: 1551.361014 | G168: 38.7140245 | H168: 0.0004167 | I168: 0.0194364 | K168: 2026-06-14T10:00:00 | L168: 1051.164562 | M168: 0
A169: System | B169: Region | C169: Island | D169: - | E169: 2032-01-07T21:00:00 | F169: 1490.427864 | G169: 38.8811749 | H169: 0 | I169: 0 | K169: 2026-06-15T08:00:00 | L169: 1052.953625 | M169: 0
A170: System | B170: Region | C170: Island | D170: - | E170: 2032-01-07T22:00:00 | F170: 1398.041882 | G170: 38.1508431 | H170: 0 | I170: 0 | K170: 2026-06-16T07:00:00 | L170: 915.8127849 | M170: 0
A171: System | B171: Region | C171: Island | D171: - | E171: 2032-01-07T23:00:00 | F171: 1255.510459 | G171: 29.5520589 | H171: 0 | I171: 0 | K171: 2026-06-17T11:00:00 | L171: 1000.510131 | M171: 0
A172: System | B172: Region | C172: Island | D172: - | E172: 2032-01-08 | F172: 1188.097309 | G172: 27.6009144 | H172: 0 | I172: 0 | K172: 2026-06-18T07:00:00 | L172: 882.9815792 | M172: 0
A173: System | B173: Region | C173: Island | D173: - | E173: 2032-01-08T01:00:00 | F173: 1159.284358 | G173: 26.7590915 | H173: 0 | I173: 0 | K173: 2026-06-19T08:00:00 | L173: 752.1092338 | M173: 0
A174: System | B174: Region | C174: Island | D174: - | E174: 2032-01-08T02:00:00 | F174: 1157.367017 | G174: 26.9396477 | H174: 0 | I174: 0 | K174: 2026-06-20T11:00:00 | L174: 749.4375739 | M174: 0
A175: System | B175: Region | C175: Island | D175: - | E175: 2032-01-08T03:00:00 | F175: 1157.265826 | G175: 26.8561451 | H175: 0 | I175: 0 | K175: 2026-06-21T10:00:00 | L175: 739.1964689 | M175: 0
A176: System | B176: Region | C176: Island | D176: - | E176: 2032-01-08T04:00:00 | F176: 1169.90206 | G176: 26.7229318 | H176: 0 | I176: 0 | K176: 2026-06-22T11:00:00 | L176: 784.0710532 | M176: 0
A177: System | B177: Region | C177: Island | D177: - | E177: 2032-01-08T05:00:00 | F177: 1184.493192 | G177: 27.6882126 | H177: 0 | I177: 0 | K177: 2026-06-23T21:00:00 | L177: 852.4778477 | M177: 0
A178: System | B178: Region | C178: Island | D178: - | E178: 2032-01-08T06:00:00 | F178: 1230.992672 | G178: 28.7240366 | H178: 0 | I178: 0 | K178: 2026-06-24T09:00:00 | L178: 982.0224198 | M178: 0
A179: System | B179: Region | C179: Island | D179: - | E179: 2032-01-08T07:00:00 | F179: 1401.721659 | G179: 38.2899741 | H179: 0 | I179: 0 | K179: 2026-06-25T10:00:00 | L179: 1011.360879 | M179: 0
A180: System | B180: Region | C180: Island | D180: - | E180: 2032-01-08T08:00:00 | F180: 1544.10541 | G180: 38.5607046 | H180: 0 | I180: 0 | K180: 2026-06-26T09:00:00 | L180: 997.8833495 | M180: 0
A181: System | B181: Region | C181: Island | D181: - | E181: 2032-01-08T09:00:00 | F181: 1580.63934 | G181: 39.0362822 | H181: 0.0004167 | I181: 0.0008623 | K181: 2026-06-27T10:00:00 | L181: 922.5179006 | M181: 0
A182: System | B182: Region | C182: Island | D182: - | E182: 2032-01-08T10:00:00 | F182: 1584.505872 | G182: 39.3843573 | H182: 0.0004167 | I182: 0.0210294 | K182: 2026-06-28T11:00:00 | L182: 763.3893166 | M182: 0
A183: System | B183: Region | C183: Island | D183: - | E183: 2032-01-08T11:00:00 | F183: 1606.227149 | G183: 40.4243594 | H183: 0.00125 | I183: 0.0410627 | K183: 2026-06-29T11:00:00 | L183: 833.2270323 | M183: 0
A184: System | B184: Region | C184: Island | D184: - | E184: 2032-01-08T12:00:00 | F184: 1601.248301 | G184: 40.0284644 | H184: 0.0004167 | I184: 0.0468886 | K184: 2026-06-30T09:00:00 | L184: 815.7622009 | M184: 0
A185: System | B185: Region | C185: Island | D185: - | E185: 2032-01-08T13:00:00 | F185: 1546.757724 | G185: 38.640559 | H185: 0 | I185: 0 | K185: 2026-07-01T11:00:00 | L185: 724.2488907 | M185: 0
A186: System | B186: Region | C186: Island | D186: - | E186: 2032-01-08T14:00:00 | F186: 1502.233646 | G186: 38.3028373 | H186: 0 | I186: 0 | K186: 2026-07-02T16:00:00 | L186: 749.1143717 | M186: 0
A187: System | B187: Region | C187: Island | D187: - | E187: 2032-01-08T15:00:00 | F187: 1511.577615 | G187: 38.4880672 | H187: 0 | I187: 0 | K187: 2026-07-03T11:00:00 | L187: 766.9410208 | M187: 0
A188: System | B188: Region | C188: Island | D188: - | E188: 2032-01-08T16:00:00 | F188: 1547.105523 | G188: 38.3546957 | H188: 0 | I188: 0 | K188: 2026-07-04T11:00:00 | L188: 678.9125392 | M188: 0
A189: System | B189: Region | C189: Island | D189: - | E189: 2032-01-08T17:00:00 | F189: 1704.913813 | G189: 45.540592 | H189: 0.0045833 | I189: 0.234353 | K189: 2026-07-05T11:00:00 | L189: 712.4797129 | M189: 0
A190: System | B190: Region | C190: Island | D190: - | E190: 2032-01-08T18:00:00 | F190: 1690.589861 | G190: 44.7777038 | H190: 0.00375 | I190: 0.2587111 | K190: 2026-07-06T11:00:00 | L190: 862.3804478 | M190: 0
A191: System | B191: Region | C191: Island | D191: - | E191: 2032-01-08T19:00:00 | F191: 1647.889118 | G191: 42.4489052 | H191: 0.0008333 | I191: 0.0206974 | K191: 2026-07-07T10:00:00 | L191: 837.7824893 | M191: 0
A192: System | B192: Region | C192: Island | D192: - | E192: 2032-01-08T20:00:00 | F192: 1622.066023 | G192: 41.3239851 | H192: 0.0008333 | I192: 0.0487921 | K192: 2026-07-08T11:00:00 | L192: 771.9954308 | M192: 0
A193: System | B193: Region | C193: Island | D193: - | E193: 2032-01-08T21:00:00 | F193: 1568.27022 | G193: 38.7483561 | H193: 0.0004167 | I193: 0.0051454 | K193: 2026-07-09T11:00:00 | L193: 701.6726166 | M193: 0
A194: System | B194: Region | C194: Island | D194: - | E194: 2032-01-08T22:00:00 | F194: 1475.186431 | G194: 38.5653041 | H194: 0 | I194: 0 | K194: 2026-07-10T10:00:00 | L194: 730.0298194 | M194: 0
A195: System | B195: Region | C195: Island | D195: - | E195: 2032-01-08T23:00:00 | F195: 1317.386809 | G195: 31.2417378 | H195: 0 | I195: 0 | K195: 2026-07-11T11:00:00 | L195: 772.4126278 | M195: 0
A196: System | B196: Region | C196: Island | D196: - | E196: 2032-01-09 | F196: 1237.413004 | G196: 30.0288491 | H196: 0 | I196: 0 | K196: 2026-07-12T09:00:00 | L196: 743.4262292 | M196: 0
A197: System | B197: Region | C197: Island | D197: - | E197: 2032-01-09T01:00:00 | F197: 1217.806781 | G197: 28.9199276 | H197: 0 | I197: 0 | K197: 2026-07-13T11:00:00 | L197: =MAX(OFFSET($F$4:$F$27,(ROW()-4)*24,0)) -> 831.6668099 | M197: =VLOOKUP(L197,OFFSET($F$4:$H$27,(ROW()-4)*24,0),3,FALSE) -> 0
A198: System | B198: Region | C198: Island | D198: - | E198: 2032-01-09T02:00:00 | F198: 1220.10555 | G198: 29.3785588 | H198: 0 | I198: 0 | K198: 2026-07-14T11:00:00 | L198: 734.3221027 | M198: 0
A199: System | B199: Region | C199: Island | D199: - | E199: 2032-01-09T03:00:00 | F199: 1230.580016 | G199: 29.8788781 | H199: 0 | I199: 0 | K199: 2026-07-15T12:00:00 | L199: 671.7167637 | M199: 0
A200: System | B200: Region | C200: Island | D200: - | E200: 2032-01-09T04:00:00 | F200: 1249.712216 | G200: 29.5888977 | H200: 0 | I200: 0 | K200: 2026-07-16T11:00:00 | L200: 763.1383199 | M200: 0
A201: System | B201: Region | C201: Island | D201: - | E201: 2032-01-09T05:00:00 | F201: 1286.878961 | G201: 30.7026314 | H201: 0 | I201: 0 | K201: 2026-07-17T10:00:00 | L201: 736.6916317 | M201: 0
A202: System | B202: Region | C202: Island | D202: - | E202: 2032-01-09T06:00:00 | F202: 1400.628834 | G202: 33.6918226 | H202: 0 | I202: 0 | K202: 2026-07-18T11:00:00 | L202: 735.6110696 | M202: 0
... 8585 more rows

Sheet Run 5
A3: Parent Name | B3: Collection | C3: Child Name | D3: Category | E3: Datetime | F3: Load (MW) | G3: Transmission Losses (MW) | H3: Unserved Energy Hours (h) | I3: Unserved Energy (MW) | K3: Daily Peak | L3: Daily Peak Load | M3: Average Unserved Energy Hours
A4: System | B4: Region | C4: Island | D4: - | E4: 2032-01-01 | F4: 1279.756152 | G4: 29.3355196 | H4: 0 | I4: 0 | K4: 2026-01-01T17:00:00 | L4: =MAX(OFFSET($F$4:$F$27,(ROW()-4)*24,0)) -> 1592.837013 | M4: =VLOOKUP(L4,OFFSET($F$4:$H$27,(ROW()-4)*24,0),3,FALSE) -> 0.0004167 | P4: LOLE | Q4: =SUM(M4:M368) -> 0.1083333
A5: System | B5: Region | C5: Island | D5: - | E5: 2032-01-01T01:00:00 | F5: 1233.436564 | G5: 28.2863784 | H5: 0 | I5: 0 | K5: 2026-01-02T17:00:00 | L5: =MAX(OFFSET($F$4:$F$27,(ROW()-4)*24,0)) -> 1340.681969 | M5: =VLOOKUP(L5,OFFSET($F$4:$H$27,(ROW()-4)*24,0),3,FALSE) -> 0 | P5: LOLH | Q5: =SUM(H4:H8763) -> 0.3479175
A6: System | B6: Region | C6: Island | D6: - | E6: 2032-01-01T02:00:00 | F6: 1210.413873 | G6: 28.2363918 | H6: 0 | I6: 0 | K6: 2026-01-03T20:00:00 | L6: 1738.520439 | M6: 0.0075 | P6: EUE | Q6: =SUM(I4:I8763) -> 16.1437105
A7: System | B7: Region | C7: Island | D7: - | E7: 2032-01-01T03:00:00 | F7: 1198.678359 | G7: 27.5688135 | H7: 0 | I7: 0 | K7: 2026-01-04T17:00:00 | L7: 1743.834725 | M7: 0.01125 | P7: Peak | Q7: =MAX(F4:F8763) -> 1758.199408
A8: System | B8: Region | C8: Island | D8: - | E8: 2032-01-01T04:00:00 | F8: 1197.640718 | G8: 27.8646244 | H8: 0 | I8: 0 | K8: 2026-01-05T17:00:00 | L8: 1303.772714 | M8: 0 | P8: Loss @ Peak | Q8: =VLOOKUP(Q7,F4:G8763,2,FALSE) -> 48.2613641
A9: System | B9: Region | C9: Island | D9: - | E9: 2032-01-01T05:00:00 | F9: 1209.447432 | G9: 27.9414909 | H9: 0 | I9: 0 | K9: 2026-01-06T17:00:00 | L9: 1742.122962 | M9: 0.0083333 | P9: Peak with Losses | Q9: =Q7+Q8 -> 1806.460772
A10: System | B10: Region | C10: Island | D10: - | E10: 2032-01-01T06:00:00 | F10: 1238.711922 | G10: 28.968785 | H10: 0 | I10: 0 | K10: 2026-01-07T17:00:00 | L10: 1658.563614 | M10: 0.0033333 | P10: Peak Losses | Q10: =MAX(G4:G8763) -> 48.2613641
A11: System | B11: Region | C11: Island | D11: - | E11: 2032-01-01T07:00:00 | F11: 1300.642805 | G11: 36.0417174 | H11: 0 | I11: 0 | K11: 2026-01-08T17:00:00 | L11: 1708.725819 | M11: 0.005 | P11: Firm Capacity | Q11: 2452.74
A12: System | B12: Region | C12: Island | D12: - | E12: 2032-01-01T08:00:00 | F12: 1363.846107 | G12: 37.6252963 | H12: 0 | I12: 0 | K12: 2026-01-09T08:00:00 | L12: 1742.466399 | M12: 0.0095833 | P12: Reserve Margin | Q12: =Q11-Q7 -> 694.5405925
A13: System | B13: Region | C13: Island | D13: - | E13: 2032-01-01T09:00:00 | F13: 1385.381971 | G13: 38.0344578 | H13: 0 | I13: 0 | K13: 2026-01-10T17:00:00 | L13: 1454.221187 | M13: 0 | P13: Reserve Margin % | Q13: =Q12/Q7 -> 0.3950294771
A14: System | B14: Region | C14: Island | D14: - | E14: 2032-01-01T10:00:00 | F14: 1406.737583 | G14: 38.772647 | H14: 0 | I14: 0 | K14: 2026-01-11T20:00:00 | L14: 1641.48627 | M14: 0.0045833 | P14: Reserve Magin w/Loss | Q14: =Q11-Q9 -> 646.2792284
A15: System | B15: Region | C15: Island | D15: - | E15: 2032-01-01T11:00:00 | F15: 1434.382729 | G15: 38.9630685 | H15: 0 | I15: 0 | K15: 2026-01-12T08:00:00 | L15: 1697.158588 | M15: 0.0066667 | P15: Reserve Margin % w/ Loss | Q15: =Q14/Q9 -> 0.3577599019
A16: System | B16: Region | C16: Island | D16: - | E16: 2032-01-01T12:00:00 | F16: 1449.586921 | G16: 39.0984488 | H16: 0 | I16: 0 | K16: 2026-01-13T18:00:00 | L16: 1672.237896 | M16: 0.0025
A17: System | B17: Region | C17: Island | D17: - | E17: 2032-01-01T13:00:00 | F17: 1448.562805 | G17: 38.9590032 | H17: 0 | I17: 0 | K17: 2026-01-14T08:00:00 | L17: 1758.199408 | M17: 0.0116667 | P17: Checks
A18: System | B18: Region | C18: Island | D18: - | E18: 2032-01-01T14:00:00 | F18: 1450.319925 | G18: 39.2994945 | H18: 0 | I18: 0 | K18: 2026-01-15T08:00:00 | L18: 1527.517213 | M18: 0 | P18: Island Energy (Original) | Q18: 8410
A19: System | B19: Region | C19: Island | D19: - | E19: 2032-01-01T15:00:00 | F19: 1463.427695 | G19: 39.3224055 | H19: 0.0004167 | I19: 0.019342 | K19: 2026-01-16T17:00:00 | L19: 1361.103236 | M19: 0 | P19: Island Energy (Escalated) | Q19: =SUM(F4:F8787)/1000 -> 8342.662337
A20: System | B20: Region | C20: Island | D20: - | E20: 2032-01-01T16:00:00 | F20: 1489.70151 | G20: 38.585024 | H20: 0 | I20: 0 | K20: 2026-01-17T20:00:00 | L20: 1381.367009 | M20: 0 | P20: Escalation Factor Check | Q20: =Q19/Q18 -> 0.9919931435
A21: System | B21: Region | C21: Island | D21: - | E21: 2032-01-01T17:00:00 | F21: 1592.837013 | G21: 39.7485816 | H21: 0.0004167 | I21: 0.0111023 | K21: 2026-01-18T18:00:00 | L21: 1536.97538 | M21: 0.0004167
A22: System | B22: Region | C22: Island | D22: - | E22: 2032-01-01T18:00:00 | F22: 1539.313865 | G22: 38.6216924 | H22: 0 | I22: 0 | K22: 2026-01-19T08:00:00 | L22: 1406.784431 | M22: 0 | P22: Island Peak (Original) | Q22: 1773
A23: System | B23: Region | C23: Island | D23: - | E23: 2032-01-01T19:00:00 | F23: 1492.583141 | G23: 38.773306 | H23: 0 | I23: 0 | K23: 2026-01-20T18:00:00 | L23: 1242.800643 | M23: 0 | P23: Island Peak (Escalated) | Q23: =MAX(F4:F8763) -> 1758.199408
A24: System | B24: Region | C24: Island | D24: - | E24: 2032-01-01T20:00:00 | F24: 1461.531176 | G24: 39.2362445 | H24: 0.0004167 | I24: 0.0076229 | K24: 2026-01-21T18:00:00 | L24: 1358.361885 | M24: 0 | P24: Escalation Factor Check | Q24: =Q23/Q22 -> 0.9916522321
A25: System | B25: Region | C25: Island | D25: - | E25: 2032-01-01T21:00:00 | F25: 1410.234065 | G25: 38.6466615 | H25: 0 | I25: 0 | K25: 2026-01-22T08:00:00 | L25: 1388.937718 | M25: 0
A26: System | B26: Region | C26: Island | D26: - | E26: 2032-01-01T22:00:00 | F26: 1326.418146 | G26: 36.5550104 | H26: 0 | I26: 0 | K26: 2026-01-23T18:00:00 | L26: 1443.475288 | M26: 0
A27: System | B27: Region | C27: Island | D27: - | E27: 2032-01-01T23:00:00 | F27: 1213.065984 | G27: 28.1767948 | H27: 0 | I27: 0 | K27: 2026-01-24T10:00:00 | L27: 1456.317187 | M27: 0
A28: System | B28: Region | C28: Island | D28: - | E28: 2032-01-02 | F28: 1155.993653 | G28: 25.8024108 | H28: 0 | I28: 0 | K28: 2026-01-25T18:00:00 | L28: 1278.810458 | M28: 0
A29: System | B29: Region | C29: Island | D29: - | E29: 2032-01-02T01:00:00 | F29: 1119.71297 | G29: 24.263449 | H29: 0 | I29: 0 | K29: 2026-01-26T18:00:00 | L29: 1601.713071 | M29: 0.0008333
A30: System | B30: Region | C30: Island | D30: - | E30: 2032-01-02T02:00:00 | F30: 1108.26473 | G30: 24.6281805 | H30: 0 | I30: 0 | K30: 2026-01-27T17:00:00 | L30: 1748.14737 | M30: 0.0079167
A31: System | B31: Region | C31: Island | D31: - | E31: 2032-01-02T03:00:00 | F31: 1106.704168 | G31: 24.418758 | H31: 0 | I31: 0 | K31: 2026-01-28T08:00:00 | L31: 1231.287217 | M31: 0
A32: System | B32: Region | C32: Island | D32: - | E32: 2032-01-02T04:00:00 | F32: 1112.590545 | G32: 24.5224208 | H32: 0 | I32: 0 | K32: 2026-01-29T18:00:00 | L32: 1207.226337 | M32: 0
A33: System | B33: Region | C33: Island | D33: - | E33: 2032-01-02T05:00:00 | F33: 1121.754005 | G33: 24.5721001 | H33: 0 | I33: 0 | K33: 2026-01-30T12:00:00 | L33: 1374.32325 | M33: 0
A34: System | B34: Region | C34: Island | D34: - | E34: 2032-01-02T06:00:00 | F34: 1146.663316 | G34: 25.2261417 | H34: 0 | I34: 0 | K34: 2026-01-31T18:00:00 | L34: 1282.16145 | M34: 0
A35: System | B35: Region | C35: Island | D35: - | E35: 2032-01-02T07:00:00 | F35: 1192.410376 | G35: 32.1698692 | H35: 0 | I35: 0 | K35: 2026-02-01T10:00:00 | L35: 1165.742981 | M35: 0
A36: System | B36: Region | C36: Island | D36: - | E36: 2032-01-02T08:00:00 | F36: 1224.103038 | G36: 33.2669538 | H36: 0 | I36: 0 | K36: 2026-02-02T17:00:00 | L36: 1573.588972 | M36: 0.0004167
A37: System | B37: Region | C37: Island | D37: - | E37: 2032-01-02T09:00:00 | F37: 1277.296478 | G37: 35.2339493 | H37: 0 | I37: 0 | K37: 2026-02-03T18:00:00 | L37: 1429.750403 | M37: 0
A38: System | B38: Region | C38: Island | D38: - | E38: 2032-01-02T10:00:00 | F38: 1275.452897 | G38: 35.3501212 | H38: 0 | I38: 0 | K38: 2026-02-04T08:00:00 | L38: 1547.987992 | M38: 0.0008333
A39: System | B39: Region | C39: Island | D39: - | E39: 2032-01-02T11:00:00 | F39: 1288.44427 | G39: 36.1105308 | H39: 0 | I39: 0 | K39: 2026-02-05T08:00:00 | L39: 1604.963104 | M39: 0.00125
A40: System | B40: Region | C40: Island | D40: - | E40: 2032-01-02T12:00:00 | F40: 1272.813874 | G40: 35.4097115 | H40: 0 | I40: 0 | K40: 2026-02-06T12:00:00 | L40: 1282.955798 | M40: 0
A41: System | B41: Region | C41: Island | D41: - | E41: 2032-01-02T13:00:00 | F41: 1241.970226 | G41: 34.14836 | H41: 0 | I41: 0 | K41: 2026-02-07T18:00:00 | L41: 1482.750431 | M41: 0
A42: System | B42: Region | C42: Island | D42: - | E42: 2032-01-02T14:00:00 | F42: 1198.979704 | G42: 32.9779353 | H42: 0 | I42: 0 | K42: 2026-02-08T19:00:00 | L42: 1523.936626 | M42: 0
A43: System | B43: Region | C43: Island | D43: - | E43: 2032-01-02T15:00:00 | F43: 1183.48129 | G43: 32.0983479 | H43: 0 | I43: 0 | K43: 2026-02-09T08:00:00 | L43: 1696.667656 | M43: 0.0070833
A44: System | B44: Region | C44: Island | D44: - | E44: 2032-01-02T16:00:00 | F44: 1198.395684 | G44: 32.4558098 | H44: 0 | I44: 0 | K44: 2026-02-10T08:00:00 | L44: 1649.617697 | M44: 0.0029167
A45: System | B45: Region | C45: Island | D45: - | E45: 2032-01-02T17:00:00 | F45: 1340.681969 | G45: 36.6281385 | H45: 0 | I45: 0 | K45: 2026-02-11T18:00:00 | L45: 1473.0504 | M45: 0
A46: System | B46: Region | C46: Island | D46: - | E46: 2032-01-02T18:00:00 | F46: 1309.07376 | G46: 36.4585344 | H46: 0 | I46: 0 | K46: 2026-02-12T12:00:00 | L46: 1646.468871 | M46: 0.0004167
A47: System | B47: Region | C47: Island | D47: - | E47: 2032-01-02T19:00:00 | F47: 1246.71722 | G47: 34.1512793 | H47: 0 | I47: 0 | K47: 2026-02-13T08:00:00 | L47: 1476.997027 | M47: 0
A48: System | B48: Region | C48: Island | D48: - | E48: 2032-01-02T20:00:00 | F48: 1234.758687 | G48: 34.0627056 | H48: 0 | I48: 0 | K48: 2026-02-14T18:00:00 | L48: 1396.608399 | M48: 0
A49: System | B49: Region | C49: Island | D49: - | E49: 2032-01-02T21:00:00 | F49: 1211.338056 | G49: 32.7454196 | H49: 0 | I49: 0 | K49: 2026-02-15T18:00:00 | L49: 1368.600514 | M49: 0
A50: System | B50: Region | C50: Island | D50: - | E50: 2032-01-02T22:00:00 | F50: 1181.130438 | G50: 32.0654034 | H50: 0 | I50: 0 | K50: 2026-02-16T18:00:00 | L50: 1391.782031 | M50: 0
A51: System | B51: Region | C51: Island | D51: - | E51: 2032-01-02T23:00:00 | F51: 1146.388362 | G51: 25.4907207 | H51: 0 | I51: 0 | K51: 2026-02-17T18:00:00 | L51: 1508.357259 | M51: 0
A52: System | B52: Region | C52: Island | D52: - | E52: 2032-01-03 | F52: 1103.931029 | G52: 23.7861471 | H52: 0 | I52: 0 | K52: 2026-02-18T08:00:00 | L52: 1474.826615 | M52: 0
A53: System | B53: Region | C53: Island | D53: - | E53: 2032-01-03T01:00:00 | F53: 1080.041071 | G53: 23.0872572 | H53: 0 | I53: 0 | K53: 2026-02-19T18:00:00 | L53: 1338.328497 | M53: 0
A54: System | B54: Region | C54: Island | D54: - | E54: 2032-01-03T02:00:00 | F54: 1082.683694 | G54: 23.4977969 | H54: 0 | I54: 0 | K54: 2026-02-20T08:00:00 | L54: 1200.427903 | M54: 0
A55: System | B55: Region | C55: Island | D55: - | E55: 2032-01-03T03:00:00 | F55: 1084.344959 | G55: 23.4511907 | H55: 0 | I55: 0 | K55: 2026-02-21T19:00:00 | L55: 1452.615334 | M55: 0
A56: System | B56: Region | C56: Island | D56: - | E56: 2032-01-03T04:00:00 | F56: 1094.808184 | G56: 24.1381162 | H56: 0 | I56: 0 | K56: 2026-02-22T10:00:00 | L56: 1380.023974 | M56: 0
A57: System | B57: Region | C57: Island | D57: - | E57: 2032-01-03T05:00:00 | F57: 1102.348791 | G57: 23.6994046 | H57: 0 | I57: 0 | K57: 2026-02-23T18:00:00 | L57: 1221.531287 | M57: 0
A58: System | B58: Region | C58: Island | D58: - | E58: 2032-01-03T06:00:00 | F58: 1121.519306 | G58: 24.5066226 | H58: 0 | I58: 0 | K58: 2026-02-24T19:00:00 | L58: 1610.75792 | M58: 0.0004167
A59: System | B59: Region | C59: Island | D59: - | E59: 2032-01-03T07:00:00 | F59: 1160.273265 | G59: 31.6625141 | H59: 0 | I59: 0 | K59: 2026-02-25T08:00:00 | L59: 1611.416421 | M59: 0.0020833
A60: System | B60: Region | C60: Island | D60: - | E60: 2032-01-03T08:00:00 | F60: 1199.430332 | G60: 32.7827098 | H60: 0 | I60: 0 | K60: 2026-02-26T08:00:00 | L60: 1341.565929 | M60: 0
A61: System | B61: Region | C61: Island | D61: - | E61: 2032-01-03T09:00:00 | F61: 1294.026466 | G61: 36.1854918 | H61: 0 | I61: 0 | K61: 2026-02-27T08:00:00 | L61: 1363.843854 | M61: 0
A62: System | B62: Region | C62: Island | D62: - | E62: 2032-01-03T10:00:00 | F62: 1305.957836 | G62: 36.4291963 | H62: 0 | I62: 0 | K62: 2026-02-28T19:00:00 | L62: 1518.784545 | M62: 0
A63: System | B63: Region | C63: Island | D63: - | E63: 2032-01-03T11:00:00 | F63: 1288.784451 | G63: 35.8521877 | H63: 0 | I63: 0 | K63: 2026-03-01T10:00:00 | L63: 1274.518375 | M63: 0
A64: System | B64: Region | C64: Island | D64: - | E64: 2032-01-03T12:00:00 | F64: 1308.247104 | G64: 36.0455431 | H64: 0 | I64: 0 | K64: 2026-03-02T09:00:00 | L64: 1502.594204 | M64: 0
A65: System | B65: Region | C65: Island | D65: - | E65: 2032-01-03T13:00:00 | F65: 1309.965524 | G65: 36.0655866 | H65: 0 | I65: 0 | K65: 2026-03-03T19:00:00 | L65: 1544.043283 | M65: 0
A66: System | B66: Region | C66: Island | D66: - | E66: 2032-01-03T14:00:00 | F66: 1357.642777 | G66: 37.5092315 | H66: 0 | I66: 0 | K66: 2026-03-04T07:00:00 | L66: 1482.37872 | M66: 0
A67: System | B67: Region | C67: Island | D67: - | E67: 2032-01-03T15:00:00 | F67: 1368.52618 | G67: 37.9378721 | H67: 0 | I67: 0 | K67: 2026-03-05T20:00:00 | L67: 1433.988234 | M67: 0
A68: System | B68: Region | C68: Island | D68: - | E68: 2032-01-03T16:00:00 | F68: 1459.562874 | G68: 39.0019621 | H68: 0 | I68: 0 | K68: 2026-03-06T08:00:00 | L68: 1587.495846 | M68: 0.00125
A69: System | B69: Region | C69: Island | D69: - | E69: 2032-01-03T17:00:00 | F69: 1717.452485 | G69: 46.4885761 | H69: 0.0075 | I69: 0.2434446 | K69: 2026-03-07T08:00:00 | L69: =MAX(OFFSET($F$4:$F$27,(ROW()-4)*24,0)) -> 1467.817709 | M69: =VLOOKUP(L69,OFFSET($F$4:$H$27,(ROW()-4)*24,0),3,FALSE) -> 0
A70: System | B70: Region | C70: Island | D70: - | E70: 2032-01-03T18:00:00 | F70: 1690.537283 | G70: 45.248606 | H70: 0.0045833 | I70: 0.1074197 | K70: 2026-03-08T08:00:00 | L70: 1330.855165 | M70: 0
A71: System | B71: Region | C71: Island | D71: - | E71: 2032-01-03T19:00:00 | F71: 1699.422562 | G71: 45.5855159 | H71: 0.0079167 | I71: 0.4589131 | K71: 2026-03-09T07:00:00 | L71: 1464.620037 | M71: 0
A72: System | B72: Region | C72: Island | D72: - | E72: 2032-01-03T20:00:00 | F72: 1738.520439 | G72: 47.5308188 | H72: 0.0075 | I72: 0.4415452 | K72: 2026-03-10T07:00:00 | L72: 1626.695435 | M72: 0.0008333
A73: System | B73: Region | C73: Island | D73: - | E73: 2032-01-03T21:00:00 | F73: 1716.675933 | G73: 46.4308362 | H73: 0.0070833 | I73: 0.3285231 | K73: 2026-03-11T07:00:00 | L73: 1514.093278 | M73: 0
A74: System | B74: Region | C74: Island | D74: - | E74: 2032-01-03T22:00:00 | F74: 1673.431144 | G74: 44.1541717 | H74: 0.00125 | I74: 0.0543033 | K74: 2026-03-12T19:00:00 | L74: 1436.927561 | M74: 0
A75: System | B75: Region | C75: Island | D75: - | E75: 2032-01-03T23:00:00 | F75: 1535.893138 | G75: 37.6602286 | H75: 0.0004167 | I75: 0.0201445 | K75: 2026-03-13T08:00:00 | L75: 1608.606571 | M75: 0.0008333
A76: System | B76: Region | C76: Island | D76: - | E76: 2032-01-04 | F76: 1421.166485 | G76: 35.6925112 | H76: 0 | I76: 0 | K76: 2026-03-14T10:00:00 | L76: 1542.278131 | M76: 0
A77: System | B77: Region | C77: Island | D77: - | E77: 2032-01-04T01:00:00 | F77: 1261.321834 | G77: 31.803054 | H77: 0 | I77: 0 | K77: 2026-03-15T09:00:00 | L77: 1486.000793 | M77: 0
A78: System | B78: Region | C78: Island | D78: - | E78: 2032-01-04T02:00:00 | F78: 1238.044681 | G78: 31.6795856 | H78: 0 | I78: 0 | K78: 2026-03-16T10:00:00 | L78: 1533.822974 | M78: 0.0004167
A79: System | B79: Region | C79: Island | D79: - | E79: 2032-01-04T03:00:00 | F79: 1289.566132 | G79: 32.9385844 | H79: 0 | I79: 0 | K79: 2026-03-17T07:00:00 | L79: 1314.529676 | M79: 0
A80: System | B80: Region | C80: Island | D80: - | E80: 2032-01-04T04:00:00 | F80: 1327.281275 | G80: 34.1095843 | H80: 0 | I80: 0 | K80: 2026-03-18T16:00:00 | L80: 1300.945715 | M80: 0
A81: System | B81: Region | C81: Island | D81: - | E81: 2032-01-04T05:00:00 | F81: 1317.637489 | G81: 33.4210903 | H81: 0 | I81: 0 | K81: 2026-03-19T07:00:00 | L81: 1261.205397 | M81: 0
A82: System | B82: Region | C82: Island | D82: - | E82: 2032-01-04T06:00:00 | F82: 1392.827946 | G82: 34.9471239 | H82: 0 | I82: 0 | K82: 2026-03-20T07:00:00 | L82: 1376.010268 | M82: 0
A83: System | B83: Region | C83: Island | D83: - | E83: 2032-01-04T07:00:00 | F83: 1452.690268 | G83: 38.0922502 | H83: 0 | I83: 0 | K83: 2026-03-21T08:00:00 | L83: 1272.611743 | M83: 0
A84: System | B84: Region | C84: Island | D84: - | E84: 2032-01-04T08:00:00 | F84: 1504.41442 | G84: 38.4285219 | H84: 0 | I84: 0 | K84: 2026-03-22T10:00:00 | L84: 1369.512523 | M84: 0
A85: System | B85: Region | C85: Island | D85: - | E85: 2032-01-04T09:00:00 | F85: 1667.117839 | G85: 43.3978449 | H85: 0.0016667 | I85: 0.0178773 | K85: 2026-03-23T19:00:00 | L85: 1463.447985 | M85: 0
A86: System | B86: Region | C86: Island | D86: - | E86: 2032-01-04T10:00:00 | F86: 1687.610058 | G86: 44.8177865 | H86: 0.0041667 | I86: 0.259806 | K86: 2026-03-24T07:00:00 | L86: 1419.53995 | M86: 0
A87: System | B87: Region | C87: Island | D87: - | E87: 2032-01-04T11:00:00 | F87: 1661.207265 | G87: 43.2903974 | H87: 0.0016667 | I87: 0.0558846 | K87: 2026-03-25T07:00:00 | L87: 1391.228922 | M87: 0
A88: System | B88: Region | C88: Island | D88: - | E88: 2032-01-04T12:00:00 | F88: 1612.761977 | G88: 41.0728246 | H88: 0.00125 | I88: 0.0381639 | K88: 2026-03-26T07:00:00 | L88: 1359.422002 | M88: 0
A89: System | B89: Region | C89: Island | D89: - | E89: 2032-01-04T13:00:00 | F89: 1577.465138 | G89: 39.0295772 | H89: 0 | I89: 0 | K89: 2026-03-27T07:00:00 | L89: 1170.988227 | M89: 0
A90: System | B90: Region | C90: Island | D90: - | E90: 2032-01-04T14:00:00 | F90: 1569.390483 | G90: 38.7954476 | H90: 0.00125 | I90: 0.0519392 | K90: 2026-03-28T19:00:00 | L90: 1152.140449 | M90: 0
A91: System | B91: Region | C91: Island | D91: - | E91: 2032-01-04T15:00:00 | F91: 1598.010033 | G91: 40.0255176 | H91: 0.0008333 | I91: 0.0402855 | K91: 2026-03-29T20:00:00 | L91: 1203.424563 | M91: 0
A92: System | B92: Region | C92: Island | D92: - | E92: 2032-01-04T16:00:00 | F92: 1660.016688 | G92: 43.3399104 | H92: 0.0041667 | I92: 0.3432944 | K92: 2026-03-30T07:00:00 | L92: 1329.1591 | M92: 0
A93: System | B93: Region | C93: Island | D93: - | E93: 2032-01-04T17:00:00 | F93: 1743.834725 | G93: 47.4958671 | H93: 0.01125 | I93: 0.5850117 | K93: 2026-03-31T07:00:00 | L93: 1297.292141 | M93: 0
A94: System | B94: Region | C94: Island | D94: - | E94: 2032-01-04T18:00:00 | F94: 1713.12609 | G94: 46.1166473 | H94: 0.0075 | I94: 0.5366742 | K94: 2026-04-01T07:00:00 | L94: 1218.238914 | M94: 0
A95: System | B95: Region | C95: Island | D95: - | E95: 2032-01-04T19:00:00 | F95: 1684.823787 | G95: 44.691707 | H95: 0.0054167 | I95: 0.1414119 | K95: 2026-04-02T20:00:00 | L95: 1282.757563 | M95: 0
A96: System | B96: Region | C96: Island | D96: - | E96: 2032-01-04T20:00:00 | F96: 1681.802815 | G96: 44.5238503 | H96: 0.00125 | I96: 0.0445662 | K96: 2026-04-03T08:00:00 | L96: 1224.882663 | M96: 0
A97: System | B97: Region | C97: Island | D97: - | E97: 2032-01-04T21:00:00 | F97: 1629.352683 | G97: 41.5675089 | H97: 0.0016667 | I97: 0.0618278 | K97: 2026-04-04T09:00:00 | L97: 1141.698898 | M97: 0
A98: System | B98: Region | C98: Island | D98: - | E98: 2032-01-04T22:00:00 | F98: 1484.064402 | G98: 37.8531921 | H98: 0 | I98: 0 | K98: 2026-04-05T20:00:00 | L98: 1319.12663 | M98: 0
A99: System | B99: Region | C99: Island | D99: - | E99: 2032-01-04T23:00:00 | F99: 1308.651161 | G99: 33.3465898 | H99: 0 | I99: 0 | K99: 2026-04-06T20:00:00 | L99: 1364.711444 | M99: 0
A100: System | B100: Region | C100: Island | D100: - | E100: 2032-01-05 | F100: 1196.143037 | G100: 26.3970342 | H100: 0 | I100: 0 | K100: 2026-04-07T07:00:00 | L100: 1414.25007 | M100: 0
A101: System | B101: Region | C101: Island | D101: - | E101: 2032-01-05T01:00:00 | F101: 1162.348101 | G101: 25.6612689 | H101: 0 | I101: 0 | K101: 2026-04-08T07:00:00 | L101: 1368.921366 | M101: 0
A102: System | B102: Region | C102: Island | D102: - | E102: 2032-01-05T02:00:00 | F102: 1146.005285 | G102: 25.3044973 | H102: 0 | I102: 0 | K102: 2026-04-09T07:00:00 | L102: 1423.56048 | M102: 0
A103: System | B103: Region | C103: Island | D103: - | E103: 2032-01-05T03:00:00 | F103: 1135.838495 | G103: 24.812104 | H103: 0 | I103: 0 | K103: 2026-04-10T07:00:00 | L103: 1382.248918 | M103: 0
A104: System | B104: Region | C104: Island | D104: - | E104: 2032-01-05T04:00:00 | F104: 1132.540943 | G104: 25.084537 | H104: 0 | I104: 0 | K104: 2026-04-11T09:00:00 | L104: 1298.14113 | M104: 0
A105: System | B105: Region | C105: Island | D105: - | E105: 2032-01-05T05:00:00 | F105: 1132.563778 | G105: 25.2413241 | H105: 0 | I105: 0 | K105: 2026-04-12T09:00:00 | L105: 1128.716887 | M105: 0
A106: System | B106: Region | C106: Island | D106: - | E106: 2032-01-05T06:00:00 | F106: 1152.11273 | G106: 25.418078 | H106: 0 | I106: 0 | K106: 2026-04-13T07:00:00 | L106: 1225.712653 | M106: 0
A107: System | B107: Region | C107: Island | D107: - | E107: 2032-01-05T07:00:00 | F107: 1223.006543 | G107: 34.2412663 | H107: 0 | I107: 0 | K107: 2026-04-14T07:00:00 | L107: 1127.533891 | M107: 0
A108: System | B108: Region | C108: Island | D108: - | E108: 2032-01-05T08:00:00 | F108: 1276.109451 | G108: 35.2791977 | H108: 0 | I108: 0 | K108: 2026-04-15T07:00:00 | L108: 1046.213885 | M108: 0
A109: System | B109: Region | C109: Island | D109: - | E109: 2032-01-05T09:00:00 | F109: 1255.161636 | G109: 34.5855131 | H109: 0 | I109: 0 | K109: 2026-04-16T20:00:00 | L109: 1401.989936 | M109: 0
A110: System | B110: Region | C110: Island | D110: - | E110: 2032-01-05T10:00:00 | F110: 1250.880705 | G110: 34.29517 | H110: 0 | I110: 0 | K110: 2026-04-17T07:00:00 | L110: 1412.516144 | M110: 0
A111: System | B111: Region | C111: Island | D111: - | E111: 2032-01-05T11:00:00 | F111: 1236.918538 | G111: 34.0336598 | H111: 0 | I111: 0 | K111: 2026-04-18T20:00:00 | L111: 1077.272765 | M111: 0
A112: System | B112: Region | C112: Island | D112: - | E112: 2032-01-05T12:00:00 | F112: 1218.147832 | G112: 33.3212063 | H112: 0 | I112: 0 | K112: 2026-04-19T09:00:00 | L112: 1214.47133 | M112: 0
A113: System | B113: Region | C113: Island | D113: - | E113: 2032-01-05T13:00:00 | F113: 1192.267554 | G113: 31.9548298 | H113: 0 | I113: 0 | K113: 2026-04-20T07:00:00 | L113: 1305.676327 | M113: 0
A114: System | B114: Region | C114: Island | D114: - | E114: 2032-01-05T14:00:00 | F114: 1172.724348 | G114: 31.8726313 | H114: 0 | I114: 0 | K114: 2026-04-21T07:00:00 | L114: 1289.235123 | M114: 0
A115: System | B115: Region | C115: Island | D115: - | E115: 2032-01-05T15:00:00 | F115: 1171.093859 | G115: 31.6744823 | H115: 0 | I115: 0 | K115: 2026-04-22T07:00:00 | L115: 1268.324517 | M115: 0
A116: System | B116: Region | C116: Island | D116: - | E116: 2032-01-05T16:00:00 | F116: 1194.97104 | G116: 32.5187123 | H116: 0 | I116: 0 | K116: 2026-04-23T07:00:00 | L116: 1139.81094 | M116: 0
A117: System | B117: Region | C117: Island | D117: - | E117: 2032-01-05T17:00:00 | F117: 1303.772714 | G117: 36.4771221 | H117: 0 | I117: 0 | K117: 2026-04-24T07:00:00 | L117: 1109.719677 | M117: 0
A118: System | B118: Region | C118: Island | D118: - | E118: 2032-01-05T18:00:00 | F118: 1293.418455 | G118: 36.0839574 | H118: 0 | I118: 0 | K118: 2026-04-25T11:00:00 | L118: 1151.168219 | M118: 0
A119: System | B119: Region | C119: Island | D119: - | E119: 2032-01-05T19:00:00 | F119: 1285.287845 | G119: 35.8283089 | H119: 0 | I119: 0 | K119: 2026-04-26T11:00:00 | L119: 1119.542222 | M119: 0
A120: System | B120: Region | C120: Island | D120: - | E120: 2032-01-05T20:00:00 | F120: 1274.258975 | G120: 35.4154476 | H120: 0 | I120: 0 | K120: 2026-04-27T20:00:00 | L120: 1071.169278 | M120: 0
A121: System | B121: Region | C121: Island | D121: - | E121: 2032-01-05T21:00:00 | F121: 1250.824954 | G121: 34.4812587 | H121: 0 | I121: 0 | K121: 2026-04-28T07:00:00 | L121: 1159.88564 | M121: 0
A122: System | B122: Region | C122: Island | D122: - | E122: 2032-01-05T22:00:00 | F122: 1207.489057 | G122: 32.6101179 | H122: 0 | I122: 0 | K122: 2026-04-29T07:00:00 | L122: 1122.481009 | M122: 0
A123: System | B123: Region | C123: Island | D123: - | E123: 2032-01-05T23:00:00 | F123: 1152.622147 | G123: 25.688433 | H123: 0 | I123: 0 | K123: 2026-04-30T08:00:00 | L123: 1202.181872 | M123: 0
A124: System | B124: Region | C124: Island | D124: - | E124: 2032-01-06 | F124: 1105.339065 | G124: 24.2992185 | H124: 0 | I124: 0 | K124: 2026-05-01T07:00:00 | L124: 1247.339984 | M124: 0
A125: System | B125: Region | C125: Island | D125: - | E125: 2032-01-06T01:00:00 | F125: 1082.673362 | G125: 23.7379536 | H125: 0 | I125: 0 | K125: 2026-05-02T09:00:00 | L125: 1139.825393 | M125: 0
A126: System | B126: Region | C126: Island | D126: - | E126: 2032-01-06T02:00:00 | F126: 1091.833307 | G126: 24.0831546 | H126: 0 | I126: 0 | K126: 2026-05-03T09:00:00 | L126: 1089.818866 | M126: 0
A127: System | B127: Region | C127: Island | D127: - | E127: 2032-01-06T03:00:00 | F127: 1100.460597 | G127: 24.3038316 | H127: 0 | I127: 0 | K127: 2026-05-04T07:00:00 | L127: 1078.4771 | M127: 0
A128: System | B128: Region | C128: Island | D128: - | E128: 2032-01-06T04:00:00 | F128: 1112.779468 | G128: 24.4741818 | H128: 0 | I128: 0 | K128: 2026-05-05T07:00:00 | L128: 1039.20266 | M128: 0
A129: System | B129: Region | C129: Island | D129: - | E129: 2032-01-06T05:00:00 | F129: 1145.384866 | G129: 25.654998 | H129: 0 | I129: 0 | K129: 2026-05-06T07:00:00 | L129: 1023.182946 | M129: 0
A130: System | B130: Region | C130: Island | D130: - | E130: 2032-01-06T06:00:00 | F130: 1190.865092 | G130: 26.7239645 | H130: 0 | I130: 0 | K130: 2026-05-07T07:00:00 | L130: 1075.930857 | M130: 0
A131: System | B131: Region | C131: Island | D131: - | E131: 2032-01-06T07:00:00 | F131: 1350.515114 | G131: 37.291869 | H131: 0 | I131: 0 | K131: 2026-05-08T09:00:00 | L131: 1243.995385 | M131: 0
A132: System | B132: Region | C132: Island | D132: - | E132: 2032-01-06T08:00:00 | F132: 1520.148531 | G132: 38.5276652 | H132: 0 | I132: 0 | K132: 2026-05-09T09:00:00 | L132: 1166.319117 | M132: 0
A133: System | B133: Region | C133: Island | D133: - | E133: 2032-01-06T09:00:00 | F133: 1557.5229 | G133: 38.7241676 | H133: 0 | I133: 0 | K133: 2026-05-10T09:00:00 | L133: =MAX(OFFSET($F$4:$F$27,(ROW()-4)*24,0)) -> 1190.759288 | M133: =VLOOKUP(L133,OFFSET($F$4:$H$27,(ROW()-4)*24,0),3,FALSE) -> 0
A134: System | B134: Region | C134: Island | D134: - | E134: 2032-01-06T10:00:00 | F134: 1545.099933 | G134: 38.8118969 | H134: 0 | I134: 0 | K134: 2026-05-11T08:00:00 | L134: 1083.175879 | M134: 0
A135: System | B135: Region | C135: Island | D135: - | E135: 2032-01-06T11:00:00 | F135: 1534.051403 | G135: 38.571024 | H135: 0 | I135: 0 | K135: 2026-05-12T07:00:00 | L135: 1168.01276 | M135: 0
A136: System | B136: Region | C136: Island | D136: - | E136: 2032-01-06T12:00:00 | F136: 1514.137461 | G136: 38.7735288 | H136: 0 | I136: 0 | K136: 2026-05-13T20:00:00 | L136: 1122.329392 | M136: 0
A137: System | B137: Region | C137: Island | D137: - | E137: 2032-01-06T13:00:00 | F137: 1480.872831 | G137: 38.1961904 | H137: 0 | I137: 0 | K137: 2026-05-14T07:00:00 | L137: 1126.921469 | M137: 0
A138: System | B138: Region | C138: Island | D138: - | E138: 2032-01-06T14:00:00 | F138: 1487.224324 | G138: 38.1944527 | H138: 0 | I138: 0 | K138: 2026-05-15T07:00:00 | L138: 1034.650421 | M138: 0
A139: System | B139: Region | C139: Island | D139: - | E139: 2032-01-06T15:00:00 | F139: 1515.679308 | G139: 38.0649323 | H139: 0 | I139: 0 | K139: 2026-05-16T09:00:00 | L139: 842.9430442 | M139: 0
A140: System | B140: Region | C140: Island | D140: - | E140: 2032-01-06T16:00:00 | F140: 1623.053453 | G140: 41.253708 | H140: 0 | I140: 0 | K140: 2026-05-17T09:00:00 | L140: 919.4469726 | M140: 0
A141: System | B141: Region | C141: Island | D141: - | E141: 2032-01-06T17:00:00 | F141: 1742.122962 | G141: 47.5028367 | H141: 0.0083333 | I141: 0.4784533 | K141: 2026-05-18T11:00:00 | L141: 1020.96977 | M141: 0
A142: System | B142: Region | C142: Island | D142: - | E142: 2032-01-06T18:00:00 | F142: 1731.678879 | G142: 46.8836166 | H142: 0.0083333 | I142: 0.4060543 | K142: 2026-05-19T07:00:00 | L142: 985.2485306 | M142: 0
A143: System | B143: Region | C143: Island | D143: - | E143: 2032-01-06T19:00:00 | F143: 1705.481415 | G143: 45.6973817 | H143: 0.0070833 | I143: 0.3112934 | K143: 2026-05-20T20:00:00 | L143: 855.7555063 | M143: 0
A144: System | B144: Region | C144: Island | D144: - | E144: 2032-01-06T20:00:00 | F144: 1683.395526 | G144: 44.437084 | H144: 0.00625 | I144: 0.2876715 | K144: 2026-05-21T07:00:00 | L144: 911.5281313 | M144: 0
A145: System | B145: Region | C145: Island | D145: - | E145: 2032-01-06T21:00:00 | F145: 1627.36585 | G145: 41.4884637 | H145: 0.0020833 | I145: 0.0965806 | K145: 2026-05-22T07:00:00 | L145: 921.1188383 | M145: 0
A146: System | B146: Region | C146: Island | D146: - | E146: 2032-01-06T22:00:00 | F146: 1509.677154 | G146: 38.6698282 | H146: 0 | I146: 0 | K146: 2026-05-23T11:00:00 | L146: 938.2452648 | M146: 0
A147: System | B147: Region | C147: Island | D147: - | E147: 2032-01-06T23:00:00 | F147: 1325.893053 | G147: 31.5983254 | H147: 0 | I147: 0 | K147: 2026-05-24T09:00:00 | L147: 986.467556 | M147: 0
A148: System | B148: Region | C148: Island | D148: - | E148: 2032-01-07 | F148: 1198.673522 | G148: 28.0065886 | H148: 0 | I148: 0 | K148: 2026-05-25T07:00:00 | L148: 922.8798925 | M148: 0
A149: System | B149: Region | C149: Island | D149: - | E149: 2032-01-07T01:00:00 | F149: 1183.676733 | G149: 27.1857993 | H149: 0 | I149: 0 | K149: 2026-05-26T07:00:00 | L149: 829.2368726 | M149: 0
A150: System | B150: Region | C150: Island | D150: - | E150: 2032-01-07T02:00:00 | F150: 1173.360634 | G150: 26.8692209 | H150: 0 | I150: 0 | K150: 2026-05-27T09:00:00 | L150: 844.962618 | M150: 0
A151: System | B151: Region | C151: Island | D151: - | E151: 2032-01-07T03:00:00 | F151: 1173.61634 | G151: 27.3512498 | H151: 0 | I151: 0 | K151: 2026-05-28T09:00:00 | L151: 857.0896377 | M151: 0
A152: System | B152: Region | C152: Island | D152: - | E152: 2032-01-07T04:00:00 | F152: 1181.210724 | G152: 27.2038576 | H152: 0 | I152: 0 | K152: 2026-05-29T11:00:00 | L152: 915.6628005 | M152: 0
A153: System | B153: Region | C153: Island | D153: - | E153: 2032-01-07T05:00:00 | F153: 1193.405283 | G153: 27.6925986 | H153: 0 | I153: 0 | K153: 2026-05-30T09:00:00 | L153: 862.6809428 | M153: 0
A154: System | B154: Region | C154: Island | D154: - | E154: 2032-01-07T06:00:00 | F154: 1240.369116 | G154: 28.9543082 | H154: 0 | I154: 0 | K154: 2026-05-31T11:00:00 | L154: 804.2484764 | M154: 0
A155: System | B155: Region | C155: Island | D155: - | E155: 2032-01-07T07:00:00 | F155: 1442.292818 | G155: 38.7674588 | H155: 0 | I155: 0 | K155: 2026-06-01T07:00:00 | L155: 944.0934628 | M155: 0
A156: System | B156: Region | C156: Island | D156: - | E156: 2032-01-07T08:00:00 | F156: 1564.239613 | G156: 38.8831793 | H156: 0 | I156: 0 | K156: 2026-06-02T07:00:00 | L156: 1069.355026 | M156: 0
A157: System | B157: Region | C157: Island | D157: - | E157: 2032-01-07T09:00:00 | F157: 1582.194466 | G157: 39.3927975 | H157: 0 | I157: 0 | K157: 2026-06-03T07:00:00 | L157: 999.8329686 | M157: 0
A158: System | B158: Region | C158: Island | D158: - | E158: 2032-01-07T10:00:00 | F158: 1558.505355 | G158: 38.6158535 | H158: 0 | I158: 0 | K158: 2026-06-04T07:00:00 | L158: 1018.10245 | M158: 0
A159: System | B159: Region | C159: Island | D159: - | E159: 2032-01-07T11:00:00 | F159: 1523.718294 | G159: 38.6142179 | H159: 0 | I159: 0 | K159: 2026-06-05T07:00:00 | L159: 1017.076348 | M159: 0
A160: System | B160: Region | C160: Island | D160: - | E160: 2032-01-07T12:00:00 | F160: 1512.268268 | G160: 38.6235618 | H160: 0.0004167 | I160: 0.0030972 | K160: 2026-06-06T10:00:00 | L160: 938.0578689 | M160: 0
A161: System | B161: Region | C161: Island | D161: - | E161: 2032-01-07T13:00:00 | F161: 1462.011374 | G161: 38.7466421 | H161: 0 | I161: 0 | K161: 2026-06-07T11:00:00 | L161: 975.5110967 | M161: 0
A162: System | B162: Region | C162: Island | D162: - | E162: 2032-01-07T14:00:00 | F162: 1428.738331 | G162: 38.9626426 | H162: 0 | I162: 0 | K162: 2026-06-08T07:00:00 | L162: 1059.441073 | M162: 0
A163: System | B163: Region | C163: Island | D163: - | E163: 2032-01-07T15:00:00 | F163: 1438.322801 | G163: 38.8218925 | H163: 0 | I163: 0 | K163: 2026-06-09T07:00:00 | L163: 957.1912098 | M163: 0
A164: System | B164: Region | C164: Island | D164: - | E164: 2032-01-07T16:00:00 | F164: 1507.98219 | G164: 38.4905559 | H164: 0 | I164: 0 | K164: 2026-06-10T07:00:00 | L164: 847.1616894 | M164: 0
A165: System | B165: Region | C165: Island | D165: - | E165: 2032-01-07T17:00:00 | F165: 1658.563614 | G165: 43.2741718 | H165: 0.0033333 | I165: 0.2103362 | K165: 2026-06-11T07:00:00 | L165: 822.8454582 | M165: 0
A166: System | B166: Region | C166: Island | D166: - | E166: 2032-01-07T18:00:00 | F166: 1631.703571 | G166: 41.5131511 | H166: 0.0020833 | I166: 0.0736389 | K166: 2026-06-12T11:00:00 | L166: 827.7432316 | M166: 0
A167: System | B167: Region | C167: Island | D167: - | E167: 2032-01-07T19:00:00 | F167: 1589.867788 | G167: 39.7300612 | H167: 0.0004167 | I167: 0.0040899 | K167: 2026-06-13T16:00:00 | L167: 907.3704149 | M167: 0
A168: System | B168: Region | C168: Island | D168: - | E168: 2032-01-07T20:00:00 | F168: 1554.991236 | G168: 38.8063048 | H168: 0 | I168: 0 | K168: 2026-06-14T10:00:00 | L168: 1053.834274 | M168: 0
A169: System | B169: Region | C169: Island | D169: - | E169: 2032-01-07T21:00:00 | F169: 1493.409495 | G169: 38.5564777 | H169: 0 | I169: 0 | K169: 2026-06-15T08:00:00 | L169: 1054.985208 | M169: 0
A170: System | B170: Region | C170: Island | D170: - | E170: 2032-01-07T22:00:00 | F170: 1401.099456 | G170: 38.2584498 | H170: 0 | I170: 0 | K170: 2026-06-16T07:00:00 | L170: 917.0647485 | M170: 0
A171: System | B171: Region | C171: Island | D171: - | E171: 2032-01-07T23:00:00 | F171: 1258.346403 | G171: 29.4568209 | H171: 0 | I171: 0 | K171: 2026-06-17T11:00:00 | L171: 1002.829476 | M171: 0
A172: System | B172: Region | C172: Island | D172: - | E172: 2032-01-08 | F172: 1190.831348 | G172: 27.4763747 | H172: 0 | I172: 0 | K172: 2026-06-18T07:00:00 | L172: 884.7001695 | M172: 0
A173: System | B173: Region | C173: Island | D173: - | E173: 2032-01-08T01:00:00 | F173: 1161.735697 | G173: 27.0438173 | H173: 0 | I173: 0 | K173: 2026-06-19T08:00:00 | L173: 754.0684791 | M173: 0
A174: System | B174: Region | C174: Island | D174: - | E174: 2032-01-08T02:00:00 | F174: 1160.106956 | G174: 26.786013 | H174: 0 | I174: 0 | K174: 2026-06-20T11:00:00 | L174: 750.7925031 | M174: 0
A175: System | B175: Region | C175: Island | D175: - | E175: 2032-01-08T03:00:00 | F175: 1160.224009 | G175: 26.9526234 | H175: 0 | I175: 0 | K175: 2026-06-21T10:00:00 | L175: 740.2784277 | M175: 0
A176: System | B176: Region | C176: Island | D176: - | E176: 2032-01-08T04:00:00 | F176: 1172.521006 | G176: 26.9976075 | H176: 0 | I176: 0 | K176: 2026-06-22T11:00:00 | L176: 785.5785922 | M176: 0
A177: System | B177: Region | C177: Island | D177: - | E177: 2032-01-08T05:00:00 | F177: 1187.386026 | G177: 27.7402005 | H177: 0 | I177: 0 | K177: 2026-06-23T21:00:00 | L177: 854.6545519 | M177: 0
A178: System | B178: Region | C178: Island | D178: - | E178: 2032-01-08T06:00:00 | F178: 1233.534492 | G178: 28.8429503 | H178: 0 | I178: 0 | K178: 2026-06-24T09:00:00 | L178: 983.8491859 | M178: 0
A179: System | B179: Region | C179: Island | D179: - | E179: 2032-01-08T07:00:00 | F179: 1404.463478 | G179: 38.1821929 | H179: 0 | I179: 0 | K179: 2026-06-25T10:00:00 | L179: 1013.15159 | M179: 0
A180: System | B180: Region | C180: Island | D180: - | E180: 2032-01-08T08:00:00 | F180: 1547.09765 | G180: 38.6537084 | H180: 0.0004167 | I180: 0.0430597 | K180: 2026-06-26T09:00:00 | L180: 999.6217074 | M180: 0
A181: System | B181: Region | C181: Island | D181: - | E181: 2032-01-08T09:00:00 | F181: 1583.764628 | G181: 39.4160096 | H181: 0 | I181: 0 | K181: 2026-06-27T10:00:00 | L181: 924.5022762 | M181: 0
A182: System | B182: Region | C182: Island | D182: - | E182: 2032-01-08T10:00:00 | F182: 1587.677845 | G182: 39.4082064 | H182: 0.0004167 | I182: 0.0103563 | K182: 2026-06-28T11:00:00 | L182: 764.9099649 | M182: 0
A183: System | B183: Region | C183: Island | D183: - | E183: 2032-01-08T11:00:00 | F183: 1609.087626 | G183: 40.429599 | H183: 0.0008333 | I183: 0.017288 | K183: 2026-06-29T11:00:00 | L183: 834.9679749 | M183: 0
A184: System | B184: Region | C184: Island | D184: - | E184: 2032-01-08T12:00:00 | F184: 1603.967213 | G184: 40.1054078 | H184: 0 | I184: 0 | K184: 2026-06-30T09:00:00 | L184: 817.20511 | M184: 0
A185: System | B185: Region | C185: Island | D185: - | E185: 2032-01-08T13:00:00 | F185: 1549.487301 | G185: 38.5170352 | H185: 0 | I185: 0 | K185: 2026-07-01T11:00:00 | L185: 725.36812 | M185: 0
A186: System | B186: Region | C186: Island | D186: - | E186: 2032-01-08T14:00:00 | F186: 1505.431202 | G186: 38.2667798 | H186: 0 | I186: 0 | K186: 2026-07-02T16:00:00 | L186: 750.1417621 | M186: 0
A187: System | B187: Region | C187: Island | D187: - | E187: 2032-01-08T15:00:00 | F187: 1514.559398 | G187: 38.619833 | H187: 0.0004167 | I187: 0.0139569 | K187: 2026-07-03T11:00:00 | L187: 768.0372477 | M187: 0
A188: System | B188: Region | C188: Island | D188: - | E188: 2032-01-08T16:00:00 | F188: 1550.382494 | G188: 38.58942 | H188: 0 | I188: 0 | K188: 2026-07-04T11:00:00 | L188: 680.3058326 | M188: 0
A189: System | B189: Region | C189: Island | D189: - | E189: 2032-01-08T17:00:00 | F189: 1708.725819 | G189: 45.8403143 | H189: 0.005 | I189: 0.2963069 | K189: 2026-07-05T11:00:00 | L189: 713.7052577 | M189: 0
A190: System | B190: Region | C190: Island | D190: - | E190: 2032-01-08T18:00:00 | F190: 1693.930629 | G190: 45.060515 | H190: 0.0058333 | I190: 0.2115966 | K190: 2026-07-06T11:00:00 | L190: 863.795869 | M190: 0
A191: System | B191: Region | C191: Island | D191: - | E191: 2032-01-08T19:00:00 | F191: 1651.369704 | G191: 42.8364575 | H191: 0.00125 | I191: 0.0472794 | K191: 2026-07-07T10:00:00 | L191: 839.0859787 | M191: 0
A192: System | B192: Region | C192: Island | D192: - | E192: 2032-01-08T20:00:00 | F192: 1625.265324 | G192: 41.1734918 | H192: 0.0016667 | I192: 0.0189954 | K192: 2026-07-08T11:00:00 | L192: 773.7484189 | M192: 0
A193: System | B193: Region | C193: Island | D193: - | E193: 2032-01-08T21:00:00 | F193: 1571.692263 | G193: 38.8863182 | H193: 0.00125 | I193: 0.0305993 | K193: 2026-07-09T11:00:00 | L193: 703.2158115 | M193: 0
A194: System | B194: Region | C194: Island | D194: - | E194: 2032-01-08T22:00:00 | F194: 1478.377358 | G194: 38.1740448 | H194: 0 | I194: 0 | K194: 2026-07-10T10:00:00 | L194: 731.5318098 | M194: 0
A195: System | B195: Region | C195: Island | D195: - | E195: 2032-01-08T23:00:00 | F195: 1319.79057 | G195: 31.469313 | H195: 0 | I195: 0 | K195: 2026-07-11T11:00:00 | L195: 773.7091959 | M195: 0
A196: System | B196: Region | C196: Island | D196: - | E196: 2032-01-09 | F196: 1239.746239 | G196: 29.4015387 | H196: 0 | I196: 0 | K196: 2026-07-12T09:00:00 | L196: 744.7000914 | M196: 0
A197: System | B197: Region | C197: Island | D197: - | E197: 2032-01-09T01:00:00 | F197: 1220.097966 | G197: 29.0910067 | H197: 0 | I197: 0 | K197: 2026-07-13T11:00:00 | L197: =MAX(OFFSET($F$4:$F$27,(ROW()-4)*24,0)) -> 833.104975 | M197: =VLOOKUP(L197,OFFSET($F$4:$H$27,(ROW()-4)*24,0),3,FALSE) -> 0
A198: System | B198: Region | C198: Island | D198: - | E198: 2032-01-09T02:00:00 | F198: 1222.503798 | G198: 28.6155429 | H198: 0 | I198: 0 | K198: 2026-07-14T11:00:00 | L198: 736.0183846 | M198: 0
A199: System | B199: Region | C199: Island | D199: - | E199: 2032-01-09T03:00:00 | F199: 1232.656316 | G199: 29.3420549 | H199: 0 | I199: 0 | K199: 2026-07-15T12:00:00 | L199: 673.0998094 | M199: 0
A200: System | B200: Region | C200: Island | D200: - | E200: 2032-01-09T04:00:00 | F200: 1252.149489 | G200: 29.9626871 | H200: 0 | I200: 0 | K200: 2026-07-16T11:00:00 | L200: 764.8927582 | M200: 0
A201: System | B201: Region | C201: Island | D201: - | E201: 2032-01-09T05:00:00 | F201: 1289.641867 | G201: 31.2847883 | H201: 0 | I201: 0 | K201: 2026-07-17T10:00:00 | L201: 738.0333298 | M201: 0
A202: System | B202: Region | C202: Island | D202: - | E202: 2032-01-09T06:00:00 | F202: 1403.655623 | G202: 34.1365609 | H202: 0 | I202: 0 | K202: 2026-07-18T11:00:00 | L202: 736.9809265 | M202: 0
... 8585 more rows

Sheet Run 6
A3: Parent Name | B3: Collection | C3: Child Name | D3: Category | E3: Datetime | F3: Load (MW) | G3: Transmission Losses (MW) | H3: Unserved Energy Hours (h) | I3: Unserved Energy (MW) | K3: Daily Peak | L3: Daily Peak Load | M3: Average Unserved Energy Hours
A4: System | B4: Region | C4: Island | D4: - | E4: 2032-01-01 | F4: 1283.709126 | G4: 30.0314918 | H4: 0 | I4: 0 | K4: 2026-01-01T17:00:00 | L4: =MAX(OFFSET($F$4:$F$27,(ROW()-4)*24,0)) -> 1596.470892 | M4: =VLOOKUP(L4,OFFSET($F$4:$H$27,(ROW()-4)*24,0),3,FALSE) -> 0 | P4: LOLE | Q4: =SUM(M4:M368) -> 0.1275005
A5: System | B5: Region | C5: Island | D5: - | E5: 2032-01-01T01:00:00 | F5: 1236.908609 | G5: 29.3147209 | H5: 0 | I5: 0 | K5: 2026-01-02T17:00:00 | L5: =MAX(OFFSET($F$4:$F$27,(ROW()-4)*24,0)) -> 1343.736144 | M5: =VLOOKUP(L5,OFFSET($F$4:$H$27,(ROW()-4)*24,0),3,FALSE) -> 0 | P5: LOLH | Q5: =SUM(H4:H8763) -> 0.3808354
A6: System | B6: Region | C6: Island | D6: - | E6: 2032-01-01T02:00:00 | F6: 1213.541831 | G6: 28.0674811 | H6: 0 | I6: 0 | K6: 2026-01-03T20:00:00 | L6: 1741.2346 | M6: 0.01125 | P6: EUE | Q6: =SUM(I4:I8763) -> 17.5879223
A7: System | B7: Region | C7: Island | D7: - | E7: 2032-01-01T03:00:00 | F7: 1201.514208 | G7: 27.9212692 | H7: 0 | I7: 0 | K7: 2026-01-04T17:00:00 | L7: 1747.660671 | M7: 0.0083333 | P7: Peak | Q7: =MAX(F4:F8763) -> 1761.93961
A8: System | B8: Region | C8: Island | D8: - | E8: 2032-01-01T04:00:00 | F8: 1200.436102 | G8: 27.7639048 | H8: 0 | I8: 0 | K8: 2026-01-05T17:00:00 | L8: 1306.206725 | M8: 0 | P8: Loss @ Peak | Q8: =VLOOKUP(Q7,F4:G8763,2,FALSE) -> 48.305248
A9: System | B9: Region | C9: Island | D9: - | E9: 2032-01-01T05:00:00 | F9: 1211.973451 | G9: 27.6646838 | H9: 0 | I9: 0 | K9: 2026-01-06T17:00:00 | L9: 1744.564978 | M9: 0.015 | P9: Peak with Losses | Q9: =Q7+Q8 -> 1810.244858
A10: System | B10: Region | C10: Island | D10: - | E10: 2032-01-01T06:00:00 | F10: 1241.574013 | G10: 28.7045659 | H10: 0 | I10: 0 | K10: 2026-01-07T17:00:00 | L10: 1662.508216 | M10: 0.0033333 | P10: Peak Losses | Q10: =MAX(G4:G8763) -> 48.305248
A11: System | B11: Region | C11: Island | D11: - | E11: 2032-01-01T07:00:00 | F11: 1303.54859 | G11: 36.8150543 | H11: 0 | I11: 0 | K11: 2026-01-08T17:00:00 | L11: 1711.654775 | M11: 0.0075 | P11: Firm Capacity | Q11: 2452.74
A12: System | B12: Region | C12: Island | D12: - | E12: 2032-01-01T08:00:00 | F12: 1366.900776 | G12: 37.7093351 | H12: 0 | I12: 0 | K12: 2026-01-09T08:00:00 | L12: 1746.12051 | M12: 0.0108333 | P12: Reserve Margin | Q12: =Q11-Q7 -> 690.8003902
A13: System | B13: Region | C13: Island | D13: - | E13: 2032-01-01T09:00:00 | F13: 1387.898154 | G13: 38.3202353 | H13: 0.0004167 | I13: 0.0031163 | K13: 2026-01-10T17:00:00 | L13: 1457.225818 | M13: 0 | P13: Reserve Margin % | Q13: =Q12/Q7 -> 0.3920681426
A14: System | B14: Region | C14: Island | D14: - | E14: 2032-01-01T10:00:00 | F14: 1408.545433 | G14: 38.7646873 | H14: 0 | I14: 0 | K14: 2026-01-11T20:00:00 | L14: 1644.793852 | M14: 0.0029167 | P14: Reserve Magin w/Loss | Q14: =Q11-Q9 -> 642.4951422
A15: System | B15: Region | C15: Island | D15: - | E15: 2032-01-01T11:00:00 | F15: 1437.113282 | G15: 38.9109589 | H15: 0 | I15: 0 | K15: 2026-01-12T08:00:00 | L15: 1700.641022 | M15: 0.0083333 | P15: Reserve Margin % w/ Loss | Q15: =Q14/Q9 -> 0.3549216778
A16: System | B16: Region | C16: Island | D16: - | E16: 2032-01-01T12:00:00 | F16: 1452.159507 | G16: 39.6544631 | H16: 0 | I16: 0 | K16: 2026-01-13T18:00:00 | L16: 1675.811595 | M16: 0.00625
A17: System | B17: Region | C17: Island | D17: - | E17: 2032-01-01T13:00:00 | F17: 1450.911857 | G17: 39.165358 | H17: 0 | I17: 0 | K17: 2026-01-14T08:00:00 | L17: 1761.93961 | M17: 0.0141667 | P17: Checks
A18: System | B18: Region | C18: Island | D18: - | E18: 2032-01-01T14:00:00 | F18: 1452.710281 | G18: 39.0308185 | H18: 0 | I18: 0 | K18: 2026-01-15T08:00:00 | L18: 1530.389548 | M18: 0.0004167 | P18: Island Energy (Original) | Q18: 8410
A19: System | B19: Region | C19: Island | D19: - | E19: 2032-01-01T15:00:00 | F19: 1465.905885 | G19: 39.0265696 | H19: 0 | I19: 0 | K19: 2026-01-16T17:00:00 | L19: 1364.556406 | M19: 0 | P19: Island Energy (Escalated) | Q19: =SUM(F4:F8787)/1000 -> 8359.407856
A20: System | B20: Region | C20: Island | D20: - | E20: 2032-01-01T16:00:00 | F20: 1492.328855 | G20: 38.5880784 | H20: 0 | I20: 0 | K20: 2026-01-17T20:00:00 | L20: 1383.895461 | M20: 0 | P20: Escalation Factor Check | Q20: =Q19/Q18 -> 0.9939842873
A21: System | B21: Region | C21: Island | D21: - | E21: 2032-01-01T17:00:00 | F21: 1596.470892 | G21: 39.6595741 | H21: 0 | I21: 0 | K21: 2026-01-18T18:00:00 | L21: 1540.040828 | M21: 0
A22: System | B22: Region | C22: Island | D22: - | E22: 2032-01-01T18:00:00 | F22: 1542.4685 | G22: 38.5710784 | H22: 0 | I22: 0 | K22: 2026-01-19T08:00:00 | L22: 1409.412997 | M22: 0 | P22: Island Peak (Original) | Q22: 1773
A23: System | B23: Region | C23: Island | D23: - | E23: 2032-01-01T19:00:00 | F23: 1495.548058 | G23: 39.0848842 | H23: 0 | I23: 0 | K23: 2026-01-20T18:00:00 | L23: 1245.160326 | M23: 0 | P23: Island Peak (Escalated) | Q23: =MAX(F4:F8763) -> 1761.93961
A24: System | B24: Region | C24: Island | D24: - | E24: 2032-01-01T20:00:00 | F24: 1464.532399 | G24: 39.0497805 | H24: 0 | I24: 0 | K24: 2026-01-21T18:00:00 | L24: 1361.031447 | M24: 0 | P24: Escalation Factor Check | Q24: =Q23/Q22 -> 0.9937617653
A25: System | B25: Region | C25: Island | D25: - | E25: 2032-01-01T21:00:00 | F25: 1412.825253 | G25: 38.8816812 | H25: 0 | I25: 0 | K25: 2026-01-22T08:00:00 | L25: 1391.89838 | M25: 0
A26: System | B26: Region | C26: Island | D26: - | E26: 2032-01-01T22:00:00 | F26: 1328.957403 | G26: 36.7160035 | H26: 0 | I26: 0 | K26: 2026-01-23T18:00:00 | L26: 1445.895116 | M26: 0
A27: System | B27: Region | C27: Island | D27: - | E27: 2032-01-01T23:00:00 | F27: 1215.372643 | G27: 28.5247861 | H27: 0 | I27: 0 | K27: 2026-01-24T10:00:00 | L27: 1458.854767 | M27: 0
A28: System | B28: Region | C28: Island | D28: - | E28: 2032-01-02 | F28: 1158.316067 | G28: 25.6342536 | H28: 0 | I28: 0 | K28: 2026-01-25T18:00:00 | L28: 1281.037393 | M28: 0
A29: System | B29: Region | C29: Island | D29: - | E29: 2032-01-02T01:00:00 | F29: 1121.864094 | G29: 24.7758328 | H29: 0 | I29: 0 | K29: 2026-01-26T18:00:00 | L29: 1605.181343 | M29: 0.0016667
A30: System | B30: Region | C30: Island | D30: - | E30: 2032-01-02T02:00:00 | F30: 1110.579977 | G30: 24.3826646 | H30: 0 | I30: 0 | K30: 2026-01-27T17:00:00 | L30: 1752.21691 | M30: 0.0104167
A31: System | B31: Region | C31: Island | D31: - | E31: 2032-01-02T03:00:00 | F31: 1108.945373 | G31: 23.7591281 | H31: 0 | I31: 0 | K31: 2026-01-28T08:00:00 | L31: 1233.644556 | M31: 0
A32: System | B32: Region | C32: Island | D32: - | E32: 2032-01-02T04:00:00 | F32: 1114.992167 | G32: 24.529589 | H32: 0 | I32: 0 | K32: 2026-01-29T18:00:00 | L32: 1209.957953 | M32: 0
A33: System | B33: Region | C33: Island | D33: - | E33: 2032-01-02T05:00:00 | F33: 1124.26195 | G33: 24.6906824 | H33: 0 | I33: 0 | K33: 2026-01-30T12:00:00 | L33: 1377.057847 | M33: 0
A34: System | B34: Region | C34: Island | D34: - | E34: 2032-01-02T06:00:00 | F34: 1148.888036 | G34: 25.6652584 | H34: 0 | I34: 0 | K34: 2026-01-31T18:00:00 | L34: 1284.768672 | M34: 0
A35: System | B35: Region | C35: Island | D35: - | E35: 2032-01-02T07:00:00 | F35: 1194.913192 | G35: 32.1946303 | H35: 0 | I35: 0 | K35: 2026-02-01T10:00:00 | L35: 1168.164956 | M35: 0
A36: System | B36: Region | C36: Island | D36: - | E36: 2032-01-02T08:00:00 | F36: 1226.763604 | G36: 33.6309736 | H36: 0 | I36: 0 | K36: 2026-02-02T17:00:00 | L36: 1576.63554 | M36: 0.0004167
A37: System | B37: Region | C37: Island | D37: - | E37: 2032-01-02T09:00:00 | F37: 1280.059405 | G37: 35.1905584 | H37: 0 | I37: 0 | K37: 2026-02-03T18:00:00 | L37: 1432.450805 | M37: 0
A38: System | B38: Region | C38: Island | D38: - | E38: 2032-01-02T10:00:00 | F38: 1278.30606 | G38: 35.3319728 | H38: 0 | I38: 0 | K38: 2026-02-04T08:00:00 | L38: 1551.680948 | M38: 0.0004167
A39: System | B39: Region | C39: Island | D39: - | E39: 2032-01-02T11:00:00 | F39: 1291.56046 | G39: 35.897836 | H39: 0 | I39: 0 | K39: 2026-02-05T08:00:00 | L39: 1608.332537 | M39: 0.0004167
A40: System | B40: Region | C40: Island | D40: - | E40: 2032-01-02T12:00:00 | F40: 1275.923645 | G40: 35.2738074 | H40: 0 | I40: 0 | K40: 2026-02-06T12:00:00 | L40: 1285.583117 | M40: 0
A41: System | B41: Region | C41: Island | D41: - | E41: 2032-01-02T13:00:00 | F41: 1245.169638 | G41: 34.4471387 | H41: 0 | I41: 0 | K41: 2026-02-07T18:00:00 | L41: 1485.683788 | M41: 0
A42: System | B42: Region | C42: Island | D42: - | E42: 2032-01-02T14:00:00 | F42: 1201.765503 | G42: 32.8855957 | H42: 0 | I42: 0 | K42: 2026-02-08T19:00:00 | L42: 1527.203667 | M42: 0
A43: System | B43: Region | C43: Island | D43: - | E43: 2032-01-02T15:00:00 | F43: 1185.97667 | G43: 32.2998574 | H43: 0 | I43: 0 | K43: 2026-02-09T08:00:00 | L43: 1699.574804 | M43: 0.0066667
A44: System | B44: Region | C44: Island | D44: - | E44: 2032-01-02T16:00:00 | F44: 1201.514395 | G44: 32.9000127 | H44: 0 | I44: 0 | K44: 2026-02-10T08:00:00 | L44: 1652.079615 | M44: 0.0016667
A45: System | B45: Region | C45: Island | D45: - | E45: 2032-01-02T17:00:00 | F45: 1343.736144 | G45: 37.3229242 | H45: 0 | I45: 0 | K45: 2026-02-11T18:00:00 | L45: 1476.458992 | M45: 0
A46: System | B46: Region | C46: Island | D46: - | E46: 2032-01-02T18:00:00 | F46: 1312.209862 | G46: 36.7809189 | H46: 0 | I46: 0 | K46: 2026-02-12T12:00:00 | L46: 1649.90059 | M46: 0.0029167
A47: System | B47: Region | C47: Island | D47: - | E47: 2032-01-02T19:00:00 | F47: 1249.088248 | G47: 34.2150512 | H47: 0 | I47: 0 | K47: 2026-02-13T08:00:00 | L47: 1480.017343 | M47: 0
A48: System | B48: Region | C48: Island | D48: - | E48: 2032-01-02T20:00:00 | F48: 1236.854113 | G48: 33.9069195 | H48: 0 | I48: 0 | K48: 2026-02-14T18:00:00 | L48: 1399.301476 | M48: 0
A49: System | B49: Region | C49: Island | D49: - | E49: 2032-01-02T21:00:00 | F49: 1213.55816 | G49: 32.5342804 | H49: 0 | I49: 0 | K49: 2026-02-15T18:00:00 | L49: 1370.941158 | M49: 0
A50: System | B50: Region | C50: Island | D50: - | E50: 2032-01-02T22:00:00 | F50: 1182.950851 | G50: 32.0569416 | H50: 0 | I50: 0 | K50: 2026-02-16T18:00:00 | L50: 1394.147499 | M50: 0
A51: System | B51: Region | C51: Island | D51: - | E51: 2032-01-02T23:00:00 | F51: 1148.448643 | G51: 25.4054768 | H51: 0 | I51: 0 | K51: 2026-02-17T18:00:00 | L51: 1511.79218 | M51: 0
A52: System | B52: Region | C52: Island | D52: - | E52: 2032-01-03 | F52: 1105.5294 | G52: 24.2804641 | H52: 0 | I52: 0 | K52: 2026-02-18T08:00:00 | L52: 1477.852413 | M52: 0
A53: System | B53: Region | C53: Island | D53: - | E53: 2032-01-03T01:00:00 | F53: 1081.836966 | G53: 23.5152689 | H53: 0 | I53: 0 | K53: 2026-02-19T18:00:00 | L53: 1340.833032 | M53: 0
A54: System | B54: Region | C54: Island | D54: - | E54: 2032-01-03T02:00:00 | F54: 1084.573992 | G54: 23.7576896 | H54: 0 | I54: 0 | K54: 2026-02-20T08:00:00 | L54: 1202.849967 | M54: 0
A55: System | B55: Region | C55: Island | D55: - | E55: 2032-01-03T03:00:00 | F55: 1086.59676 | G55: 23.5302461 | H55: 0 | I55: 0 | K55: 2026-02-21T19:00:00 | L55: 1455.518015 | M55: 0
A56: System | B56: Region | C56: Island | D56: - | E56: 2032-01-03T04:00:00 | F56: 1096.804638 | G56: 23.9714642 | H56: 0 | I56: 0 | K56: 2026-02-22T10:00:00 | L56: 1382.557531 | M56: 0
A57: System | B57: Region | C57: Island | D57: - | E57: 2032-01-03T05:00:00 | F57: 1104.510588 | G57: 24.1959255 | H57: 0 | I57: 0 | K57: 2026-02-23T18:00:00 | L57: 1223.731102 | M57: 0
A58: System | B58: Region | C58: Island | D58: - | E58: 2032-01-03T06:00:00 | F58: 1123.503429 | G58: 24.6206981 | H58: 0 | I58: 0 | K58: 2026-02-24T19:00:00 | L58: 1614.010463 | M58: 0.0016667
A59: System | B59: Region | C59: Island | D59: - | E59: 2032-01-03T07:00:00 | F59: 1162.232201 | G59: 31.7171737 | H59: 0 | I59: 0 | K59: 2026-02-25T08:00:00 | L59: 1614.978898 | M59: 0.0004167
A60: System | B60: Region | C60: Island | D60: - | E60: 2032-01-03T08:00:00 | F60: 1201.470234 | G60: 32.4925145 | H60: 0 | I60: 0 | K60: 2026-02-26T08:00:00 | L60: 1344.925199 | M60: 0
A61: System | B61: Region | C61: Island | D61: - | E61: 2032-01-03T09:00:00 | F61: 1296.449338 | G61: 35.861374 | H61: 0 | I61: 0 | K61: 2026-02-27T08:00:00 | L61: 1366.670751 | M61: 0
A62: System | B62: Region | C62: Island | D62: - | E62: 2032-01-03T10:00:00 | F62: 1308.764448 | G62: 35.9240322 | H62: 0 | I62: 0 | K62: 2026-02-28T19:00:00 | L62: 1522.149583 | M62: 0
A63: System | B63: Region | C63: Island | D63: - | E63: 2032-01-03T11:00:00 | F63: 1292.065788 | G63: 36.3051783 | H63: 0 | I63: 0 | K63: 2026-03-01T10:00:00 | L63: 1277.566281 | M63: 0
A64: System | B64: Region | C64: Island | D64: - | E64: 2032-01-03T12:00:00 | F64: 1311.395116 | G64: 36.0863305 | H64: 0 | I64: 0 | K64: 2026-03-02T09:00:00 | L64: 1505.760018 | M64: 0.0004167
A65: System | B65: Region | C65: Island | D65: - | E65: 2032-01-03T13:00:00 | F65: 1312.764654 | G65: 36.7604435 | H65: 0 | I65: 0 | K65: 2026-03-03T19:00:00 | L65: 1547.381842 | M65: 0.0004167
A66: System | B66: Region | C66: Island | D66: - | E66: 2032-01-03T14:00:00 | F66: 1360.347844 | G66: 37.3063532 | H66: 0 | I66: 0 | K66: 2026-03-04T07:00:00 | L66: 1485.753781 | M66: 0
A67: System | B67: Region | C67: Island | D67: - | E67: 2032-01-03T15:00:00 | F67: 1371.323206 | G67: 38.1950087 | H67: 0 | I67: 0 | K67: 2026-03-05T20:00:00 | L67: 1436.800756 | M67: 0
A68: System | B68: Region | C68: Island | D68: - | E68: 2032-01-03T16:00:00 | F68: 1462.41298 | G68: 38.9036698 | H68: 0 | I68: 0 | K68: 2026-03-06T08:00:00 | L68: 1590.67715 | M68: 0.0004167
A69: System | B69: Region | C69: Island | D69: - | E69: 2032-01-03T17:00:00 | F69: 1721.370688 | G69: 46.471219 | H69: 0.005 | I69: 0.1970137 | K69: 2026-03-07T08:00:00 | L69: =MAX(OFFSET($F$4:$F$27,(ROW()-4)*24,0)) -> 1469.910755 | M69: =VLOOKUP(L69,OFFSET($F$4:$H$27,(ROW()-4)*24,0),3,FALSE) -> 0.0004167
A70: System | B70: Region | C70: Island | D70: - | E70: 2032-01-03T18:00:00 | F70: 1694.344062 | G70: 45.4805216 | H70: 0.0054167 | I70: 0.2279418 | K70: 2026-03-08T08:00:00 | L70: 1333.219183 | M70: 0
A71: System | B71: Region | C71: Island | D71: - | E71: 2032-01-03T19:00:00 | F71: 1702.535419 | G71: 45.6791203 | H71: 0.0041667 | I71: 0.1241371 | K71: 2026-03-09T07:00:00 | L71: 1467.634824 | M71: 0
A72: System | B72: Region | C72: Island | D72: - | E72: 2032-01-03T20:00:00 | F72: 1741.2346 | G72: 47.4833528 | H72: 0.01125 | I72: 0.6364772 | K72: 2026-03-10T07:00:00 | L72: 1629.99084 | M72: 0.0020833
A73: System | B73: Region | C73: Island | D73: - | E73: 2032-01-03T21:00:00 | F73: 1719.548252 | G73: 46.5234868 | H73: 0.0079167 | I73: 0.3183048 | K73: 2026-03-11T07:00:00 | L73: 1516.869044 | M73: 0
A74: System | B74: Region | C74: Island | D74: - | E74: 2032-01-03T22:00:00 | F74: 1676.945335 | G74: 44.2587866 | H74: 0.0029167 | I74: 0.1777723 | K74: 2026-03-12T19:00:00 | L74: 1439.366892 | M74: 0
A75: System | B75: Region | C75: Island | D75: - | E75: 2032-01-03T23:00:00 | F75: 1538.687909 | G75: 37.8525722 | H75: 0.0004167 | I75: 0.0015956 | K75: 2026-03-13T08:00:00 | L75: 1612.144335 | M75: 0.00125
A76: System | B76: Region | C76: Island | D76: - | E76: 2032-01-04 | F76: 1424.063653 | G76: 35.7992103 | H76: 0 | I76: 0 | K76: 2026-03-14T10:00:00 | L76: 1544.935872 | M76: 0
A77: System | B77: Region | C77: Island | D77: - | E77: 2032-01-04T01:00:00 | F77: 1263.619651 | G77: 32.2268881 | H77: 0 | I77: 0 | K77: 2026-03-15T09:00:00 | L77: 1488.702135 | M77: 0
A78: System | B78: Region | C78: Island | D78: - | E78: 2032-01-04T02:00:00 | F78: 1240.343374 | G78: 31.3774184 | H78: 0 | I78: 0 | K78: 2026-03-16T10:00:00 | L78: 1536.962462 | M78: 0
A79: System | B79: Region | C79: Island | D79: - | E79: 2032-01-04T03:00:00 | F79: 1292.467657 | G79: 33.0375017 | H79: 0 | I79: 0 | K79: 2026-03-17T07:00:00 | L79: 1316.641051 | M79: 0
A80: System | B80: Region | C80: Island | D80: - | E80: 2032-01-04T04:00:00 | F80: 1330.39198 | G80: 34.292351 | H80: 0 | I80: 0 | K80: 2026-03-18T16:00:00 | L80: 1303.735617 | M80: 0
A81: System | B81: Region | C81: Island | D81: - | E81: 2032-01-04T05:00:00 | F81: 1320.556129 | G81: 33.4263779 | H81: 0 | I81: 0 | K81: 2026-03-19T07:00:00 | L81: 1264.113787 | M81: 0
A82: System | B82: Region | C82: Island | D82: - | E82: 2032-01-04T06:00:00 | F82: 1395.985813 | G82: 34.6527789 | H82: 0 | I82: 0 | K82: 2026-03-20T07:00:00 | L82: 1378.457864 | M82: 0
A83: System | B83: Region | C83: Island | D83: - | E83: 2032-01-04T07:00:00 | F83: 1455.830874 | G83: 38.1059773 | H83: 0 | I83: 0 | K83: 2026-03-21T08:00:00 | L83: 1275.030039 | M83: 0
A84: System | B84: Region | C84: Island | D84: - | E84: 2032-01-04T08:00:00 | F84: 1508.006875 | G84: 38.0484572 | H84: 0.0004167 | I84: 0.0114062 | K84: 2026-03-22T10:00:00 | L84: 1372.060719 | M84: 0
A85: System | B85: Region | C85: Island | D85: - | E85: 2032-01-04T09:00:00 | F85: 1671.188853 | G85: 44.006041 | H85: 0.0045833 | I85: 0.2549703 | K85: 2026-03-23T19:00:00 | L85: 1465.955085 | M85: 0
A86: System | B86: Region | C86: Island | D86: - | E86: 2032-01-04T10:00:00 | F86: 1691.354325 | G86: 45.0848594 | H86: 0.0079167 | I86: 0.3545084 | K86: 2026-03-24T07:00:00 | L86: 1422.92617 | M86: 0
A87: System | B87: Region | C87: Island | D87: - | E87: 2032-01-04T11:00:00 | F87: 1664.464057 | G87: 43.4657322 | H87: 0.0016667 | I87: 0.0635616 | K87: 2026-03-25T07:00:00 | L87: 1394.32188 | M87: 0
A88: System | B88: Region | C88: Island | D88: - | E88: 2032-01-04T12:00:00 | F88: 1615.317958 | G88: 40.8406246 | H88: 0.00125 | I88: 0.0878128 | K88: 2026-03-26T07:00:00 | L88: 1361.250526 | M88: 0
A89: System | B89: Region | C89: Island | D89: - | E89: 2032-01-04T13:00:00 | F89: 1580.457404 | G89: 39.3260723 | H89: 0 | I89: 0 | K89: 2026-03-27T07:00:00 | L89: 1173.624786 | M89: 0
A90: System | B90: Region | C90: Island | D90: - | E90: 2032-01-04T14:00:00 | F90: 1572.559821 | G90: 39.0990398 | H90: 0 | I90: 0 | K90: 2026-03-28T19:00:00 | L90: 1154.712959 | M90: 0
A91: System | B91: Region | C91: Island | D91: - | E91: 2032-01-04T15:00:00 | F91: 1601.362947 | G91: 40.0641932 | H91: 0.0004167 | I91: 0.0103192 | K91: 2026-03-29T20:00:00 | L91: 1205.973907 | M91: 0
A92: System | B92: Region | C92: Island | D92: - | E92: 2032-01-04T16:00:00 | F92: 1663.467011 | G92: 43.5103442 | H92: 0.0033333 | I92: 0.1346254 | K92: 2026-03-30T07:00:00 | L92: 1332.161711 | M92: 0
A93: System | B93: Region | C93: Island | D93: - | E93: 2032-01-04T17:00:00 | F93: 1747.660671 | G93: 47.7473277 | H93: 0.0083333 | I93: 0.4642399 | K93: 2026-03-31T07:00:00 | L93: 1299.57196 | M93: 0
A94: System | B94: Region | C94: Island | D94: - | E94: 2032-01-04T18:00:00 | F94: 1716.794013 | G94: 46.1896874 | H94: 0.0075 | I94: 0.3814432 | K94: 2026-04-01T07:00:00 | L94: 1220.951123 | M94: 0
A95: System | B95: Region | C95: Island | D95: - | E95: 2032-01-04T19:00:00 | F95: 1688.154308 | G95: 44.6282252 | H95: 0.0045833 | I95: 0.2051605 | K95: 2026-04-02T20:00:00 | L95: 1285.505935 | M95: 0
A96: System | B96: Region | C96: Island | D96: - | E96: 2032-01-04T20:00:00 | F96: 1684.971039 | G96: 44.601989 | H96: 0.0020833 | I96: 0.1586577 | K96: 2026-04-03T08:00:00 | L96: 1226.981101 | M96: 0
A97: System | B97: Region | C97: Island | D97: - | E97: 2032-01-04T21:00:00 | F97: 1632.113461 | G97: 41.7444249 | H97: 0.0004167 | I97: 0.0090679 | K97: 2026-04-04T09:00:00 | L97: 1144.511581 | M97: 0
A98: System | B98: Region | C98: Island | D98: - | E98: 2032-01-04T22:00:00 | F98: 1486.57856 | G98: 38.4786859 | H98: 0 | I98: 0 | K98: 2026-04-05T20:00:00 | L98: 1321.705441 | M98: 0
A99: System | B99: Region | C99: Island | D99: - | E99: 2032-01-04T23:00:00 | F99: 1311.340541 | G99: 33.6561088 | H99: 0 | I99: 0 | K99: 2026-04-06T20:00:00 | L99: 1367.628421 | M99: 0
A100: System | B100: Region | C100: Island | D100: - | E100: 2032-01-05 | F100: 1198.439177 | G100: 26.8621317 | H100: 0 | I100: 0 | K100: 2026-04-07T07:00:00 | L100: 1417.358343 | M100: 0
A101: System | B101: Region | C101: Island | D101: - | E101: 2032-01-05T01:00:00 | F101: 1164.331648 | G101: 25.6732105 | H101: 0 | I101: 0 | K101: 2026-04-08T07:00:00 | L101: 1371.627077 | M101: 0
A102: System | B102: Region | C102: Island | D102: - | E102: 2032-01-05T02:00:00 | F102: 1148.158336 | G102: 25.486222 | H102: 0 | I102: 0 | K102: 2026-04-09T07:00:00 | L102: 1426.252795 | M102: 0
A103: System | B103: Region | C103: Island | D103: - | E103: 2032-01-05T03:00:00 | F103: 1137.898306 | G103: 25.140401 | H103: 0 | I103: 0 | K103: 2026-04-10T07:00:00 | L103: 1384.718648 | M103: 0
A104: System | B104: Region | C104: Island | D104: - | E104: 2032-01-05T04:00:00 | F104: 1134.709132 | G104: 24.7864395 | H104: 0 | I104: 0 | K104: 2026-04-11T09:00:00 | L104: 1301.091264 | M104: 0
A105: System | B105: Region | C105: Island | D105: - | E105: 2032-01-05T05:00:00 | F105: 1134.625558 | G105: 25.1746974 | H105: 0 | I105: 0 | K105: 2026-04-12T09:00:00 | L105: 1130.87271 | M105: 0
A106: System | B106: Region | C106: Island | D106: - | E106: 2032-01-05T06:00:00 | F106: 1154.4221 | G106: 25.4375868 | H106: 0 | I106: 0 | K106: 2026-04-13T07:00:00 | L106: 1228.295316 | M106: 0
A107: System | B107: Region | C107: Island | D107: - | E107: 2032-01-05T07:00:00 | F107: 1225.570056 | G107: 33.6772887 | H107: 0 | I107: 0 | K107: 2026-04-14T07:00:00 | L107: 1130.158738 | M107: 0
A108: System | B108: Region | C108: Island | D108: - | E108: 2032-01-05T08:00:00 | F108: 1278.536372 | G108: 35.505848 | H108: 0 | I108: 0 | K108: 2026-04-15T07:00:00 | L108: 1048.243783 | M108: 0
A109: System | B109: Region | C109: Island | D109: - | E109: 2032-01-05T09:00:00 | F109: 1257.207259 | G109: 35.1058754 | H109: 0 | I109: 0 | K109: 2026-04-16T20:00:00 | L109: 1403.730256 | M109: 0
A110: System | B110: Region | C110: Island | D110: - | E110: 2032-01-05T10:00:00 | F110: 1253.00935 | G110: 34.6429523 | H110: 0 | I110: 0 | K110: 2026-04-17T07:00:00 | L110: 1415.43877 | M110: 0
A111: System | B111: Region | C111: Island | D111: - | E111: 2032-01-05T11:00:00 | F111: 1239.395597 | G111: 34.1677324 | H111: 0 | I111: 0 | K111: 2026-04-18T20:00:00 | L111: 1079.519858 | M111: 0
A112: System | B112: Region | C112: Island | D112: - | E112: 2032-01-05T12:00:00 | F112: 1220.247783 | G112: 33.3965924 | H112: 0 | I112: 0 | K112: 2026-04-19T09:00:00 | L112: 1217.207413 | M112: 0
A113: System | B113: Region | C113: Island | D113: - | E113: 2032-01-05T13:00:00 | F113: 1194.57744 | G113: 32.5359846 | H113: 0 | I113: 0 | K113: 2026-04-20T07:00:00 | L113: 1308.156491 | M113: 0
A114: System | B114: Region | C114: Island | D114: - | E114: 2032-01-05T14:00:00 | F114: 1174.806806 | G114: 31.8000905 | H114: 0 | I114: 0 | K114: 2026-04-21T07:00:00 | L114: 1291.187414 | M114: 0
A115: System | B115: Region | C115: Island | D115: - | E115: 2032-01-05T15:00:00 | F115: 1173.470597 | G115: 31.9554501 | H115: 0 | I115: 0 | K115: 2026-04-22T07:00:00 | L115: 1270.713199 | M115: 0
A116: System | B116: Region | C116: Island | D116: - | E116: 2032-01-05T16:00:00 | F116: 1197.588615 | G116: 32.5118658 | H116: 0 | I116: 0 | K116: 2026-04-23T07:00:00 | L116: 1141.864752 | M116: 0
A117: System | B117: Region | C117: Island | D117: - | E117: 2032-01-05T17:00:00 | F117: 1306.206725 | G117: 36.0832044 | H117: 0 | I117: 0 | K117: 2026-04-24T07:00:00 | L117: 1112.333089 | M117: 0
A118: System | B118: Region | C118: Island | D118: - | E118: 2032-01-05T18:00:00 | F118: 1296.044941 | G118: 36.0584929 | H118: 0 | I118: 0 | K118: 2026-04-25T11:00:00 | L118: 1153.284256 | M118: 0
A119: System | B119: Region | C119: Island | D119: - | E119: 2032-01-05T19:00:00 | F119: 1287.738194 | G119: 35.5411476 | H119: 0 | I119: 0 | K119: 2026-04-26T11:00:00 | L119: 1121.603196 | M119: 0
A120: System | B120: Region | C120: Island | D120: - | E120: 2032-01-05T20:00:00 | F120: 1276.691761 | G120: 35.1919667 | H120: 0 | I120: 0 | K120: 2026-04-27T20:00:00 | L120: 1073.377476 | M120: 0
A121: System | B121: Region | C121: Island | D121: - | E121: 2032-01-05T21:00:00 | F121: 1253.073625 | G121: 34.5111261 | H121: 0 | I121: 0 | K121: 2026-04-28T07:00:00 | L121: 1162.067097 | M121: 0
A122: System | B122: Region | C122: Island | D122: - | E122: 2032-01-05T22:00:00 | F122: 1209.359128 | G122: 32.9581753 | H122: 0 | I122: 0 | K122: 2026-04-29T07:00:00 | L122: 1124.741676 | M122: 0
A123: System | B123: Region | C123: Island | D123: - | E123: 2032-01-05T23:00:00 | F123: 1154.152129 | G123: 25.0491363 | H123: 0 | I123: 0 | K123: 2026-04-30T08:00:00 | L123: 1204.738177 | M123: 0
A124: System | B124: Region | C124: Island | D124: - | E124: 2032-01-06 | F124: 1107.075606 | G124: 24.3221178 | H124: 0 | I124: 0 | K124: 2026-05-01T07:00:00 | L124: 1250.139589 | M124: 0
A125: System | B125: Region | C125: Island | D125: - | E125: 2032-01-06T01:00:00 | F125: 1084.668358 | G125: 23.5277288 | H125: 0 | I125: 0 | K125: 2026-05-02T09:00:00 | L125: 1142.68409 | M125: 0
A126: System | B126: Region | C126: Island | D126: - | E126: 2032-01-06T02:00:00 | F126: 1093.700104 | G126: 23.9615281 | H126: 0 | I126: 0 | K126: 2026-05-03T09:00:00 | L126: 1091.646443 | M126: 0
A127: System | B127: Region | C127: Island | D127: - | E127: 2032-01-06T03:00:00 | F127: 1102.238155 | G127: 24.6128216 | H127: 0 | I127: 0 | K127: 2026-05-04T07:00:00 | L127: 1080.787192 | M127: 0
A128: System | B128: Region | C128: Island | D128: - | E128: 2032-01-06T04:00:00 | F128: 1114.719256 | G128: 24.6807743 | H128: 0 | I128: 0 | K128: 2026-05-05T07:00:00 | L128: 1041.059513 | M128: 0
A129: System | B129: Region | C129: Island | D129: - | E129: 2032-01-06T05:00:00 | F129: 1147.318281 | G129: 25.7275335 | H129: 0 | I129: 0 | K129: 2026-05-06T07:00:00 | L129: 1025.554136 | M129: 0
A130: System | B130: Region | C130: Island | D130: - | E130: 2032-01-06T06:00:00 | F130: 1193.017394 | G130: 26.8370428 | H130: 0 | I130: 0 | K130: 2026-05-07T07:00:00 | L130: 1078.10815 | M130: 0
A131: System | B131: Region | C131: Island | D131: - | E131: 2032-01-06T07:00:00 | F131: 1353.451487 | G131: 37.7359804 | H131: 0 | I131: 0 | K131: 2026-05-08T09:00:00 | L131: 1245.462711 | M131: 0
A132: System | B132: Region | C132: Island | D132: - | E132: 2032-01-06T08:00:00 | F132: 1522.789327 | G132: 38.4722958 | H132: 0 | I132: 0 | K132: 2026-05-09T09:00:00 | L132: 1169.243751 | M132: 0
A133: System | B133: Region | C133: Island | D133: - | E133: 2032-01-06T09:00:00 | F133: 1559.656682 | G133: 38.4077576 | H133: 0.0004167 | I133: 0.0071739 | K133: 2026-05-10T09:00:00 | L133: =MAX(OFFSET($F$4:$F$27,(ROW()-4)*24,0)) -> 1193.127015 | M133: =VLOOKUP(L133,OFFSET($F$4:$H$27,(ROW()-4)*24,0),3,FALSE) -> 0
A134: System | B134: Region | C134: Island | D134: - | E134: 2032-01-06T10:00:00 | F134: 1547.41365 | G134: 38.2587943 | H134: 0 | I134: 0 | K134: 2026-05-11T08:00:00 | L134: 1085.165183 | M134: 0
A135: System | B135: Region | C135: Island | D135: - | E135: 2032-01-06T11:00:00 | F135: 1537.529039 | G135: 38.7052381 | H135: 0 | I135: 0 | K135: 2026-05-12T07:00:00 | L135: 1169.931643 | M135: 0
A136: System | B136: Region | C136: Island | D136: - | E136: 2032-01-06T12:00:00 | F136: 1517.086206 | G136: 38.6947251 | H136: 0.0004167 | I136: 0.0065027 | K136: 2026-05-13T20:00:00 | L136: 1124.887114 | M136: 0
A137: System | B137: Region | C137: Island | D137: - | E137: 2032-01-06T13:00:00 | F137: 1483.796653 | G137: 38.2052616 | H137: 0 | I137: 0 | K137: 2026-05-14T07:00:00 | L137: 1128.955318 | M137: 0
A138: System | B138: Region | C138: Island | D138: - | E138: 2032-01-06T14:00:00 | F138: 1490.178363 | G138: 38.4544964 | H138: 0.0004167 | I138: 0.0020401 | K138: 2026-05-15T07:00:00 | L138: 1036.894234 | M138: 0
A139: System | B139: Region | C139: Island | D139: - | E139: 2032-01-06T15:00:00 | F139: 1519.00279 | G139: 38.717641 | H139: 0.0004167 | I139: 0.0016206 | K139: 2026-05-16T09:00:00 | L139: 844.2784083 | M139: 0
A140: System | B140: Region | C140: Island | D140: - | E140: 2032-01-06T16:00:00 | F140: 1625.883044 | G140: 41.1703341 | H140: 0.00125 | I140: 0.0670945 | K140: 2026-05-17T09:00:00 | L140: 921.1421777 | M140: 0
A141: System | B141: Region | C141: Island | D141: - | E141: 2032-01-06T17:00:00 | F141: 1744.564978 | G141: 47.5693618 | H141: 0.015 | I141: 0.855345 | K141: 2026-05-18T11:00:00 | L141: 1022.962599 | M141: 0
A142: System | B142: Region | C142: Island | D142: - | E142: 2032-01-06T18:00:00 | F142: 1734.416667 | G142: 46.9810383 | H142: 0.0133333 | I142: 0.6455867 | K142: 2026-05-19T07:00:00 | L142: 987.490623 | M142: 0
A143: System | B143: Region | C143: Island | D143: - | E143: 2032-01-06T19:00:00 | F143: 1708.031765 | G143: 45.9722843 | H143: 0.0079167 | I143: 0.3282603 | K143: 2026-05-20T20:00:00 | L143: 857.6265415 | M143: 0
A144: System | B144: Region | C144: Island | D144: - | E144: 2032-01-06T20:00:00 | F144: 1685.698126 | G144: 44.6559067 | H144: 0.0054167 | I144: 0.3239138 | K144: 2026-05-21T07:00:00 | L144: 913.4698144 | M144: 0
A145: System | B145: Region | C145: Island | D145: - | E145: 2032-01-06T21:00:00 | F145: 1629.599374 | G145: 41.5958784 | H145: 0.0016667 | I145: 0.051144 | K145: 2026-05-22T07:00:00 | L145: 923.7233928 | M145: 0
A146: System | B146: Region | C146: Island | D146: - | E146: 2032-01-06T22:00:00 | F146: 1512.100092 | G146: 38.7278197 | H146: 0 | I146: 0 | K146: 2026-05-23T11:00:00 | L146: 940.0366264 | M146: 0
A147: System | B147: Region | C147: Island | D147: - | E147: 2032-01-06T23:00:00 | F147: 1328.586369 | G147: 31.2539525 | H147: 0 | I147: 0 | K147: 2026-05-24T09:00:00 | L147: 988.6519847 | M147: 0
A148: System | B148: Region | C148: Island | D148: - | E148: 2032-01-07 | F148: 1200.970661 | G148: 27.5265202 | H148: 0 | I148: 0 | K148: 2026-05-25T07:00:00 | L148: 924.7719269 | M148: 0
A149: System | B149: Region | C149: Island | D149: - | E149: 2032-01-07T01:00:00 | F149: 1186.020216 | G149: 27.6022778 | H149: 0 | I149: 0 | K149: 2026-05-26T07:00:00 | L149: 831.0517522 | M149: 0
A150: System | B150: Region | C150: Island | D150: - | E150: 2032-01-07T02:00:00 | F150: 1175.532413 | G150: 27.293117 | H150: 0 | I150: 0 | K150: 2026-05-27T09:00:00 | L150: 846.3157475 | M150: 0
A151: System | B151: Region | C151: Island | D151: - | E151: 2032-01-07T03:00:00 | F151: 1175.584355 | G151: 27.442276 | H151: 0 | I151: 0 | K151: 2026-05-28T09:00:00 | L151: 858.8526448 | M151: 0
A152: System | B152: Region | C152: Island | D152: - | E152: 2032-01-07T04:00:00 | F152: 1183.409766 | G152: 27.4463474 | H152: 0 | I152: 0 | K152: 2026-05-29T11:00:00 | L152: 918.063005 | M152: 0
A153: System | B153: Region | C153: Island | D153: - | E153: 2032-01-07T05:00:00 | F153: 1195.590742 | G153: 27.8286446 | H153: 0 | I153: 0 | K153: 2026-05-30T09:00:00 | L153: 864.4028335 | M153: 0
A154: System | B154: Region | C154: Island | D154: - | E154: 2032-01-07T06:00:00 | F154: 1242.70482 | G154: 28.3448148 | H154: 0 | I154: 0 | K154: 2026-05-31T11:00:00 | L154: 805.7785702 | M154: 0
A155: System | B155: Region | C155: Island | D155: - | E155: 2032-01-07T07:00:00 | F155: 1444.773331 | G155: 38.9663435 | H155: 0 | I155: 0 | K155: 2026-06-01T07:00:00 | L155: 946.1909506 | M155: 0
A156: System | B156: Region | C156: Island | D156: - | E156: 2032-01-07T08:00:00 | F156: 1566.69262 | G156: 38.7299617 | H156: 0.0004167 | I156: 0.0095387 | K156: 2026-06-02T07:00:00 | L156: 1071.210831 | M156: 0
A157: System | B157: Region | C157: Island | D157: - | E157: 2032-01-07T09:00:00 | F157: 1584.782336 | G157: 39.4317142 | H157: 0.0008333 | I157: 0.0144984 | K157: 2026-06-03T07:00:00 | L157: 1002.158516 | M157: 0
A158: System | B158: Region | C158: Island | D158: - | E158: 2032-01-07T10:00:00 | F158: 1561.129886 | G158: 38.6509035 | H158: 0 | I158: 0 | K158: 2026-06-04T07:00:00 | L158: 1020.266507 | M158: 0
A159: System | B159: Region | C159: Island | D159: - | E159: 2032-01-07T11:00:00 | F159: 1526.511282 | G159: 38.6216493 | H159: 0 | I159: 0 | K159: 2026-06-05T07:00:00 | L159: 1019.028226 | M159: 0
A160: System | B160: Region | C160: Island | D160: - | E160: 2032-01-07T12:00:00 | F160: 1515.116812 | G160: 38.4529946 | H160: 0 | I160: 0 | K160: 2026-06-06T10:00:00 | L160: 939.5740862 | M160: 0
A161: System | B161: Region | C161: Island | D161: - | E161: 2032-01-07T13:00:00 | F161: 1464.911711 | G161: 38.7091597 | H161: 0 | I161: 0 | K161: 2026-06-07T11:00:00 | L161: 977.4175515 | M161: 0
A162: System | B162: Region | C162: Island | D162: - | E162: 2032-01-07T14:00:00 | F162: 1431.6784 | G162: 38.6361629 | H162: 0 | I162: 0 | K162: 2026-06-08T07:00:00 | L162: 1062.203506 | M162: 0
A163: System | B163: Region | C163: Island | D163: - | E163: 2032-01-07T15:00:00 | F163: 1441.449692 | G163: 38.9420316 | H163: 0 | I163: 0 | K163: 2026-06-09T07:00:00 | L163: 959.1517477 | M163: 0
A164: System | B164: Region | C164: Island | D164: - | E164: 2032-01-07T16:00:00 | F164: 1511.230762 | G164: 38.5195908 | H164: 0 | I164: 0 | K164: 2026-06-10T07:00:00 | L164: 848.9280935 | M164: 0
A165: System | B165: Region | C165: Island | D165: - | E165: 2032-01-07T17:00:00 | F165: 1662.508216 | G165: 43.2556231 | H165: 0.0033333 | I165: 0.1475157 | K165: 2026-06-11T07:00:00 | L165: 824.5148765 | M165: 0
A166: System | B166: Region | C166: Island | D166: - | E166: 2032-01-07T18:00:00 | F166: 1635.158377 | G166: 42.0113612 | H166: 0.0004167 | I166: 0.0433262 | K166: 2026-06-12T11:00:00 | L166: 829.0623904 | M166: 0
A167: System | B167: Region | C167: Island | D167: - | E167: 2032-01-07T19:00:00 | F167: 1593.387645 | G167: 39.7889194 | H167: 0.0008333 | I167: 0.019688 | K167: 2026-06-13T16:00:00 | L167: 909.2966008 | M167: 0
A168: System | B168: Region | C168: Island | D168: - | E168: 2032-01-07T20:00:00 | F168: 1558.03643 | G168: 38.7227264 | H168: 0.0008333 | I168: 0.0100453 | K168: 2026-06-14T10:00:00 | L168: 1055.54812 | M168: 0
A169: System | B169: Region | C169: Island | D169: - | E169: 2032-01-07T21:00:00 | F169: 1496.261183 | G169: 39.0009052 | H169: 0 | I169: 0 | K169: 2026-06-15T08:00:00 | L169: 1057.080664 | M169: 0
A170: System | B170: Region | C170: Island | D170: - | E170: 2032-01-07T22:00:00 | F170: 1403.842021 | G170: 38.3892216 | H170: 0 | I170: 0 | K170: 2026-06-16T07:00:00 | L170: 919.2447718 | M170: 0
A171: System | B171: Region | C171: Island | D171: - | E171: 2032-01-07T23:00:00 | F171: 1260.448019 | G171: 29.614762 | H171: 0 | I171: 0 | K171: 2026-06-17T11:00:00 | L171: 1004.544648 | M171: 0
A172: System | B172: Region | C172: Island | D172: - | E172: 2032-01-08 | F172: 1192.741311 | G172: 28.2581729 | H172: 0 | I172: 0 | K172: 2026-06-18T07:00:00 | L172: 886.1701465 | M172: 0
A173: System | B173: Region | C173: Island | D173: - | E173: 2032-01-08T01:00:00 | F173: 1163.743966 | G173: 26.6517224 | H173: 0 | I173: 0 | K173: 2026-06-19T08:00:00 | L173: 755.306727 | M173: 0
A174: System | B174: Region | C174: Island | D174: - | E174: 2032-01-08T02:00:00 | F174: 1162.420454 | G174: 26.9148132 | H174: 0 | I174: 0 | K174: 2026-06-20T11:00:00 | L174: 752.2424928 | M174: 0
A175: System | B175: Region | C175: Island | D175: - | E175: 2032-01-08T03:00:00 | F175: 1162.586695 | G175: 26.8274231 | H175: 0 | I175: 0 | K175: 2026-06-21T10:00:00 | L175: 742.1275612 | M175: 0
A176: System | B176: Region | C176: Island | D176: - | E176: 2032-01-08T04:00:00 | F176: 1174.870508 | G176: 26.9928888 | H176: 0 | I176: 0 | K176: 2026-06-22T11:00:00 | L176: 787.2897947 | M176: 0
A177: System | B177: Region | C177: Island | D177: - | E177: 2032-01-08T05:00:00 | F177: 1189.616017 | G177: 27.7034936 | H177: 0 | I177: 0 | K177: 2026-06-23T21:00:00 | L177: 856.3669803 | M177: 0
A178: System | B178: Region | C178: Island | D178: - | E178: 2032-01-08T06:00:00 | F178: 1235.909877 | G178: 28.9328366 | H178: 0 | I178: 0 | K178: 2026-06-24T09:00:00 | L178: 985.8974682 | M178: 0
A179: System | B179: Region | C179: Island | D179: - | E179: 2032-01-08T07:00:00 | F179: 1407.08191 | G179: 38.2595795 | H179: 0 | I179: 0 | K179: 2026-06-25T10:00:00 | L179: 1015.365466 | M179: 0
A180: System | B180: Region | C180: Island | D180: - | E180: 2032-01-08T08:00:00 | F180: 1550.117207 | G180: 38.3617224 | H180: 0 | I180: 0 | K180: 2026-06-26T09:00:00 | L180: 1001.377248 | M180: 0
A181: System | B181: Region | C181: Island | D181: - | E181: 2032-01-08T09:00:00 | F181: 1586.891436 | G181: 39.420552 | H181: 0.0004167 | I181: 0.026195 | K181: 2026-06-27T10:00:00 | L181: 926.1194759 | M181: 0
A182: System | B182: Region | C182: Island | D182: - | E182: 2032-01-08T10:00:00 | F182: 1590.871061 | G182: 39.5483393 | H182: 0.00125 | I182: 0.1191543 | K182: 2026-06-28T11:00:00 | L182: 766.4599603 | M182: 0
A183: System | B183: Region | C183: Island | D183: - | E183: 2032-01-08T11:00:00 | F183: 1612.557993 | G183: 40.6143762 | H183: 0 | I183: 0 | K183: 2026-06-29T11:00:00 | L183: 836.7051105 | M183: 0
A184: System | B184: Region | C184: Island | D184: - | E184: 2032-01-08T12:00:00 | F184: 1607.467322 | G184: 40.1693774 | H184: 0.00125 | I184: 0.0525656 | K184: 2026-06-30T09:00:00 | L184: 818.7010745 | M184: 0
A185: System | B185: Region | C185: Island | D185: - | E185: 2032-01-08T13:00:00 | F185: 1552.802558 | G185: 38.7790832 | H185: 0.0004167 | I185: 0.0219855 | K185: 2026-07-01T11:00:00 | L185: 727.118728 | M185: 0
A186: System | B186: Region | C186: Island | D186: - | E186: 2032-01-08T14:00:00 | F186: 1508.513305 | G186: 37.9375262 | H186: 0 | I186: 0 | K186: 2026-07-02T16:00:00 | L186: 751.6420038 | M186: 0
A187: System | B187: Region | C187: Island | D187: - | E187: 2032-01-08T15:00:00 | F187: 1518.300547 | G187: 38.4957245 | H187: 0 | I187: 0 | K187: 2026-07-03T11:00:00 | L187: 769.422083 | M187: 0
A188: System | B188: Region | C188: Island | D188: - | E188: 2032-01-08T16:00:00 | F188: 1553.929701 | G188: 38.8026885 | H188: 0.00125 | I188: 0.0254606 | K188: 2026-07-04T11:00:00 | L188: 681.7170044 | M188: 0
A189: System | B189: Region | C189: Island | D189: - | E189: 2032-01-08T17:00:00 | F189: 1711.654775 | G189: 45.9007531 | H189: 0.0075 | I189: 0.4069331 | K189: 2026-07-05T11:00:00 | L189: 715.2632106 | M189: 0
A190: System | B190: Region | C190: Island | D190: - | E190: 2032-01-08T18:00:00 | F190: 1697.657633 | G190: 45.2673233 | H190: 0.005 | I190: 0.3792797 | K190: 2026-07-06T11:00:00 | L190: 865.5726474 | M190: 0
A191: System | B191: Region | C191: Island | D191: - | E191: 2032-01-08T19:00:00 | F191: 1655.092859 | G191: 42.8282002 | H191: 0.0020833 | I191: 0.0725862 | K191: 2026-07-07T10:00:00 | L191: 841.2822982 | M191: 0
A192: System | B192: Region | C192: Island | D192: - | E192: 2032-01-08T20:00:00 | F192: 1628.914237 | G192: 41.4676535 | H192: 0.0016667 | I192: 0.0489465 | K192: 2026-07-08T11:00:00 | L192: 775.0294209 | M192: 0
A193: System | B193: Region | C193: Island | D193: - | E193: 2032-01-08T21:00:00 | F193: 1574.559233 | G193: 38.7842577 | H193: 0 | I193: 0 | K193: 2026-07-09T11:00:00 | L193: 704.59184 | M193: 0
A194: System | B194: Region | C194: Island | D194: - | E194: 2032-01-08T22:00:00 | F194: 1481.621415 | G194: 37.963678 | H194: 0 | I194: 0 | K194: 2026-07-10T10:00:00 | L194: 732.875029 | M194: 0
A195: System | B195: Region | C195: Island | D195: - | E195: 2032-01-08T23:00:00 | F195: 1322.882324 | G195: 31.0367109 | H195: 0 | I195: 0 | K195: 2026-07-11T11:00:00 | L195: 775.2911678 | M195: 0
A196: System | B196: Region | C196: Island | D196: - | E196: 2032-01-09 | F196: 1242.893171 | G196: 29.9313788 | H196: 0 | I196: 0 | K196: 2026-07-12T09:00:00 | L196: 746.3479786 | M196: 0
A197: System | B197: Region | C197: Island | D197: - | E197: 2032-01-09T01:00:00 | F197: 1223.140977 | G197: 29.4405351 | H197: 0 | I197: 0 | K197: 2026-07-13T11:00:00 | L197: =MAX(OFFSET($F$4:$F$27,(ROW()-4)*24,0)) -> 834.5504346 | M197: =VLOOKUP(L197,OFFSET($F$4:$H$27,(ROW()-4)*24,0),3,FALSE) -> 0
A198: System | B198: Region | C198: Island | D198: - | E198: 2032-01-09T02:00:00 | F198: 1225.123666 | G198: 28.9068694 | H198: 0 | I198: 0 | K198: 2026-07-14T11:00:00 | L198: 737.5421592 | M198: 0
A199: System | B199: Region | C199: Island | D199: - | E199: 2032-01-09T03:00:00 | F199: 1235.516419 | G199: 29.5538658 | H199: 0 | I199: 0 | K199: 2026-07-15T12:00:00 | L199: 674.618258 | M199: 0
A200: System | B200: Region | C200: Island | D200: - | E200: 2032-01-09T04:00:00 | F200: 1254.881158 | G200: 30.1190439 | H200: 0 | I200: 0 | K200: 2026-07-16T11:00:00 | L200: 766.5519244 | M200: 0
A201: System | B201: Region | C201: Island | D201: - | E201: 2032-01-09T05:00:00 | F201: 1292.264129 | G201: 30.9544865 | H201: 0 | I201: 0 | K201: 2026-07-17T10:00:00 | L201: 739.8270739 | M201: 0
A202: System | B202: Region | C202: Island | D202: - | E202: 2032-01-09T06:00:00 | F202: 1406.594776 | G202: 34.3032072 | H202: 0 | I202: 0 | K202: 2026-07-18T11:00:00 | L202: 738.696155 | M202: 0
... 8585 more rows

Sheet Run 7
A3: Parent Name | B3: Collection | C3: Child Name | D3: Category | E3: Datetime | F3: Load (MW) | G3: Transmission Losses (MW) | H3: Unserved Energy Hours (h) | I3: Unserved Energy (MW) | K3: Daily Peak | L3: Daily Peak Load | M3: Average Unserved Energy Hours
A4: System | B4: Region | C4: Island | D4: - | E4: 2032-01-01 | F4: 1284.029502 | G4: 29.8093094 | H4: 0 | I4: 0 | K4: 2026-01-01T17:00:00 | L4: =MAX(OFFSET($F$4:$F$27,(ROW()-4)*24,0)) -> 1599.446336 | M4: =VLOOKUP(L4,OFFSET($F$4:$H$27,(ROW()-4)*24,0),3,FALSE) -> 0.0004167 | P4: LOLE | Q4: =SUM(M4:M368) -> 0.14375
A5: System | B5: Region | C5: Island | D5: - | E5: 2032-01-01T01:00:00 | F5: 1237.983325 | G5: 28.6546566 | H5: 0 | I5: 0 | K5: 2026-01-02T17:00:00 | L5: =MAX(OFFSET($F$4:$F$27,(ROW()-4)*24,0)) -> 1346.485035 | M5: =VLOOKUP(L5,OFFSET($F$4:$H$27,(ROW()-4)*24,0),3,FALSE) -> 0 | P5: LOLH | Q5: =SUM(H4:H8763) -> 0.394168
A6: System | B6: Region | C6: Island | D6: - | E6: 2032-01-01T02:00:00 | F6: 1215.170132 | G6: 28.6053131 | H6: 0 | I6: 0 | K6: 2026-01-03T20:00:00 | L6: 1745.372758 | M6: 0.01375 | P6: EUE | Q6: =SUM(I4:I8763) -> 18.5696794
A7: System | B7: Region | C7: Island | D7: - | E7: 2032-01-01T03:00:00 | F7: 1203.32215 | G7: 27.6513475 | H7: 0 | I7: 0 | K7: 2026-01-04T17:00:00 | L7: 1750.863553 | M7: 0.0120833 | P7: Peak | Q7: =MAX(F4:F8763) -> 1765.687073
A8: System | B8: Region | C8: Island | D8: - | E8: 2032-01-01T04:00:00 | F8: 1202.366724 | G8: 27.846547 | H8: 0 | I8: 0 | K8: 2026-01-05T17:00:00 | L8: 1308.237173 | M8: 0 | P8: Loss @ Peak | Q8: =VLOOKUP(Q7,F4:G8763,2,FALSE) -> 48.3987276
A9: System | B9: Region | C9: Island | D9: - | E9: 2032-01-01T05:00:00 | F9: 1214.028024 | G9: 28.6859079 | H9: 0 | I9: 0 | K9: 2026-01-06T17:00:00 | L9: 1748.754079 | M9: 0.0129167 | P9: Peak with Losses | Q9: =Q7+Q8 -> 1814.0858
A10: System | B10: Region | C10: Island | D10: - | E10: 2032-01-01T06:00:00 | F10: 1243.686888 | G10: 29.2745209 | H10: 0 | I10: 0 | K10: 2026-01-07T17:00:00 | L10: 1665.413161 | M10: 0.0045833 | P10: Peak Losses | Q10: =MAX(G4:G8763) -> 48.3987276
A11: System | B11: Region | C11: Island | D11: - | E11: 2032-01-01T07:00:00 | F11: 1305.729802 | G11: 36.2646697 | H11: 0 | I11: 0 | K11: 2026-01-08T17:00:00 | L11: 1716.043535 | M11: 0.0075 | P11: Firm Capacity | Q11: 2452.74
A12: System | B12: Region | C12: Island | D12: - | E12: 2032-01-01T08:00:00 | F12: 1368.926127 | G12: 37.7590032 | H12: 0 | I12: 0 | K12: 2026-01-09T08:00:00 | L12: 1749.369382 | M12: 0.0108333 | P12: Reserve Margin | Q12: =Q11-Q7 -> 687.0529272
A13: System | B13: Region | C13: Island | D13: - | E13: 2032-01-01T09:00:00 | F13: 1390.422929 | G13: 37.9581432 | H13: 0 | I13: 0 | K13: 2026-01-10T17:00:00 | L13: 1460.300164 | M13: 0 | P13: Reserve Margin % | Q13: =Q12/Q7 -> 0.3891136418
A14: System | B14: Region | C14: Island | D14: - | E14: 2032-01-01T10:00:00 | F14: 1411.576025 | G14: 38.3928343 | H14: 0 | I14: 0 | K14: 2026-01-11T20:00:00 | L14: 1647.807403 | M14: 0.00375 | P14: Reserve Magin w/Loss | Q14: =Q11-Q9 -> 638.6541996
A15: System | B15: Region | C15: Island | D15: - | E15: 2032-01-01T11:00:00 | F15: 1440.234083 | G15: 39.2520388 | H15: 0.0004167 | I15: 0.0127993 | K15: 2026-01-12T08:00:00 | L15: 1704.51882 | M15: 0.0079167 | P15: Reserve Margin % w/ Loss | Q15: =Q14/Q9 -> 0.352052918
A16: System | B16: Region | C16: Island | D16: - | E16: 2032-01-01T12:00:00 | F16: 1455.095631 | G16: 39.0718011 | H16: 0 | I16: 0 | K16: 2026-01-13T18:00:00 | L16: 1678.872233 | M16: 0.00375
A17: System | B17: Region | C17: Island | D17: - | E17: 2032-01-01T13:00:00 | F17: 1454.376874 | G17: 39.2842872 | H17: 0 | I17: 0 | K17: 2026-01-14T08:00:00 | L17: 1765.687073 | M17: 0.0183333 | P17: Checks
A18: System | B18: Region | C18: Island | D18: - | E18: 2032-01-01T14:00:00 | F18: 1456.028556 | G18: 39.1856602 | H18: 0 | I18: 0 | K18: 2026-01-15T08:00:00 | L18: 1533.732724 | M18: 0.0004167 | P18: Island Energy (Original) | Q18: 8410
A19: System | B19: Region | C19: Island | D19: - | E19: 2032-01-01T15:00:00 | F19: 1469.350543 | G19: 39.4526416 | H19: 0 | I19: 0 | K19: 2026-01-16T17:00:00 | L19: 1366.935488 | M19: 0 | P19: Island Energy (Escalated) | Q19: =SUM(F4:F8787)/1000 -> 8376.269371
A20: System | B20: Region | C20: Island | D20: - | E20: 2032-01-01T16:00:00 | F20: 1495.951804 | G20: 38.8853879 | H20: 0 | I20: 0 | K20: 2026-01-17T20:00:00 | L20: 1386.976033 | M20: 0 | P20: Escalation Factor Check | Q20: =Q19/Q18 -> 0.9959892237
A21: System | B21: Region | C21: Island | D21: - | E21: 2032-01-01T17:00:00 | F21: 1599.446336 | G21: 40.0609061 | H21: 0.0004167 | I21: 0.0003229 | K21: 2026-01-18T18:00:00 | L21: 1543.410612 | M21: 0
A22: System | B22: Region | C22: Island | D22: - | E22: 2032-01-01T18:00:00 | F22: 1545.633082 | G22: 38.5467433 | H22: 0 | I22: 0 | K22: 2026-01-19T08:00:00 | L22: 1412.184739 | M22: 0 | P22: Island Peak (Original) | Q22: 1773
A23: System | B23: Region | C23: Island | D23: - | E23: 2032-01-01T19:00:00 | F23: 1498.587752 | G23: 38.6848434 | H23: 0 | I23: 0 | K23: 2026-01-20T18:00:00 | L23: 1247.730281 | M23: 0 | P23: Island Peak (Escalated) | Q23: =MAX(F4:F8763) -> 1765.687073
A24: System | B24: Region | C24: Island | D24: - | E24: 2032-01-01T20:00:00 | F24: 1467.236215 | G24: 39.1384261 | H24: 0 | I24: 0 | K24: 2026-01-21T18:00:00 | L24: 1363.787806 | M24: 0 | P24: Escalation Factor Check | Q24: =Q23/Q22 -> 0.9958753936
A25: System | B25: Region | C25: Island | D25: - | E25: 2032-01-01T21:00:00 | F25: 1415.851589 | G25: 39.0072404 | H25: 0 | I25: 0 | K25: 2026-01-22T08:00:00 | L25: 1394.752998 | M25: 0
A26: System | B26: Region | C26: Island | D26: - | E26: 2032-01-01T22:00:00 | F26: 1332.066908 | G26: 36.3731447 | H26: 0 | I26: 0 | K26: 2026-01-23T18:00:00 | L26: 1448.78106 | M26: 0
A27: System | B27: Region | C27: Island | D27: - | E27: 2032-01-01T23:00:00 | F27: 1218.063934 | G27: 28.174889 | H27: 0 | I27: 0 | K27: 2026-01-24T10:00:00 | L27: 1461.412237 | M27: 0
A28: System | B28: Region | C28: Island | D28: - | E28: 2032-01-02 | F28: 1160.475924 | G28: 26.0328874 | H28: 0 | I28: 0 | K28: 2026-01-25T18:00:00 | L28: 1283.281913 | M28: 0
A29: System | B29: Region | C29: Island | D29: - | E29: 2032-01-02T01:00:00 | F29: 1123.80087 | G29: 24.8101425 | H29: 0 | I29: 0 | K29: 2026-01-26T18:00:00 | L29: 1607.69156 | M29: 0.00125
A30: System | B30: Region | C30: Island | D30: - | E30: 2032-01-02T02:00:00 | F30: 1112.66248 | G30: 24.8123252 | H30: 0 | I30: 0 | K30: 2026-01-27T17:00:00 | L30: 1755.921367 | M30: 0.0133333
A31: System | B31: Region | C31: Island | D31: - | E31: 2032-01-02T03:00:00 | F31: 1110.78667 | G31: 24.4624668 | H31: 0 | I31: 0 | K31: 2026-01-28T08:00:00 | L31: 1236.377495 | M31: 0
A32: System | B32: Region | C32: Island | D32: - | E32: 2032-01-02T04:00:00 | F32: 1116.780113 | G32: 24.3738737 | H32: 0 | I32: 0 | K32: 2026-01-29T18:00:00 | L32: 1211.999115 | M32: 0
A33: System | B33: Region | C33: Island | D33: - | E33: 2032-01-02T05:00:00 | F33: 1125.741874 | G33: 24.7696125 | H33: 0 | I33: 0 | K33: 2026-01-30T12:00:00 | L33: 1379.696383 | M33: 0
A34: System | B34: Region | C34: Island | D34: - | E34: 2032-01-02T06:00:00 | F34: 1150.486829 | G34: 24.9634531 | H34: 0 | I34: 0 | K34: 2026-01-31T18:00:00 | L34: 1287.114006 | M34: 0
A35: System | B35: Region | C35: Island | D35: - | E35: 2032-01-02T07:00:00 | F35: 1196.987572 | G35: 32.3724129 | H35: 0 | I35: 0 | K35: 2026-02-01T10:00:00 | L35: 1170.486047 | M35: 0
A36: System | B36: Region | C36: Island | D36: - | E36: 2032-01-02T08:00:00 | F36: 1229.297805 | G36: 33.9287574 | H36: 0 | I36: 0 | K36: 2026-02-02T17:00:00 | L36: 1580.672177 | M36: 0.00125
A37: System | B37: Region | C37: Island | D37: - | E37: 2032-01-02T09:00:00 | F37: 1282.561439 | G37: 35.2761048 | H37: 0 | I37: 0 | K37: 2026-02-03T18:00:00 | L37: 1435.025385 | M37: 0
A38: System | B38: Region | C38: Island | D38: - | E38: 2032-01-02T10:00:00 | F38: 1280.947781 | G38: 35.6051738 | H38: 0 | I38: 0 | K38: 2026-02-04T08:00:00 | L38: 1555.110077 | M38: 0
A39: System | B39: Region | C39: Island | D39: - | E39: 2032-01-02T11:00:00 | F39: 1293.973676 | G39: 36.064325 | H39: 0 | I39: 0 | K39: 2026-02-05T08:00:00 | L39: 1611.796754 | M39: 0
A40: System | B40: Region | C40: Island | D40: - | E40: 2032-01-02T12:00:00 | F40: 1278.515214 | G40: 35.5185512 | H40: 0 | I40: 0 | K40: 2026-02-06T12:00:00 | L40: 1288.063463 | M40: 0
A41: System | B41: Region | C41: Island | D41: - | E41: 2032-01-02T13:00:00 | F41: 1247.369545 | G41: 34.1164799 | H41: 0 | I41: 0 | K41: 2026-02-07T18:00:00 | L41: 1488.536181 | M41: 0
A42: System | B42: Region | C42: Island | D42: - | E42: 2032-01-02T14:00:00 | F42: 1204.239963 | G42: 32.2464651 | H42: 0 | I42: 0 | K42: 2026-02-08T19:00:00 | L42: 1530.497202 | M42: 0.0008333
A43: System | B43: Region | C43: Island | D43: - | E43: 2032-01-02T15:00:00 | F43: 1188.231275 | G43: 32.0651537 | H43: 0 | I43: 0 | K43: 2026-02-09T08:00:00 | L43: 1702.986315 | M43: 0.0041667
A44: System | B44: Region | C44: Island | D44: - | E44: 2032-01-02T16:00:00 | F44: 1203.376658 | G44: 32.8658477 | H44: 0 | I44: 0 | K44: 2026-02-10T08:00:00 | L44: 1656.088988 | M44: 0.00375
A45: System | B45: Region | C45: Island | D45: - | E45: 2032-01-02T17:00:00 | F45: 1346.485035 | G45: 37.3933227 | H45: 0 | I45: 0 | K45: 2026-02-11T18:00:00 | L45: 1479.501955 | M45: 0
A46: System | B46: Region | C46: Island | D46: - | E46: 2032-01-02T18:00:00 | F46: 1315.031702 | G46: 36.2626355 | H46: 0 | I46: 0 | K46: 2026-02-12T12:00:00 | L46: 1653.418805 | M46: 0.0033333
A47: System | B47: Region | C47: Island | D47: - | E47: 2032-01-02T19:00:00 | F47: 1252.133911 | G47: 34.4143542 | H47: 0 | I47: 0 | K47: 2026-02-13T08:00:00 | L47: 1482.387096 | M47: 0
A48: System | B48: Region | C48: Island | D48: - | E48: 2032-01-02T20:00:00 | F48: 1240.118439 | G48: 34.2189786 | H48: 0 | I48: 0 | K48: 2026-02-14T18:00:00 | L48: 1402.173822 | M48: 0
A49: System | B49: Region | C49: Island | D49: - | E49: 2032-01-02T21:00:00 | F49: 1216.659263 | G49: 33.2641662 | H49: 0 | I49: 0 | K49: 2026-02-15T18:00:00 | L49: 1373.874027 | M49: 0
A50: System | B50: Region | C50: Island | D50: - | E50: 2032-01-02T22:00:00 | F50: 1185.763323 | G50: 31.8202231 | H50: 0 | I50: 0 | K50: 2026-02-16T18:00:00 | L50: 1397.345327 | M50: 0
A51: System | B51: Region | C51: Island | D51: - | E51: 2032-01-02T23:00:00 | F51: 1150.933872 | G51: 25.6188712 | H51: 0 | I51: 0 | K51: 2026-02-17T18:00:00 | L51: 1514.5796 | M51: 0.0004167
A52: System | B52: Region | C52: Island | D52: - | E52: 2032-01-03 | F52: 1107.740571 | G52: 24.0443842 | H52: 0 | I52: 0 | K52: 2026-02-18T08:00:00 | L52: 1480.901919 | M52: 0
A53: System | B53: Region | C53: Island | D53: - | E53: 2032-01-03T01:00:00 | F53: 1084.362832 | G53: 23.3572939 | H53: 0 | I53: 0 | K53: 2026-02-19T18:00:00 | L53: 1343.254839 | M53: 0
A54: System | B54: Region | C54: Island | D54: - | E54: 2032-01-03T02:00:00 | F54: 1087.096562 | G54: 24.0638075 | H54: 0 | I54: 0 | K54: 2026-02-20T08:00:00 | L54: 1205.619779 | M54: 0
A55: System | B55: Region | C55: Island | D55: - | E55: 2032-01-03T03:00:00 | F55: 1088.756252 | G55: 23.4231522 | H55: 0 | I55: 0 | K55: 2026-02-21T19:00:00 | L55: 1458.162505 | M55: 0
A56: System | B56: Region | C56: Island | D56: - | E56: 2032-01-03T04:00:00 | F56: 1099.113864 | G56: 24.3868723 | H56: 0 | I56: 0 | K56: 2026-02-22T10:00:00 | L56: 1385.616744 | M56: 0
A57: System | B57: Region | C57: Island | D57: - | E57: 2032-01-03T05:00:00 | F57: 1106.80419 | G57: 24.4172501 | H57: 0 | I57: 0 | K57: 2026-02-23T18:00:00 | L57: 1226.570928 | M57: 0
A58: System | B58: Region | C58: Island | D58: - | E58: 2032-01-03T06:00:00 | F58: 1125.904079 | G58: 24.4500309 | H58: 0 | I58: 0 | K58: 2026-02-24T19:00:00 | L58: 1617.086606 | M58: 0.0020833
A59: System | B59: Region | C59: Island | D59: - | E59: 2032-01-03T07:00:00 | F59: 1165.034577 | G59: 31.6911153 | H59: 0 | I59: 0 | K59: 2026-02-25T08:00:00 | L59: 1617.608056 | M59: 0.0008333
A60: System | B60: Region | C60: Island | D60: - | E60: 2032-01-03T08:00:00 | F60: 1204.160656 | G60: 32.7558904 | H60: 0 | I60: 0 | K60: 2026-02-26T08:00:00 | L60: 1347.324623 | M60: 0
A61: System | B61: Region | C61: Island | D61: - | E61: 2032-01-03T09:00:00 | F61: 1299.3039 | G61: 36.2758232 | H61: 0 | I61: 0 | K61: 2026-02-27T08:00:00 | L61: 1369.196328 | M61: 0
A62: System | B62: Region | C62: Island | D62: - | E62: 2032-01-03T10:00:00 | F62: 1311.654339 | G62: 36.3742143 | H62: 0 | I62: 0 | K62: 2026-02-28T19:00:00 | L62: 1525.674079 | M62: 0
A63: System | B63: Region | C63: Island | D63: - | E63: 2032-01-03T11:00:00 | F63: 1294.688341 | G63: 35.952799 | H63: 0 | I63: 0 | K63: 2026-03-01T10:00:00 | L63: 1280.107615 | M63: 0
A64: System | B64: Region | C64: Island | D64: - | E64: 2032-01-03T12:00:00 | F64: 1314.390754 | G64: 36.320213 | H64: 0 | I64: 0 | K64: 2026-03-02T09:00:00 | L64: 1508.681321 | M64: 0.0004167
A65: System | B65: Region | C65: Island | D65: - | E65: 2032-01-03T13:00:00 | F65: 1315.639361 | G65: 36.4257557 | H65: 0 | I65: 0 | K65: 2026-03-03T19:00:00 | L65: 1549.668 | M65: 0.0004167
A66: System | B66: Region | C66: Island | D66: - | E66: 2032-01-03T14:00:00 | F66: 1363.77053 | G66: 37.8367422 | H66: 0 | I66: 0 | K66: 2026-03-04T07:00:00 | L66: 1488.728777 | M66: 0
A67: System | B67: Region | C67: Island | D67: - | E67: 2032-01-03T15:00:00 | F67: 1374.558714 | G67: 37.649218 | H67: 0 | I67: 0 | K67: 2026-03-05T20:00:00 | L67: 1439.594148 | M67: 0
A68: System | B68: Region | C68: Island | D68: - | E68: 2032-01-03T16:00:00 | F68: 1465.38877 | G68: 39.0374287 | H68: 0 | I68: 0 | K68: 2026-03-06T08:00:00 | L68: 1593.70776 | M68: 0.0004167
A69: System | B69: Region | C69: Island | D69: - | E69: 2032-01-03T17:00:00 | F69: 1724.979921 | G69: 46.9011141 | H69: 0.00625 | I69: 0.2186039 | K69: 2026-03-07T08:00:00 | L69: =MAX(OFFSET($F$4:$F$27,(ROW()-4)*24,0)) -> 1473.881024 | M69: =VLOOKUP(L69,OFFSET($F$4:$H$27,(ROW()-4)*24,0),3,FALSE) -> 0
A70: System | B70: Region | C70: Island | D70: - | E70: 2032-01-03T18:00:00 | F70: 1697.652249 | G70: 45.6296365 | H70: 0.00625 | I70: 0.2702441 | K70: 2026-03-08T08:00:00 | L70: 1335.737655 | M70: 0
A71: System | B71: Region | C71: Island | D71: - | E71: 2032-01-03T19:00:00 | F71: 1705.893509 | G71: 45.8268517 | H71: 0.0054167 | I71: 0.207687 | K71: 2026-03-09T07:00:00 | L71: 1469.933992 | M71: 0
A72: System | B72: Region | C72: Island | D72: - | E72: 2032-01-03T20:00:00 | F72: 1745.372758 | G72: 47.7256693 | H72: 0.01375 | I72: 0.6474411 | K72: 2026-03-10T07:00:00 | L72: 1633.126872 | M72: 0.0025
A73: System | B73: Region | C73: Island | D73: - | E73: 2032-01-03T21:00:00 | F73: 1723.792118 | G73: 46.7123327 | H73: 0.0058333 | I73: 0.4491875 | K73: 2026-03-11T07:00:00 | L73: 1520.111377 | M73: 0
A74: System | B74: Region | C74: Island | D74: - | E74: 2032-01-03T22:00:00 | F74: 1680.899631 | G74: 44.6551582 | H74: 0.00375 | I74: 0.1233119 | K74: 2026-03-12T19:00:00 | L74: 1442.135384 | M74: 0
A75: System | B75: Region | C75: Island | D75: - | E75: 2032-01-03T23:00:00 | F75: 1542.508872 | G75: 37.827156 | H75: 0 | I75: 0 | K75: 2026-03-13T08:00:00 | L75: 1615.213769 | M75: 0.0016667
A76: System | B76: Region | C76: Island | D76: - | E76: 2032-01-04 | F76: 1427.623511 | G76: 35.7719811 | H76: 0 | I76: 0 | K76: 2026-03-14T10:00:00 | L76: 1548.141764 | M76: 0.0008333
A77: System | B77: Region | C77: Island | D77: - | E77: 2032-01-04T01:00:00 | F77: 1266.291403 | G77: 32.6867558 | H77: 0 | I77: 0 | K77: 2026-03-15T09:00:00 | L77: 1492.041385 | M77: 0
A78: System | B78: Region | C78: Island | D78: - | E78: 2032-01-04T02:00:00 | F78: 1243.460852 | G78: 31.5691856 | H78: 0 | I78: 0 | K78: 2026-03-16T10:00:00 | L78: 1539.949573 | M78: 0
A79: System | B79: Region | C79: Island | D79: - | E79: 2032-01-04T03:00:00 | F79: 1295.266172 | G79: 33.5411076 | H79: 0 | I79: 0 | K79: 2026-03-17T07:00:00 | L79: 1319.164824 | M79: 0
A80: System | B80: Region | C80: Island | D80: - | E80: 2032-01-04T04:00:00 | F80: 1333.063296 | G80: 34.0351627 | H80: 0 | I80: 0 | K80: 2026-03-18T16:00:00 | L80: 1306.421984 | M80: 0
A81: System | B81: Region | C81: Island | D81: - | E81: 2032-01-04T05:00:00 | F81: 1323.410329 | G81: 33.9653533 | H81: 0 | I81: 0 | K81: 2026-03-19T07:00:00 | L81: 1266.490942 | M81: 0
A82: System | B82: Region | C82: Island | D82: - | E82: 2032-01-04T06:00:00 | F82: 1398.692538 | G82: 35.3945232 | H82: 0 | I82: 0 | K82: 2026-03-20T07:00:00 | L82: 1381.039363 | M82: 0
A83: System | B83: Region | C83: Island | D83: - | E83: 2032-01-04T07:00:00 | F83: 1458.41509 | G83: 38.212369 | H83: 0 | I83: 0 | K83: 2026-03-21T08:00:00 | L83: 1277.803936 | M83: 0
A84: System | B84: Region | C84: Island | D84: - | E84: 2032-01-04T08:00:00 | F84: 1510.43618 | G84: 38.0320583 | H84: 0 | I84: 0 | K84: 2026-03-22T10:00:00 | L84: 1375.107348 | M84: 0
A85: System | B85: Region | C85: Island | D85: - | E85: 2032-01-04T09:00:00 | F85: 1674.028703 | G85: 44.0025923 | H85: 0.0033333 | I85: 0.1170997 | K85: 2026-03-23T19:00:00 | L85: 1469.334202 | M85: 0
A86: System | B86: Region | C86: Island | D86: - | E86: 2032-01-04T10:00:00 | F86: 1694.53852 | G86: 45.4074173 | H86: 0.0033333 | I86: 0.1892874 | K86: 2026-03-24T07:00:00 | L86: 1425.656256 | M86: 0
A87: System | B87: Region | C87: Island | D87: - | E87: 2032-01-04T11:00:00 | F87: 1668.070136 | G87: 43.6438604 | H87: 0.0016667 | I87: 0.0901604 | K87: 2026-03-25T07:00:00 | L87: 1396.321503 | M87: 0
A88: System | B88: Region | C88: Island | D88: - | E88: 2032-01-04T12:00:00 | F88: 1619.387499 | G88: 41.0254382 | H88: 0.00125 | I88: 0.0737846 | K88: 2026-03-26T07:00:00 | L88: 1364.900407 | M88: 0
A89: System | B89: Region | C89: Island | D89: - | E89: 2032-01-04T13:00:00 | F89: 1584.020717 | G89: 39.2669302 | H89: 0.00125 | I89: 0.0742506 | K89: 2026-03-27T07:00:00 | L89: 1176.212592 | M89: 0
A90: System | B90: Region | C90: Island | D90: - | E90: 2032-01-04T14:00:00 | F90: 1575.913558 | G90: 39.1331323 | H90: 0.0008333 | I90: 0.004078 | K90: 2026-03-28T19:00:00 | L90: 1157.048631 | M90: 0
A91: System | B91: Region | C91: Island | D91: - | E91: 2032-01-04T15:00:00 | F91: 1604.501044 | G91: 40.3768706 | H91: 0.0004167 | I91: 0.0200796 | K91: 2026-03-29T20:00:00 | L91: 1208.433243 | M91: 0
A92: System | B92: Region | C92: Island | D92: - | E92: 2032-01-04T16:00:00 | F92: 1666.553939 | G92: 43.6058526 | H92: 0.0025 | I92: 0.0815108 | K92: 2026-03-30T07:00:00 | L92: 1334.740805 | M92: 0
A93: System | B93: Region | C93: Island | D93: - | E93: 2032-01-04T17:00:00 | F93: 1750.863553 | G93: 47.8991203 | H93: 0.0120833 | I93: 0.5438577 | K93: 2026-03-31T07:00:00 | L93: 1302.238701 | M93: 0
A94: System | B94: Region | C94: Island | D94: - | E94: 2032-01-04T18:00:00 | F94: 1720.401738 | G94: 46.3761845 | H94: 0.0070833 | I94: 0.3981666 | K94: 2026-04-01T07:00:00 | L94: 1223.326926 | M94: 0
A95: System | B95: Region | C95: Island | D95: - | E95: 2032-01-04T19:00:00 | F95: 1691.657109 | G95: 44.8727895 | H95: 0.0054167 | I95: 0.1492149 | K95: 2026-04-02T20:00:00 | L95: 1287.625384 | M95: 0
A96: System | B96: Region | C96: Island | D96: - | E96: 2032-01-04T20:00:00 | F96: 1688.05285 | G96: 44.8293057 | H96: 0.0045833 | I96: 0.3160145 | K96: 2026-04-03T08:00:00 | L96: 1229.533316 | M96: 0
A97: System | B97: Region | C97: Island | D97: - | E97: 2032-01-04T21:00:00 | F97: 1635.127026 | G97: 41.8583948 | H97: 0.00125 | I97: 0.0205192 | K97: 2026-04-04T09:00:00 | L97: 1145.874296 | M97: 0
A98: System | B98: Region | C98: Island | D98: - | E98: 2032-01-04T22:00:00 | F98: 1488.831656 | G98: 38.3784091 | H98: 0 | I98: 0 | K98: 2026-04-05T20:00:00 | L98: 1324.539155 | M98: 0
A99: System | B99: Region | C99: Island | D99: - | E99: 2032-01-04T23:00:00 | F99: 1312.992634 | G99: 33.5582408 | H99: 0 | I99: 0 | K99: 2026-04-06T20:00:00 | L99: 1370.341257 | M99: 0
A100: System | B100: Region | C100: Island | D100: - | E100: 2032-01-05 | F100: 1200.07256 | G100: 27.1029831 | H100: 0 | I100: 0 | K100: 2026-04-07T07:00:00 | L100: 1420.005663 | M100: 0
A101: System | B101: Region | C101: Island | D101: - | E101: 2032-01-05T01:00:00 | F101: 1166.119747 | G101: 26.0309509 | H101: 0 | I101: 0 | K101: 2026-04-08T07:00:00 | L101: 1375.015159 | M101: 0
A102: System | B102: Region | C102: Island | D102: - | E102: 2032-01-05T02:00:00 | F102: 1149.903399 | G102: 25.652095 | H102: 0 | I102: 0 | K102: 2026-04-09T07:00:00 | L102: 1428.970096 | M102: 0
A103: System | B103: Region | C103: Island | D103: - | E103: 2032-01-05T03:00:00 | F103: 1139.475099 | G103: 24.9255117 | H103: 0 | I103: 0 | K103: 2026-04-10T07:00:00 | L103: 1387.885714 | M103: 0
A104: System | B104: Region | C104: Island | D104: - | E104: 2032-01-05T04:00:00 | F104: 1136.401858 | G104: 25.2097824 | H104: 0 | I104: 0 | K104: 2026-04-11T09:00:00 | L104: 1304.208363 | M104: 0
A105: System | B105: Region | C105: Island | D105: - | E105: 2032-01-05T05:00:00 | F105: 1136.579932 | G105: 24.921935 | H105: 0 | I105: 0 | K105: 2026-04-12T09:00:00 | L105: 1133.433191 | M105: 0
A106: System | B106: Region | C106: Island | D106: - | E106: 2032-01-05T06:00:00 | F106: 1156.53971 | G106: 25.9889325 | H106: 0 | I106: 0 | K106: 2026-04-13T07:00:00 | L106: 1230.258597 | M106: 0
A107: System | B107: Region | C107: Island | D107: - | E107: 2032-01-05T07:00:00 | F107: 1227.579993 | G107: 34.226628 | H107: 0 | I107: 0 | K107: 2026-04-14T07:00:00 | L107: 1132.380807 | M107: 0
A108: System | B108: Region | C108: Island | D108: - | E108: 2032-01-05T08:00:00 | F108: 1280.861242 | G108: 35.4139557 | H108: 0 | I108: 0 | K108: 2026-04-15T07:00:00 | L108: 1050.781771 | M108: 0
A109: System | B109: Region | C109: Island | D109: - | E109: 2032-01-05T09:00:00 | F109: 1259.892941 | G109: 34.8121414 | H109: 0 | I109: 0 | K109: 2026-04-16T20:00:00 | L109: 1406.415822 | M109: 0
A110: System | B110: Region | C110: Island | D110: - | E110: 2032-01-05T10:00:00 | F110: 1255.877667 | G110: 34.5447429 | H110: 0 | I110: 0 | K110: 2026-04-17T07:00:00 | L110: 1418.06062 | M110: 0
A111: System | B111: Region | C111: Island | D111: - | E111: 2032-01-05T11:00:00 | F111: 1241.801177 | G111: 34.144157 | H111: 0 | I111: 0 | K111: 2026-04-18T20:00:00 | L111: 1082.31451 | M111: 0
A112: System | B112: Region | C112: Island | D112: - | E112: 2032-01-05T12:00:00 | F112: 1222.694858 | G112: 33.2455248 | H112: 0 | I112: 0 | K112: 2026-04-19T09:00:00 | L112: 1219.737365 | M112: 0
A113: System | B113: Region | C113: Island | D113: - | E113: 2032-01-05T13:00:00 | F113: 1196.817251 | G113: 32.5258025 | H113: 0 | I113: 0 | K113: 2026-04-20T07:00:00 | L113: 1311.32327 | M113: 0
A114: System | B114: Region | C114: Island | D114: - | E114: 2032-01-05T14:00:00 | F114: 1177.09734 | G114: 31.7988625 | H114: 0 | I114: 0 | K114: 2026-04-21T07:00:00 | L114: 1294.308142 | M114: 0
A115: System | B115: Region | C115: Island | D115: - | E115: 2032-01-05T15:00:00 | F115: 1175.715947 | G115: 32.2361904 | H115: 0 | I115: 0 | K115: 2026-04-22T07:00:00 | L115: 1272.990823 | M115: 0
A116: System | B116: Region | C116: Island | D116: - | E116: 2032-01-05T16:00:00 | F116: 1199.549969 | G116: 32.5657265 | H116: 0 | I116: 0 | K116: 2026-04-23T07:00:00 | L116: 1144.424902 | M116: 0
A117: System | B117: Region | C117: Island | D117: - | E117: 2032-01-05T17:00:00 | F117: 1308.237173 | G117: 36.5662774 | H117: 0 | I117: 0 | K117: 2026-04-24T07:00:00 | L117: 1113.982591 | M117: 0
A118: System | B118: Region | C118: Island | D118: - | E118: 2032-01-05T18:00:00 | F118: 1298.175708 | G118: 35.9601319 | H118: 0 | I118: 0 | K118: 2026-04-25T11:00:00 | L118: 1156.071615 | M118: 0
A119: System | B119: Region | C119: Island | D119: - | E119: 2032-01-05T19:00:00 | F119: 1289.863611 | G119: 36.124538 | H119: 0 | I119: 0 | K119: 2026-04-26T11:00:00 | L119: 1123.985386 | M119: 0
A120: System | B120: Region | C120: Island | D120: - | E120: 2032-01-05T20:00:00 | F120: 1278.843539 | G120: 35.6475947 | H120: 0 | I120: 0 | K120: 2026-04-27T20:00:00 | L120: 1075.427471 | M120: 0
A121: System | B121: Region | C121: Island | D121: - | E121: 2032-01-05T21:00:00 | F121: 1255.58622 | G121: 34.6153736 | H121: 0 | I121: 0 | K121: 2026-04-28T07:00:00 | L121: 1164.293405 | M121: 0
A122: System | B122: Region | C122: Island | D122: - | E122: 2032-01-05T22:00:00 | F122: 1211.714198 | G122: 33.1100745 | H122: 0 | I122: 0 | K122: 2026-04-29T07:00:00 | L122: 1127.076362 | M122: 0
A123: System | B123: Region | C123: Island | D123: - | E123: 2032-01-05T23:00:00 | F123: 1156.476802 | G123: 25.3502889 | H123: 0 | I123: 0 | K123: 2026-04-30T08:00:00 | L123: 1206.945565 | M123: 0
A124: System | B124: Region | C124: Island | D124: - | E124: 2032-01-06 | F124: 1109.438445 | G124: 24.4024994 | H124: 0 | I124: 0 | K124: 2026-05-01T07:00:00 | L124: 1252.385434 | M124: 0
A125: System | B125: Region | C125: Island | D125: - | E125: 2032-01-06T01:00:00 | F125: 1086.839789 | G125: 24.2986365 | H125: 0 | I125: 0 | K125: 2026-05-02T09:00:00 | L125: 1144.420941 | M125: 0
A126: System | B126: Region | C126: Island | D126: - | E126: 2032-01-06T02:00:00 | F126: 1095.717653 | G126: 24.3230801 | H126: 0 | I126: 0 | K126: 2026-05-03T09:00:00 | L126: 1093.999018 | M126: 0
A127: System | B127: Region | C127: Island | D127: - | E127: 2032-01-06T03:00:00 | F127: 1104.776108 | G127: 23.9631062 | H127: 0 | I127: 0 | K127: 2026-05-04T07:00:00 | L127: 1082.814573 | M127: 0
A128: System | B128: Region | C128: Island | D128: - | E128: 2032-01-06T04:00:00 | F128: 1116.900952 | G128: 24.9224136 | H128: 0 | I128: 0 | K128: 2026-05-05T07:00:00 | L128: 1043.155916 | M128: 0
A129: System | B129: Region | C129: Island | D129: - | E129: 2032-01-06T05:00:00 | F129: 1149.618236 | G129: 25.7916059 | H129: 0 | I129: 0 | K129: 2026-05-06T07:00:00 | L129: 1027.420317 | M129: 0
A130: System | B130: Region | C130: Island | D130: - | E130: 2032-01-06T06:00:00 | F130: 1195.176473 | G130: 26.9447829 | H130: 0 | I130: 0 | K130: 2026-05-07T07:00:00 | L130: 1080.176456 | M130: 0
A131: System | B131: Region | C131: Island | D131: - | E131: 2032-01-06T07:00:00 | F131: 1355.932925 | G131: 37.288262 | H131: 0 | I131: 0 | K131: 2026-05-08T09:00:00 | L131: 1248.467027 | M131: 0
A132: System | B132: Region | C132: Island | D132: - | E132: 2032-01-06T08:00:00 | F132: 1525.818971 | G132: 38.4132149 | H132: 0 | I132: 0 | K132: 2026-05-09T09:00:00 | L132: 1171.264514 | M132: 0
A133: System | B133: Region | C133: Island | D133: - | E133: 2032-01-06T09:00:00 | F133: 1563.463121 | G133: 38.6540115 | H133: 0 | I133: 0 | K133: 2026-05-10T09:00:00 | L133: =MAX(OFFSET($F$4:$F$27,(ROW()-4)*24,0)) -> 1195.40938 | M133: =VLOOKUP(L133,OFFSET($F$4:$H$27,(ROW()-4)*24,0),3,FALSE) -> 0
A134: System | B134: Region | C134: Island | D134: - | E134: 2032-01-06T10:00:00 | F134: 1551.264008 | G134: 38.4160299 | H134: 0.0004167 | I134: 0.0020942 | K134: 2026-05-11T08:00:00 | L134: 1087.363499 | M134: 0
A135: System | B135: Region | C135: Island | D135: - | E135: 2032-01-06T11:00:00 | F135: 1540.662265 | G135: 38.5013894 | H135: 0 | I135: 0 | K135: 2026-05-12T07:00:00 | L135: 1172.322901 | M135: 0
A136: System | B136: Region | C136: Island | D136: - | E136: 2032-01-06T12:00:00 | F136: 1520.144072 | G136: 38.2832343 | H136: 0 | I136: 0 | K136: 2026-05-13T20:00:00 | L136: 1126.926932 | M136: 0
A137: System | B137: Region | C137: Island | D137: - | E137: 2032-01-06T13:00:00 | F137: 1486.820833 | G137: 38.6843446 | H137: 0 | I137: 0 | K137: 2026-05-14T07:00:00 | L137: 1131.636965 | M137: 0
A138: System | B138: Region | C138: Island | D138: - | E138: 2032-01-06T14:00:00 | F138: 1493.474015 | G138: 38.3162267 | H138: 0 | I138: 0 | K138: 2026-05-15T07:00:00 | L138: 1038.992074 | M138: 0
A139: System | B139: Region | C139: Island | D139: - | E139: 2032-01-06T15:00:00 | F139: 1522.474174 | G139: 38.4964585 | H139: 0 | I139: 0 | K139: 2026-05-16T09:00:00 | L139: 845.8478518 | M139: 0
A140: System | B140: Region | C140: Island | D140: - | E140: 2032-01-06T16:00:00 | F140: 1629.156897 | G140: 41.7031036 | H140: 0 | I140: 0 | K140: 2026-05-17T09:00:00 | L140: 923.0872499 | M140: 0
A141: System | B141: Region | C141: Island | D141: - | E141: 2032-01-06T17:00:00 | F141: 1748.754079 | G141: 47.6726647 | H141: 0.0129167 | I141: 0.7251533 | K141: 2026-05-18T11:00:00 | L141: 1024.845004 | M141: 0
A142: System | B142: Region | C142: Island | D142: - | E142: 2032-01-06T18:00:00 | F142: 1738.513455 | G142: 47.1844454 | H142: 0.0129167 | I142: 0.5724002 | K142: 2026-05-19T07:00:00 | L142: 989.0342208 | M142: 0
A143: System | B143: Region | C143: Island | D143: - | E143: 2032-01-06T19:00:00 | F143: 1712.324362 | G143: 45.8792538 | H143: 0.0075 | I143: 0.3330389 | K143: 2026-05-20T20:00:00 | L143: 859.8124827 | M143: 0
A144: System | B144: Region | C144: Island | D144: - | E144: 2032-01-06T20:00:00 | F144: 1690.332498 | G144: 44.9400224 | H144: 0.0041667 | I144: 0.1055674 | K144: 2026-05-21T07:00:00 | L144: 915.1733841 | M144: 0
A145: System | B145: Region | C145: Island | D145: - | E145: 2032-01-06T21:00:00 | F145: 1633.692981 | G145: 41.8040195 | H145: 0.0008333 | I145: 0.0605312 | K145: 2026-05-22T07:00:00 | L145: 925.1671266 | M145: 0
A146: System | B146: Region | C146: Island | D146: - | E146: 2032-01-06T22:00:00 | F146: 1515.729754 | G146: 38.5155351 | H146: 0 | I146: 0 | K146: 2026-05-23T11:00:00 | L146: 941.8149435 | M146: 0
A147: System | B147: Region | C147: Island | D147: - | E147: 2032-01-06T23:00:00 | F147: 1331.473381 | G147: 31.1333146 | H147: 0 | I147: 0 | K147: 2026-05-24T09:00:00 | L147: 990.2963017 | M147: 0
A148: System | B148: Region | C148: Island | D148: - | E148: 2032-01-07 | F148: 1203.395348 | G148: 27.9288075 | H148: 0 | I148: 0 | K148: 2026-05-25T07:00:00 | L148: 926.7553319 | M148: 0
A149: System | B149: Region | C149: Island | D149: - | E149: 2032-01-07T01:00:00 | F149: 1188.343596 | G149: 27.5652897 | H149: 0 | I149: 0 | K149: 2026-05-26T07:00:00 | L149: 832.7009195 | M149: 0
A150: System | B150: Region | C150: Island | D150: - | E150: 2032-01-07T02:00:00 | F150: 1178.270752 | G150: 26.8835624 | H150: 0 | I150: 0 | K150: 2026-05-27T09:00:00 | L150: 848.1409183 | M150: 0
A151: System | B151: Region | C151: Island | D151: - | E151: 2032-01-07T03:00:00 | F151: 1178.421308 | G151: 27.9583878 | H151: 0 | I151: 0 | K151: 2026-05-28T09:00:00 | L151: 860.2890553 | M151: 0
A152: System | B152: Region | C152: Island | D152: - | E152: 2032-01-07T04:00:00 | F152: 1186.28327 | G152: 27.8167714 | H152: 0 | I152: 0 | K152: 2026-05-29T11:00:00 | L152: 920.0430855 | M152: 0
A153: System | B153: Region | C153: Island | D153: - | E153: 2032-01-07T05:00:00 | F153: 1198.546216 | G153: 28.2230324 | H153: 0 | I153: 0 | K153: 2026-05-30T09:00:00 | L153: 866.2517199 | M153: 0
A154: System | B154: Region | C154: Island | D154: - | E154: 2032-01-07T06:00:00 | F154: 1245.587735 | G154: 28.8363528 | H154: 0 | I154: 0 | K154: 2026-05-31T11:00:00 | L154: 807.4762907 | M154: 0
A155: System | B155: Region | C155: Island | D155: - | E155: 2032-01-07T07:00:00 | F155: 1448.300735 | G155: 38.7353161 | H155: 0 | I155: 0 | K155: 2026-06-01T07:00:00 | L155: 948.1930865 | M155: 0
A156: System | B156: Region | C156: Island | D156: - | E156: 2032-01-07T08:00:00 | F156: 1570.051215 | G156: 38.9365475 | H156: 0.0004167 | I156: 0.0046438 | K156: 2026-06-02T07:00:00 | L156: 1073.840191 | M156: 0
A157: System | B157: Region | C157: Island | D157: - | E157: 2032-01-07T09:00:00 | F157: 1588.151905 | G157: 39.3817023 | H157: 0 | I157: 0 | K157: 2026-06-03T07:00:00 | L157: 1004.209901 | M157: 0
A158: System | B158: Region | C158: Island | D158: - | E158: 2032-01-07T10:00:00 | F158: 1564.039145 | G158: 38.7096552 | H158: 0.0004167 | I158: 0.0249122 | K158: 2026-06-04T07:00:00 | L158: 1022.411986 | M158: 0
A159: System | B159: Region | C159: Island | D159: - | E159: 2032-01-07T11:00:00 | F159: 1529.739991 | G159: 38.7047765 | H159: 0.0004167 | I159: 0.0052545 | K159: 2026-06-05T07:00:00 | L159: 1020.427823 | M159: 0
A160: System | B160: Region | C160: Island | D160: - | E160: 2032-01-07T12:00:00 | F160: 1518.328296 | G160: 38.7670536 | H160: 0 | I160: 0 | K160: 2026-06-06T10:00:00 | L160: 941.9884879 | M160: 0
A161: System | B161: Region | C161: Island | D161: - | E161: 2032-01-07T13:00:00 | F161: 1468.444548 | G161: 38.9273279 | H161: 0 | I161: 0 | K161: 2026-06-07T11:00:00 | L161: 979.3337341 | M161: 0
A162: System | B162: Region | C162: Island | D162: - | E162: 2032-01-07T14:00:00 | F162: 1435.091132 | G162: 38.5270189 | H162: 0 | I162: 0 | K162: 2026-06-08T07:00:00 | L162: 1063.890811 | M162: 0
A163: System | B163: Region | C163: Island | D163: - | E163: 2032-01-07T15:00:00 | F163: 1444.243401 | G163: 38.7117241 | H163: 0 | I163: 0 | K163: 2026-06-09T07:00:00 | L163: 961.318214 | M163: 0
A164: System | B164: Region | C164: Island | D164: - | E164: 2032-01-07T16:00:00 | F164: 1514.237419 | G164: 38.3927724 | H164: 0 | I164: 0 | K164: 2026-06-10T07:00:00 | L164: 850.8443661 | M164: 0
A165: System | B165: Region | C165: Island | D165: - | E165: 2032-01-07T17:00:00 | F165: 1665.413161 | G165: 43.50199 | H165: 0.0045833 | I165: 0.2620088 | K165: 2026-06-11T07:00:00 | L165: 826.2834241 | M165: 0
A166: System | B166: Region | C166: Island | D166: - | E166: 2032-01-07T18:00:00 | F166: 1638.442358 | G166: 42.151365 | H166: 0.0016667 | I166: 0.1116202 | K166: 2026-06-12T11:00:00 | L166: 831.0333817 | M166: 0
A167: System | B167: Region | C167: Island | D167: - | E167: 2032-01-07T19:00:00 | F167: 1596.31251 | G167: 39.7202836 | H167: 0.0004167 | I167: 0.0294373 | K167: 2026-06-13T16:00:00 | L167: 911.1807482 | M167: 0
A168: System | B168: Region | C168: Island | D168: - | E168: 2032-01-07T20:00:00 | F168: 1561.045859 | G168: 38.8185329 | H168: 0 | I168: 0 | K168: 2026-06-14T10:00:00 | L168: 1057.755213 | M168: 0
A169: System | B169: Region | C169: Island | D169: - | E169: 2032-01-07T21:00:00 | F169: 1499.168788 | G169: 38.3504116 | H169: 0 | I169: 0 | K169: 2026-06-15T08:00:00 | L169: 1059.438887 | M169: 0
A170: System | B170: Region | C170: Island | D170: - | E170: 2032-01-07T22:00:00 | F170: 1406.694409 | G170: 38.3568124 | H170: 0 | I170: 0 | K170: 2026-06-16T07:00:00 | L170: 921.2634932 | M170: 0
A171: System | B171: Region | C171: Island | D171: - | E171: 2032-01-07T23:00:00 | F171: 1263.135241 | G171: 29.4773796 | H171: 0 | I171: 0 | K171: 2026-06-17T11:00:00 | L171: 1006.542656 | M171: 0
A172: System | B172: Region | C172: Island | D172: - | E172: 2032-01-08 | F172: 1195.195891 | G172: 28.2501973 | H172: 0 | I172: 0 | K172: 2026-06-18T07:00:00 | L172: 888.3093648 | M172: 0
A173: System | B173: Region | C173: Island | D173: - | E173: 2032-01-08T01:00:00 | F173: 1166.568196 | G173: 27.1075048 | H173: 0 | I173: 0 | K173: 2026-06-19T08:00:00 | L173: 756.9771284 | M173: 0
A174: System | B174: Region | C174: Island | D174: - | E174: 2032-01-08T02:00:00 | F174: 1165.08308 | G174: 26.9940103 | H174: 0 | I174: 0 | K174: 2026-06-20T11:00:00 | L174: 753.7852482 | M174: 0
A175: System | B175: Region | C175: Island | D175: - | E175: 2032-01-08T03:00:00 | F175: 1164.921574 | G175: 26.925948 | H175: 0 | I175: 0 | K175: 2026-06-21T10:00:00 | L175: 743.2352318 | M175: 0
A176: System | B176: Region | C176: Island | D176: - | E176: 2032-01-08T04:00:00 | F176: 1177.078298 | G176: 27.7861665 | H176: 0 | I176: 0 | K176: 2026-06-22T11:00:00 | L176: 788.5869039 | M176: 0
A177: System | B177: Region | C177: Island | D177: - | E177: 2032-01-08T05:00:00 | F177: 1191.655946 | G177: 27.9365607 | H177: 0 | I177: 0 | K177: 2026-06-23T21:00:00 | L177: 858.0984641 | M177: 0
A178: System | B178: Region | C178: Island | D178: - | E178: 2032-01-08T06:00:00 | F178: 1238.115471 | G178: 29.1158717 | H178: 0 | I178: 0 | K178: 2026-06-24T09:00:00 | L178: 987.5454056 | M178: 0
A179: System | B179: Region | C179: Island | D179: - | E179: 2032-01-08T07:00:00 | F179: 1409.740734 | G179: 38.1893689 | H179: 0 | I179: 0 | K179: 2026-06-25T10:00:00 | L179: 1017.392221 | M179: 0
A180: System | B180: Region | C180: Island | D180: - | E180: 2032-01-08T08:00:00 | F180: 1552.759833 | G180: 38.4373451 | H180: 0 | I180: 0 | K180: 2026-06-26T09:00:00 | L180: 1003.465876 | M180: 0
A181: System | B181: Region | C181: Island | D181: - | E181: 2032-01-08T09:00:00 | F181: 1590.375711 | G181: 39.3821292 | H181: 0.0004167 | I181: 0.0039046 | K181: 2026-06-27T10:00:00 | L181: 928.0483233 | M181: 0
A182: System | B182: Region | C182: Island | D182: - | E182: 2032-01-08T10:00:00 | F182: 1594.133614 | G182: 39.7190503 | H182: 0.0004167 | I182: 0.0668937 | K182: 2026-06-28T11:00:00 | L182: 768.4858362 | M182: 0
A183: System | B183: Region | C183: Island | D183: - | E183: 2032-01-08T11:00:00 | F183: 1616.318499 | G183: 40.7986563 | H183: 0.0004167 | I183: 0.0293212 | K183: 2026-06-29T11:00:00 | L183: 838.6943217 | M183: 0
A184: System | B184: Region | C184: Island | D184: - | E184: 2032-01-08T12:00:00 | F184: 1611.066683 | G184: 40.693969 | H184: 0.0004167 | I184: 0.0141037 | K184: 2026-06-30T09:00:00 | L184: 820.6153696 | M184: 0
A185: System | B185: Region | C185: Island | D185: - | E185: 2032-01-08T13:00:00 | F185: 1556.15539 | G185: 38.4922813 | H185: 0.0008333 | I185: 0.0222068 | K185: 2026-07-01T11:00:00 | L185: 728.7754712 | M185: 0
A186: System | B186: Region | C186: Island | D186: - | E186: 2032-01-08T14:00:00 | F186: 1511.731432 | G186: 38.5500342 | H186: 0 | I186: 0 | K186: 2026-07-02T16:00:00 | L186: 753.3909895 | M186: 0
A187: System | B187: Region | C187: Island | D187: - | E187: 2032-01-08T15:00:00 | F187: 1521.576106 | G187: 38.3061579 | H187: 0 | I187: 0 | K187: 2026-07-03T11:00:00 | L187: 770.9489138 | M187: 0
A188: System | B188: Region | C188: Island | D188: - | E188: 2032-01-08T16:00:00 | F188: 1557.586374 | G188: 38.2958843 | H188: 0.0008333 | I188: 0.0038124 | K188: 2026-07-04T11:00:00 | L188: 683.1327364 | M188: 0
A189: System | B189: Region | C189: Island | D189: - | E189: 2032-01-08T17:00:00 | F189: 1716.043535 | G189: 46.1364178 | H189: 0.0075 | I189: 0.3943466 | K189: 2026-07-05T11:00:00 | L189: 716.7740551 | M189: 0
A190: System | B190: Region | C190: Island | D190: - | E190: 2032-01-08T18:00:00 | F190: 1701.35958 | G190: 45.4760038 | H190: 0.0033333 | I190: 0.1607087 | K190: 2026-07-06T11:00:00 | L190: 867.4110243 | M190: 0
A191: System | B191: Region | C191: Island | D191: - | E191: 2032-01-08T19:00:00 | F191: 1658.340418 | G191: 43.2327738 | H191: 0.0029167 | I191: 0.1208181 | K191: 2026-07-07T10:00:00 | L191: 843.0770007 | M191: 0
A192: System | B192: Region | C192: Island | D192: - | E192: 2032-01-08T20:00:00 | F192: 1632.112135 | G192: 41.585597 | H192: 0.00125 | I192: 0.0143253 | K192: 2026-07-08T11:00:00 | L192: 776.5686737 | M192: 0
A193: System | B193: Region | C193: Island | D193: - | E193: 2032-01-08T21:00:00 | F193: 1578.20584 | G193: 39.2305553 | H193: 0.0004167 | I193: 0.0084145 | K193: 2026-07-09T11:00:00 | L193: 706.2528627 | M193: 0
A194: System | B194: Region | C194: Island | D194: - | E194: 2032-01-08T22:00:00 | F194: 1485.146521 | G194: 38.5033131 | H194: 0 | I194: 0 | K194: 2026-07-10T10:00:00 | L194: 734.478067 | M194: 0
A195: System | B195: Region | C195: Island | D195: - | E195: 2032-01-08T23:00:00 | F195: 1325.790119 | G195: 31.5887273 | H195: 0 | I195: 0 | K195: 2026-07-11T11:00:00 | L195: 777.0908674 | M195: 0
A196: System | B196: Region | C196: Island | D196: - | E196: 2032-01-09 | F196: 1245.271792 | G196: 30.5689417 | H196: 0 | I196: 0 | K196: 2026-07-12T09:00:00 | L196: 747.9968959 | M196: 0
A197: System | B197: Region | C197: Island | D197: - | E197: 2032-01-09T01:00:00 | F197: 1225.44271 | G197: 28.9485812 | H197: 0 | I197: 0 | K197: 2026-07-13T11:00:00 | L197: =MAX(OFFSET($F$4:$F$27,(ROW()-4)*24,0)) -> 836.28055 | M197: =VLOOKUP(L197,OFFSET($F$4:$H$27,(ROW()-4)*24,0),3,FALSE) -> 0
A198: System | B198: Region | C198: Island | D198: - | E198: 2032-01-09T02:00:00 | F198: 1227.686208 | G198: 29.2227522 | H198: 0 | I198: 0 | K198: 2026-07-14T11:00:00 | L198: 739.2112325 | M198: 0
A199: System | B199: Region | C199: Island | D199: - | E199: 2032-01-09T03:00:00 | F199: 1237.958659 | G199: 29.5341039 | H199: 0 | I199: 0 | K199: 2026-07-15T12:00:00 | L199: 675.9546517 | M199: 0
A200: System | B200: Region | C200: Island | D200: - | E200: 2032-01-09T04:00:00 | F200: 1257.11953 | G200: 30.0895574 | H200: 0 | I200: 0 | K200: 2026-07-16T11:00:00 | L200: 767.8673568 | M200: 0
A201: System | B201: Region | C201: Island | D201: - | E201: 2032-01-09T05:00:00 | F201: 1294.391174 | G201: 31.0160668 | H201: 0 | I201: 0 | K201: 2026-07-17T10:00:00 | L201: 741.2061697 | M201: 0
A202: System | B202: Region | C202: Island | D202: - | E202: 2032-01-09T06:00:00 | F202: 1408.911534 | G202: 33.8731559 | H202: 0 | I202: 0 | K202: 2026-07-18T11:00:00 | L202: 740.2331943 | M202: 0
... 8585 more rows

Sheet Run 8
A3: Parent Name | B3: Collection | C3: Child Name | D3: Category | E3: Datetime | F3: Load (MW) | G3: Transmission Losses (MW) | H3: Unserved Energy Hours (h) | I3: Unserved Energy (MW) | K3: Daily Peak | L3: Daily Peak Load | M3: Average Unserved Energy Hours
A4: System | B4: Region | C4: Island | D4: - | E4: 2032-01-01 | F4: 1286.276568 | G4: 30.4569681 | H4: 0 | I4: 0 | K4: 2026-01-01T17:00:00 | L4: =MAX(OFFSET($F$4:$F$27,(ROW()-4)*24,0)) -> 1602.433881 | M4: =VLOOKUP(L4,OFFSET($F$4:$H$27,(ROW()-4)*24,0),3,FALSE) -> 0.00125 | P4: LOLE | Q4: =SUM(M4:M368) -> 0.1183334
A5: System | B5: Region | C5: Island | D5: - | E5: 2032-01-01T01:00:00 | F5: 1239.79327 | G5: 28.8685557 | H5: 0 | I5: 0 | K5: 2026-01-02T17:00:00 | L5: =MAX(OFFSET($F$4:$F$27,(ROW()-4)*24,0)) -> 1349.023135 | M5: =VLOOKUP(L5,OFFSET($F$4:$H$27,(ROW()-4)*24,0),3,FALSE) -> 0 | P5: LOLH | Q5: =SUM(H4:H8763) -> 0.400835
A6: System | B6: Region | C6: Island | D6: - | E6: 2032-01-01T02:00:00 | F6: 1216.929246 | G6: 28.6148022 | H6: 0 | I6: 0 | K6: 2026-01-03T20:00:00 | L6: 1749.031536 | M6: 0.0075 | P6: EUE | Q6: =SUM(I4:I8763) -> 17.9623629
A7: System | B7: Region | C7: Island | D7: - | E7: 2032-01-01T03:00:00 | F7: 1205.430237 | G7: 28.3621644 | H7: 0 | I7: 0 | K7: 2026-01-04T17:00:00 | L7: 1754.059413 | M7: 0.015 | P7: Peak | Q7: =MAX(F4:F8763) -> 1769.334826
A8: System | B8: Region | C8: Island | D8: - | E8: 2032-01-01T04:00:00 | F8: 1204.456201 | G8: 28.0255893 | H8: 0 | I8: 0 | K8: 2026-01-05T17:00:00 | L8: 1311.169024 | M8: 0 | P8: Loss @ Peak | Q8: =VLOOKUP(Q7,F4:G8763,2,FALSE) -> 48.3842351
A9: System | B9: Region | C9: Island | D9: - | E9: 2032-01-01T05:00:00 | F9: 1216.146448 | G9: 28.2826681 | H9: 0 | I9: 0 | K9: 2026-01-06T17:00:00 | L9: 1752.065101 | M9: 0.0091667 | P9: Peak with Losses | Q9: =Q7+Q8 -> 1817.719061
A10: System | B10: Region | C10: Island | D10: - | E10: 2032-01-01T06:00:00 | F10: 1245.903724 | G10: 28.8190327 | H10: 0 | I10: 0 | K10: 2026-01-07T17:00:00 | L10: 1669.148812 | M10: 0.0033333 | P10: Peak Losses | Q10: =MAX(G4:G8763) -> 48.3842351
A11: System | B11: Region | C11: Island | D11: - | E11: 2032-01-01T07:00:00 | F11: 1308.350792 | G11: 36.4089396 | H11: 0 | I11: 0 | K11: 2026-01-08T17:00:00 | L11: 1718.657203 | M11: 0.00625 | P11: Firm Capacity | Q11: 2452.74
A12: System | B12: Region | C12: Island | D12: - | E12: 2032-01-01T08:00:00 | F12: 1372.081095 | G12: 38.2668645 | H12: 0 | I12: 0 | K12: 2026-01-09T08:00:00 | L12: 1753.114926 | M12: 0.0095833 | P12: Reserve Margin | Q12: =Q11-Q7 -> 683.4051739
A13: System | B13: Region | C13: Island | D13: - | E13: 2032-01-01T09:00:00 | F13: 1393.676643 | G13: 38.0577298 | H13: 0 | I13: 0 | K13: 2026-01-10T17:00:00 | L13: 1463.402095 | M13: 0 | P13: Reserve Margin % | Q13: =Q12/Q7 -> 0.3862497724
A14: System | B14: Region | C14: Island | D14: - | E14: 2032-01-01T10:00:00 | F14: 1414.955296 | G14: 39.0885346 | H14: 0 | I14: 0 | K14: 2026-01-11T20:00:00 | L14: 1651.258604 | M14: 0.0020833 | P14: Reserve Magin w/Loss | Q14: =Q11-Q9 -> 635.0209388
A15: System | B15: Region | C15: Island | D15: - | E15: 2032-01-01T11:00:00 | F15: 1443.290727 | G15: 39.1458638 | H15: 0 | I15: 0 | K15: 2026-01-12T08:00:00 | L15: 1707.803068 | M15: 0.0070833 | P15: Reserve Margin % w/ Loss | Q15: =Q14/Q9 -> 0.3493504317
A16: System | B16: Region | C16: Island | D16: - | E16: 2032-01-01T12:00:00 | F16: 1457.912723 | G16: 39.2330644 | H16: 0 | I16: 0 | K16: 2026-01-13T18:00:00 | L16: 1683.038054 | M16: 0.0045833
A17: System | B17: Region | C17: Island | D17: - | E17: 2032-01-01T13:00:00 | F17: 1457.172628 | G17: 39.2250229 | H17: 0 | I17: 0 | K17: 2026-01-14T08:00:00 | L17: 1769.334826 | M17: 0.0141667 | P17: Checks
A18: System | B18: Region | C18: Island | D18: - | E18: 2032-01-01T14:00:00 | F18: 1458.537969 | G18: 39.0401784 | H18: 0 | I18: 0 | K18: 2026-01-15T08:00:00 | L18: 1537.178071 | M18: 0 | P18: Island Energy (Original) | Q18: 8410
A19: System | B19: Region | C19: Island | D19: - | E19: 2032-01-01T15:00:00 | F19: 1471.985106 | G19: 38.9367712 | H19: 0 | I19: 0 | K19: 2026-01-16T17:00:00 | L19: 1369.303059 | M19: 0 | P19: Island Energy (Escalated) | Q19: =SUM(F4:F8787)/1000 -> 8393.096445
A20: System | B20: Region | C20: Island | D20: - | E20: 2032-01-01T16:00:00 | F20: 1498.80688 | G20: 38.7808942 | H20: 0 | I20: 0 | K20: 2026-01-17T20:00:00 | L20: 1389.642181 | M20: 0 | P20: Escalation Factor Check | Q20: =Q19/Q18 -> 0.9979900648
A21: System | B21: Region | C21: Island | D21: - | E21: 2032-01-01T17:00:00 | F21: 1602.433881 | G21: 40.4254559 | H21: 0.00125 | I21: 0.0325249 | K21: 2026-01-18T18:00:00 | L21: 1546.124831 | M21: 0
A22: System | B22: Region | C22: Island | D22: - | E22: 2032-01-01T18:00:00 | F22: 1548.540771 | G22: 38.7294833 | H22: 0.0004167 | I22: 0.0286648 | K22: 2026-01-19T08:00:00 | L22: 1415.299463 | M22: 0 | P22: Island Peak (Original) | Q22: 1773
A23: System | B23: Region | C23: Island | D23: - | E23: 2032-01-01T19:00:00 | F23: 1501.241774 | G23: 38.8591817 | H23: 0 | I23: 0 | K23: 2026-01-20T18:00:00 | L23: 1250.217737 | M23: 0 | P23: Island Peak (Escalated) | Q23: =MAX(F4:F8763) -> 1769.334826
A24: System | B24: Region | C24: Island | D24: - | E24: 2032-01-01T20:00:00 | F24: 1469.892002 | G24: 38.8438301 | H24: 0 | I24: 0 | K24: 2026-01-21T18:00:00 | L24: 1366.818186 | M24: 0 | P24: Escalation Factor Check | Q24: =Q23/Q22 -> 0.997932784
A25: System | B25: Region | C25: Island | D25: - | E25: 2032-01-01T21:00:00 | F25: 1418.281756 | G25: 39.0199042 | H25: 0 | I25: 0 | K25: 2026-01-22T08:00:00 | L25: 1397.282593 | M25: 0
A26: System | B26: Region | C26: Island | D26: - | E26: 2032-01-01T22:00:00 | F26: 1334.333729 | G26: 36.7546847 | H26: 0 | I26: 0 | K26: 2026-01-23T18:00:00 | L26: 1451.408591 | M26: 0
A27: System | B27: Region | C27: Island | D27: - | E27: 2032-01-01T23:00:00 | F27: 1220.022725 | G27: 28.5372458 | H27: 0 | I27: 0 | K27: 2026-01-24T10:00:00 | L27: 1465.46107 | M27: 0
A28: System | B28: Region | C28: Island | D28: - | E28: 2032-01-02 | F28: 1162.676714 | G28: 25.9326927 | H28: 0 | I28: 0 | K28: 2026-01-25T18:00:00 | L28: 1286.073934 | M28: 0
A29: System | B29: Region | C29: Island | D29: - | E29: 2032-01-02T01:00:00 | F29: 1126.074303 | G29: 24.3573912 | H29: 0 | I29: 0 | K29: 2026-01-26T18:00:00 | L29: 1610.894208 | M29: 0
A30: System | B30: Region | C30: Island | D30: - | E30: 2032-01-02T02:00:00 | F30: 1114.784402 | G30: 24.3648173 | H30: 0 | I30: 0 | K30: 2026-01-27T17:00:00 | L30: 1759.141618 | M30: 0.01125
A31: System | B31: Region | C31: Island | D31: - | E31: 2032-01-02T03:00:00 | F31: 1113.066568 | G31: 24.4747954 | H31: 0 | I31: 0 | K31: 2026-01-28T08:00:00 | L31: 1238.863648 | M31: 0
A32: System | B32: Region | C32: Island | D32: - | E32: 2032-01-02T04:00:00 | F32: 1119.171141 | G32: 24.3903658 | H32: 0 | I32: 0 | K32: 2026-01-29T18:00:00 | L32: 1214.67677 | M32: 0
A33: System | B33: Region | C33: Island | D33: - | E33: 2032-01-02T05:00:00 | F33: 1128.385716 | G33: 24.6121508 | H33: 0 | I33: 0 | K33: 2026-01-30T12:00:00 | L33: 1382.280511 | M33: 0
A34: System | B34: Region | C34: Island | D34: - | E34: 2032-01-02T06:00:00 | F34: 1152.917907 | G34: 25.6364734 | H34: 0 | I34: 0 | K34: 2026-01-31T18:00:00 | L34: 1290.086003 | M34: 0
A35: System | B35: Region | C35: Island | D35: - | E35: 2032-01-02T07:00:00 | F35: 1199.593053 | G35: 32.639834 | H35: 0 | I35: 0 | K35: 2026-02-01T10:00:00 | L35: 1172.926702 | M35: 0
A36: System | B36: Region | C36: Island | D36: - | E36: 2032-01-02T08:00:00 | F36: 1231.388377 | G36: 34.2231089 | H36: 0 | I36: 0 | K36: 2026-02-02T17:00:00 | L36: 1583.591072 | M36: 0.0008333
A37: System | B37: Region | C37: Island | D37: - | E37: 2032-01-02T09:00:00 | F37: 1284.596908 | G37: 35.5547416 | H37: 0 | I37: 0 | K37: 2026-02-03T18:00:00 | L37: 1438.316677 | M37: 0
A38: System | B38: Region | C38: Island | D38: - | E38: 2032-01-02T10:00:00 | F38: 1283.296652 | G38: 35.2985289 | H38: 0 | I38: 0 | K38: 2026-02-04T08:00:00 | L38: 1557.777652 | M38: 0.0004167
A39: System | B39: Region | C39: Island | D39: - | E39: 2032-01-02T11:00:00 | F39: 1296.551817 | G39: 35.8967067 | H39: 0 | I39: 0 | K39: 2026-02-05T08:00:00 | L39: 1615.206475 | M39: 0.0016667
A40: System | B40: Region | C40: Island | D40: - | E40: 2032-01-02T12:00:00 | F40: 1280.73799 | G40: 35.2388382 | H40: 0 | I40: 0 | K40: 2026-02-06T12:00:00 | L40: 1290.975461 | M40: 0
A41: System | B41: Region | C41: Island | D41: - | E41: 2032-01-02T13:00:00 | F41: 1249.973756 | G41: 34.680952 | H41: 0 | I41: 0 | K41: 2026-02-07T18:00:00 | L41: 1492.058763 | M41: 0
A42: System | B42: Region | C42: Island | D42: - | E42: 2032-01-02T14:00:00 | F42: 1206.916285 | G42: 32.6707382 | H42: 0 | I42: 0 | K42: 2026-02-08T19:00:00 | L42: 1533.205274 | M42: 0
A43: System | B43: Region | C43: Island | D43: - | E43: 2032-01-02T15:00:00 | F43: 1191.063645 | G43: 32.3640236 | H43: 0 | I43: 0 | K43: 2026-02-09T08:00:00 | L43: 1706.711204 | M43: 0.005
A44: System | B44: Region | C44: Island | D44: - | E44: 2032-01-02T16:00:00 | F44: 1205.945024 | G44: 32.6653963 | H44: 0 | I44: 0 | K44: 2026-02-10T08:00:00 | L44: 1659.362512 | M44: 0.0033333
A45: System | B45: Region | C45: Island | D45: - | E45: 2032-01-02T17:00:00 | F45: 1349.023135 | G45: 37.2266483 | H45: 0 | I45: 0 | K45: 2026-02-11T18:00:00 | L45: 1482.770829 | M45: 0
A46: System | B46: Region | C46: Island | D46: - | E46: 2032-01-02T18:00:00 | F46: 1317.11595 | G46: 36.6659632 | H46: 0 | I46: 0 | K46: 2026-02-12T12:00:00 | L46: 1656.058017 | M46: 0.0016667
A47: System | B47: Region | C47: Island | D47: - | E47: 2032-01-02T19:00:00 | F47: 1254.49751 | G47: 34.5467514 | H47: 0 | I47: 0 | K47: 2026-02-13T08:00:00 | L47: 1485.82628 | M47: 0
A48: System | B48: Region | C48: Island | D48: - | E48: 2032-01-02T20:00:00 | F48: 1242.246018 | G48: 34.3342792 | H48: 0 | I48: 0 | K48: 2026-02-14T18:00:00 | L48: 1404.762708 | M48: 0
A49: System | B49: Region | C49: Island | D49: - | E49: 2032-01-02T21:00:00 | F49: 1218.486892 | G49: 32.9697443 | H49: 0 | I49: 0 | K49: 2026-02-15T18:00:00 | L49: 1376.991822 | M49: 0
A50: System | B50: Region | C50: Island | D50: - | E50: 2032-01-02T22:00:00 | F50: 1187.783598 | G50: 32.318985 | H50: 0 | I50: 0 | K50: 2026-02-16T18:00:00 | L50: 1399.837405 | M50: 0
A51: System | B51: Region | C51: Island | D51: - | E51: 2032-01-02T23:00:00 | F51: 1152.921529 | G51: 25.3596398 | H51: 0 | I51: 0 | K51: 2026-02-17T18:00:00 | L51: 1518.111906 | M51: 0.0004167
A52: System | B52: Region | C52: Island | D52: - | E52: 2032-01-03 | F52: 1109.815656 | G52: 24.0946095 | H52: 0 | I52: 0 | K52: 2026-02-18T08:00:00 | L52: 1484.030671 | M52: 0
A53: System | B53: Region | C53: Island | D53: - | E53: 2032-01-03T01:00:00 | F53: 1086.17941 | G53: 23.6747649 | H53: 0 | I53: 0 | K53: 2026-02-19T18:00:00 | L53: 1346.005936 | M53: 0
